Workbook

Sheet Upgrades
A1: FALSE | B1: Repair rate, not replacement rate | G1: 40 | H1: 25 | M1: 2 | AW1: 0.15 | AX1: 0.25 | AY1: 0.45 | AZ1: 0.15
A2: FALSE | B2: = use Counterpoint Annual spares | M2: initial | AH2: =COLUMN() -> 34 | AI2: =COLUMN() -> 35 | AJ2: =COLUMN() -> 36 | AK2: =COLUMN() -> 37 | AL2: =COLUMN() -> 38 | AM2: =COLUMN() -> 39
B3: rotable stock rate per repair
A4: 0.1 | B4: Adjustment factor | C4: 0.005 | I4: 5 | N4: Price of Spares/Repairs Components (as % of Full Price) | P4: Check 1 | S4: Check 2 | V4: Check 3 | Y4: Check 4 | AB4: Check 5 | AE4: Check 6 | AH4: Check 7 | AK4: Check 8 | AN4: Check 9 | AQ4: Check 10
A5: ID | B5: Unit | C5: Annual Replacement Rate | D5: Annual Repair Rate | E5: Regulatory Service | F5: Target Operational Date | G5: Product Life Cycle (years) | H5: A, B, C, D Check | J5: Applicable class of A/C | K5: Notes | L5: annual Repairs | M5: initial Spares | N5: Repairs | O5: Spares / exchange | P5: Year | Q5: Repair % | R5: Exchange % | S5: Year | T5: Repair % | U5: Exchange % | V5: Year | W5: Repair % | X5: Exchange % | Y5: Year | Z5: Repair % | AA5: Exchange % | AB5: Year | AC5: Repair % | AD5: Exchange % | AE5: Year | AF5: Repair % | AG5: Exchange % | AH5: Year | AI5: Repair % | AJ5: Exchange % | AK5: Year | AL5: Repair % | AM5: Exchange % | AN5: Year | AO5: Repair % | AP5: Spares % | AQ5: Year | AR5: Repair % | AS5: Spares % | AT5: END MARKER | AU5: Technology Service | AV5: Technology Price | AW5: 2024 | AX5: 2025 | AY5: 2026 | AZ5: 2027 | BA5: 2028 | BB5: 2029 | BC5: 2030 | BD5: 2031 | BE5: 2032 | BF5: 2033 | BG5: 2034 | BH5: 2035 | BI5: Number purchased over 40 years for 100 aircraft | BK5: Number repaired over 40 years for 100 aircraft
A6: =INDEX('Avionics ID'!A:E,MATCH(B6,'Avionics ID'!E:E,0),1) -> 713 | B6: A/T Engine Control Unit | C6: =IFERROR(100%/G6,0) -> 0.025 | D6: 0.03 | G6: 40 | H6: =IF(G6=0,"",IF(LEN(E6)>0,"Technology / regulatory","Obsolescence")) -> Obsolescence | I6: =SUBSTITUTE(ADDRESS(1,MATCH(A6,'Pt1-AvionicsComponentCosts'!$A$6:$NC$6,0)+1),"$1","") -> $H | J6: =_xlfn.TEXTJOIN(", ",TRUE,_xlfn.UNIQUE(_xlfn._xlws.SORT(_xlfn._xlws.FILTER('Pt1-AvionicsComponentCosts'!$NF$12:$NF$384,ISNUMBER(INDIRECT("'Pt1-AvionicsComponentCosts'!"&I6&"$12:"&I6&"$384")))))) -> A220, A300, A320, A321, A330, A340, A350, A380, ATR, B717, B737, B747, B757, B767, B777, B787, C919, EMB Regional, MC-21, MD-11, Mil Transport, Military Jet, NSA | L6: =IF($A$1,D6,IF(C6=0,D6,D6)) -> 0.03 | M6: =IF($A$2,INDEX([1]Sheet1!$A$12:$AO$193,MATCH($A6,[1]Sheet1!$A$12:$A$193,0),8),2*$L6) -> 0.06 | N6: =INDEX([1]Sheet1!$A$12:$AO$193,MATCH($A6,[1]Sheet1!$A$12:$A$193,0),9)*(1+$A$4) -> 0.4466 | O6: =INDEX([1]Sheet1!$A$12:$AO$193,MATCH($A6,[1]Sheet1!$A$12:$A$193,0),10)*(1+$A$4) -> 2.2847 | P6: =COUNTIF($P$5:P$5,"Year")*$I$4 -> 5 | Q6: =0% -> 0 | R6: =IF(MOD(P6,$G6)=0,$M6/2,IF(MOD(P6,MROUND($G6/2,$I$4))=0,$M6/2,0)) -> 0 | S6: =COUNTIF($P$5:S$5,"Year")*$I$4 -> 10 | T6: =0% -> 0 | U6: =IF(MOD(S6,$G6)=0,$M6/2,IF(MOD(S6,MROUND($G6/2,$I$4))=0,$M6/2,0)) -> 0 | V6: =COUNTIF($P$5:V$5,"Year")*$I$4 -> 15 | W6: =0% -> 0 | X6: =IF(MOD(V6,$G6)=0,$M6/2,IF(MOD(V6,MROUND($G6/2,$I$4))=0,$M6/2,0)) -> 0 | Y6: =COUNTIF($P$5:Y$5,"Year")*$I$4 -> 20 | Z6: =0% -> 0 | AA6: =IF(MOD(Y6,$G6)=0,$M6/2,IF(MOD(Y6,MROUND($G6/2,$I$4))=0,$M6/2,0)) -> 0.03 | AB6: =COUNTIF($P$5:AB$5,"Year")*$I$4 -> 25 | AC6: =0% -> 0 | AD6: =IF(MOD(AB6,$G6)=0,$M6/2,IF(MOD(AB6,MROUND($G6/2,$I$4))=0,$M6/2,0)) -> 0 | AE6: =COUNTIF($P$5:AE$5,"Year")*$I$4 -> 30 | AF6: =0% -> 0 | AG6: =IF(MOD(AE6,$G6)=0,$M6/2,IF(MOD(AE6,MROUND($G6/2,$I$4))=0,$M6/2,0)) -> 0 | AH6: =COUNTIF($P$5:AH$5,"Year")*$I$4 -> 35 | AI6: =0% -> 0 | AJ6: =IF(MOD(AH6,$G6)=0,$M6/2,IF(MOD(AH6,MROUND($G6/2,$I$4))=0,$M6/2,0)) -> 0 | AK6: =COUNTIF($P$5:AK$5,"Year")*$I$4 -> 40 | AL6: =0% -> 0 | AM6: =IF(MOD(AK6,$G6)=0,$M6/2,IF(MOD(AK6,MROUND($G6/2,$I$4))=0,$M6/2,0)) -> 0.03 | AU6: =IF(LEN($E6)=0,"",$E6) ->  | AV6: =IF($H6="Technology / regulatory",$O6,0) -> 0 | AW6: =IF($H6="Technology / regulatory",IF(AW$5=$F6-2,$AW$1,IF(AW$5=$F6-1,$AX$1,IF(AW$5=$F6,$AY$1,IF(AW$5=$F6+1,$AZ$1,0)))),0) -> 0 | AX6: 0 | AY6: 0 | AZ6: 0 | BA6: 0 | BB6: 0 | BC6: 0 | BD6: 0 | BE6: 0 | BF6: 0 | BG6: 0 | BH6: 0 | BI6: =(SUM(AW6:BH6)+SUMIFS(P6:AS6,P$5:AS$5,"Exchange %")+$M6)*100 -> 12 | BJ6: =$M6*100 -> 6 | BK6: =40*$L6*100 -> 120 | BL6: =INDEX('Avionics ID'!A:E,MATCH(B6,'Avionics ID'!E:E,0),3) -> Auto-pilot
A7: =INDEX('Avionics ID'!A:E,MATCH(B7,'Avionics ID'!E:E,0),1) -> 763 | B7: ADF radios | C7: =IFERROR(100%/G7,0) -> 0.05 | D7: 0.03 | G7: 20 | H7: =IF(G7=0,"",IF(LEN(E7)>0,"Technology / regulatory","Obsolescence")) -> Obsolescence | I7: =SUBSTITUTE(ADDRESS(1,MATCH(A7,'Pt1-AvionicsComponentCosts'!$A$6:$NC$6,0)+1),"$1","") -> $P | J7: =_xlfn.TEXTJOIN(", ",TRUE,_xlfn.UNIQUE(_xlfn._xlws.SORT(_xlfn._xlws.FILTER('Pt1-AvionicsComponentCosts'!$NF$12:$NF$384,ISNUMBER(INDIRECT("'Pt1-AvionicsComponentCosts'!"&I7&"$12:"&I7&"$384")))))) -> A300, A320, A330, A340, A350, A380, B747, B767, B777, B787 | L7: =IF($A$1,D7,IF(C7=0,D7,D7)) -> 0.03 | M7: =IF($A$2,INDEX([1]Sheet1!$A$12:$AO$193,MATCH($A7,[1]Sheet1!$A$12:$A$193,0),8),2*$L7) -> 0.06 | N7: =INDEX([1]Sheet1!$A$12:$AO$193,MATCH($A7,[1]Sheet1!$A$12:$A$193,0),9)*(1+$A$4) -> 0.5511 | O7: =INDEX([1]Sheet1!$A$12:$AO$193,MATCH($A7,[1]Sheet1!$A$12:$A$193,0),10)*(1+$A$4) -> 1.4267 | P7: =COUNTIF($P$5:P$5,"Year")*$I$4 -> 5 | Q7: =0% -> 0 | R7: =IF(MOD(P7,$G7)=0,$M7/2,IF(MOD(P7,MROUND($G7/2,$I$4))=0,$M7/2,0)) -> 0 | S7: =COUNTIF($P$5:S$5,"Year")*$I$4 -> 10 | T7: =0% -> 0 | U7: =IF(MOD(S7,$G7)=0,$M7/2,IF(MOD(S7,MROUND($G7/2,$I$4))=0,$M7/2,0)) -> 0.03 | V7: =COUNTIF($P$5:V$5,"Year")*$I$4 -> 15 | W7: =0% -> 0 | X7: =IF(MOD(V7,$G7)=0,$M7/2,IF(MOD(V7,MROUND($G7/2,$I$4))=0,$M7/2,0)) -> 0 | Y7: =COUNTIF($P$5:Y$5,"Year")*$I$4 -> 20 | Z7: =0% -> 0 | AA7: =IF(MOD(Y7,$G7)=0,$M7/2,IF(MOD(Y7,MROUND($G7/2,$I$4))=0,$M7/2,0)) -> 0.03 | AB7: =COUNTIF($P$5:AB$5,"Year")*$I$4 -> 25 | AC7: =0% -> 0 | AD7: =IF(MOD(AB7,$G7)=0,$M7/2,IF(MOD(AB7,MROUND($G7/2,$I$4))=0,$M7/2,0)) -> 0 | AE7: =COUNTIF($P$5:AE$5,"Year")*$I$4 -> 30 | AF7: =0% -> 0 | AG7: =IF(MOD(AE7,$G7)=0,$M7/2,IF(MOD(AE7,MROUND($G7/2,$I$4))=0,$M7/2,0)) -> 0.03 | AH7: =COUNTIF($P$5:AH$5,"Year")*$I$4 -> 35 | AI7: =0% -> 0 | AJ7: =IF(MOD(AH7,$G7)=0,$M7/2,IF(MOD(AH7,MROUND($G7/2,$I$4))=0,$M7/2,0)) -> 0 | AK7: =COUNTIF($P$5:AK$5,"Year")*$I$4 -> 40 | AL7: =0% -> 0 | AM7: =IF(MOD(AK7,$G7)=0,$M7/2,IF(MOD(AK7,MROUND($G7/2,$I$4))=0,$M7/2,0)) -> 0.03 | AU7: =IF(LEN($E7)=0,"",$E7) ->  | AV7: =IF($H7="Technology / regulatory",$O7,0) -> 0 | AW7: 0 | AX7: 0 | AY7: 0 | AZ7: 0 | BA7: 0 | BB7: 0 | BC7: 0 | BD7: 0 | BE7: 0 | BF7: 0 | BG7: 0 | BH7: 0 | BI7: =(SUM(AW7:BH7)+SUMIFS(P7:AS7,P$5:AS$5,"Exchange %")+$M7)*100 -> 18 | BJ7: 6 | BK7: =40*$L7*100 -> 120 | BL7: =INDEX('Avionics ID'!A:E,MATCH(B7,'Avionics ID'!E:E,0),3) -> Communications
A8: =INDEX('Avionics ID'!A:E,MATCH(B8,'Avionics ID'!E:E,0),1) -> 724 | B8: ADF system | C8: 0.1 | D8: 0.03 | G8: 10 | H8: Obsolescence | I8: =SUBSTITUTE(ADDRESS(1,MATCH(A8,'Pt1-AvionicsComponentCosts'!$A$6:$NC$6,0)+1),"$1","") -> $R | J8: =_xlfn.TEXTJOIN(", ",TRUE,_xlfn.UNIQUE(_xlfn._xlws.SORT(_xlfn._xlws.FILTER('Pt1-AvionicsComponentCosts'!$NF$12:$NF$384,ISNUMBER(INDIRECT("'Pt1-AvionicsComponentCosts'!"&I8&"$12:"&I8&"$384")))))) -> A220, A300, A320, A321, A330, A340, A350, ATR, B717, B737, B747, B757, B767, B777, B787, C919, EMB Regional, MC-21, MD-11, Mil Transport, Military Jet, NSA | L8: 0.03 | M8: =IF($A$2,INDEX([1]Sheet1!$A$12:$AO$193,MATCH($A8,[1]Sheet1!$A$12:$A$193,0),8),2*$L8) -> 0.06 | N8: =INDEX([1]Sheet1!$A$12:$AO$193,MATCH($A8,[1]Sheet1!$A$12:$A$193,0),9)*(1+$A$4) -> 0.5511 | O8: =INDEX([1]Sheet1!$A$12:$AO$193,MATCH($A8,[1]Sheet1!$A$12:$A$193,0),10)*(1+$A$4) -> 1.4267 | P8: =COUNTIF($P$5:P$5,"Year")*$I$4 -> 5 | Q8: =0% -> 0 | R8: 0.03 | S8: =COUNTIF($P$5:S$5,"Year")*$I$4 -> 10 | T8: =0% -> 0 | U8: 0.03 | V8: =COUNTIF($P$5:V$5,"Year")*$I$4 -> 15 | W8: =0% -> 0 | X8: 0.03 | Y8: =COUNTIF($P$5:Y$5,"Year")*$I$4 -> 20 | Z8: =0% -> 0 | AA8: 0.03 | AB8: =COUNTIF($P$5:AB$5,"Year")*$I$4 -> 25 | AC8: =0% -> 0 | AD8: 0.03 | AE8: =COUNTIF($P$5:AE$5,"Year")*$I$4 -> 30 | AF8: =0% -> 0 | AG8: 0.03 | AH8: =COUNTIF($P$5:AH$5,"Year")*$I$4 -> 35 | AI8: =0% -> 0 | AJ8: 0.03 | AK8: =COUNTIF($P$5:AK$5,"Year")*$I$4 -> 40 | AL8: =0% -> 0 | AM8: 0.03 | AV8: 0 | AW8: 0 | AX8: 0 | AY8: 0 | AZ8: 0 | BA8: 0 | BB8: 0 | BC8: 0 | BD8: 0 | BE8: 0 | BF8: 0 | BG8: 0 | BH8: 0 | BI8: 30 | BJ8: 6 | BK8: 120 | BL8: =INDEX('Avionics ID'!A:E,MATCH(B8,'Avionics ID'!E:E,0),3) -> Communications
A9: =INDEX('Avionics ID'!A:E,MATCH(B9,'Avionics ID'!E:E,0),1) -> 719 | B9: ADIRS CDU | C9: 0.1 | D9: 0.03 | G9: 10 | H9: Obsolescence | I9: =SUBSTITUTE(ADDRESS(1,MATCH(A9,'Pt1-AvionicsComponentCosts'!$A$6:$NC$6,0)+1),"$1","") -> $DR | J9: =_xlfn.TEXTJOIN(", ",TRUE,_xlfn.UNIQUE(_xlfn._xlws.SORT(_xlfn._xlws.FILTER('Pt1-AvionicsComponentCosts'!$NF$12:$NF$384,ISNUMBER(INDIRECT("'Pt1-AvionicsComponentCosts'!"&I9&"$12:"&I9&"$384")))))) -> A220, A320, A321, A350, ATR, B717, B737, B747, B757, B777, B787, C919, EMB Regional, MC-21, Mil Transport, Military Jet, NSA | L9: 0.03 | M9: =IF($A$2,INDEX([1]Sheet1!$A$12:$AO$193,MATCH($A9,[1]Sheet1!$A$12:$A$193,0),8),2*$L9) -> 0.06 | N9: =INDEX([1]Sheet1!$A$12:$AO$193,MATCH($A9,[1]Sheet1!$A$12:$A$193,0),9)*(1+$A$4) -> 0.3883 | O9: =INDEX([1]Sheet1!$A$12:$AO$193,MATCH($A9,[1]Sheet1!$A$12:$A$193,0),10)*(1+$A$4) -> 2.0306 | P9: =COUNTIF($P$5:P$5,"Year")*$I$4 -> 5 | Q9: =0% -> 0 | R9: 0.03 | S9: =COUNTIF($P$5:S$5,"Year")*$I$4 -> 10 | T9: =0% -> 0 | U9: 0.03 | V9: =COUNTIF($P$5:V$5,"Year")*$I$4 -> 15 | W9: =0% -> 0 | X9: 0.03 | Y9: =COUNTIF($P$5:Y$5,"Year")*$I$4 -> 20 | Z9: =0% -> 0 | AA9: 0.03 | AB9: =COUNTIF($P$5:AB$5,"Year")*$I$4 -> 25 | AC9: =0% -> 0 | AD9: 0.03 | AE9: =COUNTIF($P$5:AE$5,"Year")*$I$4 -> 30 | AF9: =0% -> 0 | AG9: 0.03 | AH9: =COUNTIF($P$5:AH$5,"Year")*$I$4 -> 35 | AI9: =0% -> 0 | AJ9: 0.03 | AK9: =COUNTIF($P$5:AK$5,"Year")*$I$4 -> 40 | AL9: =0% -> 0 | AM9: 0.03 | AV9: 0 | AW9: 0 | AX9: 0 | AY9: 0 | AZ9: 0 | BA9: 0 | BB9: 0 | BC9: 0 | BD9: 0 | BE9: 0 | BF9: 0 | BG9: 0 | BH9: 0 | BI9: =(SUM(AW9:BH9)+SUMIFS(P9:AS9,P$5:AS$5,"Exchange %"))*100 -> 24 | BJ9: 6 | BK9: 120 | BL9: =INDEX('Avionics ID'!A:E,MATCH(B9,'Avionics ID'!E:E,0),3) -> Display
A10: =INDEX('Avionics ID'!A:E,MATCH(B10,'Avionics ID'!E:E,0),1) -> 717 | B10: ADIRU | C10: 0.1 | D10: 0.03 | G10: 10 | H10: Obsolescence | I10: =SUBSTITUTE(ADDRESS(1,MATCH(A10,'Pt1-AvionicsComponentCosts'!$A$6:$NC$6,0)+1),"$1","") -> $IT | J10: =_xlfn.TEXTJOIN(", ",TRUE,_xlfn.UNIQUE(_xlfn._xlws.SORT(_xlfn._xlws.FILTER('Pt1-AvionicsComponentCosts'!$NF$12:$NF$384,ISNUMBER(INDIRECT("'Pt1-AvionicsComponentCosts'!"&I10&"$12:"&I10&"$384")))))) -> A220, A300, A320, A321, A330, A340, A350, A380, ARJ, ATR, B717, B737, B747, B757, B767, B777, C919, CRJ, EMB Regional, MC-21, MD-11, Mil Transport, Military Jet, NSA, Reg TP, Superjet 100, Turbine GA | L10: 0.03 | M10: =IF($A$2,INDEX([1]Sheet1!$A$12:$AO$193,MATCH($A10,[1]Sheet1!$A$12:$A$193,0),8),2*$L10) -> 0.06 | N10: =INDEX([1]Sheet1!$A$12:$AO$193,MATCH($A10,[1]Sheet1!$A$12:$A$193,0),9)*(1+$A$4) -> 0.3894 | O10: =INDEX([1]Sheet1!$A$12:$AO$193,MATCH($A10,[1]Sheet1!$A$12:$A$193,0),10)*(1+$A$4) -> 2.0119 | P10: =COUNTIF($P$5:P$5,"Year")*$I$4 -> 5 | Q10: =0% -> 0 | R10: 0.03 | S10: =COUNTIF($P$5:S$5,"Year")*$I$4 -> 10 | T10: =0% -> 0 | U10: 0.03 | V10: =COUNTIF($P$5:V$5,"Year")*$I$4 -> 15 | W10: =0% -> 0 | X10: 0.03 | Y10: =COUNTIF($P$5:Y$5,"Year")*$I$4 -> 20 | Z10: =0% -> 0 | AA10: 0.03 | AB10: =COUNTIF($P$5:AB$5,"Year")*$I$4 -> 25 | AC10: =0% -> 0 | AD10: 0.03 | AE10: =COUNTIF($P$5:AE$5,"Year")*$I$4 -> 30 | AF10: =0% -> 0 | AG10: 0.03 | AH10: =COUNTIF($P$5:AH$5,"Year")*$I$4 -> 35 | AI10: =0% -> 0 | AJ10: 0.03 | AK10: =COUNTIF($P$5:AK$5,"Year")*$I$4 -> 40 | AL10: =0% -> 0 | AM10: 0.03 | AV10: 0 | AW10: 0 | AX10: 0 | AY10: 0 | AZ10: 0 | BA10: 0 | BB10: 0 | BC10: 0 | BD10: 0 | BE10: 0 | BF10: 0 | BG10: 0 | BH10: 0 | BI10: 30 | BJ10: 6 | BK10: 120 | BL10: =INDEX('Avionics ID'!A:E,MATCH(B10,'Avionics ID'!E:E,0),3) -> Navigation
A11: =INDEX('Avionics ID'!A:E,MATCH(B11,'Avionics ID'!E:E,0),1) -> 796 | B11: AESA Radar | C11: 0.05 | D11: 0.08 | G11: 20 | H11: Obsolescence | I11: =SUBSTITUTE(ADDRESS(1,MATCH(A11,'Pt1-AvionicsComponentCosts'!$A$6:$NC$6,0)+1),"$1","") -> $KJ | J11: =_xlfn.TEXTJOIN(", ",TRUE,_xlfn.UNIQUE(_xlfn._xlws.SORT(_xlfn._xlws.FILTER('Pt1-AvionicsComponentCosts'!$NF$12:$NF$384,ISNUMBER(INDIRECT("'Pt1-AvionicsComponentCosts'!"&I11&"$12:"&I11&"$384")))))) -> Attack, Stealth | L11: 0.08 | M11: =IF($A$2,INDEX([1]Sheet1!$A$12:$AO$193,MATCH($A11,[1]Sheet1!$A$12:$A$193,0),8),2*$L11) -> 0.16 | N11: =INDEX([1]Sheet1!$A$12:$AO$193,MATCH($A11,[1]Sheet1!$A$12:$A$193,0),9)*(1+$A$4) -> 0.3685 | O11: =INDEX([1]Sheet1!$A$12:$AO$193,MATCH($A11,[1]Sheet1!$A$12:$A$193,0),10)*(1+$A$4) -> 1.8513 | P11: =COUNTIF($P$5:P$5,"Year")*$I$4 -> 5 | Q11: =0% -> 0 | R11: 0 | S11: =COUNTIF($P$5:S$5,"Year")*$I$4 -> 10 | T11: =0% -> 0 | U11: 0.08 | V11: =COUNTIF($P$5:V$5,"Year")*$I$4 -> 15 | W11: =0% -> 0 | X11: 0 | Y11: =COUNTIF($P$5:Y$5,"Year")*$I$4 -> 20 | Z11: =0% -> 0 | AA11: 0.08 | AB11: =COUNTIF($P$5:AB$5,"Year")*$I$4 -> 25 | AC11: =0% -> 0 | AD11: 0 | AE11: =COUNTIF($P$5:AE$5,"Year")*$I$4 -> 30 | AF11: =0% -> 0 | AG11: 0.08 | AH11: =COUNTIF($P$5:AH$5,"Year")*$I$4 -> 35 | AI11: =0% -> 0 | AJ11: 0 | AK11: =COUNTIF($P$5:AK$5,"Year")*$I$4 -> 40 | AL11: =0% -> 0 | AM11: 0.08 | AV11: 0 | AW11: 0 | AX11: 0 | AY11: 0 | AZ11: 0 | BA11: 0 | BB11: 0 | BC11: 0 | BD11: 0 | BE11: 0 | BF11: 0 | BG11: 0 | BH11: 0 | BI11: 48 | BJ11: 16 | BK11: 320 | BL11: =INDEX('Avionics ID'!A:E,MATCH(B11,'Avionics ID'!E:E,0),3) -> Sensors
A12: =INDEX('Avionics ID'!A:E,MATCH(B12,'Avionics ID'!E:E,0),1) -> 841 | B12: AFDX databus | C12: 0.05 | D12: 0.03 | G12: 20 | H12: Obsolescence | I12: =SUBSTITUTE(ADDRESS(1,MATCH(A12,'Pt1-AvionicsComponentCosts'!$A$6:$NC$6,0)+1),"$1","") -> $CD | J12: =_xlfn.TEXTJOIN(", ",TRUE,_xlfn.UNIQUE(_xlfn._xlws.SORT(_xlfn._xlws.FILTER('Pt1-AvionicsComponentCosts'!$NF$12:$NF$384,ISNUMBER(INDIRECT("'Pt1-AvionicsComponentCosts'!"&I12&"$12:"&I12&"$384")))))) -> A330 LMXT, A330 MRTT, Mil Transport, Military Jet, Military TP | L12: 0.03 | M12: =IF($A$2,INDEX([1]Sheet1!$A$12:$AO$193,MATCH($A12,[1]Sheet1!$A$12:$A$193,0),8),2*$L12) -> 0.06 | N12: =INDEX([1]Sheet1!$A$12:$AO$193,MATCH($A12,[1]Sheet1!$A$12:$A$193,0),9)*(1+$A$4) -> 0.7513 | O12: =INDEX([1]Sheet1!$A$12:$AO$193,MATCH($A12,[1]Sheet1!$A$12:$A$193,0),10)*(1+$A$4) -> 2.1241 | P12: =COUNTIF($P$5:P$5,"Year")*$I$4 -> 5 | Q12: =0% -> 0 | R12: 0 | S12: =COUNTIF($P$5:S$5,"Year")*$I$4 -> 10 | T12: =0% -> 0 | U12: 0.03 | V12: =COUNTIF($P$5:V$5,"Year")*$I$4 -> 15 | W12: =0% -> 0 | X12: 0 | Y12: =COUNTIF($P$5:Y$5,"Year")*$I$4 -> 20 | Z12: =0% -> 0 | AA12: 0.03 | AB12: =COUNTIF($P$5:AB$5,"Year")*$I$4 -> 25 | AC12: =0% -> 0 | AD12: 0 | AE12: =COUNTIF($P$5:AE$5,"Year")*$I$4 -> 30 | AF12: =0% -> 0 | AG12: 0.03 | AH12: =COUNTIF($P$5:AH$5,"Year")*$I$4 -> 35 | AI12: =0% -> 0 | AJ12: 0 | AK12: =COUNTIF($P$5:AK$5,"Year")*$I$4 -> 40 | AL12: =0% -> 0 | AM12: 0.03 | AV12: 0 | AW12: 0 | AX12: 0 | AY12: 0 | AZ12: 0 | BA12: 0 | BB12: 0 | BC12: 0 | BD12: 0 | BE12: 0 | BF12: 0 | BG12: 0 | BH12: 0 | BI12: 18 | BJ12: 6 | BK12: 120 | BL12: =INDEX('Avionics ID'!A:E,MATCH(B12,'Avionics ID'!E:E,0),3) -> Data
A13: =INDEX('Avionics ID'!A:E,MATCH(B13,'Avionics ID'!E:E,0),1) -> 777 | B13: AHRS package | C13: 0.1 | D13: 0.03 | G13: 10 | H13: Obsolescence | I13: =SUBSTITUTE(ADDRESS(1,MATCH(A13,'Pt1-AvionicsComponentCosts'!$A$6:$NC$6,0)+1),"$1","") -> $IV | J13: =_xlfn.TEXTJOIN(", ",TRUE,_xlfn.UNIQUE(_xlfn._xlws.SORT(_xlfn._xlws.FILTER('Pt1-AvionicsComponentCosts'!$NF$12:$NF$384,ISNUMBER(INDIRECT("'Pt1-AvionicsComponentCosts'!"&I13&"$12:"&I13&"$384")))))) -> A350, B747, B777, B787 | L13: 0.03 | M13: =IF($A$2,INDEX([1]Sheet1!$A$12:$AO$193,MATCH($A13,[1]Sheet1!$A$12:$A$193,0),8),2*$L13) -> 0.06 | N13: =INDEX([1]Sheet1!$A$12:$AO$193,MATCH($A13,[1]Sheet1!$A$12:$A$193,0),9)*(1+$A$4) -> 0.3894 | O13: =INDEX([1]Sheet1!$A$12:$AO$193,MATCH($A13,[1]Sheet1!$A$12:$A$193,0),10)*(1+$A$4) -> 2.0119 | P13: =COUNTIF($P$5:P$5,"Year")*$I$4 -> 5 | Q13: =0% -> 0 | R13: 0.03 | S13: =COUNTIF($P$5:S$5,"Year")*$I$4 -> 10 | T13: =0% -> 0 | U13: 0.03 | V13: =COUNTIF($P$5:V$5,"Year")*$I$4 -> 15 | W13: =0% -> 0 | X13: 0.03 | Y13: =COUNTIF($P$5:Y$5,"Year")*$I$4 -> 20 | Z13: =0% -> 0 | AA13: 0.03 | AB13: =COUNTIF($P$5:AB$5,"Year")*$I$4 -> 25 | AC13: =0% -> 0 | AD13: 0.03 | AE13: =COUNTIF($P$5:AE$5,"Year")*$I$4 -> 30 | AF13: =0% -> 0 | AG13: 0.03 | AH13: =COUNTIF($P$5:AH$5,"Year")*$I$4 -> 35 | AI13: =0% -> 0 | AJ13: 0.03 | AK13: =COUNTIF($P$5:AK$5,"Year")*$I$4 -> 40 | AL13: =0% -> 0 | AM13: 0.03 | AV13: 0 | AW13: 0 | AX13: 0 | AY13: 0 | AZ13: 0 | BA13: 0 | BB13: 0 | BC13: 0 | BD13: 0 | BE13: 0 | BF13: 0 | BG13: 0 | BH13: 0 | BI13: 30 | BJ13: 6 | BK13: 120 | BL13: =INDEX('Avionics ID'!A:E,MATCH(B13,'Avionics ID'!E:E,0),3) -> Navigation
A14: =INDEX('Avionics ID'!A:E,MATCH(B14,'Avionics ID'!E:E,0),1) -> 721 | B14: Air Data Modules (ADM) | C14: 0.06666666667 | D14: 0.06 | G14: 15 | H14: Obsolescence | I14: =SUBSTITUTE(ADDRESS(1,MATCH(A14,'Pt1-AvionicsComponentCosts'!$A$6:$NC$6,0)+1),"$1","") -> $IX | J14: =_xlfn.TEXTJOIN(", ",TRUE,_xlfn.UNIQUE(_xlfn._xlws.SORT(_xlfn._xlws.FILTER('Pt1-AvionicsComponentCosts'!$NF$12:$NF$384,ISNUMBER(INDIRECT("'Pt1-AvionicsComponentCosts'!"&I14&"$12:"&I14&"$384")))))) -> A220, A300, A320, A321, A330, A330 LMXT, A330 MRTT, A340, A350, A380, ATR, B717, B737, B747, B757, B767, B777, B787, C919, Challenger, Citation, E550, EMB Bizjet, EMB Regional, Falcon, Global, Gulfstream, Hawker, Helo, Hondajet, Learjet, MC-21, MD-11, Mil Transport, Military Jet, Military TP, Nextant 400XT, NSA, PC-24, Phenom, Praetor, SF50, TP Trainer, Turbine GA | L14: 0.06 | M14: =IF($A$2,INDEX([1]Sheet1!$A$12:$AO$193,MATCH($A14,[1]Sheet1!$A$12:$A$193,0),8),2*$L14) -> 0.12 | N14: =INDEX([1]Sheet1!$A$12:$AO$193,MATCH($A14,[1]Sheet1!$A$12:$A$193,0),9)*(1+$A$4) -> 0.3894 | O14: =INDEX([1]Sheet1!$A$12:$AO$193,MATCH($A14,[1]Sheet1!$A$12:$A$193,0),10)*(1+$A$4) -> 2.0119 | P14: =COUNTIF($P$5:P$5,"Year")*$I$4 -> 5 | Q14: =0% -> 0 | R14: 0 | S14: =COUNTIF($P$5:S$5,"Year")*$I$4 -> 10 | T14: =0% -> 0 | U14: 0.06 | V14: =COUNTIF($P$5:V$5,"Year")*$I$4 -> 15 | W14: =0% -> 0 | X14: 0.06 | Y14: =COUNTIF($P$5:Y$5,"Year")*$I$4 -> 20 | Z14: =0% -> 0 | AA14: 0.06 | AB14: =COUNTIF($P$5:AB$5,"Year")*$I$4 -> 25 | AC14: =0% -> 0 | AD14: 0 | AE14: =COUNTIF($P$5:AE$5,"Year")*$I$4 -> 30 | AF14: =0% -> 0 | AG14: 0.06 | AH14: =COUNTIF($P$5:AH$5,"Year")*$I$4 -> 35 | AI14: =0% -> 0 | AJ14: 0 | AK14: =COUNTIF($P$5:AK$5,"Year")*$I$4 -> 40 | AL14: =0% -> 0 | AM14: 0.06 | AV14: 0 | AW14: 0 | AX14: 0 | AY14: 0 | AZ14: 0 | BA14: 0 | BB14: 0 | BC14: 0 | BD14: 0 | BE14: 0 | BF14: 0 | BG14: 0 | BH14: 0 | BI14: 42 | BJ14: 12 | BK14: 240 | BL14: =INDEX('Avionics ID'!A:E,MATCH(B14,'Avionics ID'!E:E,0),3) -> Navigation
A15: =INDEX('Avionics ID'!A:E,MATCH(B15,'Avionics ID'!E:E,0),1) -> 722 | B15: Air data probes (pitot/static) | C15: 0.05 | D15: 0.1 | G15: 20 | H15: Obsolescence | I15: =SUBSTITUTE(ADDRESS(1,MATCH(A15,'Pt1-AvionicsComponentCosts'!$A$6:$NC$6,0)+1),"$1","") -> $KL | J15: =_xlfn.TEXTJOIN(", ",TRUE,_xlfn.UNIQUE(_xlfn._xlws.SORT(_xlfn._xlws.FILTER('Pt1-AvionicsComponentCosts'!$NF$12:$NF$384,ISNUMBER(INDIRECT("'Pt1-AvionicsComponentCosts'!"&I15&"$12:"&I15&"$384")))))) -> A220, A300, A320, A321, A330, A330 LMXT, A330 MRTT, A340, A350, A380, ATR, B717, B737, B747, B757, B767, B777, B787, C919, Challenger, Citation, E550, EMB Bizjet, EMB Regional, Falcon, Global, Gulfstream, Hawker, Hondajet, Learjet, MC-21, MD-11, Mil Transport, Military Jet, Military TP, Nextant 400XT, NSA, PC-24, Phenom, Praetor, SF50 | L15: 0.1 | M15: =IF($A$2,INDEX([1]Sheet1!$A$12:$AO$193,MATCH($A15,[1]Sheet1!$A$12:$A$193,0),8),2*$L15) -> 0.2 | N15: =INDEX([1]Sheet1!$A$12:$AO$193,MATCH($A15,[1]Sheet1!$A$12:$A$193,0),9)*(1+$A$4) -> 0.3685 | O15: =INDEX([1]Sheet1!$A$12:$AO$193,MATCH($A15,[1]Sheet1!$A$12:$A$193,0),10)*(1+$A$4) -> 1.8513 | P15: =COUNTIF($P$5:P$5,"Year")*$I$4 -> 5 | Q15: =0% -> 0 | R15: 0 | S15: =COUNTIF($P$5:S$5,"Year")*$I$4 -> 10 | T15: =0% -> 0 | U15: 0.1 | V15: =COUNTIF($P$5:V$5,"Year")*$I$4 -> 15 | W15: =0% -> 0 | X15: 0 | Y15: =COUNTIF($P$5:Y$5,"Year")*$I$4 -> 20 | Z15: =0% -> 0 | AA15: 0.1 | AB15: =COUNTIF($P$5:AB$5,"Year")*$I$4 -> 25 | AC15: =0% -> 0 | AD15: 0 | AE15: =COUNTIF($P$5:AE$5,"Year")*$I$4 -> 30 | AF15: =0% -> 0 | AG15: 0.1 | AH15: =COUNTIF($P$5:AH$5,"Year")*$I$4 -> 35 | AI15: =0% -> 0 | AJ15: 0 | AK15: =COUNTIF($P$5:AK$5,"Year")*$I$4 -> 40 | AL15: =0% -> 0 | AM15: 0.1 | AV15: 0 | AW15: 0 | AX15: 0 | AY15: 0 | AZ15: 0 | BA15: 0 | BB15: 0 | BC15: 0 | BD15: 0 | BE15: 0 | BF15: 0 | BG15: 0 | BH15: 0 | BI15: 60 | BJ15: 20 | BK15: 400 | BL15: =INDEX('Avionics ID'!A:E,MATCH(B15,'Avionics ID'!E:E,0),3) -> Sensors
A16: =INDEX('Avionics ID'!A:E,MATCH(B16,'Avionics ID'!E:E,0),1) -> 880 | B16: Air data sensors | C16: 0.05 | D16: 0.1 | G16: 20 | H16: Obsolescence | I16: =SUBSTITUTE(ADDRESS(1,MATCH(A16,'Pt1-AvionicsComponentCosts'!$A$6:$NC$6,0)+1),"$1","") -> $KN | J16: =_xlfn.TEXTJOIN(", ",TRUE,_xlfn.UNIQUE(_xlfn._xlws.SORT(_xlfn._xlws.FILTER('Pt1-AvionicsComponentCosts'!$NF$12:$NF$384,ISNUMBER(INDIRECT("'Pt1-AvionicsComponentCosts'!"&I16&"$12:"&I16&"$384")))))) -> ARJ, Attack, Challenger, Citation, CRJ, E550, EMB Bizjet, EMB Regional, Falcon, Global, Gulfstream, Hawker, Helo, Hondajet, Learjet, Nextant 400XT, PC-24, Phenom, Praetor, Reg TP, SF50, Stealth, Superjet 100, Turbine GA, UAV | L16: 0.1 | M16: =IF($A$2,INDEX([1]Sheet1!$A$12:$AO$193,MATCH($A16,[1]Sheet1!$A$12:$A$193,0),8),2*$L16) -> 0.2 | N16: =INDEX([1]Sheet1!$A$12:$AO$193,MATCH($A16,[1]Sheet1!$A$12:$A$193,0),9)*(1+$A$4) -> 0.3685 | O16: =INDEX([1]Sheet1!$A$12:$AO$193,MATCH($A16,[1]Sheet1!$A$12:$A$193,0),10)*(1+$A$4) -> 1.8513 | P16: =COUNTIF($P$5:P$5,"Year")*$I$4 -> 5 | Q16: =0% -> 0 | R16: 0 | S16: =COUNTIF($P$5:S$5,"Year")*$I$4 -> 10 | T16: =0% -> 0 | U16: 0.1 | V16: =COUNTIF($P$5:V$5,"Year")*$I$4 -> 15 | W16: =0% -> 0 | X16: 0 | Y16: =COUNTIF($P$5:Y$5,"Year")*$I$4 -> 20 | Z16: =0% -> 0 | AA16: 0.1 | AB16: =COUNTIF($P$5:AB$5,"Year")*$I$4 -> 25 | AC16: =0% -> 0 | AD16: 0 | AE16: =COUNTIF($P$5:AE$5,"Year")*$I$4 -> 30 | AF16: =0% -> 0 | AG16: 0.1 | AH16: =COUNTIF($P$5:AH$5,"Year")*$I$4 -> 35 | AI16: =0% -> 0 | AJ16: 0 | AK16: =COUNTIF($P$5:AK$5,"Year")*$I$4 -> 40 | AL16: =0% -> 0 | AM16: 0.1 | AV16: 0 | AW16: =IF($H16="Technology / regulatory",IF(AW$5=$F16-2,$AW$1,IF(AW$5=$F16-1,$AX$1,IF(AW$5=$F16,$AY$1,IF(AW$5=$F16+1,$AZ$1,0)))),0) -> 0 | AX16: 0 | AY16: 0 | AZ16: 0 | BA16: 0 | BB16: 0 | BC16: 0 | BD16: 0 | BE16: 0 | BF16: 0 | BG16: 0 | BH16: 0 | BI16: 60 | BJ16: 20 | BK16: 400 | BL16: =INDEX('Avionics ID'!A:E,MATCH(B16,'Avionics ID'!E:E,0),3) -> Sensors
A17: =INDEX('Avionics ID'!A:E,MATCH(B17,'Avionics ID'!E:E,0),1) -> 815 | B17: Air Data smart sensor | C17: 0.05 | D17: 0.06 | G17: 20 | H17: Obsolescence | I17: =SUBSTITUTE(ADDRESS(1,MATCH(A17,'Pt1-AvionicsComponentCosts'!$A$6:$NC$6,0)+1),"$1","") -> $KP | J17: =_xlfn.TEXTJOIN(", ",TRUE,_xlfn.UNIQUE(_xlfn._xlws.SORT(_xlfn._xlws.FILTER('Pt1-AvionicsComponentCosts'!$NF$12:$NF$384,ISNUMBER(INDIRECT("'Pt1-AvionicsComponentCosts'!"&I17&"$12:"&I17&"$384")))))) -> Mil Fighter | L17: 0.06 | M17: =IF($A$2,INDEX([1]Sheet1!$A$12:$AO$193,MATCH($A17,[1]Sheet1!$A$12:$A$193,0),8),2*$L17) -> 0.12 | N17: =INDEX([1]Sheet1!$A$12:$AO$193,MATCH($A17,[1]Sheet1!$A$12:$A$193,0),9)*(1+$A$4) -> 0.3685 | O17: =INDEX([1]Sheet1!$A$12:$AO$193,MATCH($A17,[1]Sheet1!$A$12:$A$193,0),10)*(1+$A$4) -> 1.8513 | P17: =COUNTIF($P$5:P$5,"Year")*$I$4 -> 5 | Q17: =0% -> 0 | R17: 0 | S17: =COUNTIF($P$5:S$5,"Year")*$I$4 -> 10 | T17: =0% -> 0 | U17: 0.06 | V17: =COUNTIF($P$5:V$5,"Year")*$I$4 -> 15 | W17: =0% -> 0 | X17: 0 | Y17: =COUNTIF($P$5:Y$5,"Year")*$I$4 -> 20 | Z17: =0% -> 0 | AA17: 0.06 | AB17: =COUNTIF($P$5:AB$5,"Year")*$I$4 -> 25 | AC17: =0% -> 0 | AD17: 0 | AE17: =COUNTIF($P$5:AE$5,"Year")*$I$4 -> 30 | AF17: =0% -> 0 | AG17: 0.06 | AH17: =COUNTIF($P$5:AH$5,"Year")*$I$4 -> 35 | AI17: =0% -> 0 | AJ17: 0 | AK17: =COUNTIF($P$5:AK$5,"Year")*$I$4 -> 40 | AL17: =0% -> 0 | AM17: 0.06 | AV17: 0 | AW17: 0 | AX17: 0 | AY17: 0 | AZ17: 0 | BA17: 0 | BB17: 0 | BC17: 0 | BD17: 0 | BE17: 0 | BF17: 0 | BG17: 0 | BH17: 0 | BI17: 36 | BJ17: 12 | BK17: 240 | BL17: =INDEX('Avionics ID'!A:E,MATCH(B17,'Avionics ID'!E:E,0),3) -> Sensors
A18: =INDEX('Avionics ID'!A:E,MATCH(B18,'Avionics ID'!E:E,0),1) -> 770 | B18: Air Traffic Services Unit | C18: 0.06666666667 | D18: 0.03 | E18: CPDLC | F18: 2028 | G18: 15 | H18: Technology / regulatory | I18: =SUBSTITUTE(ADDRESS(1,MATCH(A18,'Pt1-AvionicsComponentCosts'!$A$6:$NC$6,0)+1),"$1","") -> $T | J18: =_xlfn.TEXTJOIN(", ",TRUE,_xlfn.UNIQUE(_xlfn._xlws.SORT(_xlfn._xlws.FILTER('Pt1-AvionicsComponentCosts'!$NF$12:$NF$384,ISNUMBER(INDIRECT("'Pt1-AvionicsComponentCosts'!"&I18&"$12:"&I18&"$384")))))) -> A300, A320, A330, A340, A350, A380, B747, B767, B777, MD-11 | L18: 0.03 | M18: =IF($A$2,INDEX([1]Sheet1!$A$12:$AO$193,MATCH($A18,[1]Sheet1!$A$12:$A$193,0),8),2*$L18) -> 0.06 | N18: =INDEX([1]Sheet1!$A$12:$AO$193,MATCH($A18,[1]Sheet1!$A$12:$A$193,0),9)*(1+$A$4) -> 0.5511 | O18: =INDEX([1]Sheet1!$A$12:$AO$193,MATCH($A18,[1]Sheet1!$A$12:$A$193,0),10)*(1+$A$4) -> 1.4267 | P18: =COUNTIF($P$5:P$5,"Year")*$I$4 -> 5 | Q18: =0% -> 0 | R18: 0 | S18: =COUNTIF($P$5:S$5,"Year")*$I$4 -> 10 | T18: =0% -> 0 | U18: 0.03 | V18: =COUNTIF($P$5:V$5,"Year")*$I$4 -> 15 | W18: =0% -> 0 | X18: 0.03 | Y18: =COUNTIF($P$5:Y$5,"Year")*$I$4 -> 20 | Z18: =0% -> 0 | AA18: 0.03 | AB18: =COUNTIF($P$5:AB$5,"Year")*$I$4 -> 25 | AC18: =0% -> 0 | AD18: 0 | AE18: =COUNTIF($P$5:AE$5,"Year")*$I$4 -> 30 | AF18: =0% -> 0 | AG18: 0.03 | AH18: =COUNTIF($P$5:AH$5,"Year")*$I$4 -> 35 | AI18: =0% -> 0 | AJ18: 0 | AK18: =COUNTIF($P$5:AK$5,"Year")*$I$4 -> 40 | AL18: =0% -> 0 | AM18: 0.03 | AU18: CPDLC | AV18: 1.4267 | AW18: 0 | AX18: 0 | AY18: 0.15 | AZ18: 0.25 | BA18: 0.45 | BB18: 0.15 | BC18: 0 | BD18: 0 | BE18: 0 | BF18: 0 | BG18: 0 | BH18: 0 | BI18: 121 | BJ18: 6 | BK18: 120 | BL18: =INDEX('Avionics ID'!A:E,MATCH(B18,'Avionics ID'!E:E,0),3) -> Communications
A19: =INDEX('Avionics ID'!A:E,MATCH(B19,'Avionics ID'!E:E,0),1) -> 758 | B19: Air Traffic Services Unit (ATSU) | C19: 0.06666666667 | D19: 0.03 | E19: CPDLC | F19: 2028 | G19: 15 | H19: Technology / regulatory | I19: =SUBSTITUTE(ADDRESS(1,MATCH(A19,'Pt1-AvionicsComponentCosts'!$A$6:$NC$6,0)+1),"$1","") -> $CF | J19: =_xlfn.TEXTJOIN(", ",TRUE,_xlfn.UNIQUE(_xlfn._xlws.SORT(_xlfn._xlws.FILTER('Pt1-AvionicsComponentCosts'!$NF$12:$NF$384,ISNUMBER(INDIRECT("'Pt1-AvionicsComponentCosts'!"&I19&"$12:"&I19&"$384")))))) -> A220, A320, A321, ATR, B717, B737, B757, C919, EMB Regional, MC-21, Mil Transport, Military Jet, NSA | L19: 0.03 | M19: =IF($A$2,INDEX([1]Sheet1!$A$12:$AO$193,MATCH($A19,[1]Sheet1!$A$12:$A$193,0),8),2*$L19) -> 0.06 | N19: =INDEX([1]Sheet1!$A$12:$AO$193,MATCH($A19,[1]Sheet1!$A$12:$A$193,0),9)*(1+$A$4) -> 0.7513 | O19: =INDEX([1]Sheet1!$A$12:$AO$193,MATCH($A19,[1]Sheet1!$A$12:$A$193,0),10)*(1+$A$4) -> 2.1241 | P19: =COUNTIF($P$5:P$5,"Year")*$I$4 -> 5 | Q19: =0% -> 0 | R19: 0 | S19: =COUNTIF($P$5:S$5,"Year")*$I$4 -> 10 | T19: =0% -> 0 | U19: 0.03 | V19: =COUNTIF($P$5:V$5,"Year")*$I$4 -> 15 | W19: =0% -> 0 | X19: 0.03 | Y19: =COUNTIF($P$5:Y$5,"Year")*$I$4 -> 20 | Z19: =0% -> 0 | AA19: 0.03 | AB19: =COUNTIF($P$5:AB$5,"Year")*$I$4 -> 25 | AC19: =0% -> 0 | AD19: 0 | AE19: =COUNTIF($P$5:AE$5,"Year")*$I$4 -> 30 | AF19: =0% -> 0 | AG19: 0.03 | AH19: =COUNTIF($P$5:AH$5,"Year")*$I$4 -> 35 | AI19: =0% -> 0 | AJ19: 0 | AK19: =COUNTIF($P$5:AK$5,"Year")*$I$4 -> 40 | AL19: =0% -> 0 | AM19: 0.03 | AU19: CPDLC | AV19: 2.1241 | AW19: 0 | AX19: 0 | AY19: 0.15 | AZ19: 0.25 | BA19: 0.45 | BB19: 0.15 | BC19: 0 | BD19: 0 | BE19: 0 | BF19: 0 | BG19: 0 | BH19: 0 | BI19: 121 | BJ19: 6 | BK19: 120 | BL19: =INDEX('Avionics ID'!A:E,MATCH(B19,'Avionics ID'!E:E,0),3) -> Data
A20: =INDEX('Avionics ID'!A:E,MATCH(B20,'Avionics ID'!E:E,0),1) -> 868 | B20: Airborne Systems Intelligence Payload sensor | C20: 0.05 | D20: 0.03 | G20: 20 | H20: Obsolescence | I20: =SUBSTITUTE(ADDRESS(1,MATCH(A20,'Pt1-AvionicsComponentCosts'!$A$6:$NC$6,0)+1),"$1","") -> $KR | J20: =_xlfn.TEXTJOIN(", ",TRUE,_xlfn.UNIQUE(_xlfn._xlws.SORT(_xlfn._xlws.FILTER('Pt1-AvionicsComponentCosts'!$NF$12:$NF$384,ISNUMBER(INDIRECT("'Pt1-AvionicsComponentCosts'!"&I20&"$12:"&I20&"$384")))))) -> UAV | L20: 0.03 | M20: =IF($A$2,INDEX([1]Sheet1!$A$12:$AO$193,MATCH($A20,[1]Sheet1!$A$12:$A$193,0),8),2*$L20) -> 0.06 | N20: =INDEX([1]Sheet1!$A$12:$AO$193,MATCH($A20,[1]Sheet1!$A$12:$A$193,0),9)*(1+$A$4) -> 0.3685 | O20: =INDEX([1]Sheet1!$A$12:$AO$193,MATCH($A20,[1]Sheet1!$A$12:$A$193,0),10)*(1+$A$4) -> 1.8513 | P20: =COUNTIF($P$5:P$5,"Year")*$I$4 -> 5 | Q20: =0% -> 0 | R20: 0 | S20: =COUNTIF($P$5:S$5,"Year")*$I$4 -> 10 | T20: =0% -> 0 | U20: 0.03 | V20: =COUNTIF($P$5:V$5,"Year")*$I$4 -> 15 | W20: =0% -> 0 | X20: 0 | Y20: =COUNTIF($P$5:Y$5,"Year")*$I$4 -> 20 | Z20: =0% -> 0 | AA20: 0.03 | AB20: =COUNTIF($P$5:AB$5,"Year")*$I$4 -> 25 | AC20: =0% -> 0 | AD20: 0 | AE20: =COUNTIF($P$5:AE$5,"Year")*$I$4 -> 30 | AF20: =0% -> 0 | AG20: 0.03 | AH20: =COUNTIF($P$5:AH$5,"Year")*$I$4 -> 35 | AI20: =0% -> 0 | AJ20: 0 | AK20: =COUNTIF($P$5:AK$5,"Year")*$I$4 -> 40 | AL20: =0% -> 0 | AM20: 0.03 | AV20: 0 | AW20: 0 | AX20: 0 | AY20: 0 | AZ20: 0 | BA20: 0 | BB20: 0 | BC20: 0 | BD20: 0 | BE20: 0 | BF20: 0 | BG20: 0 | BH20: 0 | BI20: 18 | BJ20: 6 | BK20: 120 | BL20: =INDEX('Avionics ID'!A:E,MATCH(B20,'Avionics ID'!E:E,0),3) -> Sensors
A21: =INDEX('Avionics ID'!A:E,MATCH(B21,'Avionics ID'!E:E,0),1) -> 882 | B21: Aircraft avionics management unit | C21: 0.1 | D21: 0.03 | G21: 10 | H21: Obsolescence | I21: =SUBSTITUTE(ADDRESS(1,MATCH(A21,'Pt1-AvionicsComponentCosts'!$A$6:$NC$6,0)+1),"$1","") -> $HF | J21: =_xlfn.TEXTJOIN(", ",TRUE,_xlfn.UNIQUE(_xlfn._xlws.SORT(_xlfn._xlws.FILTER('Pt1-AvionicsComponentCosts'!$NF$12:$NF$384,ISNUMBER(INDIRECT("'Pt1-AvionicsComponentCosts'!"&I21&"$12:"&I21&"$384")))))) -> A300, A320, A330, A330 LMXT, A330 MRTT, A340, A350, A380, B747, B767, B777, B787, MD-11, Mil Transport, Military Jet, Military TP | L21: 0.03 | M21: =IF($A$2,INDEX([1]Sheet1!$A$12:$AO$193,MATCH($A21,[1]Sheet1!$A$12:$A$193,0),8),2*$L21) -> 0.06 | N21: =INDEX([1]Sheet1!$A$12:$AO$193,MATCH($A21,[1]Sheet1!$A$12:$A$193,0),9)*(1+$A$4) -> 0.3905 | O21: =INDEX([1]Sheet1!$A$12:$AO$193,MATCH($A21,[1]Sheet1!$A$12:$A$193,0),10)*(1+$A$4) -> 1.1561 | P21: =COUNTIF($P$5:P$5,"Year")*$I$4 -> 5 | Q21: =0% -> 0 | R21: 0.03 | S21: =COUNTIF($P$5:S$5,"Year")*$I$4 -> 10 | T21: =0% -> 0 | U21: 0.03 | V21: =COUNTIF($P$5:V$5,"Year")*$I$4 -> 15 | W21: =0% -> 0 | X21: 0.03 | Y21: =COUNTIF($P$5:Y$5,"Year")*$I$4 -> 20 | Z21: =0% -> 0 | AA21: 0.03 | AB21: =COUNTIF($P$5:AB$5,"Year")*$I$4 -> 25 | AC21: =0% -> 0 | AD21: 0.03 | AE21: =COUNTIF($P$5:AE$5,"Year")*$I$4 -> 30 | AF21: =0% -> 0 | AG21: 0.03 | AH21: =COUNTIF($P$5:AH$5,"Year")*$I$4 -> 35 | AI21: =0% -> 0 | AJ21: 0.03 | AK21: =COUNTIF($P$5:AK$5,"Year")*$I$4 -> 40 | AL21: =0% -> 0 | AM21: 0.03 | AV21: 0 | AW21: 0 | AX21: 0 | AY21: 0 | AZ21: 0 | BA21: 0 | BB21: 0 | BC21: 0 | BD21: 0 | BE21: 0 | BF21: 0 | BG21: 0 | BH21: 0 | BI21: 30 | BJ21: 6 | BK21: 120 | BL21: =INDEX('Avionics ID'!A:E,MATCH(B21,'Avionics ID'!E:E,0),3) -> IMA
A22: =INDEX('Avionics ID'!A:E,MATCH(B22,'Avionics ID'!E:E,0),1) -> 839 | B22: Aircraft Environment Surveillance System (AESS) | C22: 0.05 | D22: 0.03 | G22: 20 | H22: Obsolescence | I22: =SUBSTITUTE(ADDRESS(1,MATCH(A22,'Pt1-AvionicsComponentCosts'!$A$6:$NC$6,0)+1),"$1","") -> $LZ | J22: =_xlfn.TEXTJOIN(", ",TRUE,_xlfn.UNIQUE(_xlfn._xlws.SORT(_xlfn._xlws.FILTER('Pt1-AvionicsComponentCosts'!$NF$12:$NF$384,ISNUMBER(INDIRECT("'Pt1-AvionicsComponentCosts'!"&I22&"$12:"&I22&"$384")))))) -> A330 LMXT, A330 MRTT, Mil Transport, Military Jet, Military TP | L22: 0.03 | M22: =IF($A$2,INDEX([1]Sheet1!$A$12:$AO$193,MATCH($A22,[1]Sheet1!$A$12:$A$193,0),8),2*$L22) -> 0.06 | N22: =INDEX([1]Sheet1!$A$12:$AO$193,MATCH($A22,[1]Sheet1!$A$12:$A$193,0),9)*(1+$A$4) -> 0.4928 | O22: =INDEX([1]Sheet1!$A$12:$AO$193,MATCH($A22,[1]Sheet1!$A$12:$A$193,0),10)*(1+$A$4) -> 1.4278 | P22: =COUNTIF($P$5:P$5,"Year")*$I$4 -> 5 | Q22: =0% -> 0 | R22: 0 | S22: =COUNTIF($P$5:S$5,"Year")*$I$4 -> 10 | T22: =0% -> 0 | U22: 0.03 | V22: =COUNTIF($P$5:V$5,"Year")*$I$4 -> 15 | W22: =0% -> 0 | X22: 0 | Y22: =COUNTIF($P$5:Y$5,"Year")*$I$4 -> 20 | Z22: =0% -> 0 | AA22: 0.03 | AB22: =COUNTIF($P$5:AB$5,"Year")*$I$4 -> 25 | AC22: =0% -> 0 | AD22: 0 | AE22: =COUNTIF($P$5:AE$5,"Year")*$I$4 -> 30 | AF22: =0% -> 0 | AG22: 0.03 | AH22: =COUNTIF($P$5:AH$5,"Year")*$I$4 -> 35 | AI22: =0% -> 0 | AJ22: 0 | AK22: =COUNTIF($P$5:AK$5,"Year")*$I$4 -> 40 | AL22: =0% -> 0 | AM22: 0.03 | AV22: 0 | AW22: 0 | AX22: 0 | AY22: 0 | AZ22: 0 | BA22: 0 | BB22: 0 | BC22: 0 | BD22: 0 | BE22: 0 | BF22: 0 | BG22: 0 | BH22: 0 | BI22: 18 | BJ22: 6 | BK22: 120 | BL22: =INDEX('Avionics ID'!A:E,MATCH(B22,'Avionics ID'!E:E,0),3) -> Surveillance
A23: 757 | B23: Aircraft Integrated Data System (AIDS) | C23: 0.05 | D23: 0.03 | G23: 20 | H23: Obsolescence | I23: =SUBSTITUTE(ADDRESS(1,MATCH(A23,'Pt1-AvionicsComponentCosts'!$A$6:$NC$6,0)+1),"$1","") -> $CH | J23: =_xlfn.TEXTJOIN(", ",TRUE,_xlfn.UNIQUE(_xlfn._xlws.SORT(_xlfn._xlws.FILTER('Pt1-AvionicsComponentCosts'!$NF$12:$NF$384,ISNUMBER(INDIRECT("'Pt1-AvionicsComponentCosts'!"&I23&"$12:"&I23&"$384")))))) -> A220, A320, A321, ATR, B717, B737, B757, C919, EMB Regional, MC-21, Mil Transport, Military Jet, NSA | L23: 0.03 | M23: =IF($A$2,INDEX([1]Sheet1!$A$12:$AO$193,MATCH($A23,[1]Sheet1!$A$12:$A$193,0),8),2*$L23) -> 0.06 | N23: =INDEX([1]Sheet1!$A$12:$AO$193,MATCH($A23,[1]Sheet1!$A$12:$A$193,0),9)*(1+$A$4) -> 0.7513 | O23: =INDEX([1]Sheet1!$A$12:$AO$193,MATCH($A23,[1]Sheet1!$A$12:$A$193,0),10)*(1+$A$4) -> 2.1241 | P23: =COUNTIF($P$5:P$5,"Year")*$I$4 -> 5 | Q23: =0% -> 0 | R23: 0 | S23: =COUNTIF($P$5:S$5,"Year")*$I$4 -> 10 | T23: =0% -> 0 | U23: 0.03 | V23: =COUNTIF($P$5:V$5,"Year")*$I$4 -> 15 | W23: =0% -> 0 | X23: 0 | Y23: =COUNTIF($P$5:Y$5,"Year")*$I$4 -> 20 | Z23: =0% -> 0 | AA23: 0.03 | AB23: =COUNTIF($P$5:AB$5,"Year")*$I$4 -> 25 | AC23: =0% -> 0 | AD23: 0 | AE23: =COUNTIF($P$5:AE$5,"Year")*$I$4 -> 30 | AF23: =0% -> 0 | AG23: 0.03 | AH23: =COUNTIF($P$5:AH$5,"Year")*$I$4 -> 35 | AI23: =0% -> 0 | AJ23: 0 | AK23: =COUNTIF($P$5:AK$5,"Year")*$I$4 -> 40 | AL23: =0% -> 0 | AM23: 0.03 | AV23: 0 | AW23: 0 | AX23: 0 | AY23: 0 | AZ23: 0 | BA23: 0 | BB23: 0 | BC23: 0 | BD23: 0 | BE23: 0 | BF23: 0 | BG23: 0 | BH23: 0 | BI23: 18 | BJ23: 6 | BK23: 120 | BL23: =INDEX('Avionics ID'!A:E,MATCH(B23,'Avionics ID'!E:E,0),3) -> 
A24: =INDEX('Avionics ID'!A:E,MATCH(B24,'Avionics ID'!E:E,0),1) -> 797 | B24: Aircraft memory system | C24: 0.1 | D24: 0.03 | G24: 10 | H24: Obsolescence | I24: =SUBSTITUTE(ADDRESS(1,MATCH(A24,'Pt1-AvionicsComponentCosts'!$A$6:$NC$6,0)+1),"$1","") -> $CJ | J24: =_xlfn.TEXTJOIN(", ",TRUE,_xlfn.UNIQUE(_xlfn._xlws.SORT(_xlfn._xlws.FILTER('Pt1-AvionicsComponentCosts'!$NF$12:$NF$384,ISNUMBER(INDIRECT("'Pt1-AvionicsComponentCosts'!"&I24&"$12:"&I24&"$384")))))) -> Attack, Stealth | L24: 0.03 | M24: =IF($A$2,INDEX([1]Sheet1!$A$12:$AO$193,MATCH($A24,[1]Sheet1!$A$12:$A$193,0),8),2*$L24) -> 0.06 | N24: =INDEX([1]Sheet1!$A$12:$AO$193,MATCH($A24,[1]Sheet1!$A$12:$A$193,0),9)*(1+$A$4) -> 0.7513 | O24: =INDEX([1]Sheet1!$A$12:$AO$193,MATCH($A24,[1]Sheet1!$A$12:$A$193,0),10)*(1+$A$4) -> 2.1241 | P24: =COUNTIF($P$5:P$5,"Year")*$I$4 -> 5 | Q24: =0% -> 0 | R24: 0.03 | S24: =COUNTIF($P$5:S$5,"Year")*$I$4 -> 10 | T24: =0% -> 0 | U24: 0.03 | V24: =COUNTIF($P$5:V$5,"Year")*$I$4 -> 15 | W24: =0% -> 0 | X24: 0.03 | Y24: =COUNTIF($P$5:Y$5,"Year")*$I$4 -> 20 | Z24: =0% -> 0 | AA24: 0.03 | AB24: =COUNTIF($P$5:AB$5,"Year")*$I$4 -> 25 | AC24: =0% -> 0 | AD24: 0.03 | AE24: =COUNTIF($P$5:AE$5,"Year")*$I$4 -> 30 | AF24: =0% -> 0 | AG24: 0.03 | AH24: =COUNTIF($P$5:AH$5,"Year")*$I$4 -> 35 | AI24: =0% -> 0 | AJ24: 0.03 | AK24: =COUNTIF($P$5:AK$5,"Year")*$I$4 -> 40 | AL24: =0% -> 0 | AM24: 0.03 | AV24: 0 | AW24: 0 | AX24: 0 | AY24: 0 | AZ24: 0 | BA24: 0 | BB24: 0 | BC24: 0 | BD24: 0 | BE24: 0 | BF24: 0 | BG24: 0 | BH24: 0 | BI24: 30 | BJ24: 6 | BK24: 120 | BL24: =INDEX('Avionics ID'!A:E,MATCH(B24,'Avionics ID'!E:E,0),3) -> Data
A25: =INDEX('Avionics ID'!A:E,MATCH(B25,'Avionics ID'!E:E,0),1) -> 799 | B25: Antenna suite | C25: 0.05 | D25: 0.1 | G25: 20 | H25: Obsolescence | I25: =SUBSTITUTE(ADDRESS(1,MATCH(A25,'Pt1-AvionicsComponentCosts'!$A$6:$NC$6,0)+1),"$1","") -> $V | J25: =_xlfn.TEXTJOIN(", ",TRUE,_xlfn.UNIQUE(_xlfn._xlws.SORT(_xlfn._xlws.FILTER('Pt1-AvionicsComponentCosts'!$NF$12:$NF$384,ISNUMBER(INDIRECT("'Pt1-AvionicsComponentCosts'!"&I25&"$12:"&I25&"$384")))))) -> Attack, Stealth | L25: 0.1 | M25: =IF($A$2,INDEX([1]Sheet1!$A$12:$AO$193,MATCH($A25,[1]Sheet1!$A$12:$A$193,0),8),2*$L25) -> 0.2 | N25: =INDEX([1]Sheet1!$A$12:$AO$193,MATCH($A25,[1]Sheet1!$A$12:$A$193,0),9)*(1+$A$4) -> 0.5511 | O25: =INDEX([1]Sheet1!$A$12:$AO$193,MATCH($A25,[1]Sheet1!$A$12:$A$193,0),10)*(1+$A$4) -> 1.4267 | P25: =COUNTIF($P$5:P$5,"Year")*$I$4 -> 5 | Q25: =0% -> 0 | R25: 0 | S25: =COUNTIF($P$5:S$5,"Year")*$I$4 -> 10 | T25: =0% -> 0 | U25: 0.1 | V25: =COUNTIF($P$5:V$5,"Year")*$I$4 -> 15 | W25: =0% -> 0 | X25: 0 | Y25: =COUNTIF($P$5:Y$5,"Year")*$I$4 -> 20 | Z25: =0% -> 0 | AA25: 0.1 | AB25: =COUNTIF($P$5:AB$5,"Year")*$I$4 -> 25 | AC25: =0% -> 0 | AD25: 0 | AE25: =COUNTIF($P$5:AE$5,"Year")*$I$4 -> 30 | AF25: =0% -> 0 | AG25: 0.1 | AH25: =COUNTIF($P$5:AH$5,"Year")*$I$4 -> 35 | AI25: =0% -> 0 | AJ25: 0 | AK25: =COUNTIF($P$5:AK$5,"Year")*$I$4 -> 40 | AL25: =0% -> 0 | AM25: 0.1 | AV25: 0 | AW25: 0 | AX25: 0 | AY25: 0 | AZ25: 0 | BA25: 0 | BB25: 0 | BC25: 0 | BD25: 0 | BE25: 0 | BF25: 0 | BG25: 0 | BH25: 0 | BI25: 60 | BJ25: 20 | BK25: 400 | BL25: =INDEX('Avionics ID'!A:E,MATCH(B25,'Avionics ID'!E:E,0),3) -> Communications
A26: =INDEX('Avionics ID'!A:E,MATCH(B26,'Avionics ID'!E:E,0),1) -> 875 | B26: ARC 210 radios | C26: 0.05 | D26: 0.06 | G26: 20 | H26: Obsolescence | I26: =SUBSTITUTE(ADDRESS(1,MATCH(A26,'Pt1-AvionicsComponentCosts'!$A$6:$NC$6,0)+1),"$1","") -> $X | J26: =_xlfn.TEXTJOIN(", ",TRUE,_xlfn.UNIQUE(_xlfn._xlws.SORT(_xlfn._xlws.FILTER('Pt1-AvionicsComponentCosts'!$NF$12:$NF$384,ISNUMBER(INDIRECT("'Pt1-AvionicsComponentCosts'!"&I26&"$12:"&I26&"$384")))))) -> UAV | L26: 0.06 | M26: =IF($A$2,INDEX([1]Sheet1!$A$12:$AO$193,MATCH($A26,[1]Sheet1!$A$12:$A$193,0),8),2*$L26) -> 0.12 | N26: =INDEX([1]Sheet1!$A$12:$AO$193,MATCH($A26,[1]Sheet1!$A$12:$A$193,0),9)*(1+$A$4) -> 0.5511 | O26: =INDEX([1]Sheet1!$A$12:$AO$193,MATCH($A26,[1]Sheet1!$A$12:$A$193,0),10)*(1+$A$4) -> 1.4267 | P26: =COUNTIF($P$5:P$5,"Year")*$I$4 -> 5 | Q26: =0% -> 0 | R26: 0 | S26: =COUNTIF($P$5:S$5,"Year")*$I$4 -> 10 | T26: =0% -> 0 | U26: 0.06 | V26: =COUNTIF($P$5:V$5,"Year")*$I$4 -> 15 | W26: =0% -> 0 | X26: 0 | Y26: =COUNTIF($P$5:Y$5,"Year")*$I$4 -> 20 | Z26: =0% -> 0 | AA26: 0.06 | AB26: =COUNTIF($P$5:AB$5,"Year")*$I$4 -> 25 | AC26: =0% -> 0 | AD26: 0 | AE26: =COUNTIF($P$5:AE$5,"Year")*$I$4 -> 30 | AF26: =0% -> 0 | AG26: 0.06 | AH26: =COUNTIF($P$5:AH$5,"Year")*$I$4 -> 35 | AI26: =0% -> 0 | AJ26: 0 | AK26: =COUNTIF($P$5:AK$5,"Year")*$I$4 -> 40 | AL26: =0% -> 0 | AM26: 0.06 | AV26: 0 | AW26: =IF($H26="Technology / regulatory",IF(AW$5=$F26-2,$AW$1,IF(AW$5=$F26-1,$AX$1,IF(AW$5=$F26,$AY$1,IF(AW$5=$F26+1,$AZ$1,0)))),0) -> 0 | AX26: 0 | AY26: 0 | AZ26: 0 | BA26: 0 | BB26: 0 | BC26: 0 | BD26: 0 | BE26: 0 | BF26: 0 | BG26: 0 | BH26: 0 | BI26: 36 | BJ26: 12 | BK26: 240 | BL26: =INDEX('Avionics ID'!A:E,MATCH(B26,'Avionics ID'!E:E,0),3) -> Communications
A27: =INDEX('Avionics ID'!A:E,MATCH(B27,'Avionics ID'!E:E,0),1) -> 745 | B27: ATC control box | C27: 0.06666666667 | D27: 0.08 | G27: 15 | H27: Obsolescence | I27: =SUBSTITUTE(ADDRESS(1,MATCH(A27,'Pt1-AvionicsComponentCosts'!$A$6:$NC$6,0)+1),"$1","") -> $MB | J27: =_xlfn.TEXTJOIN(", ",TRUE,_xlfn.UNIQUE(_xlfn._xlws.SORT(_xlfn._xlws.FILTER('Pt1-AvionicsComponentCosts'!$NF$12:$NF$384,ISNUMBER(INDIRECT("'Pt1-AvionicsComponentCosts'!"&I27&"$12:"&I27&"$384")))))) -> A220, A320, A321, ATR, B717, B737, B757, C919, EMB Regional, MC-21, Mil Transport, Military Jet, NSA | L27: 0.08 | M27: =IF($A$2,INDEX([1]Sheet1!$A$12:$AO$193,MATCH($A27,[1]Sheet1!$A$12:$A$193,0),8),2*$L27) -> 0.16 | N27: =INDEX([1]Sheet1!$A$12:$AO$193,MATCH($A27,[1]Sheet1!$A$12:$A$193,0),9)*(1+$A$4) -> 0.4928 | O27: =INDEX([1]Sheet1!$A$12:$AO$193,MATCH($A27,[1]Sheet1!$A$12:$A$193,0),10)*(1+$A$4) -> 1.4278 | P27: =COUNTIF($P$5:P$5,"Year")*$I$4 -> 5 | Q27: =0% -> 0 | R27: 0 | S27: =COUNTIF($P$5:S$5,"Year")*$I$4 -> 10 | T27: =0% -> 0 | U27: 0.08 | V27: =COUNTIF($P$5:V$5,"Year")*$I$4 -> 15 | W27: =0% -> 0 | X27: 0.08 | Y27: =COUNTIF($P$5:Y$5,"Year")*$I$4 -> 20 | Z27: =0% -> 0 | AA27: 0.08 | AB27: =COUNTIF($P$5:AB$5,"Year")*$I$4 -> 25 | AC27: =0% -> 0 | AD27: 0 | AE27: =COUNTIF($P$5:AE$5,"Year")*$I$4 -> 30 | AF27: =0% -> 0 | AG27: 0.08 | AH27: =COUNTIF($P$5:AH$5,"Year")*$I$4 -> 35 | AI27: =0% -> 0 | AJ27: 0 | AK27: =COUNTIF($P$5:AK$5,"Year")*$I$4 -> 40 | AL27: =0% -> 0 | AM27: 0.08 | AV27: 0 | AW27: 0 | AX27: 0 | AY27: 0 | AZ27: 0 | BA27: 0 | BB27: 0 | BC27: 0 | BD27: 0 | BE27: 0 | BF27: 0 | BG27: 0 | BH27: 0 | BI27: 56 | BJ27: 16 | BK27: 320 | BL27: =INDEX('Avionics ID'!A:E,MATCH(B27,'Avionics ID'!E:E,0),3) -> Surveillance
A28: =INDEX('Avionics ID'!A:E,MATCH(B28,'Avionics ID'!E:E,0),1) -> 744 | B28: ATC Mode S Transponders (TCAS) | C28: 0.06666666667 | D28: 0.03 | G28: 15 | H28: Obsolescence | I28: =SUBSTITUTE(ADDRESS(1,MATCH(A28,'Pt1-AvionicsComponentCosts'!$A$6:$NC$6,0)+1),"$1","") -> $MD | J28: =_xlfn.TEXTJOIN(", ",TRUE,_xlfn.UNIQUE(_xlfn._xlws.SORT(_xlfn._xlws.FILTER('Pt1-AvionicsComponentCosts'!$NF$12:$NF$384,ISNUMBER(INDIRECT("'Pt1-AvionicsComponentCosts'!"&I28&"$12:"&I28&"$384")))))) -> A220, A300, A320, A321, A330, A340, A350, A380, ATR, B717, B737, B747, B757, B767, B777, B787, C919, EMB Regional, MC-21, MD-11, Mil Transport, Military Jet, NSA | L28: 0.03 | M28: =IF($A$2,INDEX([1]Sheet1!$A$12:$AO$193,MATCH($A28,[1]Sheet1!$A$12:$A$193,0),8),2*$L28) -> 0.06 | N28: =INDEX([1]Sheet1!$A$12:$AO$193,MATCH($A28,[1]Sheet1!$A$12:$A$193,0),9)*(1+$A$4) -> 0.4928 | O28: =INDEX([1]Sheet1!$A$12:$AO$193,MATCH($A28,[1]Sheet1!$A$12:$A$193,0),10)*(1+$A$4) -> 1.4278 | P28: =COUNTIF($P$5:P$5,"Year")*$I$4 -> 5 | Q28: =0% -> 0 | R28: 0 | S28: =COUNTIF($P$5:S$5,"Year")*$I$4 -> 10 | T28: =0% -> 0 | U28: 0.03 | V28: =COUNTIF($P$5:V$5,"Year")*$I$4 -> 15 | W28: =0% -> 0 | X28: 0.03 | Y28: =COUNTIF($P$5:Y$5,"Year")*$I$4 -> 20 | Z28: =0% -> 0 | AA28: 0.03 | AB28: =COUNTIF($P$5:AB$5,"Year")*$I$4 -> 25 | AC28: =0% -> 0 | AD28: 0 | AE28: =COUNTIF($P$5:AE$5,"Year")*$I$4 -> 30 | AF28: =0% -> 0 | AG28: 0.03 | AH28: =COUNTIF($P$5:AH$5,"Year")*$I$4 -> 35 | AI28: =0% -> 0 | AJ28: 0 | AK28: =COUNTIF($P$5:AK$5,"Year")*$I$4 -> 40 | AL28: =0% -> 0 | AM28: 0.03 | AV28: 0 | AW28: 0 | AX28: 0 | AY28: 0 | AZ28: 0 | BA28: 0 | BB28: 0 | BC28: 0 | BD28: 0 | BE28: 0 | BF28: 0 | BG28: 0 | BH28: 0 | BI28: 21 | BJ28: 6 | BK28: 120 | BL28: =INDEX('Avionics ID'!A:E,MATCH(B28,'Avionics ID'!E:E,0),3) -> Surveillance
A29: =INDEX('Avionics ID'!A:E,MATCH(B29,'Avionics ID'!E:E,0),1) -> 828 | B29: ATC Transponder | C29: 0.06666666667 | D29: 0.03 | G29: 15 | H29: Obsolescence | I29: =SUBSTITUTE(ADDRESS(1,MATCH(A29,'Pt1-AvionicsComponentCosts'!$A$6:$NC$6,0)+1),"$1","") -> $Z | J29: =_xlfn.TEXTJOIN(", ",TRUE,_xlfn.UNIQUE(_xlfn._xlws.SORT(_xlfn._xlws.FILTER('Pt1-AvionicsComponentCosts'!$NF$12:$NF$384,ISNUMBER(INDIRECT("'Pt1-AvionicsComponentCosts'!"&I29&"$12:"&I29&"$384")))))) -> Challenger, Citation, E550, EMB Bizjet, Falcon, Global, Gulfstream, Hawker, Hondajet, Learjet, Nextant 400XT, PC-24, Phenom, Praetor, SF50 | L29: 0.03 | M29: =IF($A$2,INDEX([1]Sheet1!$A$12:$AO$193,MATCH($A29,[1]Sheet1!$A$12:$A$193,0),8),2*$L29) -> 0.06 | N29: =INDEX([1]Sheet1!$A$12:$AO$193,MATCH($A29,[1]Sheet1!$A$12:$A$193,0),9)*(1+$A$4) -> 0.5511 | O29: =INDEX([1]Sheet1!$A$12:$AO$193,MATCH($A29,[1]Sheet1!$A$12:$A$193,0),10)*(1+$A$4) -> 1.4267 | P29: =COUNTIF($P$5:P$5,"Year")*$I$4 -> 5 | Q29: =0% -> 0 | R29: 0 | S29: =COUNTIF($P$5:S$5,"Year")*$I$4 -> 10 | T29: =0% -> 0 | U29: 0.03 | V29: =COUNTIF($P$5:V$5,"Year")*$I$4 -> 15 | W29: =0% -> 0 | X29: 0.03 | Y29: =COUNTIF($P$5:Y$5,"Year")*$I$4 -> 20 | Z29: =0% -> 0 | AA29: 0.03 | AB29: =COUNTIF($P$5:AB$5,"Year")*$I$4 -> 25 | AC29: =0% -> 0 | AD29: 0 | AE29: =COUNTIF($P$5:AE$5,"Year")*$I$4 -> 30 | AF29: =0% -> 0 | AG29: 0.03 | AH29: =COUNTIF($P$5:AH$5,"Year")*$I$4 -> 35 | AI29: =0% -> 0 | AJ29: 0 | AK29: =COUNTIF($P$5:AK$5,"Year")*$I$4 -> 40 | AL29: =0% -> 0 | AM29: 0.03 | AV29: 0 | AW29: 0 | AX29: 0 | AY29: 0 | AZ29: 0 | BA29: 0 | BB29: 0 | BC29: 0 | BD29: 0 | BE29: 0 | BF29: 0 | BG29: 0 | BH29: 0 | BI29: 21 | BJ29: 6 | BK29: 120 | BL29: =INDEX('Avionics ID'!A:E,MATCH(B29,'Avionics ID'!E:E,0),3) -> Communications
A30: =INDEX('Avionics ID'!A:E,MATCH(B30,'Avionics ID'!E:E,0),1) -> 742 | B30: Audio Control Panel | C30: 0.1 | D30: 0.08 | G30: 10 | H30: Obsolescence | I30: =SUBSTITUTE(ADDRESS(1,MATCH(A30,'Pt1-AvionicsComponentCosts'!$A$6:$NC$6,0)+1),"$1","") -> $AB | J30: =_xlfn.TEXTJOIN(", ",TRUE,_xlfn.UNIQUE(_xlfn._xlws.SORT(_xlfn._xlws.FILTER('Pt1-AvionicsComponentCosts'!$NF$12:$NF$384,ISNUMBER(INDIRECT("'Pt1-AvionicsComponentCosts'!"&I30&"$12:"&I30&"$384")))))) -> A220, A320, A321, ARJ, ATR, B717, B737, B757, C919, CRJ, EMB Regional, MC-21, Mil Transport, Military Jet, NSA, Reg TP, Superjet 100, Turbine GA | L30: 0.08 | M30: =IF($A$2,INDEX([1]Sheet1!$A$12:$AO$193,MATCH($A30,[1]Sheet1!$A$12:$A$193,0),8),2*$L30) -> 0.16 | N30: =INDEX([1]Sheet1!$A$12:$AO$193,MATCH($A30,[1]Sheet1!$A$12:$A$193,0),9)*(1+$A$4) -> 0.5511 | O30: =INDEX([1]Sheet1!$A$12:$AO$193,MATCH($A30,[1]Sheet1!$A$12:$A$193,0),10)*(1+$A$4) -> 1.4267 | P30: =COUNTIF($P$5:P$5,"Year")*$I$4 -> 5 | Q30: =0% -> 0 | R30: 0.08 | S30: =COUNTIF($P$5:S$5,"Year")*$I$4 -> 10 | T30: =0% -> 0 | U30: 0.08 | V30: =COUNTIF($P$5:V$5,"Year")*$I$4 -> 15 | W30: =0% -> 0 | X30: 0.08 | Y30: =COUNTIF($P$5:Y$5,"Year")*$I$4 -> 20 | Z30: =0% -> 0 | AA30: 0.08 | AB30: =COUNTIF($P$5:AB$5,"Year")*$I$4 -> 25 | AC30: =0% -> 0 | AD30: 0.08 | AE30: =COUNTIF($P$5:AE$5,"Year")*$I$4 -> 30 | AF30: =0% -> 0 | AG30: 0.08 | AH30: =COUNTIF($P$5:AH$5,"Year")*$I$4 -> 35 | AI30: =0% -> 0 | AJ30: 0.08 | AK30: =COUNTIF($P$5:AK$5,"Year")*$I$4 -> 40 | AL30: =0% -> 0 | AM30: 0.08 | AV30: 0 | AW30: 0 | AX30: 0 | AY30: 0 | AZ30: 0 | BA30: 0 | BB30: 0 | BC30: 0 | BD30: 0 | BE30: 0 | BF30: 0 | BG30: 0 | BH30: 0 | BI30: 80 | BJ30: 16 | BK30: 320 | BL30: =INDEX('Avionics ID'!A:E,MATCH(B30,'Avionics ID'!E:E,0),3) -> Communications
A31: =INDEX('Avionics ID'!A:E,MATCH(B31,'Avionics ID'!E:E,0),1) -> 740 | B31: Audio Management Unit | C31: 0.05 | D31: 0.03 | G31: 20 | H31: Obsolescence | I31: =SUBSTITUTE(ADDRESS(1,MATCH(A31,'Pt1-AvionicsComponentCosts'!$A$6:$NC$6,0)+1),"$1","") -> $AD | J31: =_xlfn.TEXTJOIN(", ",TRUE,_xlfn.UNIQUE(_xlfn._xlws.SORT(_xlfn._xlws.FILTER('Pt1-AvionicsComponentCosts'!$NF$12:$NF$384,ISNUMBER(INDIRECT("'Pt1-AvionicsComponentCosts'!"&I31&"$12:"&I31&"$384")))))) -> A220, A320, A321, ATR, B717, B737, B757, C919, EMB Regional, MC-21, Mil Transport, Military Jet, NSA | L31: 0.03 | M31: =IF($A$2,INDEX([1]Sheet1!$A$12:$AO$193,MATCH($A31,[1]Sheet1!$A$12:$A$193,0),8),2*$L31) -> 0.06 | N31: =INDEX([1]Sheet1!$A$12:$AO$193,MATCH($A31,[1]Sheet1!$A$12:$A$193,0),9)*(1+$A$4) -> 0.5511 | O31: =INDEX([1]Sheet1!$A$12:$AO$193,MATCH($A31,[1]Sheet1!$A$12:$A$193,0),10)*(1+$A$4) -> 1.4267 | P31: =COUNTIF($P$5:P$5,"Year")*$I$4 -> 5 | Q31: =0% -> 0 | R31: 0 | S31: =COUNTIF($P$5:S$5,"Year")*$I$4 -> 10 | T31: =0% -> 0 | U31: 0.03 | V31: =COUNTIF($P$5:V$5,"Year")*$I$4 -> 15 | W31: =0% -> 0 | X31: 0 | Y31: =COUNTIF($P$5:Y$5,"Year")*$I$4 -> 20 | Z31: =0% -> 0 | AA31: 0.03 | AB31: =COUNTIF($P$5:AB$5,"Year")*$I$4 -> 25 | AC31: =0% -> 0 | AD31: 0 | AE31: =COUNTIF($P$5:AE$5,"Year")*$I$4 -> 30 | AF31: =0% -> 0 | AG31: 0.03 | AH31: =COUNTIF($P$5:AH$5,"Year")*$I$4 -> 35 | AI31: =0% -> 0 | AJ31: 0 | AK31: =COUNTIF($P$5:AK$5,"Year")*$I$4 -> 40 | AL31: =0% -> 0 | AM31: 0.03 | AV31: 0 | AW31: 0 | AX31: 0 | AY31: 0 | AZ31: 0 | BA31: 0 | BB31: 0 | BC31: 0 | BD31: 0 | BE31: 0 | BF31: 0 | BG31: 0 | BH31: 0 | BI31: 18 | BJ31: 6 | BK31: 120 | BL31: =INDEX('Avionics ID'!A:E,MATCH(B31,'Avionics ID'!E:E,0),3) -> Communications
A32: =INDEX('Avionics ID'!A:E,MATCH(B32,'Avionics ID'!E:E,0),1) -> 825 | B32: Auto pilot system | C32: 0.03333333333 | D32: 0.03 | G32: 30 | H32: Obsolescence | I32: =SUBSTITUTE(ADDRESS(1,MATCH(A32,'Pt1-AvionicsComponentCosts'!$A$6:$NC$6,0)+1),"$1","") -> $J | J32: =_xlfn.TEXTJOIN(", ",TRUE,_xlfn.UNIQUE(_xlfn._xlws.SORT(_xlfn._xlws.FILTER('Pt1-AvionicsComponentCosts'!$NF$12:$NF$384,ISNUMBER(INDIRECT("'Pt1-AvionicsComponentCosts'!"&I32&"$12:"&I32&"$384")))))) -> A220, A300, A320, A321, A330, A330 LMXT, A330 MRTT, A340, A350, ATR, Attack Helo, B717, B737, B747, B757, B767, B777, B787, C919, Challenger, Citation, E550, EMB Bizjet, EMB Regional, Falcon, Global, Gulfstream, Hawker, Helo, Hondajet, Learjet, MC-21, MD-11, Mil Transport, Military Jet, Military TP, Nextant 400XT, NSA, PC-24, Phenom, Praetor, SF50, UAV | L32: 0.03 | M32: =IF($A$2,INDEX([1]Sheet1!$A$12:$AO$193,MATCH($A32,[1]Sheet1!$A$12:$A$193,0),8),2*$L32) -> 0.06 | N32: =INDEX([1]Sheet1!$A$12:$AO$193,MATCH($A32,[1]Sheet1!$A$12:$A$193,0),9)*(1+$A$4) -> 0.4466 | O32: =INDEX([1]Sheet1!$A$12:$AO$193,MATCH($A32,[1]Sheet1!$A$12:$A$193,0),10)*(1+$A$4) -> 2.2847 | P32: =COUNTIF($P$5:P$5,"Year")*$I$4 -> 5 | Q32: =0% -> 0 | R32: 0 | S32: =COUNTIF($P$5:S$5,"Year")*$I$4 -> 10 | T32: =0% -> 0 | U32: 0 | V32: =COUNTIF($P$5:V$5,"Year")*$I$4 -> 15 | W32: =0% -> 0 | X32: 0.03 | Y32: =COUNTIF($P$5:Y$5,"Year")*$I$4 -> 20 | Z32: =0% -> 0 | AA32: 0 | AB32: =COUNTIF($P$5:AB$5,"Year")*$I$4 -> 25 | AC32: =0% -> 0 | AD32: 0 | AE32: =COUNTIF($P$5:AE$5,"Year")*$I$4 -> 30 | AF32: =0% -> 0 | AG32: 0.03 | AH32: =COUNTIF($P$5:AH$5,"Year")*$I$4 -> 35 | AI32: =0% -> 0 | AJ32: 0 | AK32: =COUNTIF($P$5:AK$5,"Year")*$I$4 -> 40 | AL32: =0% -> 0 | AM32: 0 | AV32: 0 | AW32: 0 | AX32: 0 | AY32: 0 | AZ32: 0 | BA32: 0 | BB32: 0 | BC32: 0 | BD32: 0 | BE32: 0 | BF32: 0 | BG32: 0 | BH32: 0 | BI32: 12 | BJ32: 6 | BK32: 120 | BL32: =INDEX('Avionics ID'!A:E,MATCH(B32,'Avionics ID'!E:E,0),3) -> Auto-pilot
A33: =INDEX('Avionics ID'!A:E,MATCH(B33,'Avionics ID'!E:E,0),1) -> 842 | B33: Avionics Comms Router (ACR) | C33: 0.06666666667 | D33: 0.03 | G33: 15 | H33: Obsolescence | I33: =SUBSTITUTE(ADDRESS(1,MATCH(A33,'Pt1-AvionicsComponentCosts'!$A$6:$NC$6,0)+1),"$1","") -> $AF | J33: =_xlfn.TEXTJOIN(", ",TRUE,_xlfn.UNIQUE(_xlfn._xlws.SORT(_xlfn._xlws.FILTER('Pt1-AvionicsComponentCosts'!$NF$12:$NF$384,ISNUMBER(INDIRECT("'Pt1-AvionicsComponentCosts'!"&I33&"$12:"&I33&"$384")))))) -> A330 LMXT, A330 MRTT, Mil Transport, Military Jet, Military TP | L33: 0.03 | M33: =IF($A$2,INDEX([1]Sheet1!$A$12:$AO$193,MATCH($A33,[1]Sheet1!$A$12:$A$193,0),8),2*$L33) -> 0.06 | N33: =INDEX([1]Sheet1!$A$12:$AO$193,MATCH($A33,[1]Sheet1!$A$12:$A$193,0),9)*(1+$A$4) -> 0.5511 | O33: =INDEX([1]Sheet1!$A$12:$AO$193,MATCH($A33,[1]Sheet1!$A$12:$A$193,0),10)*(1+$A$4) -> 1.4267 | P33: =COUNTIF($P$5:P$5,"Year")*$I$4 -> 5 | Q33: =0% -> 0 | R33: 0 | S33: =COUNTIF($P$5:S$5,"Year")*$I$4 -> 10 | T33: =0% -> 0 | U33: 0.03 | V33: =COUNTIF($P$5:V$5,"Year")*$I$4 -> 15 | W33: =0% -> 0 | X33: 0.03 | Y33: =COUNTIF($P$5:Y$5,"Year")*$I$4 -> 20 | Z33: =0% -> 0 | AA33: 0.03 | AB33: =COUNTIF($P$5:AB$5,"Year")*$I$4 -> 25 | AC33: =0% -> 0 | AD33: 0 | AE33: =COUNTIF($P$5:AE$5,"Year")*$I$4 -> 30 | AF33: =0% -> 0 | AG33: 0.03 | AH33: =COUNTIF($P$5:AH$5,"Year")*$I$4 -> 35 | AI33: =0% -> 0 | AJ33: 0 | AK33: =COUNTIF($P$5:AK$5,"Year")*$I$4 -> 40 | AL33: =0% -> 0 | AM33: 0.03 | AV33: 0 | AW33: 0 | AX33: 0 | AY33: 0 | AZ33: 0 | BA33: 0 | BB33: 0 | BC33: 0 | BD33: 0 | BE33: 0 | BF33: 0 | BG33: 0 | BH33: 0 | BI33: 21 | BJ33: 6 | BK33: 120 | BL33: =INDEX('Avionics ID'!A:E,MATCH(B33,'Avionics ID'!E:E,0),3) -> Communications
A34: =INDEX('Avionics ID'!A:E,MATCH(B34,'Avionics ID'!E:E,0),1) -> 1056 | B34: Avionics Harnesses | C34: 0.1 | D34: 0.03 | G34: 10 | H34: Obsolescence | I34: =SUBSTITUTE(ADDRESS(1,MATCH(A34,'Pt1-AvionicsComponentCosts'!$A$6:$NC$6,0)+1),"$1","") -> $GX | J34: =_xlfn.TEXTJOIN(", ",TRUE,_xlfn.UNIQUE(_xlfn._xlws.SORT(_xlfn._xlws.FILTER('Pt1-AvionicsComponentCosts'!$NF$12:$NF$384,ISNUMBER(INDIRECT("'Pt1-AvionicsComponentCosts'!"&I34&"$12:"&I34&"$384")))))) -> A220, A300, A320, A321, A330, A330 LMXT, A330 MRTT, A340, A350, A380, ARJ, ATR, Attack, Attack Helo, B717, B737, B747, B757, B767, B777, B787, C919, Challenger, Citation, CRJ, E550, EMB Bizjet, EMB Regional, Falcon, Global, Gulfstream, Hawker, Helo, Hondajet, Learjet, MC-21, MD-11, Mil Fighter, Mil Transport, Military Jet, Military TP, Nextant 400XT, NSA, PC-24, Phenom, Praetor, Reg TP, SF50, Stealth, Superjet 100, TP Trainer, Turbine GA | L34: 0.03 | M34: =IF($A$2,INDEX([1]Sheet1!$A$12:$AO$193,MATCH($A34,[1]Sheet1!$A$12:$A$193,0),8),2*$L34) -> 0.06 | N34: =INDEX([1]Sheet1!$A$12:$AO$193,MATCH($A34,[1]Sheet1!$A$12:$A$193,0),9)*(1+$A$4) -> 0.4081 | O34: =INDEX([1]Sheet1!$A$12:$AO$193,MATCH($A34,[1]Sheet1!$A$12:$A$193,0),10)*(1+$A$4) -> 1.3541 | P34: =COUNTIF($P$5:P$5,"Year")*$I$4 -> 5 | Q34: =0% -> 0 | R34: 0.03 | S34: =COUNTIF($P$5:S$5,"Year")*$I$4 -> 10 | T34: =0% -> 0 | U34: 0.03 | V34: =COUNTIF($P$5:V$5,"Year")*$I$4 -> 15 | W34: =0% -> 0 | X34: 0.03 | Y34: =COUNTIF($P$5:Y$5,"Year")*$I$4 -> 20 | Z34: =0% -> 0 | AA34: 0.03 | AB34: =COUNTIF($P$5:AB$5,"Year")*$I$4 -> 25 | AC34: =0% -> 0 | AD34: 0.03 | AE34: =COUNTIF($P$5:AE$5,"Year")*$I$4 -> 30 | AF34: =0% -> 0 | AG34: 0.03 | AH34: =COUNTIF($P$5:AH$5,"Year")*$I$4 -> 35 | AI34: =0% -> 0 | AJ34: 0.03 | AK34: =COUNTIF($P$5:AK$5,"Year")*$I$4 -> 40 | AL34: =0% -> 0 | AM34: 0.03 | AV34: 0 | AW34: 0 | AX34: 0 | AY34: 0 | AZ34: 0 | BA34: 0 | BB34: 0 | BC34: 0 | BD34: 0 | BE34: 0 | BF34: 0 | BG34: 0 | BH34: 0 | BI34: 30 | BJ34: 6 | BK34: 120 | BL34: =INDEX('Avionics ID'!A:E,MATCH(B34,'Avionics ID'!E:E,0),3) -> Harnesses
A35: 1057 | B35: Avionics Harnesses | C35: 0.1 | D35: 0.03 | G35: 10 | H35: Obsolescence | I35: =SUBSTITUTE(ADDRESS(1,MATCH(A35,'Pt1-AvionicsComponentCosts'!$A$6:$NC$6,0)+1),"$1","") -> $GZ | J35: =_xlfn.TEXTJOIN(", ",TRUE,_xlfn.UNIQUE(_xlfn._xlws.SORT(_xlfn._xlws.FILTER('Pt1-AvionicsComponentCosts'!$NF$12:$NF$384,ISNUMBER(INDIRECT("'Pt1-AvionicsComponentCosts'!"&I35&"$12:"&I35&"$384")))))) -> A220, A300, A320, A321, A330, A330 LMXT, A330 MRTT, A340, A350, A380, ARJ, ATR, Attack, Attack Helo, B717, B737, B747, B757, B767, B777, B787, C919, Challenger, Citation, CRJ, E550, EMB Bizjet, EMB Regional, Falcon, Global, Gulfstream, Hawker, Helo, Hondajet, Learjet, MC-21, MD-11, Mil Fighter, Mil Transport, Military Jet, Military TP, Nextant 400XT, NSA, PC-24, Phenom, Praetor, Reg TP, SF50, Stealth, Superjet 100, TP Trainer, Turbine GA | L35: 0.03 | M35: =IF($A$2,INDEX([1]Sheet1!$A$12:$AO$193,MATCH($A35,[1]Sheet1!$A$12:$A$193,0),8),2*$L35) -> 0.06 | N35: =INDEX([1]Sheet1!$A$12:$AO$193,MATCH($A35,[1]Sheet1!$A$12:$A$193,0),9)*(1+$A$4) -> 0.4081 | O35: =INDEX([1]Sheet1!$A$12:$AO$193,MATCH($A35,[1]Sheet1!$A$12:$A$193,0),10)*(1+$A$4) -> 1.3541 | P35: =COUNTIF($P$5:P$5,"Year")*$I$4 -> 5 | Q35: =0% -> 0 | R35: 0.03 | S35: =COUNTIF($P$5:S$5,"Year")*$I$4 -> 10 | T35: =0% -> 0 | U35: 0.03 | V35: =COUNTIF($P$5:V$5,"Year")*$I$4 -> 15 | W35: =0% -> 0 | X35: 0.03 | Y35: =COUNTIF($P$5:Y$5,"Year")*$I$4 -> 20 | Z35: =0% -> 0 | AA35: 0.03 | AB35: =COUNTIF($P$5:AB$5,"Year")*$I$4 -> 25 | AC35: =0% -> 0 | AD35: 0.03 | AE35: =COUNTIF($P$5:AE$5,"Year")*$I$4 -> 30 | AF35: =0% -> 0 | AG35: 0.03 | AH35: =COUNTIF($P$5:AH$5,"Year")*$I$4 -> 35 | AI35: =0% -> 0 | AJ35: 0.03 | AK35: =COUNTIF($P$5:AK$5,"Year")*$I$4 -> 40 | AL35: =0% -> 0 | AM35: 0.03 | AV35: 0 | AW35: 0 | AX35: 0 | AY35: 0 | AZ35: 0 | BA35: 0 | BB35: 0 | BC35: 0 | BD35: 0 | BE35: 0 | BF35: 0 | BG35: 0 | BH35: 0 | BI35: 30 | BJ35: 6 | BK35: 120 | BL35: =INDEX('Avionics ID'!A:E,MATCH(B35,'Avionics ID'!E:E,0),3) -> Harnesses
A36: 1058 | B36: Avionics Harnesses | C36: 0.1 | D36: 0.03 | G36: 10 | H36: Obsolescence | I36: =SUBSTITUTE(ADDRESS(1,MATCH(A36,'Pt1-AvionicsComponentCosts'!$A$6:$NC$6,0)+1),"$1","") -> $HB | J36: =_xlfn.TEXTJOIN(", ",TRUE,_xlfn.UNIQUE(_xlfn._xlws.SORT(_xlfn._xlws.FILTER('Pt1-AvionicsComponentCosts'!$NF$12:$NF$384,ISNUMBER(INDIRECT("'Pt1-AvionicsComponentCosts'!"&I36&"$12:"&I36&"$384")))))) -> A220, A300, A320, A321, A330, A330 LMXT, A330 MRTT, A340, A350, A380, ARJ, ATR, Attack, Attack Helo, B717, B737, B747, B757, B767, B777, B787, C919, Challenger, Citation, CRJ, E550, EMB Bizjet, EMB Regional, Falcon, Global, Gulfstream, Hawker, Helo, Hondajet, Learjet, MC-21, MD-11, Mil Fighter, Mil Transport, Military Jet, Military TP, Nextant 400XT, NSA, PC-24, Phenom, Praetor, Reg TP, SF50, Stealth, Superjet 100, TP Trainer, Turbine GA | L36: 0.03 | M36: =IF($A$2,INDEX([1]Sheet1!$A$12:$AO$193,MATCH($A36,[1]Sheet1!$A$12:$A$193,0),8),2*$L36) -> 0.06 | N36: =INDEX([1]Sheet1!$A$12:$AO$193,MATCH($A36,[1]Sheet1!$A$12:$A$193,0),9)*(1+$A$4) -> 0.4081 | O36: =INDEX([1]Sheet1!$A$12:$AO$193,MATCH($A36,[1]Sheet1!$A$12:$A$193,0),10)*(1+$A$4) -> 1.3541 | P36: =COUNTIF($P$5:P$5,"Year")*$I$4 -> 5 | Q36: =0% -> 0 | R36: 0.03 | S36: =COUNTIF($P$5:S$5,"Year")*$I$4 -> 10 | T36: =0% -> 0 | U36: 0.03 | V36: =COUNTIF($P$5:V$5,"Year")*$I$4 -> 15 | W36: =0% -> 0 | X36: 0.03 | Y36: =COUNTIF($P$5:Y$5,"Year")*$I$4 -> 20 | Z36: =0% -> 0 | AA36: 0.03 | AB36: =COUNTIF($P$5:AB$5,"Year")*$I$4 -> 25 | AC36: =0% -> 0 | AD36: 0.03 | AE36: =COUNTIF($P$5:AE$5,"Year")*$I$4 -> 30 | AF36: =0% -> 0 | AG36: 0.03 | AH36: =COUNTIF($P$5:AH$5,"Year")*$I$4 -> 35 | AI36: =0% -> 0 | AJ36: 0.03 | AK36: =COUNTIF($P$5:AK$5,"Year")*$I$4 -> 40 | AL36: =0% -> 0 | AM36: 0.03 | AV36: 0 | AW36: =IF($H36="Technology / regulatory",IF(AW$5=$F36-2,$AW$1,IF(AW$5=$F36-1,$AX$1,IF(AW$5=$F36,$AY$1,IF(AW$5=$F36+1,$AZ$1,0)))),0) -> 0 | AX36: 0 | AY36: 0 | AZ36: 0 | BA36: 0 | BB36: 0 | BC36: 0 | BD36: 0 | BE36: 0 | BF36: 0 | BG36: 0 | BH36: 0 | BI36: 30 | BJ36: 6 | BK36: 120 | BL36: =INDEX('Avionics ID'!A:E,MATCH(B36,'Avionics ID'!E:E,0),3) -> Harnesses
A37: 1059 | B37: Avionics Harnesses | C37: 0.1 | D37: 0.03 | G37: 10 | H37: Obsolescence | I37: =SUBSTITUTE(ADDRESS(1,MATCH(A37,'Pt1-AvionicsComponentCosts'!$A$6:$NC$6,0)+1),"$1","") -> $HD | J37: =_xlfn.TEXTJOIN(", ",TRUE,_xlfn.UNIQUE(_xlfn._xlws.SORT(_xlfn._xlws.FILTER('Pt1-AvionicsComponentCosts'!$NF$12:$NF$384,ISNUMBER(INDIRECT("'Pt1-AvionicsComponentCosts'!"&I37&"$12:"&I37&"$384")))))) -> A220, A300, A320, A321, A330, A330 LMXT, A330 MRTT, A340, A350, A380, ARJ, ATR, Attack, Attack Helo, B717, B737, B747, B757, B767, B777, B787, C919, Challenger, Citation, CRJ, E550, EMB Bizjet, EMB Regional, Falcon, Global, Gulfstream, Hawker, Helo, Hondajet, Learjet, MC-21, MD-11, Mil Fighter, Mil Transport, Military Jet, Military TP, Nextant 400XT, NSA, PC-24, Phenom, Praetor, Reg TP, SF50, Stealth, Superjet 100, TP Trainer, Turbine GA | L37: 0.03 | M37: =IF($A$2,INDEX([1]Sheet1!$A$12:$AO$193,MATCH($A37,[1]Sheet1!$A$12:$A$193,0),8),2*$L37) -> 0.06 | N37: =INDEX([1]Sheet1!$A$12:$AO$193,MATCH($A37,[1]Sheet1!$A$12:$A$193,0),9)*(1+$A$4) -> 0.4081 | O37: =INDEX([1]Sheet1!$A$12:$AO$193,MATCH($A37,[1]Sheet1!$A$12:$A$193,0),10)*(1+$A$4) -> 1.3541 | P37: =COUNTIF($P$5:P$5,"Year")*$I$4 -> 5 | Q37: =0% -> 0 | R37: 0.03 | S37: =COUNTIF($P$5:S$5,"Year")*$I$4 -> 10 | T37: =0% -> 0 | U37: 0.03 | V37: =COUNTIF($P$5:V$5,"Year")*$I$4 -> 15 | W37: =0% -> 0 | X37: 0.03 | Y37: =COUNTIF($P$5:Y$5,"Year")*$I$4 -> 20 | Z37: =0% -> 0 | AA37: 0.03 | AB37: =COUNTIF($P$5:AB$5,"Year")*$I$4 -> 25 | AC37: =0% -> 0 | AD37: 0.03 | AE37: =COUNTIF($P$5:AE$5,"Year")*$I$4 -> 30 | AF37: =0% -> 0 | AG37: 0.03 | AH37: =COUNTIF($P$5:AH$5,"Year")*$I$4 -> 35 | AI37: =0% -> 0 | AJ37: 0.03 | AK37: =COUNTIF($P$5:AK$5,"Year")*$I$4 -> 40 | AL37: =0% -> 0 | AM37: 0.03 | AV37: 0 | AW37: 0 | AX37: 0 | AY37: 0 | AZ37: 0 | BA37: 0 | BB37: 0 | BC37: 0 | BD37: 0 | BE37: 0 | BF37: 0 | BG37: 0 | BH37: 0 | BI37: 30 | BJ37: 6 | BK37: 120 | BL37: =INDEX('Avionics ID'!A:E,MATCH(B37,'Avionics ID'!E:E,0),3) -> Harnesses
A38: =INDEX('Avionics ID'!A:E,MATCH(B38,'Avionics ID'!E:E,0),1) -> 843 | B38: Central Crypto System | C38: 0.1 | D38: 0.06 | G38: 10 | H38: Obsolescence | I38: =SUBSTITUTE(ADDRESS(1,MATCH(A38,'Pt1-AvionicsComponentCosts'!$A$6:$NC$6,0)+1),"$1","") -> $AH | J38: =_xlfn.TEXTJOIN(", ",TRUE,_xlfn.UNIQUE(_xlfn._xlws.SORT(_xlfn._xlws.FILTER('Pt1-AvionicsComponentCosts'!$NF$12:$NF$384,ISNUMBER(INDIRECT("'Pt1-AvionicsComponentCosts'!"&I38&"$12:"&I38&"$384")))))) -> A330 LMXT, A330 MRTT, Mil Transport, Military Jet, Military TP | L38: 0.06 | M38: =IF($A$2,INDEX([1]Sheet1!$A$12:$AO$193,MATCH($A38,[1]Sheet1!$A$12:$A$193,0),8),2*$L38) -> 0.12 | N38: =INDEX([1]Sheet1!$A$12:$AO$193,MATCH($A38,[1]Sheet1!$A$12:$A$193,0),9)*(1+$A$4) -> 0.5511 | O38: =INDEX([1]Sheet1!$A$12:$AO$193,MATCH($A38,[1]Sheet1!$A$12:$A$193,0),10)*(1+$A$4) -> 1.4267 | P38: =COUNTIF($P$5:P$5,"Year")*$I$4 -> 5 | Q38: =0% -> 0 | R38: 0.06 | S38: =COUNTIF($P$5:S$5,"Year")*$I$4 -> 10 | T38: =0% -> 0 | U38: 0.06 | V38: =COUNTIF($P$5:V$5,"Year")*$I$4 -> 15 | W38: =0% -> 0 | X38: 0.06 | Y38: =COUNTIF($P$5:Y$5,"Year")*$I$4 -> 20 | Z38: =0% -> 0 | AA38: 0.06 | AB38: =COUNTIF($P$5:AB$5,"Year")*$I$4 -> 25 | AC38: =0% -> 0 | AD38: 0.06 | AE38: =COUNTIF($P$5:AE$5,"Year")*$I$4 -> 30 | AF38: =0% -> 0 | AG38: 0.06 | AH38: =COUNTIF($P$5:AH$5,"Year")*$I$4 -> 35 | AI38: =0% -> 0 | AJ38: 0.06 | AK38: =COUNTIF($P$5:AK$5,"Year")*$I$4 -> 40 | AL38: =0% -> 0 | AM38: 0.06 | AV38: 0 | AW38: 0 | AX38: 0 | AY38: 0 | AZ38: 0 | BA38: 0 | BB38: 0 | BC38: 0 | BD38: 0 | BE38: 0 | BF38: 0 | BG38: 0 | BH38: 0 | BI38: 60 | BJ38: 12 | BK38: 240 | BL38: =INDEX('Avionics ID'!A:E,MATCH(B38,'Avionics ID'!E:E,0),3) -> Communications
A39: =INDEX('Avionics ID'!A:E,MATCH(B39,'Avionics ID'!E:E,0),1) -> 862 | B39: Central Mission display | C39: 0.06666666667 | D39: 0.06 | G39: 15 | H39: Obsolescence | I39: =SUBSTITUTE(ADDRESS(1,MATCH(A39,'Pt1-AvionicsComponentCosts'!$A$6:$NC$6,0)+1),"$1","") -> $DT | J39: =_xlfn.TEXTJOIN(", ",TRUE,_xlfn.UNIQUE(_xlfn._xlws.SORT(_xlfn._xlws.FILTER('Pt1-AvionicsComponentCosts'!$NF$12:$NF$384,ISNUMBER(INDIRECT("'Pt1-AvionicsComponentCosts'!"&I39&"$12:"&I39&"$384")))))) -> Helo, TP Trainer, Turbine GA | L39: 0.06 | M39: =IF($A$2,INDEX([1]Sheet1!$A$12:$AO$193,MATCH($A39,[1]Sheet1!$A$12:$A$193,0),8),2*$L39) -> 0.12 | N39: =INDEX([1]Sheet1!$A$12:$AO$193,MATCH($A39,[1]Sheet1!$A$12:$A$193,0),9)*(1+$A$4) -> 0.3883 | O39: =INDEX([1]Sheet1!$A$12:$AO$193,MATCH($A39,[1]Sheet1!$A$12:$A$193,0),10)*(1+$A$4) -> 2.0306 | P39: =COUNTIF($P$5:P$5,"Year")*$I$4 -> 5 | Q39: =0% -> 0 | R39: 0 | S39: =COUNTIF($P$5:S$5,"Year")*$I$4 -> 10 | T39: =0% -> 0 | U39: 0.06 | V39: =COUNTIF($P$5:V$5,"Year")*$I$4 -> 15 | W39: =0% -> 0 | X39: 0.06 | Y39: =COUNTIF($P$5:Y$5,"Year")*$I$4 -> 20 | Z39: =0% -> 0 | AA39: 0.06 | AB39: =COUNTIF($P$5:AB$5,"Year")*$I$4 -> 25 | AC39: =0% -> 0 | AD39: 0 | AE39: =COUNTIF($P$5:AE$5,"Year")*$I$4 -> 30 | AF39: =0% -> 0 | AG39: 0.06 | AH39: =COUNTIF($P$5:AH$5,"Year")*$I$4 -> 35 | AI39: =0% -> 0 | AJ39: 0 | AK39: =COUNTIF($P$5:AK$5,"Year")*$I$4 -> 40 | AL39: =0% -> 0 | AM39: 0.06 | AV39: 0 | AW39: 0 | AX39: 0 | AY39: 0 | AZ39: 0 | BA39: 0 | BB39: 0 | BC39: 0 | BD39: 0 | BE39: 0 | BF39: 0 | BG39: 0 | BH39: 0 | BI39: 42 | BJ39: 12 | BK39: 240 | BL39: =INDEX('Avionics ID'!A:E,MATCH(B39,'Avionics ID'!E:E,0),3) -> Display
A40: =INDEX('Avionics ID'!A:E,MATCH(B40,'Avionics ID'!E:E,0),1) -> 737 | B40: Clock | C40: 0.1 | D40: 0.03 | G40: 10 | H40: Obsolescence | I40: =SUBSTITUTE(ADDRESS(1,MATCH(A40,'Pt1-AvionicsComponentCosts'!$A$6:$NC$6,0)+1),"$1","") -> $DV | J40: =_xlfn.TEXTJOIN(", ",TRUE,_xlfn.UNIQUE(_xlfn._xlws.SORT(_xlfn._xlws.FILTER('Pt1-AvionicsComponentCosts'!$NF$12:$NF$384,ISNUMBER(INDIRECT("'Pt1-AvionicsComponentCosts'!"&I40&"$12:"&I40&"$384")))))) -> A220, A300, A320, A321, A330, A340, A350, A380, ATR, B717, B737, B747, B757, B767, B777, C919, EMB Regional, MC-21, MD-11, Mil Transport, Military Jet, NSA | L40: 0.03 | M40: =IF($A$2,INDEX([1]Sheet1!$A$12:$AO$193,MATCH($A40,[1]Sheet1!$A$12:$A$193,0),8),2*$L40) -> 0.06 | N40: =INDEX([1]Sheet1!$A$12:$AO$193,MATCH($A40,[1]Sheet1!$A$12:$A$193,0),9)*(1+$A$4) -> 0.3883 | O40: =INDEX([1]Sheet1!$A$12:$AO$193,MATCH($A40,[1]Sheet1!$A$12:$A$193,0),10)*(1+$A$4) -> 2.0306 | P40: =COUNTIF($P$5:P$5,"Year")*$I$4 -> 5 | Q40: =0% -> 0 | R40: 0.03 | S40: =COUNTIF($P$5:S$5,"Year")*$I$4 -> 10 | T40: =0% -> 0 | U40: 0.03 | V40: =COUNTIF($P$5:V$5,"Year")*$I$4 -> 15 | W40: =0% -> 0 | X40: 0.03 | Y40: =COUNTIF($P$5:Y$5,"Year")*$I$4 -> 20 | Z40: =0% -> 0 | AA40: 0.03 | AB40: =COUNTIF($P$5:AB$5,"Year")*$I$4 -> 25 | AC40: =0% -> 0 | AD40: 0.03 | AE40: =COUNTIF($P$5:AE$5,"Year")*$I$4 -> 30 | AF40: =0% -> 0 | AG40: 0.03 | AH40: =COUNTIF($P$5:AH$5,"Year")*$I$4 -> 35 | AI40: =0% -> 0 | AJ40: 0.03 | AK40: =COUNTIF($P$5:AK$5,"Year")*$I$4 -> 40 | AL40: =0% -> 0 | AM40: 0.03 | AV40: 0 | AW40: 0 | AX40: 0 | AY40: 0 | AZ40: 0 | BA40: 0 | BB40: 0 | BC40: 0 | BD40: 0 | BE40: 0 | BF40: 0 | BG40: 0 | BH40: 0 | BI40: 30 | BJ40: 6 | BK40: 120 | BL40: =INDEX('Avionics ID'!A:E,MATCH(B40,'Avionics ID'!E:E,0),3) -> Display
A41: =INDEX('Avionics ID'!A:E,MATCH(B41,'Avionics ID'!E:E,0),1) -> 752 | B41: Cockpit Voice Recorder | C41: 0.06666666667 | D41: 0.06 | E41: CPDLC | F41: 2028 | G41: 15 | H41: Technology / regulatory | I41: =SUBSTITUTE(ADDRESS(1,MATCH(A41,'Pt1-AvionicsComponentCosts'!$A$6:$NC$6,0)+1),"$1","") -> $AJ | J41: =_xlfn.TEXTJOIN(", ",TRUE,_xlfn.UNIQUE(_xlfn._xlws.SORT(_xlfn._xlws.FILTER('Pt1-AvionicsComponentCosts'!$NF$12:$NF$384,ISNUMBER(INDIRECT("'Pt1-AvionicsComponentCosts'!"&I41&"$12:"&I41&"$384")))))) -> A220, A300, A320, A321, A330, A340, A350, A380, ATR, B717, B737, B747, B757, B767, B777, B787, C919, Challenger, Citation, E550, EMB Bizjet, EMB Regional, Falcon, Global, Gulfstream, Hawker, Hondajet, Learjet, MC-21, MD-11, Mil Transport, Military Jet, Nextant 400XT, NSA, PC-24, Phenom, Praetor, SF50 | L41: 0.06 | M41: =IF($A$2,INDEX([1]Sheet1!$A$12:$AO$193,MATCH($A41,[1]Sheet1!$A$12:$A$193,0),8),2*$L41) -> 0.12 | N41: =INDEX([1]Sheet1!$A$12:$AO$193,MATCH($A41,[1]Sheet1!$A$12:$A$193,0),9)*(1+$A$4) -> 0.5511 | O41: =INDEX([1]Sheet1!$A$12:$AO$193,MATCH($A41,[1]Sheet1!$A$12:$A$193,0),10)*(1+$A$4) -> 1.4267 | P41: =COUNTIF($P$5:P$5,"Year")*$I$4 -> 5 | Q41: =0% -> 0 | R41: 0 | S41: =COUNTIF($P$5:S$5,"Year")*$I$4 -> 10 | T41: =0% -> 0 | U41: 0.06 | V41: =COUNTIF($P$5:V$5,"Year")*$I$4 -> 15 | W41: =0% -> 0 | X41: 0.06 | Y41: =COUNTIF($P$5:Y$5,"Year")*$I$4 -> 20 | Z41: =0% -> 0 | AA41: 0.06 | AB41: =COUNTIF($P$5:AB$5,"Year")*$I$4 -> 25 | AC41: =0% -> 0 | AD41: 0 | AE41: =COUNTIF($P$5:AE$5,"Year")*$I$4 -> 30 | AF41: =0% -> 0 | AG41: 0.06 | AH41: =COUNTIF($P$5:AH$5,"Year")*$I$4 -> 35 | AI41: =0% -> 0 | AJ41: 0 | AK41: =COUNTIF($P$5:AK$5,"Year")*$I$4 -> 40 | AL41: =0% -> 0 | AM41: 0.06 | AU41: CPDLC | AV41: 1.4267 | AW41: 0 | AX41: 0 | AY41: 0.15 | AZ41: 0.25 | BA41: 0.45 | BB41: 0.15 | BC41: 0 | BD41: 0 | BE41: 0 | BF41: 0 | BG41: 0 | BH41: 0 | BI41: 142 | BJ41: 12 | BK41: 240 | BL41: =INDEX('Avionics ID'!A:E,MATCH(B41,'Avionics ID'!E:E,0),3) -> Communications
A42: =INDEX('Avionics ID'!A:E,MATCH(B42,'Avionics ID'!E:E,0),1) -> 864 | B42: Combined cockpit voice and data recorder | C42: 0.06666666667 | D42: 0.06 | E42: CPDLC | F42: 2028 | G42: 15 | H42: Technology / regulatory | I42: =SUBSTITUTE(ADDRESS(1,MATCH(A42,'Pt1-AvionicsComponentCosts'!$A$6:$NC$6,0)+1),"$1","") -> $CL | J42: =_xlfn.TEXTJOIN(", ",TRUE,_xlfn.UNIQUE(_xlfn._xlws.SORT(_xlfn._xlws.FILTER('Pt1-AvionicsComponentCosts'!$NF$12:$NF$384,ISNUMBER(INDIRECT("'Pt1-AvionicsComponentCosts'!"&I42&"$12:"&I42&"$384")))))) -> Helo, TP Trainer, Turbine GA | L42: 0.06 | M42: =IF($A$2,INDEX([1]Sheet1!$A$12:$AO$193,MATCH($A42,[1]Sheet1!$A$12:$A$193,0),8),2*$L42) -> 0.12 | N42: =INDEX([1]Sheet1!$A$12:$AO$193,MATCH($A42,[1]Sheet1!$A$12:$A$193,0),9)*(1+$A$4) -> 0.7513 | O42: =INDEX([1]Sheet1!$A$12:$AO$193,MATCH($A42,[1]Sheet1!$A$12:$A$193,0),10)*(1+$A$4) -> 2.1241 | P42: =COUNTIF($P$5:P$5,"Year")*$I$4 -> 5 | Q42: =0% -> 0 | R42: 0 | S42: =COUNTIF($P$5:S$5,"Year")*$I$4 -> 10 | T42: =0% -> 0 | U42: 0.06 | V42: =COUNTIF($P$5:V$5,"Year")*$I$4 -> 15 | W42: =0% -> 0 | X42: 0.06 | Y42: =COUNTIF($P$5:Y$5,"Year")*$I$4 -> 20 | Z42: =0% -> 0 | AA42: 0.06 | AB42: =COUNTIF($P$5:AB$5,"Year")*$I$4 -> 25 | AC42: =0% -> 0 | AD42: 0 | AE42: =COUNTIF($P$5:AE$5,"Year")*$I$4 -> 30 | AF42: =0% -> 0 | AG42: 0.06 | AH42: =COUNTIF($P$5:AH$5,"Year")*$I$4 -> 35 | AI42: =0% -> 0 | AJ42: 0 | AK42: =COUNTIF($P$5:AK$5,"Year")*$I$4 -> 40 | AL42: =0% -> 0 | AM42: 0.06 | AU42: CPDLC | AV42: 2.1241 | AW42: 0 | AX42: 0 | AY42: 0.15 | AZ42: 0.25 | BA42: 0.45 | BB42: 0.15 | BC42: 0 | BD42: 0 | BE42: 0 | BF42: 0 | BG42: 0 | BH42: 0 | BI42: 142 | BJ42: 12 | BK42: 240 | BL42: =INDEX('Avionics ID'!A:E,MATCH(B42,'Avionics ID'!E:E,0),3) -> Data
A43: =INDEX('Avionics ID'!A:E,MATCH(B43,'Avionics ID'!E:E,0),1) -> 773 | B43: Common Core processing | C43: 0.06666666667 | D43: 0.03 | G43: 15 | H43: Obsolescence | I43: =SUBSTITUTE(ADDRESS(1,MATCH(A43,'Pt1-AvionicsComponentCosts'!$A$6:$NC$6,0)+1),"$1","") -> $HH | J43: =_xlfn.TEXTJOIN(", ",TRUE,_xlfn.UNIQUE(_xlfn._xlws.SORT(_xlfn._xlws.FILTER('Pt1-AvionicsComponentCosts'!$NF$12:$NF$384,ISNUMBER(INDIRECT("'Pt1-AvionicsComponentCosts'!"&I43&"$12:"&I43&"$384")))))) -> A220, A320, A350, A380, B747, B777, B787, C919, Falcon, Global, Gulfstream, NSA, Reg TP | L43: 0.03 | M43: =IF($A$2,INDEX([1]Sheet1!$A$12:$AO$193,MATCH($A43,[1]Sheet1!$A$12:$A$193,0),8),2*$L43) -> 0.06 | N43: =INDEX([1]Sheet1!$A$12:$AO$193,MATCH($A43,[1]Sheet1!$A$12:$A$193,0),9)*(1+$A$4) -> 0.3905 | O43: =INDEX([1]Sheet1!$A$12:$AO$193,MATCH($A43,[1]Sheet1!$A$12:$A$193,0),10)*(1+$A$4) -> 1.1561 | P43: =COUNTIF($P$5:P$5,"Year")*$I$4 -> 5 | Q43: =0% -> 0 | R43: 0 | S43: =COUNTIF($P$5:S$5,"Year")*$I$4 -> 10 | T43: =0% -> 0 | U43: 0.03 | V43: =COUNTIF($P$5:V$5,"Year")*$I$4 -> 15 | W43: =0% -> 0 | X43: 0.03 | Y43: =COUNTIF($P$5:Y$5,"Year")*$I$4 -> 20 | Z43: =0% -> 0 | AA43: 0.03 | AB43: =COUNTIF($P$5:AB$5,"Year")*$I$4 -> 25 | AC43: =0% -> 0 | AD43: 0 | AE43: =COUNTIF($P$5:AE$5,"Year")*$I$4 -> 30 | AF43: =0% -> 0 | AG43: 0.03 | AH43: =COUNTIF($P$5:AH$5,"Year")*$I$4 -> 35 | AI43: =0% -> 0 | AJ43: 0 | AK43: =COUNTIF($P$5:AK$5,"Year")*$I$4 -> 40 | AL43: =0% -> 0 | AM43: 0.03 | AV43: 0 | AW43: 0 | AX43: 0 | AY43: 0 | AZ43: 0 | BA43: 0 | BB43: 0 | BC43: 0 | BD43: 0 | BE43: 0 | BF43: 0 | BG43: 0 | BH43: 0 | BI43: 21 | BJ43: 6 | BK43: 120 | BL43: =INDEX('Avionics ID'!A:E,MATCH(B43,'Avionics ID'!E:E,0),3) -> IMA
A44: =INDEX('Avionics ID'!A:E,MATCH(B44,'Avionics ID'!E:E,0),1) -> 775 | B44: Common Data Network | C44: 0.06666666667 | D44: 0.03 | G44: 15 | H44: Obsolescence | I44: =SUBSTITUTE(ADDRESS(1,MATCH(A44,'Pt1-AvionicsComponentCosts'!$A$6:$NC$6,0)+1),"$1","") -> $HJ | J44: =_xlfn.TEXTJOIN(", ",TRUE,_xlfn.UNIQUE(_xlfn._xlws.SORT(_xlfn._xlws.FILTER('Pt1-AvionicsComponentCosts'!$NF$12:$NF$384,ISNUMBER(INDIRECT("'Pt1-AvionicsComponentCosts'!"&I44&"$12:"&I44&"$384")))))) -> A220, A320, A350, A380, B747, B777, B787, C919, Falcon, Global, Gulfstream, NSA, Reg TP | L44: 0.03 | M44: =IF($A$2,INDEX([1]Sheet1!$A$12:$AO$193,MATCH($A44,[1]Sheet1!$A$12:$A$193,0),8),2*$L44) -> 0.06 | N44: =INDEX([1]Sheet1!$A$12:$AO$193,MATCH($A44,[1]Sheet1!$A$12:$A$193,0),9)*(1+$A$4) -> 0.3905 | O44: =INDEX([1]Sheet1!$A$12:$AO$193,MATCH($A44,[1]Sheet1!$A$12:$A$193,0),10)*(1+$A$4) -> 1.1561 | P44: =COUNTIF($P$5:P$5,"Year")*$I$4 -> 5 | Q44: =0% -> 0 | R44: 0 | S44: =COUNTIF($P$5:S$5,"Year")*$I$4 -> 10 | T44: =0% -> 0 | U44: 0.03 | V44: =COUNTIF($P$5:V$5,"Year")*$I$4 -> 15 | W44: =0% -> 0 | X44: 0.03 | Y44: =COUNTIF($P$5:Y$5,"Year")*$I$4 -> 20 | Z44: =0% -> 0 | AA44: 0.03 | AB44: =COUNTIF($P$5:AB$5,"Year")*$I$4 -> 25 | AC44: =0% -> 0 | AD44: 0 | AE44: =COUNTIF($P$5:AE$5,"Year")*$I$4 -> 30 | AF44: =0% -> 0 | AG44: 0.03 | AH44: =COUNTIF($P$5:AH$5,"Year")*$I$4 -> 35 | AI44: =0% -> 0 | AJ44: 0 | AK44: =COUNTIF($P$5:AK$5,"Year")*$I$4 -> 40 | AL44: =0% -> 0 | AM44: 0.03 | AV44: 0 | AW44: 0 | AX44: 0 | AY44: 0 | AZ44: 0 | BA44: 0 | BB44: 0 | BC44: 0 | BD44: 0 | BE44: 0 | BF44: 0 | BG44: 0 | BH44: 0 | BI44: 21 | BJ44: 6 | BK44: 120 | BL44: =INDEX('Avionics ID'!A:E,MATCH(B44,'Avionics ID'!E:E,0),3) -> IMA
A45: =INDEX('Avionics ID'!A:E,MATCH(B45,'Avionics ID'!E:E,0),1) -> 782 | B45: Comms Management Function (CMF) | C45: 0.05 | D45: 0.03 | G45: 20 | H45: Obsolescence | I45: =SUBSTITUTE(ADDRESS(1,MATCH(A45,'Pt1-AvionicsComponentCosts'!$A$6:$NC$6,0)+1),"$1","") -> $AL | J45: =_xlfn.TEXTJOIN(", ",TRUE,_xlfn.UNIQUE(_xlfn._xlws.SORT(_xlfn._xlws.FILTER('Pt1-AvionicsComponentCosts'!$NF$12:$NF$384,ISNUMBER(INDIRECT("'Pt1-AvionicsComponentCosts'!"&I45&"$12:"&I45&"$384")))))) -> A350, B747, B777, B787 | L45: 0.03 | M45: =IF($A$2,INDEX([1]Sheet1!$A$12:$AO$193,MATCH($A45,[1]Sheet1!$A$12:$A$193,0),8),2*$L45) -> 0.06 | N45: =INDEX([1]Sheet1!$A$12:$AO$193,MATCH($A45,[1]Sheet1!$A$12:$A$193,0),9)*(1+$A$4) -> 0.5511 | O45: =INDEX([1]Sheet1!$A$12:$AO$193,MATCH($A45,[1]Sheet1!$A$12:$A$193,0),10)*(1+$A$4) -> 1.4267 | P45: =COUNTIF($P$5:P$5,"Year")*$I$4 -> 5 | Q45: =0% -> 0 | R45: 0 | S45: =COUNTIF($P$5:S$5,"Year")*$I$4 -> 10 | T45: =0% -> 0 | U45: 0.03 | V45: =COUNTIF($P$5:V$5,"Year")*$I$4 -> 15 | W45: =0% -> 0 | X45: 0 | Y45: =COUNTIF($P$5:Y$5,"Year")*$I$4 -> 20 | Z45: =0% -> 0 | AA45: 0.03 | AB45: =COUNTIF($P$5:AB$5,"Year")*$I$4 -> 25 | AC45: =0% -> 0 | AD45: 0 | AE45: =COUNTIF($P$5:AE$5,"Year")*$I$4 -> 30 | AF45: =0% -> 0 | AG45: 0.03 | AH45: =COUNTIF($P$5:AH$5,"Year")*$I$4 -> 35 | AI45: =0% -> 0 | AJ45: 0 | AK45: =COUNTIF($P$5:AK$5,"Year")*$I$4 -> 40 | AL45: =0% -> 0 | AM45: 0.03 | AV45: 0 | AW45: 0 | AX45: 0 | AY45: 0 | AZ45: 0 | BA45: 0 | BB45: 0 | BC45: 0 | BD45: 0 | BE45: 0 | BF45: 0 | BG45: 0 | BH45: 0 | BI45: 18 | BJ45: 6 | BK45: 120 | BL45: =INDEX('Avionics ID'!A:E,MATCH(B45,'Avionics ID'!E:E,0),3) -> Communications
A46: =INDEX('Avionics ID'!A:E,MATCH(B46,'Avionics ID'!E:E,0),1) -> 832 | B46: Comms Management System | C46: 0.05 | D46: 0.03 | G46: 20 | H46: Obsolescence | I46: =SUBSTITUTE(ADDRESS(1,MATCH(A46,'Pt1-AvionicsComponentCosts'!$A$6:$NC$6,0)+1),"$1","") -> $AN | J46: =_xlfn.TEXTJOIN(", ",TRUE,_xlfn.UNIQUE(_xlfn._xlws.SORT(_xlfn._xlws.FILTER('Pt1-AvionicsComponentCosts'!$NF$12:$NF$384,ISNUMBER(INDIRECT("'Pt1-AvionicsComponentCosts'!"&I46&"$12:"&I46&"$384")))))) -> Challenger, Citation, E550, EMB Bizjet, Falcon, Global, Gulfstream, Hawker, Hondajet, Learjet, Nextant 400XT, PC-24, Phenom, Praetor, SF50 | L46: 0.03 | M46: =IF($A$2,INDEX([1]Sheet1!$A$12:$AO$193,MATCH($A46,[1]Sheet1!$A$12:$A$193,0),8),2*$L46) -> 0.06 | N46: =INDEX([1]Sheet1!$A$12:$AO$193,MATCH($A46,[1]Sheet1!$A$12:$A$193,0),9)*(1+$A$4) -> 0.5511 | O46: =INDEX([1]Sheet1!$A$12:$AO$193,MATCH($A46,[1]Sheet1!$A$12:$A$193,0),10)*(1+$A$4) -> 1.4267 | P46: =COUNTIF($P$5:P$5,"Year")*$I$4 -> 5 | Q46: =0% -> 0 | R46: 0 | S46: =COUNTIF($P$5:S$5,"Year")*$I$4 -> 10 | T46: =0% -> 0 | U46: 0.03 | V46: =COUNTIF($P$5:V$5,"Year")*$I$4 -> 15 | W46: =0% -> 0 | X46: 0 | Y46: =COUNTIF($P$5:Y$5,"Year")*$I$4 -> 20 | Z46: =0% -> 0 | AA46: 0.03 | AB46: =COUNTIF($P$5:AB$5,"Year")*$I$4 -> 25 | AC46: =0% -> 0 | AD46: 0 | AE46: =COUNTIF($P$5:AE$5,"Year")*$I$4 -> 30 | AF46: =0% -> 0 | AG46: 0.03 | AH46: =COUNTIF($P$5:AH$5,"Year")*$I$4 -> 35 | AI46: =0% -> 0 | AJ46: 0 | AK46: =COUNTIF($P$5:AK$5,"Year")*$I$4 -> 40 | AL46: =0% -> 0 | AM46: 0.03 | AV46: 0 | AW46: =IF($H46="Technology / regulatory",IF(AW$5=$F46-2,$AW$1,IF(AW$5=$F46-1,$AX$1,IF(AW$5=$F46,$AY$1,IF(AW$5=$F46+1,$AZ$1,0)))),0) -> 0 | AX46: 0 | AY46: 0 | AZ46: 0 | BA46: 0 | BB46: 0 | BC46: 0 | BD46: 0 | BE46: 0 | BF46: 0 | BG46: 0 | BH46: 0 | BI46: 18 | BJ46: 6 | BK46: 120 | BL46: =INDEX('Avionics ID'!A:E,MATCH(B46,'Avionics ID'!E:E,0),3) -> Communications
A47: =INDEX('Avionics ID'!A:E,MATCH(B47,'Avionics ID'!E:E,0),1) -> 739 | B47: Comms Receivers UF (transceiver/antenna) | C47: 0.1 | D47: 0.06 | G47: 10 | H47: Obsolescence | I47: =SUBSTITUTE(ADDRESS(1,MATCH(A47,'Pt1-AvionicsComponentCosts'!$A$6:$NC$6,0)+1),"$1","") -> $AP | J47: =_xlfn.TEXTJOIN(", ",TRUE,_xlfn.UNIQUE(_xlfn._xlws.SORT(_xlfn._xlws.FILTER('Pt1-AvionicsComponentCosts'!$NF$12:$NF$384,ISNUMBER(INDIRECT("'Pt1-AvionicsComponentCosts'!"&I47&"$12:"&I47&"$384")))))) -> A220, A300, A320, A321, A330, A340, A350, A380, ATR, B717, B737, B747, B757, B767, B777, B787, C919, EMB Regional, MC-21, MD-11, Mil Transport, Military Jet, NSA | L47: 0.06 | M47: =IF($A$2,INDEX([1]Sheet1!$A$12:$AO$193,MATCH($A47,[1]Sheet1!$A$12:$A$193,0),8),2*$L47) -> 0.12 | N47: =INDEX([1]Sheet1!$A$12:$AO$193,MATCH($A47,[1]Sheet1!$A$12:$A$193,0),9)*(1+$A$4) -> 0.5511 | O47: =INDEX([1]Sheet1!$A$12:$AO$193,MATCH($A47,[1]Sheet1!$A$12:$A$193,0),10)*(1+$A$4) -> 1.4267 | P47: =COUNTIF($P$5:P$5,"Year")*$I$4 -> 5 | Q47: =0% -> 0 | R47: 0.06 | S47: =COUNTIF($P$5:S$5,"Year")*$I$4 -> 10 | T47: =0% -> 0 | U47: 0.06 | V47: =COUNTIF($P$5:V$5,"Year")*$I$4 -> 15 | W47: =0% -> 0 | X47: 0.06 | Y47: =COUNTIF($P$5:Y$5,"Year")*$I$4 -> 20 | Z47: =0% -> 0 | AA47: 0.06 | AB47: =COUNTIF($P$5:AB$5,"Year")*$I$4 -> 25 | AC47: =0% -> 0 | AD47: 0.06 | AE47: =COUNTIF($P$5:AE$5,"Year")*$I$4 -> 30 | AF47: =0% -> 0 | AG47: 0.06 | AH47: =COUNTIF($P$5:AH$5,"Year")*$I$4 -> 35 | AI47: =0% -> 0 | AJ47: 0.06 | AK47: =COUNTIF($P$5:AK$5,"Year")*$I$4 -> 40 | AL47: =0% -> 0 | AM47: 0.06 | AV47: 0 | AW47: 0 | AX47: 0 | AY47: 0 | AZ47: 0 | BA47: 0 | BB47: 0 | BC47: 0 | BD47: 0 | BE47: 0 | BF47: 0 | BG47: 0 | BH47: 0 | BI47: 60 | BJ47: 12 | BK47: 240 | BL47: =INDEX('Avionics ID'!A:E,MATCH(B47,'Avionics ID'!E:E,0),3) -> Communications
A48: =INDEX('Avionics ID'!A:E,MATCH(B48,'Avionics ID'!E:E,0),1) -> 738 | B48: Comms Receivers VH (transceiver/antenna) | C48: 0.1 | D48: 0.06 | G48: 10 | H48: Obsolescence | I48: =SUBSTITUTE(ADDRESS(1,MATCH(A48,'Pt1-AvionicsComponentCosts'!$A$6:$NC$6,0)+1),"$1","") -> $AR | J48: =_xlfn.TEXTJOIN(", ",TRUE,_xlfn.UNIQUE(_xlfn._xlws.SORT(_xlfn._xlws.FILTER('Pt1-AvionicsComponentCosts'!$NF$12:$NF$384,ISNUMBER(INDIRECT("'Pt1-AvionicsComponentCosts'!"&I48&"$12:"&I48&"$384")))))) -> A220, A300, A320, A321, A330, A340, A350, A380, ATR, B717, B737, B747, B757, B767, B777, B787, C919, EMB Regional, MC-21, MD-11, Mil Transport, Military Jet, NSA | L48: 0.06 | M48: =IF($A$2,INDEX([1]Sheet1!$A$12:$AO$193,MATCH($A48,[1]Sheet1!$A$12:$A$193,0),8),2*$L48) -> 0.12 | N48: =INDEX([1]Sheet1!$A$12:$AO$193,MATCH($A48,[1]Sheet1!$A$12:$A$193,0),9)*(1+$A$4) -> 0.5511 | O48: =INDEX([1]Sheet1!$A$12:$AO$193,MATCH($A48,[1]Sheet1!$A$12:$A$193,0),10)*(1+$A$4) -> 1.4267 | P48: =COUNTIF($P$5:P$5,"Year")*$I$4 -> 5 | Q48: =0% -> 0 | R48: 0.06 | S48: =COUNTIF($P$5:S$5,"Year")*$I$4 -> 10 | T48: =0% -> 0 | U48: 0.06 | V48: =COUNTIF($P$5:V$5,"Year")*$I$4 -> 15 | W48: =0% -> 0 | X48: 0.06 | Y48: =COUNTIF($P$5:Y$5,"Year")*$I$4 -> 20 | Z48: =0% -> 0 | AA48: 0.06 | AB48: =COUNTIF($P$5:AB$5,"Year")*$I$4 -> 25 | AC48: =0% -> 0 | AD48: 0.06 | AE48: =COUNTIF($P$5:AE$5,"Year")*$I$4 -> 30 | AF48: =0% -> 0 | AG48: 0.06 | AH48: =COUNTIF($P$5:AH$5,"Year")*$I$4 -> 35 | AI48: =0% -> 0 | AJ48: 0.06 | AK48: =COUNTIF($P$5:AK$5,"Year")*$I$4 -> 40 | AL48: =0% -> 0 | AM48: 0.06 | AV48: 0 | AW48: 0 | AX48: 0 | AY48: 0 | AZ48: 0 | BA48: 0 | BB48: 0 | BC48: 0 | BD48: 0 | BE48: 0 | BF48: 0 | BG48: 0 | BH48: 0 | BI48: 60 | BJ48: 12 | BK48: 240 | BL48: =INDEX('Avionics ID'!A:E,MATCH(B48,'Avionics ID'!E:E,0),3) -> Communications
A49: =INDEX('Avionics ID'!A:E,MATCH(B49,'Avionics ID'!E:E,0),1) -> 787 | B49: Communication, Navigation, Identification Unit AN/ASQ-242 | C49: 0.05 | D49: 0.03 | G49: 20 | H49: Obsolescence | I49: =SUBSTITUTE(ADDRESS(1,MATCH(A49,'Pt1-AvionicsComponentCosts'!$A$6:$NC$6,0)+1),"$1","") -> $AT | J49: =_xlfn.TEXTJOIN(", ",TRUE,_xlfn.UNIQUE(_xlfn._xlws.SORT(_xlfn._xlws.FILTER('Pt1-AvionicsComponentCosts'!$NF$12:$NF$384,ISNUMBER(INDIRECT("'Pt1-AvionicsComponentCosts'!"&I49&"$12:"&I49&"$384")))))) -> Attack, Stealth | L49: 0.03 | M49: =IF($A$2,INDEX([1]Sheet1!$A$12:$AO$193,MATCH($A49,[1]Sheet1!$A$12:$A$193,0),8),2*$L49) -> 0.06 | N49: =INDEX([1]Sheet1!$A$12:$AO$193,MATCH($A49,[1]Sheet1!$A$12:$A$193,0),9)*(1+$A$4) -> 0.5511 | O49: =INDEX([1]Sheet1!$A$12:$AO$193,MATCH($A49,[1]Sheet1!$A$12:$A$193,0),10)*(1+$A$4) -> 1.4267 | P49: =COUNTIF($P$5:P$5,"Year")*$I$4 -> 5 | Q49: =0% -> 0 | R49: 0 | S49: =COUNTIF($P$5:S$5,"Year")*$I$4 -> 10 | T49: =0% -> 0 | U49: 0.03 | V49: =COUNTIF($P$5:V$5,"Year")*$I$4 -> 15 | W49: =0% -> 0 | X49: 0 | Y49: =COUNTIF($P$5:Y$5,"Year")*$I$4 -> 20 | Z49: =0% -> 0 | AA49: 0.03 | AB49: =COUNTIF($P$5:AB$5,"Year")*$I$4 -> 25 | AC49: =0% -> 0 | AD49: 0 | AE49: =COUNTIF($P$5:AE$5,"Year")*$I$4 -> 30 | AF49: =0% -> 0 | AG49: 0.03 | AH49: =COUNTIF($P$5:AH$5,"Year")*$I$4 -> 35 | AI49: =0% -> 0 | AJ49: 0 | AK49: =COUNTIF($P$5:AK$5,"Year")*$I$4 -> 40 | AL49: =0% -> 0 | AM49: 0.03 | AV49: 0 | AW49: 0 | AX49: 0 | AY49: 0 | AZ49: 0 | BA49: 0 | BB49: 0 | BC49: 0 | BD49: 0 | BE49: 0 | BF49: 0 | BG49: 0 | BH49: 0 | BI49: 18 | BJ49: 6 | BK49: 120 | BL49: =INDEX('Avionics ID'!A:E,MATCH(B49,'Avionics ID'!E:E,0),3) -> Communications
A50: =INDEX('Avionics ID'!A:E,MATCH(B50,'Avionics ID'!E:E,0),1) -> 734 | B50: Compass | C50: 0.025 | D50: 0.03 | G50: 40 | H50: Obsolescence | I50: =SUBSTITUTE(ADDRESS(1,MATCH(A50,'Pt1-AvionicsComponentCosts'!$A$6:$NC$6,0)+1),"$1","") -> $DX | J50: =_xlfn.TEXTJOIN(", ",TRUE,_xlfn.UNIQUE(_xlfn._xlws.SORT(_xlfn._xlws.FILTER('Pt1-AvionicsComponentCosts'!$NF$12:$NF$384,ISNUMBER(INDIRECT("'Pt1-AvionicsComponentCosts'!"&I50&"$12:"&I50&"$384")))))) -> A220, A300, A320, A321, A330, A340, A350, A380, ATR, B717, B737, B747, B757, B767, B777, B787, C919, EMB Regional, MC-21, MD-11, Mil Transport, Military Jet, NSA | L50: 0.03 | M50: =IF($A$2,INDEX([1]Sheet1!$A$12:$AO$193,MATCH($A50,[1]Sheet1!$A$12:$A$193,0),8),2*$L50) -> 0.06 | N50: =INDEX([1]Sheet1!$A$12:$AO$193,MATCH($A50,[1]Sheet1!$A$12:$A$193,0),9)*(1+$A$4) -> 0.3883 | O50: =INDEX([1]Sheet1!$A$12:$AO$193,MATCH($A50,[1]Sheet1!$A$12:$A$193,0),10)*(1+$A$4) -> 2.0306 | P50: =COUNTIF($P$5:P$5,"Year")*$I$4 -> 5 | Q50: =0% -> 0 | R50: 0 | S50: =COUNTIF($P$5:S$5,"Year")*$I$4 -> 10 | T50: =0% -> 0 | U50: 0 | V50: =COUNTIF($P$5:V$5,"Year")*$I$4 -> 15 | W50: =0% -> 0 | X50: 0 | Y50: =COUNTIF($P$5:Y$5,"Year")*$I$4 -> 20 | Z50: =0% -> 0 | AA50: 0.03 | AB50: =COUNTIF($P$5:AB$5,"Year")*$I$4 -> 25 | AC50: =0% -> 0 | AD50: 0 | AE50: =COUNTIF($P$5:AE$5,"Year")*$I$4 -> 30 | AF50: =0% -> 0 | AG50: 0 | AH50: =COUNTIF($P$5:AH$5,"Year")*$I$4 -> 35 | AI50: =0% -> 0 | AJ50: 0 | AK50: =COUNTIF($P$5:AK$5,"Year")*$I$4 -> 40 | AL50: =0% -> 0 | AM50: 0.03 | AV50: 0 | AW50: 0 | AX50: 0 | AY50: 0 | AZ50: 0 | BA50: 0 | BB50: 0 | BC50: 0 | BD50: 0 | BE50: 0 | BF50: 0 | BG50: 0 | BH50: 0 | BI50: 12 | BJ50: 6 | BK50: 120 | BL50: =INDEX('Avionics ID'!A:E,MATCH(B50,'Avionics ID'!E:E,0),3) -> Display
A51: =INDEX('Avionics ID'!A:E,MATCH(B51,'Avionics ID'!E:E,0),1) -> 779 | B51: Crew Info System/Maint System | C51: 0.05 | D51: 0.03 | G51: 20 | H51: Obsolescence | I51: =SUBSTITUTE(ADDRESS(1,MATCH(A51,'Pt1-AvionicsComponentCosts'!$A$6:$NC$6,0)+1),"$1","") -> $DZ | J51: =_xlfn.TEXTJOIN(", ",TRUE,_xlfn.UNIQUE(_xlfn._xlws.SORT(_xlfn._xlws.FILTER('Pt1-AvionicsComponentCosts'!$NF$12:$NF$384,ISNUMBER(INDIRECT("'Pt1-AvionicsComponentCosts'!"&I51&"$12:"&I51&"$384")))))) -> A350, B747, B777, B787 | L51: 0.03 | M51: =IF($A$2,INDEX([1]Sheet1!$A$12:$AO$193,MATCH($A51,[1]Sheet1!$A$12:$A$193,0),8),2*$L51) -> 0.06 | N51: =INDEX([1]Sheet1!$A$12:$AO$193,MATCH($A51,[1]Sheet1!$A$12:$A$193,0),9)*(1+$A$4) -> 0.3883 | O51: =INDEX([1]Sheet1!$A$12:$AO$193,MATCH($A51,[1]Sheet1!$A$12:$A$193,0),10)*(1+$A$4) -> 2.0306 | P51: =COUNTIF($P$5:P$5,"Year")*$I$4 -> 5 | Q51: =0% -> 0 | R51: 0 | S51: =COUNTIF($P$5:S$5,"Year")*$I$4 -> 10 | T51: =0% -> 0 | U51: 0.03 | V51: =COUNTIF($P$5:V$5,"Year")*$I$4 -> 15 | W51: =0% -> 0 | X51: 0 | Y51: =COUNTIF($P$5:Y$5,"Year")*$I$4 -> 20 | Z51: =0% -> 0 | AA51: 0.03 | AB51: =COUNTIF($P$5:AB$5,"Year")*$I$4 -> 25 | AC51: =0% -> 0 | AD51: 0 | AE51: =COUNTIF($P$5:AE$5,"Year")*$I$4 -> 30 | AF51: =0% -> 0 | AG51: 0.03 | AH51: =COUNTIF($P$5:AH$5,"Year")*$I$4 -> 35 | AI51: =0% -> 0 | AJ51: 0 | AK51: =COUNTIF($P$5:AK$5,"Year")*$I$4 -> 40 | AL51: =0% -> 0 | AM51: 0.03 | AV51: 0 | AW51: 0 | AX51: 0 | AY51: 0 | AZ51: 0 | BA51: 0 | BB51: 0 | BC51: 0 | BD51: 0 | BE51: 0 | BF51: 0 | BG51: 0 | BH51: 0 | BI51: 18 | BJ51: 6 | BK51: 120 | BL51: =INDEX('Avionics ID'!A:E,MATCH(B51,'Avionics ID'!E:E,0),3) -> Display
A52: =INDEX('Avionics ID'!A:E,MATCH(B52,'Avionics ID'!E:E,0),1) -> 808 | B52: Cursor Control Device | C52: 0.05 | D52: 0.08 | G52: 20 | H52: Obsolescence | I52: =SUBSTITUTE(ADDRESS(1,MATCH(A52,'Pt1-AvionicsComponentCosts'!$A$6:$NC$6,0)+1),"$1","") -> $EB | J52: =_xlfn.TEXTJOIN(", ",TRUE,_xlfn.UNIQUE(_xlfn._xlws.SORT(_xlfn._xlws.FILTER('Pt1-AvionicsComponentCosts'!$NF$12:$NF$384,ISNUMBER(INDIRECT("'Pt1-AvionicsComponentCosts'!"&I52&"$12:"&I52&"$384")))))) -> ARJ, CRJ, EMB Regional, Reg TP, Superjet 100, Turbine GA | L52: 0.08 | M52: =IF($A$2,INDEX([1]Sheet1!$A$12:$AO$193,MATCH($A52,[1]Sheet1!$A$12:$A$193,0),8),2*$L52) -> 0.16 | N52: =INDEX([1]Sheet1!$A$12:$AO$193,MATCH($A52,[1]Sheet1!$A$12:$A$193,0),9)*(1+$A$4) -> 0.3883 | O52: =INDEX([1]Sheet1!$A$12:$AO$193,MATCH($A52,[1]Sheet1!$A$12:$A$193,0),10)*(1+$A$4) -> 2.0306 | P52: =COUNTIF($P$5:P$5,"Year")*$I$4 -> 5 | Q52: =0% -> 0 | R52: 0 | S52: =COUNTIF($P$5:S$5,"Year")*$I$4 -> 10 | T52: =0% -> 0 | U52: 0.08 | V52: =COUNTIF($P$5:V$5,"Year")*$I$4 -> 15 | W52: =0% -> 0 | X52: 0 | Y52: =COUNTIF($P$5:Y$5,"Year")*$I$4 -> 20 | Z52: =0% -> 0 | AA52: 0.08 | AB52: =COUNTIF($P$5:AB$5,"Year")*$I$4 -> 25 | AC52: =0% -> 0 | AD52: 0 | AE52: =COUNTIF($P$5:AE$5,"Year")*$I$4 -> 30 | AF52: =0% -> 0 | AG52: 0.08 | AH52: =COUNTIF($P$5:AH$5,"Year")*$I$4 -> 35 | AI52: =0% -> 0 | AJ52: 0 | AK52: =COUNTIF($P$5:AK$5,"Year")*$I$4 -> 40 | AL52: =0% -> 0 | AM52: 0.08 | AV52: 0 | AW52: 0 | AX52: 0 | AY52: 0 | AZ52: 0 | BA52: 0 | BB52: 0 | BC52: 0 | BD52: 0 | BE52: 0 | BF52: 0 | BG52: 0 | BH52: 0 | BI52: 48 | BJ52: 16 | BK52: 320 | BL52: =INDEX('Avionics ID'!A:E,MATCH(B52,'Avionics ID'!E:E,0),3) -> Display
A53: =INDEX('Avionics ID'!A:E,MATCH(B53,'Avionics ID'!E:E,0),1) -> 753 | B53: CVR control panel | C53: 0.05 | D53: 0.08 | G53: 20 | H53: Obsolescence | I53: =SUBSTITUTE(ADDRESS(1,MATCH(A53,'Pt1-AvionicsComponentCosts'!$A$6:$NC$6,0)+1),"$1","") -> $AV | J53: =_xlfn.TEXTJOIN(", ",TRUE,_xlfn.UNIQUE(_xlfn._xlws.SORT(_xlfn._xlws.FILTER('Pt1-AvionicsComponentCosts'!$NF$12:$NF$384,ISNUMBER(INDIRECT("'Pt1-AvionicsComponentCosts'!"&I53&"$12:"&I53&"$384")))))) -> A220, A300, A320, A321, A330, A340, A350, A380, ATR, B717, B737, B747, B757, B767, B777, B787, C919, EMB Regional, MC-21, MD-11, Mil Transport, Military Jet, NSA | L53: 0.08 | M53: =IF($A$2,INDEX([1]Sheet1!$A$12:$AO$193,MATCH($A53,[1]Sheet1!$A$12:$A$193,0),8),2*$L53) -> 0.16 | N53: =INDEX([1]Sheet1!$A$12:$AO$193,MATCH($A53,[1]Sheet1!$A$12:$A$193,0),9)*(1+$A$4) -> 0.5511 | O53: =INDEX([1]Sheet1!$A$12:$AO$193,MATCH($A53,[1]Sheet1!$A$12:$A$193,0),10)*(1+$A$4) -> 1.4267 | P53: =COUNTIF($P$5:P$5,"Year")*$I$4 -> 5 | Q53: =0% -> 0 | R53: 0 | S53: =COUNTIF($P$5:S$5,"Year")*$I$4 -> 10 | T53: =0% -> 0 | U53: 0.08 | V53: =COUNTIF($P$5:V$5,"Year")*$I$4 -> 15 | W53: =0% -> 0 | X53: 0 | Y53: =COUNTIF($P$5:Y$5,"Year")*$I$4 -> 20 | Z53: =0% -> 0 | AA53: 0.08 | AB53: =COUNTIF($P$5:AB$5,"Year")*$I$4 -> 25 | AC53: =0% -> 0 | AD53: 0 | AE53: =COUNTIF($P$5:AE$5,"Year")*$I$4 -> 30 | AF53: =0% -> 0 | AG53: 0.08 | AH53: =COUNTIF($P$5:AH$5,"Year")*$I$4 -> 35 | AI53: =0% -> 0 | AJ53: 0 | AK53: =COUNTIF($P$5:AK$5,"Year")*$I$4 -> 40 | AL53: =0% -> 0 | AM53: 0.08 | AV53: 0 | AW53: 0 | AX53: 0 | AY53: 0 | AZ53: 0 | BA53: 0 | BB53: 0 | BC53: 0 | BD53: 0 | BE53: 0 | BF53: 0 | BG53: 0 | BH53: 0 | BI53: 48 | BJ53: 16 | BK53: 320 | BL53: =INDEX('Avionics ID'!A:E,MATCH(B53,'Avionics ID'!E:E,0),3) -> Communications
A54: =INDEX('Avionics ID'!A:E,MATCH(B54,'Avionics ID'!E:E,0),1) -> 714 | B54: Data Base loader | C54: 0.06666666667 | D54: 0.03 | G54: 15 | H54: Obsolescence | I54: =SUBSTITUTE(ADDRESS(1,MATCH(A54,'Pt1-AvionicsComponentCosts'!$A$6:$NC$6,0)+1),"$1","") -> $CN | J54: =_xlfn.TEXTJOIN(", ",TRUE,_xlfn.UNIQUE(_xlfn._xlws.SORT(_xlfn._xlws.FILTER('Pt1-AvionicsComponentCosts'!$NF$12:$NF$384,ISNUMBER(INDIRECT("'Pt1-AvionicsComponentCosts'!"&I54&"$12:"&I54&"$384")))))) -> A220, A300, A320, A321, A330, A340, A350, A380, ATR, B717, B737, B747, B757, B767, B777, B787, C919, EMB Regional, MC-21, MD-11, Mil Transport, Military Jet, NSA | L54: 0.03 | M54: =IF($A$2,INDEX([1]Sheet1!$A$12:$AO$193,MATCH($A54,[1]Sheet1!$A$12:$A$193,0),8),2*$L54) -> 0.06 | N54: =INDEX([1]Sheet1!$A$12:$AO$193,MATCH($A54,[1]Sheet1!$A$12:$A$193,0),9)*(1+$A$4) -> 0.7513 | O54: =INDEX([1]Sheet1!$A$12:$AO$193,MATCH($A54,[1]Sheet1!$A$12:$A$193,0),10)*(1+$A$4) -> 2.1241 | P54: =COUNTIF($P$5:P$5,"Year")*$I$4 -> 5 | Q54: =0% -> 0 | R54: 0 | S54: =COUNTIF($P$5:S$5,"Year")*$I$4 -> 10 | T54: =0% -> 0 | U54: 0.03 | V54: =COUNTIF($P$5:V$5,"Year")*$I$4 -> 15 | W54: =0% -> 0 | X54: 0.03 | Y54: =COUNTIF($P$5:Y$5,"Year")*$I$4 -> 20 | Z54: =0% -> 0 | AA54: 0.03 | AB54: =COUNTIF($P$5:AB$5,"Year")*$I$4 -> 25 | AC54: =0% -> 0 | AD54: 0 | AE54: =COUNTIF($P$5:AE$5,"Year")*$I$4 -> 30 | AF54: =0% -> 0 | AG54: 0.03 | AH54: =COUNTIF($P$5:AH$5,"Year")*$I$4 -> 35 | AI54: =0% -> 0 | AJ54: 0 | AK54: =COUNTIF($P$5:AK$5,"Year")*$I$4 -> 40 | AL54: =0% -> 0 | AM54: 0.03 | AV54: 0 | AW54: 0 | AX54: 0 | AY54: 0 | AZ54: 0 | BA54: 0 | BB54: 0 | BC54: 0 | BD54: 0 | BE54: 0 | BF54: 0 | BG54: 0 | BH54: 0 | BI54: 21 | BJ54: 6 | BK54: 120 | BL54: =INDEX('Avionics ID'!A:E,MATCH(B54,'Avionics ID'!E:E,0),3) -> Data
A55: =INDEX('Avionics ID'!A:E,MATCH(B55,'Avionics ID'!E:E,0),1) -> 771 | B55: Data Management Unit | C55: 0.05 | D55: 0.03 | G55: 20 | H55: Obsolescence | I55: =SUBSTITUTE(ADDRESS(1,MATCH(A55,'Pt1-AvionicsComponentCosts'!$A$6:$NC$6,0)+1),"$1","") -> $CP | J55: =_xlfn.TEXTJOIN(", ",TRUE,_xlfn.UNIQUE(_xlfn._xlws.SORT(_xlfn._xlws.FILTER('Pt1-AvionicsComponentCosts'!$NF$12:$NF$384,ISNUMBER(INDIRECT("'Pt1-AvionicsComponentCosts'!"&I55&"$12:"&I55&"$384")))))) -> A300, A320, A330, A340, A350, A380, B747, B767, B777, Challenger, Citation, E550, EMB Bizjet, Falcon, Global, Gulfstream, Hawker, Hondajet, Learjet, MD-11, Nextant 400XT, PC-24, Phenom, Praetor, SF50, UAV | L55: 0.03 | M55: =IF($A$2,INDEX([1]Sheet1!$A$12:$AO$193,MATCH($A55,[1]Sheet1!$A$12:$A$193,0),8),2*$L55) -> 0.06 | N55: =INDEX([1]Sheet1!$A$12:$AO$193,MATCH($A55,[1]Sheet1!$A$12:$A$193,0),9)*(1+$A$4) -> 0.7513 | O55: =INDEX([1]Sheet1!$A$12:$AO$193,MATCH($A55,[1]Sheet1!$A$12:$A$193,0),10)*(1+$A$4) -> 2.1241 | P55: =COUNTIF($P$5:P$5,"Year")*$I$4 -> 5 | Q55: =0% -> 0 | R55: 0 | S55: =COUNTIF($P$5:S$5,"Year")*$I$4 -> 10 | T55: =0% -> 0 | U55: 0.03 | V55: =COUNTIF($P$5:V$5,"Year")*$I$4 -> 15 | W55: =0% -> 0 | X55: 0 | Y55: =COUNTIF($P$5:Y$5,"Year")*$I$4 -> 20 | Z55: =0% -> 0 | AA55: 0.03 | AB55: =COUNTIF($P$5:AB$5,"Year")*$I$4 -> 25 | AC55: =0% -> 0 | AD55: 0 | AE55: =COUNTIF($P$5:AE$5,"Year")*$I$4 -> 30 | AF55: =0% -> 0 | AG55: 0.03 | AH55: =COUNTIF($P$5:AH$5,"Year")*$I$4 -> 35 | AI55: =0% -> 0 | AJ55: 0 | AK55: =COUNTIF($P$5:AK$5,"Year")*$I$4 -> 40 | AL55: =0% -> 0 | AM55: 0.03 | AV55: 0 | AW55: 0 | AX55: 0 | AY55: 0 | AZ55: 0 | BA55: 0 | BB55: 0 | BC55: 0 | BD55: 0 | BE55: 0 | BF55: 0 | BG55: 0 | BH55: 0 | BI55: 18 | BJ55: 6 | BK55: 120 | BL55: =INDEX('Avionics ID'!A:E,MATCH(B55,'Avionics ID'!E:E,0),3) -> Data
A56: =INDEX('Avionics ID'!A:E,MATCH(B56,'Avionics ID'!E:E,0),1) -> 861 | B56: Data Transfer module | C56: 0.05 | D56: 0.03 | G56: 20 | H56: Obsolescence | I56: =SUBSTITUTE(ADDRESS(1,MATCH(A56,'Pt1-AvionicsComponentCosts'!$A$6:$NC$6,0)+1),"$1","") -> $HX | J56: =_xlfn.TEXTJOIN(", ",TRUE,_xlfn.UNIQUE(_xlfn._xlws.SORT(_xlfn._xlws.FILTER('Pt1-AvionicsComponentCosts'!$NF$12:$NF$384,ISNUMBER(INDIRECT("'Pt1-AvionicsComponentCosts'!"&I56&"$12:"&I56&"$384")))))) -> Attack Helo, Helo | L56: 0.03 | M56: =IF($A$2,INDEX([1]Sheet1!$A$12:$AO$193,MATCH($A56,[1]Sheet1!$A$12:$A$193,0),8),2*$L56) -> 0.06 | N56: =INDEX([1]Sheet1!$A$12:$AO$193,MATCH($A56,[1]Sheet1!$A$12:$A$193,0),9)*(1+$A$4) -> 0.396 | O56: =INDEX([1]Sheet1!$A$12:$AO$193,MATCH($A56,[1]Sheet1!$A$12:$A$193,0),10)*(1+$A$4) -> 2.057 | P56: =COUNTIF($P$5:P$5,"Year")*$I$4 -> 5 | Q56: =0% -> 0 | R56: 0 | S56: =COUNTIF($P$5:S$5,"Year")*$I$4 -> 10 | T56: =0% -> 0 | U56: 0.03 | V56: =COUNTIF($P$5:V$5,"Year")*$I$4 -> 15 | W56: =0% -> 0 | X56: 0 | Y56: =COUNTIF($P$5:Y$5,"Year")*$I$4 -> 20 | Z56: =0% -> 0 | AA56: 0.03 | AB56: =COUNTIF($P$5:AB$5,"Year")*$I$4 -> 25 | AC56: =0% -> 0 | AD56: 0 | AE56: =COUNTIF($P$5:AE$5,"Year")*$I$4 -> 30 | AF56: =0% -> 0 | AG56: 0.03 | AH56: =COUNTIF($P$5:AH$5,"Year")*$I$4 -> 35 | AI56: =0% -> 0 | AJ56: 0 | AK56: =COUNTIF($P$5:AK$5,"Year")*$I$4 -> 40 | AL56: =0% -> 0 | AM56: 0.03 | AV56: 0 | AW56: =IF($H56="Technology / regulatory",IF(AW$5=$F56-2,$AW$1,IF(AW$5=$F56-1,$AX$1,IF(AW$5=$F56,$AY$1,IF(AW$5=$F56+1,$AZ$1,0)))),0) -> 0 | AX56: 0 | AY56: 0 | AZ56: 0 | BA56: 0 | BB56: 0 | BC56: 0 | BD56: 0 | BE56: 0 | BF56: 0 | BG56: 0 | BH56: 0 | BI56: 18 | BJ56: 6 | BK56: 120 | BL56: =INDEX('Avionics ID'!A:E,MATCH(B56,'Avionics ID'!E:E,0),3) -> Mission
A57: =INDEX('Avionics ID'!A:E,MATCH(B57,'Avionics ID'!E:E,0),1) -> 767 | B57: Datalink cockpit Display Unit | C57: 0.06666666667 | D57: 0.06 | E57: CPDLC | F57: 2028 | G57: 15 | H57: Technology / regulatory | I57: =SUBSTITUTE(ADDRESS(1,MATCH(A57,'Pt1-AvionicsComponentCosts'!$A$6:$NC$6,0)+1),"$1","") -> $ED | J57: =_xlfn.TEXTJOIN(", ",TRUE,_xlfn.UNIQUE(_xlfn._xlws.SORT(_xlfn._xlws.FILTER('Pt1-AvionicsComponentCosts'!$NF$12:$NF$384,ISNUMBER(INDIRECT("'Pt1-AvionicsComponentCosts'!"&I57&"$12:"&I57&"$384")))))) -> A300, A320, A330, A340, A350, A380, B747, B767, B777, MD-11 | L57: 0.06 | M57: =IF($A$2,INDEX([1]Sheet1!$A$12:$AO$193,MATCH($A57,[1]Sheet1!$A$12:$A$193,0),8),2*$L57) -> 0.12 | N57: =INDEX([1]Sheet1!$A$12:$AO$193,MATCH($A57,[1]Sheet1!$A$12:$A$193,0),9)*(1+$A$4) -> 0.3883 | O57: =INDEX([1]Sheet1!$A$12:$AO$193,MATCH($A57,[1]Sheet1!$A$12:$A$193,0),10)*(1+$A$4) -> 2.0306 | P57: =COUNTIF($P$5:P$5,"Year")*$I$4 -> 5 | Q57: =0% -> 0 | R57: 0 | S57: =COUNTIF($P$5:S$5,"Year")*$I$4 -> 10 | T57: =0% -> 0 | U57: 0.06 | V57: =COUNTIF($P$5:V$5,"Year")*$I$4 -> 15 | W57: =0% -> 0 | X57: 0.06 | Y57: =COUNTIF($P$5:Y$5,"Year")*$I$4 -> 20 | Z57: =0% -> 0 | AA57: 0.06 | AB57: =COUNTIF($P$5:AB$5,"Year")*$I$4 -> 25 | AC57: =0% -> 0 | AD57: 0 | AE57: =COUNTIF($P$5:AE$5,"Year")*$I$4 -> 30 | AF57: =0% -> 0 | AG57: 0.06 | AH57: =COUNTIF($P$5:AH$5,"Year")*$I$4 -> 35 | AI57: =0% -> 0 | AJ57: 0 | AK57: =COUNTIF($P$5:AK$5,"Year")*$I$4 -> 40 | AL57: =0% -> 0 | AM57: 0.06 | AU57: CPDLC | AV57: 2.0306 | AW57: 0 | AX57: 0 | AY57: 0.15 | AZ57: 0.25 | BA57: 0.45 | BB57: 0.15 | BC57: 0 | BD57: 0 | BE57: 0 | BF57: 0 | BG57: 0 | BH57: 0 | BI57: 142 | BJ57: 12 | BK57: 240 | BL57: =INDEX('Avionics ID'!A:E,MATCH(B57,'Avionics ID'!E:E,0),3) -> Display
A58: =INDEX('Avionics ID'!A:E,MATCH(B58,'Avionics ID'!E:E,0),1) -> 736 | B58: DDRMI display | C58: 0.1 | D58: 0.06 | G58: 10 | H58: Obsolescence | I58: =SUBSTITUTE(ADDRESS(1,MATCH(A58,'Pt1-AvionicsComponentCosts'!$A$6:$NC$6,0)+1),"$1","") -> $EF | J58: =_xlfn.TEXTJOIN(", ",TRUE,_xlfn.UNIQUE(_xlfn._xlws.SORT(_xlfn._xlws.FILTER('Pt1-AvionicsComponentCosts'!$NF$12:$NF$384,ISNUMBER(INDIRECT("'Pt1-AvionicsComponentCosts'!"&I58&"$12:"&I58&"$384")))))) -> A220, A320, A321, ATR, B717, B737, B757, C919, EMB Regional, MC-21, Mil Transport, Military Jet, NSA | L58: 0.06 | M58: =IF($A$2,INDEX([1]Sheet1!$A$12:$AO$193,MATCH($A58,[1]Sheet1!$A$12:$A$193,0),8),2*$L58) -> 0.12 | N58: =INDEX([1]Sheet1!$A$12:$AO$193,MATCH($A58,[1]Sheet1!$A$12:$A$193,0),9)*(1+$A$4) -> 0.3883 | O58: =INDEX([1]Sheet1!$A$12:$AO$193,MATCH($A58,[1]Sheet1!$A$12:$A$193,0),10)*(1+$A$4) -> 2.0306 | P58: =COUNTIF($P$5:P$5,"Year")*$I$4 -> 5 | Q58: =0% -> 0 | R58: 0.06 | S58: =COUNTIF($P$5:S$5,"Year")*$I$4 -> 10 | T58: =0% -> 0 | U58: 0.06 | V58: =COUNTIF($P$5:V$5,"Year")*$I$4 -> 15 | W58: =0% -> 0 | X58: 0.06 | Y58: =COUNTIF($P$5:Y$5,"Year")*$I$4 -> 20 | Z58: =0% -> 0 | AA58: 0.06 | AB58: =COUNTIF($P$5:AB$5,"Year")*$I$4 -> 25 | AC58: =0% -> 0 | AD58: 0.06 | AE58: =COUNTIF($P$5:AE$5,"Year")*$I$4 -> 30 | AF58: =0% -> 0 | AG58: 0.06 | AH58: =COUNTIF($P$5:AH$5,"Year")*$I$4 -> 35 | AI58: =0% -> 0 | AJ58: 0.06 | AK58: =COUNTIF($P$5:AK$5,"Year")*$I$4 -> 40 | AL58: =0% -> 0 | AM58: 0.06 | AV58: 0 | AW58: 0 | AX58: 0 | AY58: 0 | AZ58: 0 | BA58: 0 | BB58: 0 | BC58: 0 | BD58: 0 | BE58: 0 | BF58: 0 | BG58: 0 | BH58: 0 | BI58: 60 | BJ58: 12 | BK58: 240 | BL58: =INDEX('Avionics ID'!A:E,MATCH(B58,'Avionics ID'!E:E,0),3) -> Display
A59: =INDEX('Avionics ID'!A:E,MATCH(B59,'Avionics ID'!E:E,0),1) -> 846 | B59: Defensive Aids Computer | C59: 0.1 | D59: 0.03 | G59: 10 | H59: Obsolescence | I59: =SUBSTITUTE(ADDRESS(1,MATCH(A59,'Pt1-AvionicsComponentCosts'!$A$6:$NC$6,0)+1),"$1","") -> $HZ | J59: =_xlfn.TEXTJOIN(", ",TRUE,_xlfn.UNIQUE(_xlfn._xlws.SORT(_xlfn._xlws.FILTER('Pt1-AvionicsComponentCosts'!$NF$12:$NF$384,ISNUMBER(INDIRECT("'Pt1-AvionicsComponentCosts'!"&I59&"$12:"&I59&"$384")))))) -> A330 LMXT, A330 MRTT, Mil Transport, Military Jet, Military TP | L59: 0.03 | M59: =IF($A$2,INDEX([1]Sheet1!$A$12:$AO$193,MATCH($A59,[1]Sheet1!$A$12:$A$193,0),8),2*$L59) -> 0.06 | N59: =INDEX([1]Sheet1!$A$12:$AO$193,MATCH($A59,[1]Sheet1!$A$12:$A$193,0),9)*(1+$A$4) -> 0.396 | O59: =INDEX([1]Sheet1!$A$12:$AO$193,MATCH($A59,[1]Sheet1!$A$12:$A$193,0),10)*(1+$A$4) -> 2.057 | P59: =COUNTIF($P$5:P$5,"Year")*$I$4 -> 5 | Q59: =0% -> 0 | R59: 0.03 | S59: =COUNTIF($P$5:S$5,"Year")*$I$4 -> 10 | T59: =0% -> 0 | U59: 0.03 | V59: =COUNTIF($P$5:V$5,"Year")*$I$4 -> 15 | W59: =0% -> 0 | X59: 0.03 | Y59: =COUNTIF($P$5:Y$5,"Year")*$I$4 -> 20 | Z59: =0% -> 0 | AA59: 0.03 | AB59: =COUNTIF($P$5:AB$5,"Year")*$I$4 -> 25 | AC59: =0% -> 0 | AD59: 0.03 | AE59: =COUNTIF($P$5:AE$5,"Year")*$I$4 -> 30 | AF59: =0% -> 0 | AG59: 0.03 | AH59: =COUNTIF($P$5:AH$5,"Year")*$I$4 -> 35 | AI59: =0% -> 0 | AJ59: 0.03 | AK59: =COUNTIF($P$5:AK$5,"Year")*$I$4 -> 40 | AL59: =0% -> 0 | AM59: 0.03 | AV59: 0 | AW59: 0 | AX59: 0 | AY59: 0 | AZ59: 0 | BA59: 0 | BB59: 0 | BC59: 0 | BD59: 0 | BE59: 0 | BF59: 0 | BG59: 0 | BH59: 0 | BI59: 30 | BJ59: 6 | BK59: 120 | BL59: =INDEX('Avionics ID'!A:E,MATCH(B59,'Avionics ID'!E:E,0),3) -> Mission
A60: =INDEX('Avionics ID'!A:E,MATCH(B60,'Avionics ID'!E:E,0),1) -> 866 | B60: Defensive counter measures | C60: 0.1 | D60: 0.03 | G60: 10 | H60: Obsolescence | I60: =SUBSTITUTE(ADDRESS(1,MATCH(A60,'Pt1-AvionicsComponentCosts'!$A$6:$NC$6,0)+1),"$1","") -> $IB | J60: =_xlfn.TEXTJOIN(", ",TRUE,_xlfn.UNIQUE(_xlfn._xlws.SORT(_xlfn._xlws.FILTER('Pt1-AvionicsComponentCosts'!$NF$12:$NF$384,ISNUMBER(INDIRECT("'Pt1-AvionicsComponentCosts'!"&I60&"$12:"&I60&"$384")))))) -> A330 LMXT, A330 MRTT, Mil Transport, Military Jet, Military TP, UAV | L60: 0.03 | M60: =IF($A$2,INDEX([1]Sheet1!$A$12:$AO$193,MATCH($A60,[1]Sheet1!$A$12:$A$193,0),8),2*$L60) -> 0.06 | N60: =INDEX([1]Sheet1!$A$12:$AO$193,MATCH($A60,[1]Sheet1!$A$12:$A$193,0),9)*(1+$A$4) -> 0.396 | O60: =INDEX([1]Sheet1!$A$12:$AO$193,MATCH($A60,[1]Sheet1!$A$12:$A$193,0),10)*(1+$A$4) -> 2.057 | P60: =COUNTIF($P$5:P$5,"Year")*$I$4 -> 5 | Q60: =0% -> 0 | R60: 0.03 | S60: =COUNTIF($P$5:S$5,"Year")*$I$4 -> 10 | T60: =0% -> 0 | U60: 0.03 | V60: =COUNTIF($P$5:V$5,"Year")*$I$4 -> 15 | W60: =0% -> 0 | X60: 0.03 | Y60: =COUNTIF($P$5:Y$5,"Year")*$I$4 -> 20 | Z60: =0% -> 0 | AA60: 0.03 | AB60: =COUNTIF($P$5:AB$5,"Year")*$I$4 -> 25 | AC60: =0% -> 0 | AD60: 0.03 | AE60: =COUNTIF($P$5:AE$5,"Year")*$I$4 -> 30 | AF60: =0% -> 0 | AG60: 0.03 | AH60: =COUNTIF($P$5:AH$5,"Year")*$I$4 -> 35 | AI60: =0% -> 0 | AJ60: 0.03 | AK60: =COUNTIF($P$5:AK$5,"Year")*$I$4 -> 40 | AL60: =0% -> 0 | AM60: 0.03 | AV60: 0 | AW60: 0 | AX60: 0 | AY60: 0 | AZ60: 0 | BA60: 0 | BB60: 0 | BC60: 0 | BD60: 0 | BE60: 0 | BF60: 0 | BG60: 0 | BH60: 0 | BI60: 30 | BJ60: 6 | BK60: 120 | BL60: =INDEX('Avionics ID'!A:E,MATCH(B60,'Avionics ID'!E:E,0),3) -> Mission
A61: =INDEX('Avionics ID'!A:E,MATCH(B61,'Avionics ID'!E:E,0),1) -> 874 | B61: Differential GPS antenna | C61: 0.05 | D61: 0.1 | G61: 20 | H61: Obsolescence | I61: =SUBSTITUTE(ADDRESS(1,MATCH(A61,'Pt1-AvionicsComponentCosts'!$A$6:$NC$6,0)+1),"$1","") -> $JB | J61: =_xlfn.TEXTJOIN(", ",TRUE,_xlfn.UNIQUE(_xlfn._xlws.SORT(_xlfn._xlws.FILTER('Pt1-AvionicsComponentCosts'!$NF$12:$NF$384,ISNUMBER(INDIRECT("'Pt1-AvionicsComponentCosts'!"&I61&"$12:"&I61&"$384")))))) -> UAV | L61: 0.1 | M61: =IF($A$2,INDEX([1]Sheet1!$A$12:$AO$193,MATCH($A61,[1]Sheet1!$A$12:$A$193,0),8),2*$L61) -> 0.2 | N61: =INDEX([1]Sheet1!$A$12:$AO$193,MATCH($A61,[1]Sheet1!$A$12:$A$193,0),9)*(1+$A$4) -> 0.3894 | O61: =INDEX([1]Sheet1!$A$12:$AO$193,MATCH($A61,[1]Sheet1!$A$12:$A$193,0),10)*(1+$A$4) -> 2.0119 | P61: =COUNTIF($P$5:P$5,"Year")*$I$4 -> 5 | Q61: =0% -> 0 | R61: 0 | S61: =COUNTIF($P$5:S$5,"Year")*$I$4 -> 10 | T61: =0% -> 0 | U61: 0.1 | V61: =COUNTIF($P$5:V$5,"Year")*$I$4 -> 15 | W61: =0% -> 0 | X61: 0 | Y61: =COUNTIF($P$5:Y$5,"Year")*$I$4 -> 20 | Z61: =0% -> 0 | AA61: 0.1 | AB61: =COUNTIF($P$5:AB$5,"Year")*$I$4 -> 25 | AC61: =0% -> 0 | AD61: 0 | AE61: =COUNTIF($P$5:AE$5,"Year")*$I$4 -> 30 | AF61: =0% -> 0 | AG61: 0.1 | AH61: =COUNTIF($P$5:AH$5,"Year")*$I$4 -> 35 | AI61: =0% -> 0 | AJ61: 0 | AK61: =COUNTIF($P$5:AK$5,"Year")*$I$4 -> 40 | AL61: =0% -> 0 | AM61: 0.1 | AV61: 0 | AW61: 0 | AX61: 0 | AY61: 0 | AZ61: 0 | BA61: 0 | BB61: 0 | BC61: 0 | BD61: 0 | BE61: 0 | BF61: 0 | BG61: 0 | BH61: 0 | BI61: 60 | BJ61: 20 | BK61: 400 | BL61: =INDEX('Avionics ID'!A:E,MATCH(B61,'Avionics ID'!E:E,0),3) -> Navigation
A62: =INDEX('Avionics ID'!A:E,MATCH(B62,'Avionics ID'!E:E,0),1) -> 821 | B62: Digital Data link/transfer | C62: 0.05 | D62: 0.03 | G62: 20 | H62: Obsolescence | I62: =SUBSTITUTE(ADDRESS(1,MATCH(A62,'Pt1-AvionicsComponentCosts'!$A$6:$NC$6,0)+1),"$1","") -> $CR | J62: =_xlfn.TEXTJOIN(", ",TRUE,_xlfn.UNIQUE(_xlfn._xlws.SORT(_xlfn._xlws.FILTER('Pt1-AvionicsComponentCosts'!$NF$12:$NF$384,ISNUMBER(INDIRECT("'Pt1-AvionicsComponentCosts'!"&I62&"$12:"&I62&"$384")))))) -> Mil Fighter, TP Trainer | L62: 0.03 | M62: =IF($A$2,INDEX([1]Sheet1!$A$12:$AO$193,MATCH($A62,[1]Sheet1!$A$12:$A$193,0),8),2*$L62) -> 0.06 | N62: =INDEX([1]Sheet1!$A$12:$AO$193,MATCH($A62,[1]Sheet1!$A$12:$A$193,0),9)*(1+$A$4) -> 0.7513 | O62: =INDEX([1]Sheet1!$A$12:$AO$193,MATCH($A62,[1]Sheet1!$A$12:$A$193,0),10)*(1+$A$4) -> 2.1241 | P62: =COUNTIF($P$5:P$5,"Year")*$I$4 -> 5 | Q62: =0% -> 0 | R62: 0 | S62: =COUNTIF($P$5:S$5,"Year")*$I$4 -> 10 | T62: =0% -> 0 | U62: 0.03 | V62: =COUNTIF($P$5:V$5,"Year")*$I$4 -> 15 | W62: =0% -> 0 | X62: 0 | Y62: =COUNTIF($P$5:Y$5,"Year")*$I$4 -> 20 | Z62: =0% -> 0 | AA62: 0.03 | AB62: =COUNTIF($P$5:AB$5,"Year")*$I$4 -> 25 | AC62: =0% -> 0 | AD62: 0 | AE62: =COUNTIF($P$5:AE$5,"Year")*$I$4 -> 30 | AF62: =0% -> 0 | AG62: 0.03 | AH62: =COUNTIF($P$5:AH$5,"Year")*$I$4 -> 35 | AI62: =0% -> 0 | AJ62: 0 | AK62: =COUNTIF($P$5:AK$5,"Year")*$I$4 -> 40 | AL62: =0% -> 0 | AM62: 0.03 | AV62: 0 | AW62: 0 | AX62: 0 | AY62: 0 | AZ62: 0 | BA62: 0 | BB62: 0 | BC62: 0 | BD62: 0 | BE62: 0 | BF62: 0 | BG62: 0 | BH62: 0 | BI62: 18 | BJ62: 6 | BK62: 120 | BL62: =INDEX('Avionics ID'!A:E,MATCH(B62,'Avionics ID'!E:E,0),3) -> Data
A63: =INDEX('Avionics ID'!A:E,MATCH(B63,'Avionics ID'!E:E,0),1) -> 871 | B63: Digital recorder | C63: 0.05 | D63: 0.06 | G63: 20 | H63: Obsolescence | I63: =SUBSTITUTE(ADDRESS(1,MATCH(A63,'Pt1-AvionicsComponentCosts'!$A$6:$NC$6,0)+1),"$1","") -> $CT | J63: =_xlfn.TEXTJOIN(", ",TRUE,_xlfn.UNIQUE(_xlfn._xlws.SORT(_xlfn._xlws.FILTER('Pt1-AvionicsComponentCosts'!$NF$12:$NF$384,ISNUMBER(INDIRECT("'Pt1-AvionicsComponentCosts'!"&I63&"$12:"&I63&"$384")))))) -> UAV | L63: 0.06 | M63: =IF($A$2,INDEX([1]Sheet1!$A$12:$AO$193,MATCH($A63,[1]Sheet1!$A$12:$A$193,0),8),2*$L63) -> 0.12 | N63: =INDEX([1]Sheet1!$A$12:$AO$193,MATCH($A63,[1]Sheet1!$A$12:$A$193,0),9)*(1+$A$4) -> 0.7513 | O63: =INDEX([1]Sheet1!$A$12:$AO$193,MATCH($A63,[1]Sheet1!$A$12:$A$193,0),10)*(1+$A$4) -> 2.1241 | P63: =COUNTIF($P$5:P$5,"Year")*$I$4 -> 5 | Q63: =0% -> 0 | R63: 0 | S63: =COUNTIF($P$5:S$5,"Year")*$I$4 -> 10 | T63: =0% -> 0 | U63: 0.06 | V63: =COUNTIF($P$5:V$5,"Year")*$I$4 -> 15 | W63: =0% -> 0 | X63: 0 | Y63: =COUNTIF($P$5:Y$5,"Year")*$I$4 -> 20 | Z63: =0% -> 0 | AA63: 0.06 | AB63: =COUNTIF($P$5:AB$5,"Year")*$I$4 -> 25 | AC63: =0% -> 0 | AD63: 0 | AE63: =COUNTIF($P$5:AE$5,"Year")*$I$4 -> 30 | AF63: =0% -> 0 | AG63: 0.06 | AH63: =COUNTIF($P$5:AH$5,"Year")*$I$4 -> 35 | AI63: =0% -> 0 | AJ63: 0 | AK63: =COUNTIF($P$5:AK$5,"Year")*$I$4 -> 40 | AL63: =0% -> 0 | AM63: 0.06 | AV63: 0 | AW63: 0 | AX63: 0 | AY63: 0 | AZ63: 0 | BA63: 0 | BB63: 0 | BC63: 0 | BD63: 0 | BE63: 0 | BF63: 0 | BG63: 0 | BH63: 0 | BI63: 36 | BJ63: 12 | BK63: 240 | BL63: =INDEX('Avionics ID'!A:E,MATCH(B63,'Avionics ID'!E:E,0),3) -> Data
A64: =INDEX('Avionics ID'!A:E,MATCH(B64,'Avionics ID'!E:E,0),1) -> 809 | B64: Digital Voice & Data Recorder | C64: 0.06666666667 | D64: 0.06 | E64: CPDLC | F64: 2028 | G64: 15 | H64: Technology / regulatory | I64: =SUBSTITUTE(ADDRESS(1,MATCH(A64,'Pt1-AvionicsComponentCosts'!$A$6:$NC$6,0)+1),"$1","") -> $CV | J64: =_xlfn.TEXTJOIN(", ",TRUE,_xlfn.UNIQUE(_xlfn._xlws.SORT(_xlfn._xlws.FILTER('Pt1-AvionicsComponentCosts'!$NF$12:$NF$384,ISNUMBER(INDIRECT("'Pt1-AvionicsComponentCosts'!"&I64&"$12:"&I64&"$384")))))) -> ARJ, CRJ, EMB Regional, Reg TP, Superjet 100, Turbine GA | L64: 0.06 | M64: =IF($A$2,INDEX([1]Sheet1!$A$12:$AO$193,MATCH($A64,[1]Sheet1!$A$12:$A$193,0),8),2*$L64) -> 0.12 | N64: =INDEX([1]Sheet1!$A$12:$AO$193,MATCH($A64,[1]Sheet1!$A$12:$A$193,0),9)*(1+$A$4) -> 0.7513 | O64: =INDEX([1]Sheet1!$A$12:$AO$193,MATCH($A64,[1]Sheet1!$A$12:$A$193,0),10)*(1+$A$4) -> 2.1241 | P64: =COUNTIF($P$5:P$5,"Year")*$I$4 -> 5 | Q64: =0% -> 0 | R64: 0 | S64: =COUNTIF($P$5:S$5,"Year")*$I$4 -> 10 | T64: =0% -> 0 | U64: 0.06 | V64: =COUNTIF($P$5:V$5,"Year")*$I$4 -> 15 | W64: =0% -> 0 | X64: 0.06 | Y64: =COUNTIF($P$5:Y$5,"Year")*$I$4 -> 20 | Z64: =0% -> 0 | AA64: 0.06 | AB64: =COUNTIF($P$5:AB$5,"Year")*$I$4 -> 25 | AC64: =0% -> 0 | AD64: 0 | AE64: =COUNTIF($P$5:AE$5,"Year")*$I$4 -> 30 | AF64: =0% -> 0 | AG64: 0.06 | AH64: =COUNTIF($P$5:AH$5,"Year")*$I$4 -> 35 | AI64: =0% -> 0 | AJ64: 0 | AK64: =COUNTIF($P$5:AK$5,"Year")*$I$4 -> 40 | AL64: =0% -> 0 | AM64: 0.06 | AU64: CPDLC | AV64: 2.1241 | AW64: 0 | AX64: 0 | AY64: 0.15 | AZ64: 0.25 | BA64: 0.45 | BB64: 0.15 | BC64: 0 | BD64: 0 | BE64: 0 | BF64: 0 | BG64: 0 | BH64: 0 | BI64: 142 | BJ64: 12 | BK64: 240 | BL64: =INDEX('Avionics ID'!A:E,MATCH(B64,'Avionics ID'!E:E,0),3) -> Data
A65: =INDEX('Avionics ID'!A:E,MATCH(B65,'Avionics ID'!E:E,0),1) -> 845 | B65: Directed InfraRed Counter Measures | C65: 0.05 | D65: 0.06 | G65: 20 | H65: Obsolescence | I65: =SUBSTITUTE(ADDRESS(1,MATCH(A65,'Pt1-AvionicsComponentCosts'!$A$6:$NC$6,0)+1),"$1","") -> $ID | J65: =_xlfn.TEXTJOIN(", ",TRUE,_xlfn.UNIQUE(_xlfn._xlws.SORT(_xlfn._xlws.FILTER('Pt1-AvionicsComponentCosts'!$NF$12:$NF$384,ISNUMBER(INDIRECT("'Pt1-AvionicsComponentCosts'!"&I65&"$12:"&I65&"$384")))))) -> A330 LMXT, A330 MRTT, Mil Transport, Military Jet, Military TP | L65: 0.06 | M65: =IF($A$2,INDEX([1]Sheet1!$A$12:$AO$193,MATCH($A65,[1]Sheet1!$A$12:$A$193,0),8),2*$L65) -> 0.12 | N65: =INDEX([1]Sheet1!$A$12:$AO$193,MATCH($A65,[1]Sheet1!$A$12:$A$193,0),9)*(1+$A$4) -> 0.396 | O65: =INDEX([1]Sheet1!$A$12:$AO$193,MATCH($A65,[1]Sheet1!$A$12:$A$193,0),10)*(1+$A$4) -> 2.057 | P65: =COUNTIF($P$5:P$5,"Year")*$I$4 -> 5 | Q65: =0% -> 0 | R65: 0 | S65: =COUNTIF($P$5:S$5,"Year")*$I$4 -> 10 | T65: =0% -> 0 | U65: 0.06 | V65: =COUNTIF($P$5:V$5,"Year")*$I$4 -> 15 | W65: =0% -> 0 | X65: 0 | Y65: =COUNTIF($P$5:Y$5,"Year")*$I$4 -> 20 | Z65: =0% -> 0 | AA65: 0.06 | AB65: =COUNTIF($P$5:AB$5,"Year")*$I$4 -> 25 | AC65: =0% -> 0 | AD65: 0 | AE65: =COUNTIF($P$5:AE$5,"Year")*$I$4 -> 30 | AF65: =0% -> 0 | AG65: 0.06 | AH65: =COUNTIF($P$5:AH$5,"Year")*$I$4 -> 35 | AI65: =0% -> 0 | AJ65: 0 | AK65: =COUNTIF($P$5:AK$5,"Year")*$I$4 -> 40 | AL65: =0% -> 0 | AM65: 0.06 | AV65: 0 | AW65: 0 | AX65: 0 | AY65: 0 | AZ65: 0 | BA65: 0 | BB65: 0 | BC65: 0 | BD65: 0 | BE65: 0 | BF65: 0 | BG65: 0 | BH65: 0 | BI65: 36 | BJ65: 12 | BK65: 240 | BL65: =INDEX('Avionics ID'!A:E,MATCH(B65,'Avionics ID'!E:E,0),3) -> Mission
A66: =INDEX('Avionics ID'!A:E,MATCH(B66,'Avionics ID'!E:E,0),1) -> 802 | B66: Display Controllers | C66: 0.06666666667 | D66: 0.06 | E66: PBN | F66: 2030 | G66: 15 | H66: Technology / regulatory | I66: =SUBSTITUTE(ADDRESS(1,MATCH(A66,'Pt1-AvionicsComponentCosts'!$A$6:$NC$6,0)+1),"$1","") -> $EH | J66: =_xlfn.TEXTJOIN(", ",TRUE,_xlfn.UNIQUE(_xlfn._xlws.SORT(_xlfn._xlws.FILTER('Pt1-AvionicsComponentCosts'!$NF$12:$NF$384,ISNUMBER(INDIRECT("'Pt1-AvionicsComponentCosts'!"&I66&"$12:"&I66&"$384")))))) -> ARJ, CRJ, EMB Regional, Reg TP, Superjet 100, Turbine GA | L66: 0.06 | M66: =IF($A$2,INDEX([1]Sheet1!$A$12:$AO$193,MATCH($A66,[1]Sheet1!$A$12:$A$193,0),8),2*$L66) -> 0.12 | N66: =INDEX([1]Sheet1!$A$12:$AO$193,MATCH($A66,[1]Sheet1!$A$12:$A$193,0),9)*(1+$A$4) -> 0.3883 | O66: =INDEX([1]Sheet1!$A$12:$AO$193,MATCH($A66,[1]Sheet1!$A$12:$A$193,0),10)*(1+$A$4) -> 2.0306 | P66: =COUNTIF($P$5:P$5,"Year")*$I$4 -> 5 | Q66: =0% -> 0 | R66: 0 | S66: =COUNTIF($P$5:S$5,"Year")*$I$4 -> 10 | T66: =0% -> 0 | U66: 0.06 | V66: =COUNTIF($P$5:V$5,"Year")*$I$4 -> 15 | W66: =0% -> 0 | X66: 0.06 | Y66: =COUNTIF($P$5:Y$5,"Year")*$I$4 -> 20 | Z66: =0% -> 0 | AA66: 0.06 | AB66: =COUNTIF($P$5:AB$5,"Year")*$I$4 -> 25 | AC66: =0% -> 0 | AD66: 0 | AE66: =COUNTIF($P$5:AE$5,"Year")*$I$4 -> 30 | AF66: =0% -> 0 | AG66: 0.06 | AH66: =COUNTIF($P$5:AH$5,"Year")*$I$4 -> 35 | AI66: =0% -> 0 | AJ66: 0 | AK66: =COUNTIF($P$5:AK$5,"Year")*$I$4 -> 40 | AL66: =0% -> 0 | AM66: 0.06 | AU66: PBN | AV66: 2.0306 | AW66: =IF($H66="Technology / regulatory",IF(AW$5=$F66-2,$AW$1,IF(AW$5=$F66-1,$AX$1,IF(AW$5=$F66,$AY$1,IF(AW$5=$F66+1,$AZ$1,0)))),0) -> 0 | AX66: 0 | AY66: 0 | AZ66: 0 | BA66: 0.15 | BB66: 0.25 | BC66: 0.45 | BD66: 0.15 | BE66: 0 | BF66: 0 | BG66: 0 | BH66: 0 | BI66: 142 | BJ66: 12 | BK66: 240 | BL66: =INDEX('Avionics ID'!A:E,MATCH(B66,'Avionics ID'!E:E,0),3) -> Display
A67: =INDEX('Avionics ID'!A:E,MATCH(B67,'Avionics ID'!E:E,0),1) -> 733 | B67: Display Management Computer (DMC/EFIS) | C67: 0.06666666667 | D67: 0.06 | E67: PBN | F67: 2030 | G67: 15 | H67: Technology / regulatory | I67: =SUBSTITUTE(ADDRESS(1,MATCH(A67,'Pt1-AvionicsComponentCosts'!$A$6:$NC$6,0)+1),"$1","") -> $EJ | J67: =_xlfn.TEXTJOIN(", ",TRUE,_xlfn.UNIQUE(_xlfn._xlws.SORT(_xlfn._xlws.FILTER('Pt1-AvionicsComponentCosts'!$NF$12:$NF$384,ISNUMBER(INDIRECT("'Pt1-AvionicsComponentCosts'!"&I67&"$12:"&I67&"$384")))))) -> A220, A300, A320, A321, A330, A340, A350, A380, ATR, B717, B737, B747, B757, B767, B777, B787, C919, EMB Regional, Helo, MC-21, MD-11, Mil Transport, Military Jet, NSA, TP Trainer, Turbine GA | L67: 0.06 | M67: =IF($A$2,INDEX([1]Sheet1!$A$12:$AO$193,MATCH($A67,[1]Sheet1!$A$12:$A$193,0),8),2*$L67) -> 0.12 | N67: =INDEX([1]Sheet1!$A$12:$AO$193,MATCH($A67,[1]Sheet1!$A$12:$A$193,0),9)*(1+$A$4) -> 0.3883 | O67: =INDEX([1]Sheet1!$A$12:$AO$193,MATCH($A67,[1]Sheet1!$A$12:$A$193,0),10)*(1+$A$4) -> 2.0306 | P67: =COUNTIF($P$5:P$5,"Year")*$I$4 -> 5 | Q67: =0% -> 0 | R67: 0 | S67: =COUNTIF($P$5:S$5,"Year")*$I$4 -> 10 | T67: =0% -> 0 | U67: 0.06 | V67: =COUNTIF($P$5:V$5,"Year")*$I$4 -> 15 | W67: =0% -> 0 | X67: 0.06 | Y67: =COUNTIF($P$5:Y$5,"Year")*$I$4 -> 20 | Z67: =0% -> 0 | AA67: 0.06 | AB67: =COUNTIF($P$5:AB$5,"Year")*$I$4 -> 25 | AC67: =0% -> 0 | AD67: 0 | AE67: =COUNTIF($P$5:AE$5,"Year")*$I$4 -> 30 | AF67: =0% -> 0 | AG67: 0.06 | AH67: =COUNTIF($P$5:AH$5,"Year")*$I$4 -> 35 | AI67: =0% -> 0 | AJ67: 0 | AK67: =COUNTIF($P$5:AK$5,"Year")*$I$4 -> 40 | AL67: =0% -> 0 | AM67: 0.06 | AU67: PBN | AV67: 2.0306 | AW67: 0 | AX67: 0 | AY67: 0 | AZ67: 0 | BA67: 0.15 | BB67: 0.25 | BC67: 0.45 | BD67: 0.15 | BE67: 0 | BF67: 0 | BG67: 0 | BH67: 0 | BI67: 142 | BJ67: 12 | BK67: 240 | BL67: =INDEX('Avionics ID'!A:E,MATCH(B67,'Avionics ID'!E:E,0),3) -> Display
A68: =INDEX('Avionics ID'!A:E,MATCH(B68,'Avionics ID'!E:E,0),1) -> 812 | B68: Display processor | C68: 0.06666666667 | D68: 0.06 | G68: 15 | H68: Obsolescence | I68: =SUBSTITUTE(ADDRESS(1,MATCH(A68,'Pt1-AvionicsComponentCosts'!$A$6:$NC$6,0)+1),"$1","") -> $EL | J68: =_xlfn.TEXTJOIN(", ",TRUE,_xlfn.UNIQUE(_xlfn._xlws.SORT(_xlfn._xlws.FILTER('Pt1-AvionicsComponentCosts'!$NF$12:$NF$384,ISNUMBER(INDIRECT("'Pt1-AvionicsComponentCosts'!"&I68&"$12:"&I68&"$384")))))) -> Mil Fighter | L68: 0.06 | M68: =IF($A$2,INDEX([1]Sheet1!$A$12:$AO$193,MATCH($A68,[1]Sheet1!$A$12:$A$193,0),8),2*$L68) -> 0.12 | N68: =INDEX([1]Sheet1!$A$12:$AO$193,MATCH($A68,[1]Sheet1!$A$12:$A$193,0),9)*(1+$A$4) -> 0.3883 | O68: =INDEX([1]Sheet1!$A$12:$AO$193,MATCH($A68,[1]Sheet1!$A$12:$A$193,0),10)*(1+$A$4) -> 2.0306 | P68: =COUNTIF($P$5:P$5,"Year")*$I$4 -> 5 | Q68: =0% -> 0 | R68: 0 | S68: =COUNTIF($P$5:S$5,"Year")*$I$4 -> 10 | T68: =0% -> 0 | U68: 0.06 | V68: =COUNTIF($P$5:V$5,"Year")*$I$4 -> 15 | W68: =0% -> 0 | X68: 0.06 | Y68: =COUNTIF($P$5:Y$5,"Year")*$I$4 -> 20 | Z68: =0% -> 0 | AA68: 0.06 | AB68: =COUNTIF($P$5:AB$5,"Year")*$I$4 -> 25 | AC68: =0% -> 0 | AD68: 0 | AE68: =COUNTIF($P$5:AE$5,"Year")*$I$4 -> 30 | AF68: =0% -> 0 | AG68: 0.06 | AH68: =COUNTIF($P$5:AH$5,"Year")*$I$4 -> 35 | AI68: =0% -> 0 | AJ68: 0 | AK68: =COUNTIF($P$5:AK$5,"Year")*$I$4 -> 40 | AL68: =0% -> 0 | AM68: 0.06 | AV68: 0 | AW68: 0 | AX68: 0 | AY68: 0 | AZ68: 0 | BA68: 0 | BB68: 0 | BC68: 0 | BD68: 0 | BE68: 0 | BF68: 0 | BG68: 0 | BH68: 0 | BI68: 42 | BJ68: 12 | BK68: 240 | BL68: =INDEX('Avionics ID'!A:E,MATCH(B68,'Avionics ID'!E:E,0),3) -> Display
A69: =INDEX('Avionics ID'!A:E,MATCH(B69,'Avionics ID'!E:E,0),1) -> 798 | B69: Distributed Aperture System (electro-optical) | C69: 0.05 | D69: 0.06 | G69: 20 | H69: Obsolescence | I69: =SUBSTITUTE(ADDRESS(1,MATCH(A69,'Pt1-AvionicsComponentCosts'!$A$6:$NC$6,0)+1),"$1","") -> $KT | J69: =_xlfn.TEXTJOIN(", ",TRUE,_xlfn.UNIQUE(_xlfn._xlws.SORT(_xlfn._xlws.FILTER('Pt1-AvionicsComponentCosts'!$NF$12:$NF$384,ISNUMBER(INDIRECT("'Pt1-AvionicsComponentCosts'!"&I69&"$12:"&I69&"$384")))))) -> Attack, Stealth | L69: 0.06 | M69: =IF($A$2,INDEX([1]Sheet1!$A$12:$AO$193,MATCH($A69,[1]Sheet1!$A$12:$A$193,0),8),2*$L69) -> 0.12 | N69: =INDEX([1]Sheet1!$A$12:$AO$193,MATCH($A69,[1]Sheet1!$A$12:$A$193,0),9)*(1+$A$4) -> 0.3685 | O69: =INDEX([1]Sheet1!$A$12:$AO$193,MATCH($A69,[1]Sheet1!$A$12:$A$193,0),10)*(1+$A$4) -> 1.8513 | P69: =COUNTIF($P$5:P$5,"Year")*$I$4 -> 5 | Q69: =0% -> 0 | R69: 0 | S69: =COUNTIF($P$5:S$5,"Year")*$I$4 -> 10 | T69: =0% -> 0 | U69: 0.06 | V69: =COUNTIF($P$5:V$5,"Year")*$I$4 -> 15 | W69: =0% -> 0 | X69: 0 | Y69: =COUNTIF($P$5:Y$5,"Year")*$I$4 -> 20 | Z69: =0% -> 0 | AA69: 0.06 | AB69: =COUNTIF($P$5:AB$5,"Year")*$I$4 -> 25 | AC69: =0% -> 0 | AD69: 0 | AE69: =COUNTIF($P$5:AE$5,"Year")*$I$4 -> 30 | AF69: =0% -> 0 | AG69: 0.06 | AH69: =COUNTIF($P$5:AH$5,"Year")*$I$4 -> 35 | AI69: =0% -> 0 | AJ69: 0 | AK69: =COUNTIF($P$5:AK$5,"Year")*$I$4 -> 40 | AL69: =0% -> 0 | AM69: 0.06 | AV69: 0 | AW69: 0 | AX69: 0 | AY69: 0 | AZ69: 0 | BA69: 0 | BB69: 0 | BC69: 0 | BD69: 0 | BE69: 0 | BF69: 0 | BG69: 0 | BH69: 0 | BI69: 36 | BJ69: 12 | BK69: 240 | BL69: =INDEX('Avionics ID'!A:E,MATCH(B69,'Avionics ID'!E:E,0),3) -> Sensors
A70: =INDEX('Avionics ID'!A:E,MATCH(B70,'Avionics ID'!E:E,0),1) -> 725 | B70: DME receivers | C70: 0.04 | D70: 0.03 | G70: 25 | H70: Obsolescence | I70: =SUBSTITUTE(ADDRESS(1,MATCH(A70,'Pt1-AvionicsComponentCosts'!$A$6:$NC$6,0)+1),"$1","") -> $JD | J70: =_xlfn.TEXTJOIN(", ",TRUE,_xlfn.UNIQUE(_xlfn._xlws.SORT(_xlfn._xlws.FILTER('Pt1-AvionicsComponentCosts'!$NF$12:$NF$384,ISNUMBER(INDIRECT("'Pt1-AvionicsComponentCosts'!"&I70&"$12:"&I70&"$384")))))) -> A220, A320, A321, A350, ATR, B717, B737, B747, B757, B777, B787, C919, EMB Regional, MC-21, Mil Transport, Military Jet, NSA | L70: 0.03 | M70: =IF($A$2,INDEX([1]Sheet1!$A$12:$AO$193,MATCH($A70,[1]Sheet1!$A$12:$A$193,0),8),2*$L70) -> 0.06 | N70: =INDEX([1]Sheet1!$A$12:$AO$193,MATCH($A70,[1]Sheet1!$A$12:$A$193,0),9)*(1+$A$4) -> 0.3894 | O70: =INDEX([1]Sheet1!$A$12:$AO$193,MATCH($A70,[1]Sheet1!$A$12:$A$193,0),10)*(1+$A$4) -> 2.0119 | P70: =COUNTIF($P$5:P$5,"Year")*$I$4 -> 5 | Q70: =0% -> 0 | R70: 0 | S70: =COUNTIF($P$5:S$5,"Year")*$I$4 -> 10 | T70: =0% -> 0 | U70: 0 | V70: =COUNTIF($P$5:V$5,"Year")*$I$4 -> 15 | W70: =0% -> 0 | X70: 0.03 | Y70: =COUNTIF($P$5:Y$5,"Year")*$I$4 -> 20 | Z70: =0% -> 0 | AA70: 0 | AB70: =COUNTIF($P$5:AB$5,"Year")*$I$4 -> 25 | AC70: =0% -> 0 | AD70: 0.03 | AE70: =COUNTIF($P$5:AE$5,"Year")*$I$4 -> 30 | AF70: =0% -> 0 | AG70: 0.03 | AH70: =COUNTIF($P$5:AH$5,"Year")*$I$4 -> 35 | AI70: =0% -> 0 | AJ70: 0 | AK70: =COUNTIF($P$5:AK$5,"Year")*$I$4 -> 40 | AL70: =0% -> 0 | AM70: 0 | AV70: 0 | AW70: 0 | AX70: 0 | AY70: 0 | AZ70: 0 | BA70: 0 | BB70: 0 | BC70: 0 | BD70: 0 | BE70: 0 | BF70: 0 | BG70: 0 | BH70: 0 | BI70: 15 | BJ70: =$M70*100 -> 6 | BK70: 120 | BL70: =INDEX('Avionics ID'!A:E,MATCH(B70,'Avionics ID'!E:E,0),3) -> Navigation
A71: =INDEX('Avionics ID'!A:E,MATCH(B71,'Avionics ID'!E:E,0),1) -> 863 | B71: Dual axis dual system Auto-pilot | C71: =IFERROR(100%/G71,0) -> 0.03333333333 | D71: 0.03 | G71: 30 | H71: =IF(G71=0,"",IF(LEN(E71)>0,"Technology / regulatory","Obsolescence")) -> Obsolescence | I71: =SUBSTITUTE(ADDRESS(1,MATCH(A71,'Pt1-AvionicsComponentCosts'!$A$6:$NC$6,0)+1),"$1","") -> $L | J71: =_xlfn.TEXTJOIN(", ",TRUE,_xlfn.UNIQUE(_xlfn._xlws.SORT(_xlfn._xlws.FILTER('Pt1-AvionicsComponentCosts'!$NF$12:$NF$384,ISNUMBER(INDIRECT("'Pt1-AvionicsComponentCosts'!"&I71&"$12:"&I71&"$384")))))) -> Helo, TP Trainer, Turbine GA | L71: =IF($A$1,D71,IF(C71=0,D71,D71)) -> 0.03 | M71: =IF($A$2,INDEX([1]Sheet1!$A$12:$AO$193,MATCH($A71,[1]Sheet1!$A$12:$A$193,0),8),2*$L71) -> 0.06 | N71: =INDEX([1]Sheet1!$A$12:$AO$193,MATCH($A71,[1]Sheet1!$A$12:$A$193,0),9)*(1+$A$4) -> 0.4466 | O71: =INDEX([1]Sheet1!$A$12:$AO$193,MATCH($A71,[1]Sheet1!$A$12:$A$193,0),10)*(1+$A$4) -> 2.2847 | P71: =COUNTIF($P$5:P$5,"Year")*$I$4 -> 5 | Q71: =0% -> 0 | R71: =IF(MOD(P71,$G71)=0,$M71/2,IF(MOD(P71,MROUND($G71/2,$I$4))=0,$M71/2,0)) -> 0 | S71: =COUNTIF($P$5:S$5,"Year")*$I$4 -> 10 | T71: =0% -> 0 | U71: =IF(MOD(S71,$G71)=0,$M71/2,IF(MOD(S71,MROUND($G71/2,$I$4))=0,$M71/2,0)) -> 0 | V71: =COUNTIF($P$5:V$5,"Year")*$I$4 -> 15 | W71: =0% -> 0 | X71: =IF(MOD(V71,$G71)=0,$M71/2,IF(MOD(V71,MROUND($G71/2,$I$4))=0,$M71/2,0)) -> 0.03 | Y71: =COUNTIF($P$5:Y$5,"Year")*$I$4 -> 20 | Z71: =0% -> 0 | AA71: =IF(MOD(Y71,$G71)=0,$M71/2,IF(MOD(Y71,MROUND($G71/2,$I$4))=0,$M71/2,0)) -> 0 | AB71: =COUNTIF($P$5:AB$5,"Year")*$I$4 -> 25 | AC71: =0% -> 0 | AD71: =IF(MOD(AB71,$G71)=0,$M71/2,IF(MOD(AB71,MROUND($G71/2,$I$4))=0,$M71/2,0)) -> 0 | AE71: =COUNTIF($P$5:AE$5,"Year")*$I$4 -> 30 | AF71: =0% -> 0 | AG71: =IF(MOD(AE71,$G71)=0,$M71/2,IF(MOD(AE71,MROUND($G71/2,$I$4))=0,$M71/2,0)) -> 0.03 | AH71: =COUNTIF($P$5:AH$5,"Year")*$I$4 -> 35 | AI71: =0% -> 0 | AJ71: =IF(MOD(AH71,$G71)=0,$M71/2,IF(MOD(AH71,MROUND($G71/2,$I$4))=0,$M71/2,0)) -> 0 | AK71: =COUNTIF($P$5:AK$5,"Year")*$I$4 -> 40 | AL71: =0% -> 0 | AM71: =IF(MOD(AK71,$G71)=0,$M71/2,IF(MOD(AK71,MROUND($G71/2,$I$4))=0,$M71/2,0)) -> 0 | AU71: =IF(LEN($E71)=0,"",$E71) ->  | AV71: =IF($H71="Technology / regulatory",$O71,0) -> 0 | AW71: 0 | AX71: 0 | AY71: 0 | AZ71: 0 | BA71: 0 | BB71: 0 | BC71: 0 | BD71: 0 | BE71: 0 | BF71: 0 | BG71: 0 | BH71: 0 | BI71: =(SUM(AW71:BH71)+SUMIFS(P71:AS71,P$5:AS$5,"Exchange %")+$M71)*100 -> 12 | BJ71: 6 | BK71: =40*$L71*100 -> 120 | BL71: =INDEX('Avionics ID'!A:E,MATCH(B71,'Avionics ID'!E:E,0),3) -> Auto-pilot
A72: =INDEX('Avionics ID'!A:E,MATCH(B72,'Avionics ID'!E:E,0),1) -> 820 | B72: Dual redundant digital bus | C72: 0.05 | D72: 0.03 | G72: 20 | H72: Obsolescence | I72: =SUBSTITUTE(ADDRESS(1,MATCH(A72,'Pt1-AvionicsComponentCosts'!$A$6:$NC$6,0)+1),"$1","") -> $EN | J72: =_xlfn.TEXTJOIN(", ",TRUE,_xlfn.UNIQUE(_xlfn._xlws.SORT(_xlfn._xlws.FILTER('Pt1-AvionicsComponentCosts'!$NF$12:$NF$384,ISNUMBER(INDIRECT("'Pt1-AvionicsComponentCosts'!"&I72&"$12:"&I72&"$384")))))) -> Mil Fighter | L72: 0.03 | M72: =IF($A$2,INDEX([1]Sheet1!$A$12:$AO$193,MATCH($A72,[1]Sheet1!$A$12:$A$193,0),8),2*$L72) -> 0.06 | N72: =INDEX([1]Sheet1!$A$12:$AO$193,MATCH($A72,[1]Sheet1!$A$12:$A$193,0),9)*(1+$A$4) -> 0.3883 | O72: =INDEX([1]Sheet1!$A$12:$AO$193,MATCH($A72,[1]Sheet1!$A$12:$A$193,0),10)*(1+$A$4) -> 2.0306 | P72: =COUNTIF($P$5:P$5,"Year")*$I$4 -> 5 | Q72: =0% -> 0 | R72: 0 | S72: =COUNTIF($P$5:S$5,"Year")*$I$4 -> 10 | T72: =0% -> 0 | U72: 0.03 | V72: =COUNTIF($P$5:V$5,"Year")*$I$4 -> 15 | W72: =0% -> 0 | X72: 0 | Y72: =COUNTIF($P$5:Y$5,"Year")*$I$4 -> 20 | Z72: =0% -> 0 | AA72: 0.03 | AB72: =COUNTIF($P$5:AB$5,"Year")*$I$4 -> 25 | AC72: =0% -> 0 | AD72: 0 | AE72: =COUNTIF($P$5:AE$5,"Year")*$I$4 -> 30 | AF72: =0% -> 0 | AG72: 0.03 | AH72: =COUNTIF($P$5:AH$5,"Year")*$I$4 -> 35 | AI72: =0% -> 0 | AJ72: 0 | AK72: =COUNTIF($P$5:AK$5,"Year")*$I$4 -> 40 | AL72: =0% -> 0 | AM72: 0.03 | AV72: 0 | AW72: 0 | AX72: 0 | AY72: 0 | AZ72: 0 | BA72: 0 | BB72: 0 | BC72: 0 | BD72: 0 | BE72: 0 | BF72: 0 | BG72: 0 | BH72: 0 | BI72: 18 | BJ72: 6 | BK72: 120 | BL72: =INDEX('Avionics ID'!A:E,MATCH(B72,'Avionics ID'!E:E,0),3) -> Display
A73: =INDEX('Avionics ID'!A:E,MATCH(B73,'Avionics ID'!E:E,0),1) -> 731 | B73: ECAM Control panel | C73: 0.1 | D73: 0.03 | G73: 10 | H73: Obsolescence | I73: =SUBSTITUTE(ADDRESS(1,MATCH(A73,'Pt1-AvionicsComponentCosts'!$A$6:$NC$6,0)+1),"$1","") -> $EP | J73: =_xlfn.TEXTJOIN(", ",TRUE,_xlfn.UNIQUE(_xlfn._xlws.SORT(_xlfn._xlws.FILTER('Pt1-AvionicsComponentCosts'!$NF$12:$NF$384,ISNUMBER(INDIRECT("'Pt1-AvionicsComponentCosts'!"&I73&"$12:"&I73&"$384")))))) -> A220, A320, A321, ATR, B717, B737, B757, C919, EMB Regional, MC-21, Mil Transport, Military Jet, NSA | L73: 0.03 | M73: =IF($A$2,INDEX([1]Sheet1!$A$12:$AO$193,MATCH($A73,[1]Sheet1!$A$12:$A$193,0),8),2*$L73) -> 0.06 | N73: =INDEX([1]Sheet1!$A$12:$AO$193,MATCH($A73,[1]Sheet1!$A$12:$A$193,0),9)*(1+$A$4) -> 0.3883 | O73: =INDEX([1]Sheet1!$A$12:$AO$193,MATCH($A73,[1]Sheet1!$A$12:$A$193,0),10)*(1+$A$4) -> 2.0306 | P73: =COUNTIF($P$5:P$5,"Year")*$I$4 -> 5 | Q73: =0% -> 0 | R73: 0.03 | S73: =COUNTIF($P$5:S$5,"Year")*$I$4 -> 10 | T73: =0% -> 0 | U73: 0.03 | V73: =COUNTIF($P$5:V$5,"Year")*$I$4 -> 15 | W73: =0% -> 0 | X73: 0.03 | Y73: =COUNTIF($P$5:Y$5,"Year")*$I$4 -> 20 | Z73: =0% -> 0 | AA73: 0.03 | AB73: =COUNTIF($P$5:AB$5,"Year")*$I$4 -> 25 | AC73: =0% -> 0 | AD73: 0.03 | AE73: =COUNTIF($P$5:AE$5,"Year")*$I$4 -> 30 | AF73: =0% -> 0 | AG73: 0.03 | AH73: =COUNTIF($P$5:AH$5,"Year")*$I$4 -> 35 | AI73: =0% -> 0 | AJ73: 0.03 | AK73: =COUNTIF($P$5:AK$5,"Year")*$I$4 -> 40 | AL73: =0% -> 0 | AM73: 0.03 | AV73: 0 | AW73: 0 | AX73: 0 | AY73: 0 | AZ73: 0 | BA73: 0 | BB73: 0 | BC73: 0 | BD73: 0 | BE73: 0 | BF73: 0 | BG73: 0 | BH73: 0 | BI73: 30 | BJ73: 6 | BK73: 120 | BL73: =INDEX('Avionics ID'!A:E,MATCH(B73,'Avionics ID'!E:E,0),3) -> Display
A74: =INDEX('Avionics ID'!A:E,MATCH(B74,'Avionics ID'!E:E,0),1) -> 729 | B74: ECAM display | C74: 0.1 | D74: 0.03 | G74: 10 | H74: Obsolescence | I74: =SUBSTITUTE(ADDRESS(1,MATCH(A74,'Pt1-AvionicsComponentCosts'!$A$6:$NC$6,0)+1),"$1","") -> $ER | J74: =_xlfn.TEXTJOIN(", ",TRUE,_xlfn.UNIQUE(_xlfn._xlws.SORT(_xlfn._xlws.FILTER('Pt1-AvionicsComponentCosts'!$NF$12:$NF$384,ISNUMBER(INDIRECT("'Pt1-AvionicsComponentCosts'!"&I74&"$12:"&I74&"$384")))))) -> A220, A320, A321, ATR, B717, B737, B757, C919, EMB Regional, MC-21, Mil Transport, Military Jet, NSA | L74: 0.03 | M74: =IF($A$2,INDEX([1]Sheet1!$A$12:$AO$193,MATCH($A74,[1]Sheet1!$A$12:$A$193,0),8),2*$L74) -> 0.06 | N74: =INDEX([1]Sheet1!$A$12:$AO$193,MATCH($A74,[1]Sheet1!$A$12:$A$193,0),9)*(1+$A$4) -> 0.3883 | O74: =INDEX([1]Sheet1!$A$12:$AO$193,MATCH($A74,[1]Sheet1!$A$12:$A$193,0),10)*(1+$A$4) -> 2.0306 | P74: =COUNTIF($P$5:P$5,"Year")*$I$4 -> 5 | Q74: =0% -> 0 | R74: 0.03 | S74: =COUNTIF($P$5:S$5,"Year")*$I$4 -> 10 | T74: =0% -> 0 | U74: 0.03 | V74: =COUNTIF($P$5:V$5,"Year")*$I$4 -> 15 | W74: =0% -> 0 | X74: 0.03 | Y74: =COUNTIF($P$5:Y$5,"Year")*$I$4 -> 20 | Z74: =0% -> 0 | AA74: 0.03 | AB74: =COUNTIF($P$5:AB$5,"Year")*$I$4 -> 25 | AC74: =0% -> 0 | AD74: 0.03 | AE74: =COUNTIF($P$5:AE$5,"Year")*$I$4 -> 30 | AF74: =0% -> 0 | AG74: 0.03 | AH74: =COUNTIF($P$5:AH$5,"Year")*$I$4 -> 35 | AI74: =0% -> 0 | AJ74: 0.03 | AK74: =COUNTIF($P$5:AK$5,"Year")*$I$4 -> 40 | AL74: =0% -> 0 | AM74: 0.03 | AV74: 0 | AW74: 0 | AX74: 0 | AY74: 0 | AZ74: 0 | BA74: 0 | BB74: 0 | BC74: 0 | BD74: 0 | BE74: 0 | BF74: 0 | BG74: 0 | BH74: 0 | BI74: 30 | BJ74: 6 | BK74: 120 | BL74: =INDEX('Avionics ID'!A:E,MATCH(B74,'Avionics ID'!E:E,0),3) -> Display
A75: =INDEX('Avionics ID'!A:E,MATCH(B75,'Avionics ID'!E:E,0),1) -> 728 | B75: EFIS Control panel | C75: 0.06666666667 | D75: 0.06 | E75: PBN | F75: 2030 | G75: 15 | H75: Technology / regulatory | I75: =SUBSTITUTE(ADDRESS(1,MATCH(A75,'Pt1-AvionicsComponentCosts'!$A$6:$NC$6,0)+1),"$1","") -> $ET | J75: =_xlfn.TEXTJOIN(", ",TRUE,_xlfn.UNIQUE(_xlfn._xlws.SORT(_xlfn._xlws.FILTER('Pt1-AvionicsComponentCosts'!$NF$12:$NF$384,ISNUMBER(INDIRECT("'Pt1-AvionicsComponentCosts'!"&I75&"$12:"&I75&"$384")))))) -> A220, A300, A320, A321, A330, A340, A350, A380, ATR, B717, B737, B747, B757, B767, B777, B787, C919, EMB Regional, MC-21, MD-11, Mil Transport, Military Jet, NSA | L75: 0.06 | M75: =IF($A$2,INDEX([1]Sheet1!$A$12:$AO$193,MATCH($A75,[1]Sheet1!$A$12:$A$193,0),8),2*$L75) -> 0.12 | N75: =INDEX([1]Sheet1!$A$12:$AO$193,MATCH($A75,[1]Sheet1!$A$12:$A$193,0),9)*(1+$A$4) -> 0.3883 | O75: =INDEX([1]Sheet1!$A$12:$AO$193,MATCH($A75,[1]Sheet1!$A$12:$A$193,0),10)*(1+$A$4) -> 2.0306 | P75: =COUNTIF($P$5:P$5,"Year")*$I$4 -> 5 | Q75: =0% -> 0 | R75: 0 | S75: =COUNTIF($P$5:S$5,"Year")*$I$4 -> 10 | T75: =0% -> 0 | U75: 0.06 | V75: =COUNTIF($P$5:V$5,"Year")*$I$4 -> 15 | W75: =0% -> 0 | X75: 0.06 | Y75: =COUNTIF($P$5:Y$5,"Year")*$I$4 -> 20 | Z75: =0% -> 0 | AA75: 0.06 | AB75: =COUNTIF($P$5:AB$5,"Year")*$I$4 -> 25 | AC75: =0% -> 0 | AD75: 0 | AE75: =COUNTIF($P$5:AE$5,"Year")*$I$4 -> 30 | AF75: =0% -> 0 | AG75: 0.06 | AH75: =COUNTIF($P$5:AH$5,"Year")*$I$4 -> 35 | AI75: =0% -> 0 | AJ75: 0 | AK75: =COUNTIF($P$5:AK$5,"Year")*$I$4 -> 40 | AL75: =0% -> 0 | AM75: 0.06 | AU75: PBN | AV75: 2.0306 | AW75: 0 | AX75: 0 | AY75: 0 | AZ75: 0 | BA75: 0.15 | BB75: 0.25 | BC75: 0.45 | BD75: 0.15 | BE75: 0 | BF75: 0 | BG75: 0 | BH75: 0 | BI75: 142 | BJ75: 12 | BK75: 240 | BL75: =INDEX('Avionics ID'!A:E,MATCH(B75,'Avionics ID'!E:E,0),3) -> Display
A76: =INDEX('Avionics ID'!A:E,MATCH(B76,'Avionics ID'!E:E,0),1) -> 827 | B76: EICAS Controller panel | C76: 0.1 | D76: 0.08 | G76: 10 | H76: Obsolescence | I76: =SUBSTITUTE(ADDRESS(1,MATCH(A76,'Pt1-AvionicsComponentCosts'!$A$6:$NC$6,0)+1),"$1","") -> $EV | J76: =_xlfn.TEXTJOIN(", ",TRUE,_xlfn.UNIQUE(_xlfn._xlws.SORT(_xlfn._xlws.FILTER('Pt1-AvionicsComponentCosts'!$NF$12:$NF$384,ISNUMBER(INDIRECT("'Pt1-AvionicsComponentCosts'!"&I76&"$12:"&I76&"$384")))))) -> Challenger, Citation, E550, EMB Bizjet, Falcon, Global, Gulfstream, Hawker, Hondajet, Learjet, Nextant 400XT, PC-24, Phenom, Praetor, SF50 | L76: 0.08 | M76: =IF($A$2,INDEX([1]Sheet1!$A$12:$AO$193,MATCH($A76,[1]Sheet1!$A$12:$A$193,0),8),2*$L76) -> 0.16 | N76: =INDEX([1]Sheet1!$A$12:$AO$193,MATCH($A76,[1]Sheet1!$A$12:$A$193,0),9)*(1+$A$4) -> 0.3883 | O76: =INDEX([1]Sheet1!$A$12:$AO$193,MATCH($A76,[1]Sheet1!$A$12:$A$193,0),10)*(1+$A$4) -> 2.0306 | P76: =COUNTIF($P$5:P$5,"Year")*$I$4 -> 5 | Q76: =0% -> 0 | R76: 0.08 | S76: =COUNTIF($P$5:S$5,"Year")*$I$4 -> 10 | T76: =0% -> 0 | U76: 0.08 | V76: =COUNTIF($P$5:V$5,"Year")*$I$4 -> 15 | W76: =0% -> 0 | X76: 0.08 | Y76: =COUNTIF($P$5:Y$5,"Year")*$I$4 -> 20 | Z76: =0% -> 0 | AA76: 0.08 | AB76: =COUNTIF($P$5:AB$5,"Year")*$I$4 -> 25 | AC76: =0% -> 0 | AD76: 0.08 | AE76: =COUNTIF($P$5:AE$5,"Year")*$I$4 -> 30 | AF76: =0% -> 0 | AG76: 0.08 | AH76: =COUNTIF($P$5:AH$5,"Year")*$I$4 -> 35 | AI76: =0% -> 0 | AJ76: 0.08 | AK76: =COUNTIF($P$5:AK$5,"Year")*$I$4 -> 40 | AL76: =0% -> 0 | AM76: 0.08 | AV76: 0 | AW76: =IF($H76="Technology / regulatory",IF(AW$5=$F76-2,$AW$1,IF(AW$5=$F76-1,$AX$1,IF(AW$5=$F76,$AY$1,IF(AW$5=$F76+1,$AZ$1,0)))),0) -> 0 | AX76: 0 | AY76: 0 | AZ76: 0 | BA76: 0 | BB76: 0 | BC76: 0 | BD76: 0 | BE76: 0 | BF76: 0 | BG76: 0 | BH76: 0 | BI76: 80 | BJ76: 16 | BK76: 320 | BL76: =INDEX('Avionics ID'!A:E,MATCH(B76,'Avionics ID'!E:E,0),3) -> Display
A77: =INDEX('Avionics ID'!A:E,MATCH(B77,'Avionics ID'!E:E,0),1) -> 766 | B77: EICAS Crew alerting System | C77: 0.1 | D77: 0.06 | G77: 10 | H77: Obsolescence | I77: =SUBSTITUTE(ADDRESS(1,MATCH(A77,'Pt1-AvionicsComponentCosts'!$A$6:$NC$6,0)+1),"$1","") -> $EX | J77: =_xlfn.TEXTJOIN(", ",TRUE,_xlfn.UNIQUE(_xlfn._xlws.SORT(_xlfn._xlws.FILTER('Pt1-AvionicsComponentCosts'!$NF$12:$NF$384,ISNUMBER(INDIRECT("'Pt1-AvionicsComponentCosts'!"&I77&"$12:"&I77&"$384")))))) -> A300, A320, A330, A340, A350, A380, B747, B767, B777, B787, MD-11 | L77: 0.06 | M77: =IF($A$2,INDEX([1]Sheet1!$A$12:$AO$193,MATCH($A77,[1]Sheet1!$A$12:$A$193,0),8),2*$L77) -> 0.12 | N77: =INDEX([1]Sheet1!$A$12:$AO$193,MATCH($A77,[1]Sheet1!$A$12:$A$193,0),9)*(1+$A$4) -> 0.3883 | O77: =INDEX([1]Sheet1!$A$12:$AO$193,MATCH($A77,[1]Sheet1!$A$12:$A$193,0),10)*(1+$A$4) -> 2.0306 | P77: =COUNTIF($P$5:P$5,"Year")*$I$4 -> 5 | Q77: =0% -> 0 | R77: 0.06 | S77: =COUNTIF($P$5:S$5,"Year")*$I$4 -> 10 | T77: =0% -> 0 | U77: 0.06 | V77: =COUNTIF($P$5:V$5,"Year")*$I$4 -> 15 | W77: =0% -> 0 | X77: 0.06 | Y77: =COUNTIF($P$5:Y$5,"Year")*$I$4 -> 20 | Z77: =0% -> 0 | AA77: 0.06 | AB77: =COUNTIF($P$5:AB$5,"Year")*$I$4 -> 25 | AC77: =0% -> 0 | AD77: 0.06 | AE77: =COUNTIF($P$5:AE$5,"Year")*$I$4 -> 30 | AF77: =0% -> 0 | AG77: 0.06 | AH77: =COUNTIF($P$5:AH$5,"Year")*$I$4 -> 35 | AI77: =0% -> 0 | AJ77: 0.06 | AK77: =COUNTIF($P$5:AK$5,"Year")*$I$4 -> 40 | AL77: =0% -> 0 | AM77: 0.06 | AV77: 0 | AW77: 0 | AX77: 0 | AY77: 0 | AZ77: 0 | BA77: 0 | BB77: 0 | BC77: 0 | BD77: 0 | BE77: 0 | BF77: 0 | BG77: 0 | BH77: 0 | BI77: 60 | BJ77: 12 | BK77: 240 | BL77: =INDEX('Avionics ID'!A:E,MATCH(B77,'Avionics ID'!E:E,0),3) -> Display
A78: =INDEX('Avionics ID'!A:E,MATCH(B78,'Avionics ID'!E:E,0),1) -> 792 | B78: Electro Optical Targeting System (FLIR & IRST) | C78: 0.05 | D78: 0.03 | G78: 20 | H78: Obsolescence | I78: =SUBSTITUTE(ADDRESS(1,MATCH(A78,'Pt1-AvionicsComponentCosts'!$A$6:$NC$6,0)+1),"$1","") -> $KV | J78: =_xlfn.TEXTJOIN(", ",TRUE,_xlfn.UNIQUE(_xlfn._xlws.SORT(_xlfn._xlws.FILTER('Pt1-AvionicsComponentCosts'!$NF$12:$NF$384,ISNUMBER(INDIRECT("'Pt1-AvionicsComponentCosts'!"&I78&"$12:"&I78&"$384")))))) -> Attack, Stealth | L78: 0.03 | M78: =IF($A$2,INDEX([1]Sheet1!$A$12:$AO$193,MATCH($A78,[1]Sheet1!$A$12:$A$193,0),8),2*$L78) -> 0.06 | N78: =INDEX([1]Sheet1!$A$12:$AO$193,MATCH($A78,[1]Sheet1!$A$12:$A$193,0),9)*(1+$A$4) -> 0.3685 | O78: =INDEX([1]Sheet1!$A$12:$AO$193,MATCH($A78,[1]Sheet1!$A$12:$A$193,0),10)*(1+$A$4) -> 1.8513 | P78: =COUNTIF($P$5:P$5,"Year")*$I$4 -> 5 | Q78: =0% -> 0 | R78: 0 | S78: =COUNTIF($P$5:S$5,"Year")*$I$4 -> 10 | T78: =0% -> 0 | U78: 0.03 | V78: =COUNTIF($P$5:V$5,"Year")*$I$4 -> 15 | W78: =0% -> 0 | X78: 0 | Y78: =COUNTIF($P$5:Y$5,"Year")*$I$4 -> 20 | Z78: =0% -> 0 | AA78: 0.03 | AB78: =COUNTIF($P$5:AB$5,"Year")*$I$4 -> 25 | AC78: =0% -> 0 | AD78: 0 | AE78: =COUNTIF($P$5:AE$5,"Year")*$I$4 -> 30 | AF78: =0% -> 0 | AG78: 0.03 | AH78: =COUNTIF($P$5:AH$5,"Year")*$I$4 -> 35 | AI78: =0% -> 0 | AJ78: 0 | AK78: =COUNTIF($P$5:AK$5,"Year")*$I$4 -> 40 | AL78: =0% -> 0 | AM78: 0.03 | AV78: 0 | AW78: 0 | AX78: 0 | AY78: 0 | AZ78: 0 | BA78: 0 | BB78: 0 | BC78: 0 | BD78: 0 | BE78: 0 | BF78: 0 | BG78: 0 | BH78: 0 | BI78: 18 | BJ78: 6 | BK78: 120 | BL78: =INDEX('Avionics ID'!A:E,MATCH(B78,'Avionics ID'!E:E,0),3) -> Sensors
A79: =INDEX('Avionics ID'!A:E,MATCH(B79,'Avionics ID'!E:E,0),1) -> 759 | B79: Electronic Flight Bags (EFBs) | C79: 0.06666666667 | D79: 0.06 | E79: PBN | F79: 2030 | G79: 15 | H79: Technology / regulatory | I79: =SUBSTITUTE(ADDRESS(1,MATCH(A79,'Pt1-AvionicsComponentCosts'!$A$6:$NC$6,0)+1),"$1","") -> $CX | J79: =_xlfn.TEXTJOIN(", ",TRUE,_xlfn.UNIQUE(_xlfn._xlws.SORT(_xlfn._xlws.FILTER('Pt1-AvionicsComponentCosts'!$NF$12:$NF$384,ISNUMBER(INDIRECT("'Pt1-AvionicsComponentCosts'!"&I79&"$12:"&I79&"$384")))))) -> A220, A300, A320, A321, A330, A340, A350, A380, ARJ, ATR, B717, B737, B747, B757, B767, B777, B787, C919, CRJ, EMB Regional, MC-21, MD-11, Mil Transport, Military Jet, NSA, Reg TP, Superjet 100, Turbine GA | L79: 0.06 | M79: =IF($A$2,INDEX([1]Sheet1!$A$12:$AO$193,MATCH($A79,[1]Sheet1!$A$12:$A$193,0),8),2*$L79) -> 0.12 | N79: =INDEX([1]Sheet1!$A$12:$AO$193,MATCH($A79,[1]Sheet1!$A$12:$A$193,0),9)*(1+$A$4) -> 0.7513 | O79: =INDEX([1]Sheet1!$A$12:$AO$193,MATCH($A79,[1]Sheet1!$A$12:$A$193,0),10)*(1+$A$4) -> 2.1241 | P79: =COUNTIF($P$5:P$5,"Year")*$I$4 -> 5 | Q79: =0% -> 0 | R79: 0 | S79: =COUNTIF($P$5:S$5,"Year")*$I$4 -> 10 | T79: =0% -> 0 | U79: 0.06 | V79: =COUNTIF($P$5:V$5,"Year")*$I$4 -> 15 | W79: =0% -> 0 | X79: 0.06 | Y79: =COUNTIF($P$5:Y$5,"Year")*$I$4 -> 20 | Z79: =0% -> 0 | AA79: 0.06 | AB79: =COUNTIF($P$5:AB$5,"Year")*$I$4 -> 25 | AC79: =0% -> 0 | AD79: 0 | AE79: =COUNTIF($P$5:AE$5,"Year")*$I$4 -> 30 | AF79: =0% -> 0 | AG79: 0.06 | AH79: =COUNTIF($P$5:AH$5,"Year")*$I$4 -> 35 | AI79: =0% -> 0 | AJ79: 0 | AK79: =COUNTIF($P$5:AK$5,"Year")*$I$4 -> 40 | AL79: =0% -> 0 | AM79: 0.06 | AU79: PBN | AV79: 2.1241 | AW79: 0 | AX79: 0 | AY79: 0 | AZ79: 0 | BA79: 0.15 | BB79: 0.25 | BC79: 0.45 | BD79: 0.15 | BE79: 0 | BF79: 0 | BG79: 0 | BH79: 0 | BI79: 142 | BJ79: 12 | BK79: 240 | BL79: =INDEX('Avionics ID'!A:E,MATCH(B79,'Avionics ID'!E:E,0),3) -> Data
A80: =INDEX('Avionics ID'!A:E,MATCH(B80,'Avionics ID'!E:E,0),1) -> 856 | B80: Electronic Interferometer Frequency Radar Supports target acquisition systems | C80: 0.05 | D80: 0.06 | G80: 20 | H80: Obsolescence | I80: =SUBSTITUTE(ADDRESS(1,MATCH(A80,'Pt1-AvionicsComponentCosts'!$A$6:$NC$6,0)+1),"$1","") -> $KX | J80: =_xlfn.TEXTJOIN(", ",TRUE,_xlfn.UNIQUE(_xlfn._xlws.SORT(_xlfn._xlws.FILTER('Pt1-AvionicsComponentCosts'!$NF$12:$NF$384,ISNUMBER(INDIRECT("'Pt1-AvionicsComponentCosts'!"&I80&"$12:"&I80&"$384")))))) -> Attack Helo, Helo | L80: 0.06 | M80: =IF($A$2,INDEX([1]Sheet1!$A$12:$AO$193,MATCH($A80,[1]Sheet1!$A$12:$A$193,0),8),2*$L80) -> 0.12 | N80: =INDEX([1]Sheet1!$A$12:$AO$193,MATCH($A80,[1]Sheet1!$A$12:$A$193,0),9)*(1+$A$4) -> 0.3685 | O80: =INDEX([1]Sheet1!$A$12:$AO$193,MATCH($A80,[1]Sheet1!$A$12:$A$193,0),10)*(1+$A$4) -> 1.8513 | P80: =COUNTIF($P$5:P$5,"Year")*$I$4 -> 5 | Q80: =0% -> 0 | R80: 0 | S80: =COUNTIF($P$5:S$5,"Year")*$I$4 -> 10 | T80: =0% -> 0 | U80: 0.06 | V80: =COUNTIF($P$5:V$5,"Year")*$I$4 -> 15 | W80: =0% -> 0 | X80: 0 | Y80: =COUNTIF($P$5:Y$5,"Year")*$I$4 -> 20 | Z80: =0% -> 0 | AA80: 0.06 | AB80: =COUNTIF($P$5:AB$5,"Year")*$I$4 -> 25 | AC80: =0% -> 0 | AD80: 0 | AE80: =COUNTIF($P$5:AE$5,"Year")*$I$4 -> 30 | AF80: =0% -> 0 | AG80: 0.06 | AH80: =COUNTIF($P$5:AH$5,"Year")*$I$4 -> 35 | AI80: =0% -> 0 | AJ80: 0 | AK80: =COUNTIF($P$5:AK$5,"Year")*$I$4 -> 40 | AL80: =0% -> 0 | AM80: 0.06 | AV80: 0 | AW80: 0 | AX80: 0 | AY80: 0 | AZ80: 0 | BA80: 0 | BB80: 0 | BC80: 0 | BD80: 0 | BE80: 0 | BF80: 0 | BG80: 0 | BH80: 0 | BI80: 36 | BJ80: 12 | BK80: 240 | BL80: =INDEX('Avionics ID'!A:E,MATCH(B80,'Avionics ID'!E:E,0),3) -> Sensors
A81: =INDEX('Avionics ID'!A:E,MATCH(B81,'Avionics ID'!E:E,0),1) -> 788 | B81: Electronic Warfare suite AN/ASQ-239 (evasion, engagement, jamming, c/measures) | C81: 0.05 | D81: 0.06 | G81: 20 | H81: Obsolescence | I81: =SUBSTITUTE(ADDRESS(1,MATCH(A81,'Pt1-AvionicsComponentCosts'!$A$6:$NC$6,0)+1),"$1","") -> $MH | J81: =_xlfn.TEXTJOIN(", ",TRUE,_xlfn.UNIQUE(_xlfn._xlws.SORT(_xlfn._xlws.FILTER('Pt1-AvionicsComponentCosts'!$NF$12:$NF$384,ISNUMBER(INDIRECT("'Pt1-AvionicsComponentCosts'!"&I81&"$12:"&I81&"$384")))))) -> Attack, Stealth | L81: 0.06 | M81: =IF($A$2,INDEX([1]Sheet1!$A$12:$AO$193,MATCH($A81,[1]Sheet1!$A$12:$A$193,0),8),2*$L81) -> 0.12 | N81: =INDEX([1]Sheet1!$A$12:$AO$193,MATCH($A81,[1]Sheet1!$A$12:$A$193,0),9)*(1+$A$4) -> 0.4928 | O81: =INDEX([1]Sheet1!$A$12:$AO$193,MATCH($A81,[1]Sheet1!$A$12:$A$193,0),10)*(1+$A$4) -> 1.4278 | P81: =COUNTIF($P$5:P$5,"Year")*$I$4 -> 5 | Q81: =0% -> 0 | R81: 0 | S81: =COUNTIF($P$5:S$5,"Year")*$I$4 -> 10 | T81: =0% -> 0 | U81: 0.06 | V81: =COUNTIF($P$5:V$5,"Year")*$I$4 -> 15 | W81: =0% -> 0 | X81: 0 | Y81: =COUNTIF($P$5:Y$5,"Year")*$I$4 -> 20 | Z81: =0% -> 0 | AA81: 0.06 | AB81: =COUNTIF($P$5:AB$5,"Year")*$I$4 -> 25 | AC81: =0% -> 0 | AD81: 0 | AE81: =COUNTIF($P$5:AE$5,"Year")*$I$4 -> 30 | AF81: =0% -> 0 | AG81: 0.06 | AH81: =COUNTIF($P$5:AH$5,"Year")*$I$4 -> 35 | AI81: =0% -> 0 | AJ81: 0 | AK81: =COUNTIF($P$5:AK$5,"Year")*$I$4 -> 40 | AL81: =0% -> 0 | AM81: 0.06 | AV81: 0 | AW81: 0 | AX81: 0 | AY81: 0 | AZ81: 0 | BA81: 0 | BB81: 0 | BC81: 0 | BD81: 0 | BE81: 0 | BF81: 0 | BG81: 0 | BH81: 0 | BI81: 36 | BJ81: 12 | BK81: 240 | BL81: =INDEX('Avionics ID'!A:E,MATCH(B81,'Avionics ID'!E:E,0),3) -> Surveillance
A82: =INDEX('Avionics ID'!A:E,MATCH(B82,'Avionics ID'!E:E,0),1) -> 867 | B82: Electro-optical reconnaissance sesnor | C82: 0.05 | D82: 0.06 | G82: 20 | H82: Obsolescence | I82: =SUBSTITUTE(ADDRESS(1,MATCH(A82,'Pt1-AvionicsComponentCosts'!$A$6:$NC$6,0)+1),"$1","") -> $MF | J82: =_xlfn.TEXTJOIN(", ",TRUE,_xlfn.UNIQUE(_xlfn._xlws.SORT(_xlfn._xlws.FILTER('Pt1-AvionicsComponentCosts'!$NF$12:$NF$384,ISNUMBER(INDIRECT("'Pt1-AvionicsComponentCosts'!"&I82&"$12:"&I82&"$384")))))) -> UAV | L82: 0.06 | M82: =IF($A$2,INDEX([1]Sheet1!$A$12:$AO$193,MATCH($A82,[1]Sheet1!$A$12:$A$193,0),8),2*$L82) -> 0.12 | N82: =INDEX([1]Sheet1!$A$12:$AO$193,MATCH($A82,[1]Sheet1!$A$12:$A$193,0),9)*(1+$A$4) -> 0.4928 | O82: =INDEX([1]Sheet1!$A$12:$AO$193,MATCH($A82,[1]Sheet1!$A$12:$A$193,0),10)*(1+$A$4) -> 1.4278 | P82: =COUNTIF($P$5:P$5,"Year")*$I$4 -> 5 | Q82: =0% -> 0 | R82: 0 | S82: =COUNTIF($P$5:S$5,"Year")*$I$4 -> 10 | T82: =0% -> 0 | U82: 0.06 | V82: =COUNTIF($P$5:V$5,"Year")*$I$4 -> 15 | W82: =0% -> 0 | X82: 0 | Y82: =COUNTIF($P$5:Y$5,"Year")*$I$4 -> 20 | Z82: =0% -> 0 | AA82: 0.06 | AB82: =COUNTIF($P$5:AB$5,"Year")*$I$4 -> 25 | AC82: =0% -> 0 | AD82: 0 | AE82: =COUNTIF($P$5:AE$5,"Year")*$I$4 -> 30 | AF82: =0% -> 0 | AG82: 0.06 | AH82: =COUNTIF($P$5:AH$5,"Year")*$I$4 -> 35 | AI82: =0% -> 0 | AJ82: 0 | AK82: =COUNTIF($P$5:AK$5,"Year")*$I$4 -> 40 | AL82: =0% -> 0 | AM82: 0.06 | AV82: 0 | AW82: 0 | AX82: 0 | AY82: 0 | AZ82: 0 | BA82: 0 | BB82: 0 | BC82: 0 | BD82: 0 | BE82: 0 | BF82: 0 | BG82: 0 | BH82: 0 | BI82: 36 | BJ82: 12 | BK82: 240 | BL82: =INDEX('Avionics ID'!A:E,MATCH(B82,'Avionics ID'!E:E,0),3) -> Surveillance
A83: =INDEX('Avionics ID'!A:E,MATCH(B83,'Avionics ID'!E:E,0),1) -> 848 | B83: Embedded GPS/INS | C83: 0.05 | D83: 0.03 | G83: 20 | H83: Obsolescence | I83: =SUBSTITUTE(ADDRESS(1,MATCH(A83,'Pt1-AvionicsComponentCosts'!$A$6:$NC$6,0)+1),"$1","") -> $JF | J83: =_xlfn.TEXTJOIN(", ",TRUE,_xlfn.UNIQUE(_xlfn._xlws.SORT(_xlfn._xlws.FILTER('Pt1-AvionicsComponentCosts'!$NF$12:$NF$384,ISNUMBER(INDIRECT("'Pt1-AvionicsComponentCosts'!"&I83&"$12:"&I83&"$384")))))) -> Attack Helo, Helo, TP Trainer, Turbine GA, UAV | L83: 0.03 | M83: =IF($A$2,INDEX([1]Sheet1!$A$12:$AO$193,MATCH($A83,[1]Sheet1!$A$12:$A$193,0),8),2*$L83) -> 0.06 | N83: =INDEX([1]Sheet1!$A$12:$AO$193,MATCH($A83,[1]Sheet1!$A$12:$A$193,0),9)*(1+$A$4) -> 0.3894 | O83: =INDEX([1]Sheet1!$A$12:$AO$193,MATCH($A83,[1]Sheet1!$A$12:$A$193,0),10)*(1+$A$4) -> 2.0119 | P83: =COUNTIF($P$5:P$5,"Year")*$I$4 -> 5 | Q83: =0% -> 0 | R83: 0 | S83: =COUNTIF($P$5:S$5,"Year")*$I$4 -> 10 | T83: =0% -> 0 | U83: 0.03 | V83: =COUNTIF($P$5:V$5,"Year")*$I$4 -> 15 | W83: =0% -> 0 | X83: 0 | Y83: =COUNTIF($P$5:Y$5,"Year")*$I$4 -> 20 | Z83: =0% -> 0 | AA83: 0.03 | AB83: =COUNTIF($P$5:AB$5,"Year")*$I$4 -> 25 | AC83: =0% -> 0 | AD83: 0 | AE83: =COUNTIF($P$5:AE$5,"Year")*$I$4 -> 30 | AF83: =0% -> 0 | AG83: 0.03 | AH83: =COUNTIF($P$5:AH$5,"Year")*$I$4 -> 35 | AI83: =0% -> 0 | AJ83: 0 | AK83: =COUNTIF($P$5:AK$5,"Year")*$I$4 -> 40 | AL83: =0% -> 0 | AM83: 0.03 | AV83: 0 | AW83: 0 | AX83: 0 | AY83: 0 | AZ83: 0 | BA83: 0 | BB83: 0 | BC83: 0 | BD83: 0 | BE83: 0 | BF83: 0 | BG83: 0 | BH83: 0 | BI83: 18 | BJ83: 6 | BK83: 120 | BL83: =INDEX('Avionics ID'!A:E,MATCH(B83,'Avionics ID'!E:E,0),3) -> Navigation
A84: =INDEX('Avionics ID'!A:E,MATCH(B84,'Avionics ID'!E:E,0),1) -> 847 | B84: Engine/fuel/ displays | C84: 0.05 | D84: 0.06 | G84: 20 | H84: Obsolescence | I84: =SUBSTITUTE(ADDRESS(1,MATCH(A84,'Pt1-AvionicsComponentCosts'!$A$6:$NC$6,0)+1),"$1","") -> $EZ | J84: =_xlfn.TEXTJOIN(", ",TRUE,_xlfn.UNIQUE(_xlfn._xlws.SORT(_xlfn._xlws.FILTER('Pt1-AvionicsComponentCosts'!$NF$12:$NF$384,ISNUMBER(INDIRECT("'Pt1-AvionicsComponentCosts'!"&I84&"$12:"&I84&"$384")))))) -> Attack Helo, Helo, TP Trainer, Turbine GA | L84: 0.06 | M84: =IF($A$2,INDEX([1]Sheet1!$A$12:$AO$193,MATCH($A84,[1]Sheet1!$A$12:$A$193,0),8),2*$L84) -> 0.12 | N84: =INDEX([1]Sheet1!$A$12:$AO$193,MATCH($A84,[1]Sheet1!$A$12:$A$193,0),9)*(1+$A$4) -> 0.3883 | O84: =INDEX([1]Sheet1!$A$12:$AO$193,MATCH($A84,[1]Sheet1!$A$12:$A$193,0),10)*(1+$A$4) -> 2.0306 | P84: =COUNTIF($P$5:P$5,"Year")*$I$4 -> 5 | Q84: =0% -> 0 | R84: 0 | S84: =COUNTIF($P$5:S$5,"Year")*$I$4 -> 10 | T84: =0% -> 0 | U84: 0.06 | V84: =COUNTIF($P$5:V$5,"Year")*$I$4 -> 15 | W84: =0% -> 0 | X84: 0 | Y84: =COUNTIF($P$5:Y$5,"Year")*$I$4 -> 20 | Z84: =0% -> 0 | AA84: 0.06 | AB84: =COUNTIF($P$5:AB$5,"Year")*$I$4 -> 25 | AC84: =0% -> 0 | AD84: 0 | AE84: =COUNTIF($P$5:AE$5,"Year")*$I$4 -> 30 | AF84: =0% -> 0 | AG84: 0.06 | AH84: =COUNTIF($P$5:AH$5,"Year")*$I$4 -> 35 | AI84: =0% -> 0 | AJ84: 0 | AK84: =COUNTIF($P$5:AK$5,"Year")*$I$4 -> 40 | AL84: =0% -> 0 | AM84: 0.06 | AV84: 0 | AW84: 0 | AX84: 0 | AY84: 0 | AZ84: 0 | BA84: 0 | BB84: 0 | BC84: 0 | BD84: 0 | BE84: 0 | BF84: 0 | BG84: 0 | BH84: 0 | BI84: 36 | BJ84: 12 | BK84: 240 | BL84: =INDEX('Avionics ID'!A:E,MATCH(B84,'Avionics ID'!E:E,0),3) -> Display
A85: =INDEX('Avionics ID'!A:E,MATCH(B85,'Avionics ID'!E:E,0),1) -> 869 | B85: Enhanced Integrated Sensor Suite | C85: 0.05 | D85: 0.06 | G85: 20 | H85: Obsolescence | I85: =SUBSTITUTE(ADDRESS(1,MATCH(A85,'Pt1-AvionicsComponentCosts'!$A$6:$NC$6,0)+1),"$1","") -> $KZ | J85: =_xlfn.TEXTJOIN(", ",TRUE,_xlfn.UNIQUE(_xlfn._xlws.SORT(_xlfn._xlws.FILTER('Pt1-AvionicsComponentCosts'!$NF$12:$NF$384,ISNUMBER(INDIRECT("'Pt1-AvionicsComponentCosts'!"&I85&"$12:"&I85&"$384")))))) -> UAV | L85: 0.06 | M85: =IF($A$2,INDEX([1]Sheet1!$A$12:$AO$193,MATCH($A85,[1]Sheet1!$A$12:$A$193,0),8),2*$L85) -> 0.12 | N85: =INDEX([1]Sheet1!$A$12:$AO$193,MATCH($A85,[1]Sheet1!$A$12:$A$193,0),9)*(1+$A$4) -> 0.3685 | O85: =INDEX([1]Sheet1!$A$12:$AO$193,MATCH($A85,[1]Sheet1!$A$12:$A$193,0),10)*(1+$A$4) -> 1.8513 | P85: =COUNTIF($P$5:P$5,"Year")*$I$4 -> 5 | Q85: =0% -> 0 | R85: 0 | S85: =COUNTIF($P$5:S$5,"Year")*$I$4 -> 10 | T85: =0% -> 0 | U85: 0.06 | V85: =COUNTIF($P$5:V$5,"Year")*$I$4 -> 15 | W85: =0% -> 0 | X85: 0 | Y85: =COUNTIF($P$5:Y$5,"Year")*$I$4 -> 20 | Z85: =0% -> 0 | AA85: 0.06 | AB85: =COUNTIF($P$5:AB$5,"Year")*$I$4 -> 25 | AC85: =0% -> 0 | AD85: 0 | AE85: =COUNTIF($P$5:AE$5,"Year")*$I$4 -> 30 | AF85: =0% -> 0 | AG85: 0.06 | AH85: =COUNTIF($P$5:AH$5,"Year")*$I$4 -> 35 | AI85: =0% -> 0 | AJ85: 0 | AK85: =COUNTIF($P$5:AK$5,"Year")*$I$4 -> 40 | AL85: =0% -> 0 | AM85: 0.06 | AV85: 0 | AW85: 0 | AX85: 0 | AY85: 0 | AZ85: 0 | BA85: 0 | BB85: 0 | BC85: 0 | BD85: 0 | BE85: 0 | BF85: 0 | BG85: 0 | BH85: 0 | BI85: 36 | BJ85: 12 | BK85: 240 | BL85: =INDEX('Avionics ID'!A:E,MATCH(B85,'Avionics ID'!E:E,0),3) -> Sensors
A86: =INDEX('Avionics ID'!A:E,MATCH(B86,'Avionics ID'!E:E,0),1) -> 885 | B86: Enhanced Vision system | C86: 0.05 | D86: 0.08 | G86: 20 | H86: Obsolescence | I86: =SUBSTITUTE(ADDRESS(1,MATCH(A86,'Pt1-AvionicsComponentCosts'!$A$6:$NC$6,0)+1),"$1","") -> $MJ | J86: =_xlfn.TEXTJOIN(", ",TRUE,_xlfn.UNIQUE(_xlfn._xlws.SORT(_xlfn._xlws.FILTER('Pt1-AvionicsComponentCosts'!$NF$12:$NF$384,ISNUMBER(INDIRECT("'Pt1-AvionicsComponentCosts'!"&I86&"$12:"&I86&"$384")))))) -> Attack, Attack Helo, Helo, Stealth | L86: 0.08 | M86: =IF($A$2,INDEX([1]Sheet1!$A$12:$AO$193,MATCH($A86,[1]Sheet1!$A$12:$A$193,0),8),2*$L86) -> 0.16 | N86: =INDEX([1]Sheet1!$A$12:$AO$193,MATCH($A86,[1]Sheet1!$A$12:$A$193,0),9)*(1+$A$4) -> 0.4928 | O86: =INDEX([1]Sheet1!$A$12:$AO$193,MATCH($A86,[1]Sheet1!$A$12:$A$193,0),10)*(1+$A$4) -> 1.4278 | P86: =COUNTIF($P$5:P$5,"Year")*$I$4 -> 5 | Q86: =0% -> 0 | R86: 0 | S86: =COUNTIF($P$5:S$5,"Year")*$I$4 -> 10 | T86: =0% -> 0 | U86: 0.08 | V86: =COUNTIF($P$5:V$5,"Year")*$I$4 -> 15 | W86: =0% -> 0 | X86: 0 | Y86: =COUNTIF($P$5:Y$5,"Year")*$I$4 -> 20 | Z86: =0% -> 0 | AA86: 0.08 | AB86: =COUNTIF($P$5:AB$5,"Year")*$I$4 -> 25 | AC86: =0% -> 0 | AD86: 0 | AE86: =COUNTIF($P$5:AE$5,"Year")*$I$4 -> 30 | AF86: =0% -> 0 | AG86: 0.08 | AH86: =COUNTIF($P$5:AH$5,"Year")*$I$4 -> 35 | AI86: =0% -> 0 | AJ86: 0 | AK86: =COUNTIF($P$5:AK$5,"Year")*$I$4 -> 40 | AL86: =0% -> 0 | AM86: 0.08 | AV86: 0 | AW86: =IF($H86="Technology / regulatory",IF(AW$5=$F86-2,$AW$1,IF(AW$5=$F86-1,$AX$1,IF(AW$5=$F86,$AY$1,IF(AW$5=$F86+1,$AZ$1,0)))),0) -> 0 | AX86: 0 | AY86: 0 | AZ86: 0 | BA86: 0 | BB86: 0 | BC86: 0 | BD86: 0 | BE86: 0 | BF86: 0 | BG86: 0 | BH86: 0 | BI86: 48 | BJ86: 16 | BK86: 320 | BL86: =INDEX('Avionics ID'!A:E,MATCH(B86,'Avionics ID'!E:E,0),3) -> Surveillance
A87: =INDEX('Avionics ID'!A:E,MATCH(B87,'Avionics ID'!E:E,0),1) -> 711 | B87: FCU | C87: 0.03333333333 | D87: 0.03 | G87: 30 | H87: Obsolescence | I87: =SUBSTITUTE(ADDRESS(1,MATCH(A87,'Pt1-AvionicsComponentCosts'!$A$6:$NC$6,0)+1),"$1","") -> $GH | J87: =_xlfn.TEXTJOIN(", ",TRUE,_xlfn.UNIQUE(_xlfn._xlws.SORT(_xlfn._xlws.FILTER('Pt1-AvionicsComponentCosts'!$NF$12:$NF$384,ISNUMBER(INDIRECT("'Pt1-AvionicsComponentCosts'!"&I87&"$12:"&I87&"$384")))))) -> A220, A320, A321, ATR, B717, B737, B757, C919, EMB Regional, MC-21, Mil Transport, Military Jet, NSA | L87: 0.03 | M87: =IF($A$2,INDEX([1]Sheet1!$A$12:$AO$193,MATCH($A87,[1]Sheet1!$A$12:$A$193,0),8),2*$L87) -> 0.06 | N87: =INDEX([1]Sheet1!$A$12:$AO$193,MATCH($A87,[1]Sheet1!$A$12:$A$193,0),9)*(1+$A$4) -> 0.4081 | O87: =INDEX([1]Sheet1!$A$12:$AO$193,MATCH($A87,[1]Sheet1!$A$12:$A$193,0),10)*(1+$A$4) -> 1.3541 | P87: =COUNTIF($P$5:P$5,"Year")*$I$4 -> 5 | Q87: =0% -> 0 | R87: 0 | S87: =COUNTIF($P$5:S$5,"Year")*$I$4 -> 10 | T87: =0% -> 0 | U87: 0 | V87: =COUNTIF($P$5:V$5,"Year")*$I$4 -> 15 | W87: =0% -> 0 | X87: 0.03 | Y87: =COUNTIF($P$5:Y$5,"Year")*$I$4 -> 20 | Z87: =0% -> 0 | AA87: 0 | AB87: =COUNTIF($P$5:AB$5,"Year")*$I$4 -> 25 | AC87: =0% -> 0 | AD87: 0 | AE87: =COUNTIF($P$5:AE$5,"Year")*$I$4 -> 30 | AF87: =0% -> 0 | AG87: 0.03 | AH87: =COUNTIF($P$5:AH$5,"Year")*$I$4 -> 35 | AI87: =0% -> 0 | AJ87: 0 | AK87: =COUNTIF($P$5:AK$5,"Year")*$I$4 -> 40 | AL87: =0% -> 0 | AM87: 0 | AV87: 0 | AW87: 0 | AX87: 0 | AY87: 0 | AZ87: 0 | BA87: 0 | BB87: 0 | BC87: 0 | BD87: 0 | BE87: 0 | BF87: 0 | BG87: 0 | BH87: 0 | BI87: 12 | BJ87: 6 | BK87: 120 | BL87: =INDEX('Avionics ID'!A:E,MATCH(B87,'Avionics ID'!E:E,0),3) -> FMS
A88: =INDEX('Avionics ID'!A:E,MATCH(B88,'Avionics ID'!E:E,0),1) -> 755 | B88: FD Interface Unit | C88: 0.03333333333 | D88: 0.06 | G88: 30 | H88: Obsolescence | I88: =SUBSTITUTE(ADDRESS(1,MATCH(A88,'Pt1-AvionicsComponentCosts'!$A$6:$NC$6,0)+1),"$1","") -> $CZ | J88: =_xlfn.TEXTJOIN(", ",TRUE,_xlfn.UNIQUE(_xlfn._xlws.SORT(_xlfn._xlws.FILTER('Pt1-AvionicsComponentCosts'!$NF$12:$NF$384,ISNUMBER(INDIRECT("'Pt1-AvionicsComponentCosts'!"&I88&"$12:"&I88&"$384")))))) -> A220, A320, A321, A350, ATR, B717, B737, B747, B757, B777, B787, C919, EMB Regional, MC-21, Mil Transport, Military Jet, NSA | L88: 0.06 | M88: =IF($A$2,INDEX([1]Sheet1!$A$12:$AO$193,MATCH($A88,[1]Sheet1!$A$12:$A$193,0),8),2*$L88) -> 0.12 | N88: =INDEX([1]Sheet1!$A$12:$AO$193,MATCH($A88,[1]Sheet1!$A$12:$A$193,0),9)*(1+$A$4) -> 0.7513 | O88: =INDEX([1]Sheet1!$A$12:$AO$193,MATCH($A88,[1]Sheet1!$A$12:$A$193,0),10)*(1+$A$4) -> 2.1241 | P88: =COUNTIF($P$5:P$5,"Year")*$I$4 -> 5 | Q88: =0% -> 0 | R88: 0 | S88: =COUNTIF($P$5:S$5,"Year")*$I$4 -> 10 | T88: =0% -> 0 | U88: 0 | V88: =COUNTIF($P$5:V$5,"Year")*$I$4 -> 15 | W88: =0% -> 0 | X88: 0.06 | Y88: =COUNTIF($P$5:Y$5,"Year")*$I$4 -> 20 | Z88: =0% -> 0 | AA88: 0 | AB88: =COUNTIF($P$5:AB$5,"Year")*$I$4 -> 25 | AC88: =0% -> 0 | AD88: 0 | AE88: =COUNTIF($P$5:AE$5,"Year")*$I$4 -> 30 | AF88: =0% -> 0 | AG88: 0.06 | AH88: =COUNTIF($P$5:AH$5,"Year")*$I$4 -> 35 | AI88: =0% -> 0 | AJ88: 0 | AK88: =COUNTIF($P$5:AK$5,"Year")*$I$4 -> 40 | AL88: =0% -> 0 | AM88: 0 | AV88: 0 | AW88: 0 | AX88: 0 | AY88: 0 | AZ88: 0 | BA88: 0 | BB88: 0 | BC88: 0 | BD88: 0 | BE88: 0 | BF88: 0 | BG88: 0 | BH88: 0 | BI88: 24 | BJ88: 12 | BK88: 240 | BL88: =INDEX('Avionics ID'!A:E,MATCH(B88,'Avionics ID'!E:E,0),3) -> Data
A89: =INDEX('Avionics ID'!A:E,MATCH(B89,'Avionics ID'!E:E,0),1) -> 712 | B89: Flight Augmentation Computers | C89: 0.03333333333 | D89: 0.06 | G89: 30 | H89: Obsolescence | I89: =SUBSTITUTE(ADDRESS(1,MATCH(A89,'Pt1-AvionicsComponentCosts'!$A$6:$NC$6,0)+1),"$1","") -> $GJ | J89: =_xlfn.TEXTJOIN(", ",TRUE,_xlfn.UNIQUE(_xlfn._xlws.SORT(_xlfn._xlws.FILTER('Pt1-AvionicsComponentCosts'!$NF$12:$NF$384,ISNUMBER(INDIRECT("'Pt1-AvionicsComponentCosts'!"&I89&"$12:"&I89&"$384")))))) -> A220, A320, A321, ATR, B717, B737, B757, C919, EMB Regional, MC-21, Mil Transport, Military Jet, NSA | L89: 0.06 | M89: =IF($A$2,INDEX([1]Sheet1!$A$12:$AO$193,MATCH($A89,[1]Sheet1!$A$12:$A$193,0),8),2*$L89) -> 0.12 | N89: =INDEX([1]Sheet1!$A$12:$AO$193,MATCH($A89,[1]Sheet1!$A$12:$A$193,0),9)*(1+$A$4) -> 0.4081 | O89: =INDEX([1]Sheet1!$A$12:$AO$193,MATCH($A89,[1]Sheet1!$A$12:$A$193,0),10)*(1+$A$4) -> 1.3541 | P89: =COUNTIF($P$5:P$5,"Year")*$I$4 -> 5 | Q89: =0% -> 0 | R89: 0 | S89: =COUNTIF($P$5:S$5,"Year")*$I$4 -> 10 | T89: =0% -> 0 | U89: 0 | V89: =COUNTIF($P$5:V$5,"Year")*$I$4 -> 15 | W89: =0% -> 0 | X89: 0.06 | Y89: =COUNTIF($P$5:Y$5,"Year")*$I$4 -> 20 | Z89: =0% -> 0 | AA89: 0 | AB89: =COUNTIF($P$5:AB$5,"Year")*$I$4 -> 25 | AC89: =0% -> 0 | AD89: 0 | AE89: =COUNTIF($P$5:AE$5,"Year")*$I$4 -> 30 | AF89: =0% -> 0 | AG89: 0.06 | AH89: =COUNTIF($P$5:AH$5,"Year")*$I$4 -> 35 | AI89: =0% -> 0 | AJ89: 0 | AK89: =COUNTIF($P$5:AK$5,"Year")*$I$4 -> 40 | AL89: =0% -> 0 | AM89: 0 | AV89: 0 | AW89: 0 | AX89: 0 | AY89: 0 | AZ89: 0 | BA89: 0 | BB89: 0 | BC89: 0 | BD89: 0 | BE89: 0 | BF89: 0 | BG89: 0 | BH89: 0 | BI89: 24 | BJ89: 12 | BK89: 240 | BL89: =INDEX('Avionics ID'!A:E,MATCH(B89,'Avionics ID'!E:E,0),3) -> FMS
A90: =INDEX('Avionics ID'!A:E,MATCH(B90,'Avionics ID'!E:E,0),1) -> 715 | B90: Flight Control Unit (FCU) panel | C90: 0.1 | D90: 0.08 | G90: 10 | H90: Obsolescence | I90: =SUBSTITUTE(ADDRESS(1,MATCH(A90,'Pt1-AvionicsComponentCosts'!$A$6:$NC$6,0)+1),"$1","") -> $GL | J90: =_xlfn.TEXTJOIN(", ",TRUE,_xlfn.UNIQUE(_xlfn._xlws.SORT(_xlfn._xlws.FILTER('Pt1-AvionicsComponentCosts'!$NF$12:$NF$384,ISNUMBER(INDIRECT("'Pt1-AvionicsComponentCosts'!"&I90&"$12:"&I90&"$384")))))) -> A220, A320, A321, ATR, B717, B737, B757, C919, EMB Regional, MC-21, Mil Transport, Military Jet, NSA | L90: 0.08 | M90: =IF($A$2,INDEX([1]Sheet1!$A$12:$AO$193,MATCH($A90,[1]Sheet1!$A$12:$A$193,0),8),2*$L90) -> 0.16 | N90: =INDEX([1]Sheet1!$A$12:$AO$193,MATCH($A90,[1]Sheet1!$A$12:$A$193,0),9)*(1+$A$4) -> 0.4081 | O90: =INDEX([1]Sheet1!$A$12:$AO$193,MATCH($A90,[1]Sheet1!$A$12:$A$193,0),10)*(1+$A$4) -> 1.3541 | P90: =COUNTIF($P$5:P$5,"Year")*$I$4 -> 5 | Q90: =0% -> 0 | R90: 0.08 | S90: =COUNTIF($P$5:S$5,"Year")*$I$4 -> 10 | T90: =0% -> 0 | U90: 0.08 | V90: =COUNTIF($P$5:V$5,"Year")*$I$4 -> 15 | W90: =0% -> 0 | X90: 0.08 | Y90: =COUNTIF($P$5:Y$5,"Year")*$I$4 -> 20 | Z90: =0% -> 0 | AA90: 0.08 | AB90: =COUNTIF($P$5:AB$5,"Year")*$I$4 -> 25 | AC90: =0% -> 0 | AD90: 0.08 | AE90: =COUNTIF($P$5:AE$5,"Year")*$I$4 -> 30 | AF90: =0% -> 0 | AG90: 0.08 | AH90: =COUNTIF($P$5:AH$5,"Year")*$I$4 -> 35 | AI90: =0% -> 0 | AJ90: 0.08 | AK90: =COUNTIF($P$5:AK$5,"Year")*$I$4 -> 40 | AL90: =0% -> 0 | AM90: 0.08 | AV90: 0 | AW90: 0 | AX90: 0 | AY90: 0 | AZ90: 0 | BA90: 0 | BB90: 0 | BC90: 0 | BD90: 0 | BE90: 0 | BF90: 0 | BG90: 0 | BH90: 0 | BI90: 80 | BJ90: 16 | BK90: 320 | BL90: =INDEX('Avionics ID'!A:E,MATCH(B90,'Avionics ID'!E:E,0),3) -> FMS
A91: =INDEX('Avionics ID'!A:E,MATCH(B91,'Avionics ID'!E:E,0),1) -> 754 | B91: Flight Data Recorder | C91: 0.06666666667 | D91: 0.06 | E91: CPDLC | F91: 2028 | G91: 15 | H91: Technology / regulatory | I91: =SUBSTITUTE(ADDRESS(1,MATCH(A91,'Pt1-AvionicsComponentCosts'!$A$6:$NC$6,0)+1),"$1","") -> $DB | J91: =_xlfn.TEXTJOIN(", ",TRUE,_xlfn.UNIQUE(_xlfn._xlws.SORT(_xlfn._xlws.FILTER('Pt1-AvionicsComponentCosts'!$NF$12:$NF$384,ISNUMBER(INDIRECT("'Pt1-AvionicsComponentCosts'!"&I91&"$12:"&I91&"$384")))))) -> A220, A300, A320, A321, A330, A340, A350, A380, ATR, B717, B737, B747, B757, B767, B777, B787, C919, Challenger, Citation, E550, EMB Bizjet, EMB Regional, Falcon, Global, Gulfstream, Hawker, Hondajet, Learjet, MC-21, MD-11, Mil Transport, Military Jet, Nextant 400XT, NSA, PC-24, Phenom, Praetor, SF50 | L91: 0.06 | M91: =IF($A$2,INDEX([1]Sheet1!$A$12:$AO$193,MATCH($A91,[1]Sheet1!$A$12:$A$193,0),8),2*$L91) -> 0.12 | N91: =INDEX([1]Sheet1!$A$12:$AO$193,MATCH($A91,[1]Sheet1!$A$12:$A$193,0),9)*(1+$A$4) -> 0.7513 | O91: =INDEX([1]Sheet1!$A$12:$AO$193,MATCH($A91,[1]Sheet1!$A$12:$A$193,0),10)*(1+$A$4) -> 2.1241 | P91: =COUNTIF($P$5:P$5,"Year")*$I$4 -> 5 | Q91: =0% -> 0 | R91: 0 | S91: =COUNTIF($P$5:S$5,"Year")*$I$4 -> 10 | T91: =0% -> 0 | U91: 0.06 | V91: =COUNTIF($P$5:V$5,"Year")*$I$4 -> 15 | W91: =0% -> 0 | X91: 0.06 | Y91: =COUNTIF($P$5:Y$5,"Year")*$I$4 -> 20 | Z91: =0% -> 0 | AA91: 0.06 | AB91: =COUNTIF($P$5:AB$5,"Year")*$I$4 -> 25 | AC91: =0% -> 0 | AD91: 0 | AE91: =COUNTIF($P$5:AE$5,"Year")*$I$4 -> 30 | AF91: =0% -> 0 | AG91: 0.06 | AH91: =COUNTIF($P$5:AH$5,"Year")*$I$4 -> 35 | AI91: =0% -> 0 | AJ91: 0 | AK91: =COUNTIF($P$5:AK$5,"Year")*$I$4 -> 40 | AL91: =0% -> 0 | AM91: 0.06 | AU91: CPDLC | AV91: 2.1241 | AW91: 0 | AX91: 0 | AY91: 0.15 | AZ91: 0.25 | BA91: 0.45 | BB91: 0.15 | BC91: 0 | BD91: 0 | BE91: 0 | BF91: 0 | BG91: 0 | BH91: 0 | BI91: 142 | BJ91: 12 | BK91: 240 | BL91: =INDEX('Avionics ID'!A:E,MATCH(B91,'Avionics ID'!E:E,0),3) -> Data
A92: =INDEX('Avionics ID'!A:E,MATCH(B92,'Avionics ID'!E:E,0),1) -> 804 | B92: Flight Guidance System (A/Pilot) | C92: 0.1 | D92: 0.06 | G92: 10 | H92: Obsolescence | I92: =SUBSTITUTE(ADDRESS(1,MATCH(A92,'Pt1-AvionicsComponentCosts'!$A$6:$NC$6,0)+1),"$1","") -> $N | J92: =_xlfn.TEXTJOIN(", ",TRUE,_xlfn.UNIQUE(_xlfn._xlws.SORT(_xlfn._xlws.FILTER('Pt1-AvionicsComponentCosts'!$NF$12:$NF$384,ISNUMBER(INDIRECT("'Pt1-AvionicsComponentCosts'!"&I92&"$12:"&I92&"$384")))))) -> A350, ARJ, B747, B777, B787, Challenger, Citation, CRJ, E550, EMB Bizjet, EMB Regional, Falcon, Global, Gulfstream, Hawker, Hondajet, Learjet, Nextant 400XT, PC-24, Phenom, Praetor, Reg TP, SF50, Superjet 100, Turbine GA | L92: 0.06 | M92: =IF($A$2,INDEX([1]Sheet1!$A$12:$AO$193,MATCH($A92,[1]Sheet1!$A$12:$A$193,0),8),2*$L92) -> 0.12 | N92: =INDEX([1]Sheet1!$A$12:$AO$193,MATCH($A92,[1]Sheet1!$A$12:$A$193,0),9)*(1+$A$4) -> 0.4466 | O92: =INDEX([1]Sheet1!$A$12:$AO$193,MATCH($A92,[1]Sheet1!$A$12:$A$193,0),10)*(1+$A$4) -> 2.2847 | P92: =COUNTIF($P$5:P$5,"Year")*$I$4 -> 5 | Q92: =0% -> 0 | R92: 0.06 | S92: =COUNTIF($P$5:S$5,"Year")*$I$4 -> 10 | T92: =0% -> 0 | U92: 0.06 | V92: =COUNTIF($P$5:V$5,"Year")*$I$4 -> 15 | W92: =0% -> 0 | X92: 0.06 | Y92: =COUNTIF($P$5:Y$5,"Year")*$I$4 -> 20 | Z92: =0% -> 0 | AA92: 0.06 | AB92: =COUNTIF($P$5:AB$5,"Year")*$I$4 -> 25 | AC92: =0% -> 0 | AD92: 0.06 | AE92: =COUNTIF($P$5:AE$5,"Year")*$I$4 -> 30 | AF92: =0% -> 0 | AG92: 0.06 | AH92: =COUNTIF($P$5:AH$5,"Year")*$I$4 -> 35 | AI92: =0% -> 0 | AJ92: 0.06 | AK92: =COUNTIF($P$5:AK$5,"Year")*$I$4 -> 40 | AL92: =0% -> 0 | AM92: 0.06 | AV92: 0 | AW92: 0 | AX92: 0 | AY92: 0 | AZ92: 0 | BA92: 0 | BB92: 0 | BC92: 0 | BD92: 0 | BE92: 0 | BF92: 0 | BG92: 0 | BH92: 0 | BI92: 60 | BJ92: 12 | BK92: 240 | BL92: =INDEX('Avionics ID'!A:E,MATCH(B92,'Avionics ID'!E:E,0),3) -> Auto-pilot
A93: =INDEX('Avionics ID'!A:E,MATCH(B93,'Avionics ID'!E:E,0),1) -> 835 | B93: Flight Management System | C93: 0.06666666667 | D93: 0.06 | E93: CPDLC | F93: 2028 | G93: 15 | H93: Technology / regulatory | I93: =SUBSTITUTE(ADDRESS(1,MATCH(A93,'Pt1-AvionicsComponentCosts'!$A$6:$NC$6,0)+1),"$1","") -> $GN | J93: =_xlfn.TEXTJOIN(", ",TRUE,_xlfn.UNIQUE(_xlfn._xlws.SORT(_xlfn._xlws.FILTER('Pt1-AvionicsComponentCosts'!$NF$12:$NF$384,ISNUMBER(INDIRECT("'Pt1-AvionicsComponentCosts'!"&I93&"$12:"&I93&"$384")))))) -> A330 LMXT, A330 MRTT, Mil Transport, Military Jet, Military TP | L93: 0.06 | M93: =IF($A$2,INDEX([1]Sheet1!$A$12:$AO$193,MATCH($A93,[1]Sheet1!$A$12:$A$193,0),8),2*$L93) -> 0.12 | N93: =INDEX([1]Sheet1!$A$12:$AO$193,MATCH($A93,[1]Sheet1!$A$12:$A$193,0),9)*(1+$A$4) -> 0.4081 | O93: =INDEX([1]Sheet1!$A$12:$AO$193,MATCH($A93,[1]Sheet1!$A$12:$A$193,0),10)*(1+$A$4) -> 1.3541 | P93: =COUNTIF($P$5:P$5,"Year")*$I$4 -> 5 | Q93: =0% -> 0 | R93: 0 | S93: =COUNTIF($P$5:S$5,"Year")*$I$4 -> 10 | T93: =0% -> 0 | U93: 0.06 | V93: =COUNTIF($P$5:V$5,"Year")*$I$4 -> 15 | W93: =0% -> 0 | X93: 0.06 | Y93: =COUNTIF($P$5:Y$5,"Year")*$I$4 -> 20 | Z93: =0% -> 0 | AA93: 0.06 | AB93: =COUNTIF($P$5:AB$5,"Year")*$I$4 -> 25 | AC93: =0% -> 0 | AD93: 0 | AE93: =COUNTIF($P$5:AE$5,"Year")*$I$4 -> 30 | AF93: =0% -> 0 | AG93: 0.06 | AH93: =COUNTIF($P$5:AH$5,"Year")*$I$4 -> 35 | AI93: =0% -> 0 | AJ93: 0 | AK93: =COUNTIF($P$5:AK$5,"Year")*$I$4 -> 40 | AL93: =0% -> 0 | AM93: 0.06 | AU93: CPDLC | AV93: 1.3541 | AW93: 0 | AX93: 0 | AY93: 0.15 | AZ93: 0.25 | BA93: 0.45 | BB93: 0.15 | BC93: 0 | BD93: 0 | BE93: 0 | BF93: 0 | BG93: 0 | BH93: 0 | BI93: 142 | BJ93: 12 | BK93: 240 | BL93: =INDEX('Avionics ID'!A:E,MATCH(B93,'Avionics ID'!E:E,0),3) -> FMS
A94: =INDEX('Avionics ID'!A:E,MATCH(B94,'Avionics ID'!E:E,0),1) -> 716 | B94: Flight Warning Computer (FWC) | C94: 0.1 | D94: 0.06 | G94: 10 | H94: Obsolescence | I94: =SUBSTITUTE(ADDRESS(1,MATCH(A94,'Pt1-AvionicsComponentCosts'!$A$6:$NC$6,0)+1),"$1","") -> $GP | J94: =_xlfn.TEXTJOIN(", ",TRUE,_xlfn.UNIQUE(_xlfn._xlws.SORT(_xlfn._xlws.FILTER('Pt1-AvionicsComponentCosts'!$NF$12:$NF$384,ISNUMBER(INDIRECT("'Pt1-AvionicsComponentCosts'!"&I94&"$12:"&I94&"$384")))))) -> A220, A300, A320, A321, A330, A340, A350, A380, ATR, B717, B737, B747, B757, B767, B777, C919, EMB Regional, MC-21, MD-11, Mil Transport, Military Jet, NSA | L94: 0.06 | M94: =IF($A$2,INDEX([1]Sheet1!$A$12:$AO$193,MATCH($A94,[1]Sheet1!$A$12:$A$193,0),8),2*$L94) -> 0.12 | N94: =INDEX([1]Sheet1!$A$12:$AO$193,MATCH($A94,[1]Sheet1!$A$12:$A$193,0),9)*(1+$A$4) -> 0.4081 | O94: =INDEX([1]Sheet1!$A$12:$AO$193,MATCH($A94,[1]Sheet1!$A$12:$A$193,0),10)*(1+$A$4) -> 1.3541 | P94: =COUNTIF($P$5:P$5,"Year")*$I$4 -> 5 | Q94: =0% -> 0 | R94: 0.06 | S94: =COUNTIF($P$5:S$5,"Year")*$I$4 -> 10 | T94: =0% -> 0 | U94: 0.06 | V94: =COUNTIF($P$5:V$5,"Year")*$I$4 -> 15 | W94: =0% -> 0 | X94: 0.06 | Y94: =COUNTIF($P$5:Y$5,"Year")*$I$4 -> 20 | Z94: =0% -> 0 | AA94: 0.06 | AB94: =COUNTIF($P$5:AB$5,"Year")*$I$4 -> 25 | AC94: =0% -> 0 | AD94: 0.06 | AE94: =COUNTIF($P$5:AE$5,"Year")*$I$4 -> 30 | AF94: =0% -> 0 | AG94: 0.06 | AH94: =COUNTIF($P$5:AH$5,"Year")*$I$4 -> 35 | AI94: =0% -> 0 | AJ94: 0.06 | AK94: =COUNTIF($P$5:AK$5,"Year")*$I$4 -> 40 | AL94: =0% -> 0 | AM94: 0.06 | AV94: 0 | AW94: 0 | AX94: 0 | AY94: 0 | AZ94: 0 | BA94: 0 | BB94: 0 | BC94: 0 | BD94: 0 | BE94: 0 | BF94: 0 | BG94: 0 | BH94: 0 | BI94: 60 | BJ94: 12 | BK94: 240 | BL94: =INDEX('Avionics ID'!A:E,MATCH(B94,'Avionics ID'!E:E,0),3) -> FMS
A95: =INDEX('Avionics ID'!A:E,MATCH(B95,'Avionics ID'!E:E,0),1) -> 816 | B95: FLIR sensors | C95: 0.05 | D95: 0.1 | G95: 20 | H95: Obsolescence | I95: =SUBSTITUTE(ADDRESS(1,MATCH(A95,'Pt1-AvionicsComponentCosts'!$A$6:$NC$6,0)+1),"$1","") -> $LB | J95: =_xlfn.TEXTJOIN(", ",TRUE,_xlfn.UNIQUE(_xlfn._xlws.SORT(_xlfn._xlws.FILTER('Pt1-AvionicsComponentCosts'!$NF$12:$NF$384,ISNUMBER(INDIRECT("'Pt1-AvionicsComponentCosts'!"&I95&"$12:"&I95&"$384")))))) -> Mil Fighter | L95: 0.1 | M95: =IF($A$2,INDEX([1]Sheet1!$A$12:$AO$193,MATCH($A95,[1]Sheet1!$A$12:$A$193,0),8),2*$L95) -> 0.2 | N95: =INDEX([1]Sheet1!$A$12:$AO$193,MATCH($A95,[1]Sheet1!$A$12:$A$193,0),9)*(1+$A$4) -> 0.3685 | O95: =INDEX([1]Sheet1!$A$12:$AO$193,MATCH($A95,[1]Sheet1!$A$12:$A$193,0),10)*(1+$A$4) -> 1.8513 | P95: =COUNTIF($P$5:P$5,"Year")*$I$4 -> 5 | Q95: =0% -> 0 | R95: 0 | S95: =COUNTIF($P$5:S$5,"Year")*$I$4 -> 10 | T95: =0% -> 0 | U95: 0.1 | V95: =COUNTIF($P$5:V$5,"Year")*$I$4 -> 15 | W95: =0% -> 0 | X95: 0 | Y95: =COUNTIF($P$5:Y$5,"Year")*$I$4 -> 20 | Z95: =0% -> 0 | AA95: 0.1 | AB95: =COUNTIF($P$5:AB$5,"Year")*$I$4 -> 25 | AC95: =0% -> 0 | AD95: 0 | AE95: =COUNTIF($P$5:AE$5,"Year")*$I$4 -> 30 | AF95: =0% -> 0 | AG95: 0.1 | AH95: =COUNTIF($P$5:AH$5,"Year")*$I$4 -> 35 | AI95: =0% -> 0 | AJ95: 0 | AK95: =COUNTIF($P$5:AK$5,"Year")*$I$4 -> 40 | AL95: =0% -> 0 | AM95: 0.1 | AV95: 0 | AW95: 0 | AX95: 0 | AY95: 0 | AZ95: 0 | BA95: 0 | BB95: 0 | BC95: 0 | BD95: 0 | BE95: 0 | BF95: 0 | BG95: 0 | BH95: 0 | BI95: 60 | BJ95: 20 | BK95: 400 | BL95: =INDEX('Avionics ID'!A:E,MATCH(B95,'Avionics ID'!E:E,0),3) -> Sensors
A96: =INDEX('Avionics ID'!A:E,MATCH(B96,'Avionics ID'!E:E,0),1) -> 709 | B96: FMGC | C96: 0.06666666667 | D96: 0.06 | E96: CPDLC | F96: 2028 | G96: 15 | H96: Technology / regulatory | I96: =SUBSTITUTE(ADDRESS(1,MATCH(A96,'Pt1-AvionicsComponentCosts'!$A$6:$NC$6,0)+1),"$1","") -> $GR | J96: =_xlfn.TEXTJOIN(", ",TRUE,_xlfn.UNIQUE(_xlfn._xlws.SORT(_xlfn._xlws.FILTER('Pt1-AvionicsComponentCosts'!$NF$12:$NF$384,ISNUMBER(INDIRECT("'Pt1-AvionicsComponentCosts'!"&I96&"$12:"&I96&"$384")))))) -> A220, A300, A320, A321, A330, A340, A350, A380, ARJ, ATR, B717, B737, B747, B757, B767, B777, B787, C919, Challenger, Citation, CRJ, E550, EMB Bizjet, EMB Regional, Falcon, Global, Gulfstream, Hawker, Hondajet, Learjet, MC-21, MD-11, Mil Transport, Military Jet, Nextant 400XT, NSA, PC-24, Phenom, Praetor, Reg TP, SF50, Superjet 100, Turbine GA | L96: 0.06 | M96: =IF($A$2,INDEX([1]Sheet1!$A$12:$AO$193,MATCH($A96,[1]Sheet1!$A$12:$A$193,0),8),2*$L96) -> 0.12 | N96: =INDEX([1]Sheet1!$A$12:$AO$193,MATCH($A96,[1]Sheet1!$A$12:$A$193,0),9)*(1+$A$4) -> 0.4081 | O96: =INDEX([1]Sheet1!$A$12:$AO$193,MATCH($A96,[1]Sheet1!$A$12:$A$193,0),10)*(1+$A$4) -> 1.3541 | P96: =COUNTIF($P$5:P$5,"Year")*$I$4 -> 5 | Q96: =0% -> 0 | R96: 0 | S96: =COUNTIF($P$5:S$5,"Year")*$I$4 -> 10 | T96: =0% -> 0 | U96: 0.06 | V96: =COUNTIF($P$5:V$5,"Year")*$I$4 -> 15 | W96: =0% -> 0 | X96: 0.06 | Y96: =COUNTIF($P$5:Y$5,"Year")*$I$4 -> 20 | Z96: =0% -> 0 | AA96: 0.06 | AB96: =COUNTIF($P$5:AB$5,"Year")*$I$4 -> 25 | AC96: =0% -> 0 | AD96: 0 | AE96: =COUNTIF($P$5:AE$5,"Year")*$I$4 -> 30 | AF96: =0% -> 0 | AG96: 0.06 | AH96: =COUNTIF($P$5:AH$5,"Year")*$I$4 -> 35 | AI96: =0% -> 0 | AJ96: 0 | AK96: =COUNTIF($P$5:AK$5,"Year")*$I$4 -> 40 | AL96: =0% -> 0 | AM96: 0.06 | AU96: CPDLC | AV96: 1.3541 | AW96: =IF($H96="Technology / regulatory",IF(AW$5=$F96-2,$AW$1,IF(AW$5=$F96-1,$AX$1,IF(AW$5=$F96,$AY$1,IF(AW$5=$F96+1,$AZ$1,0)))),0) -> 0 | AX96: 0 | AY96: 0.15 | AZ96: 0.25 | BA96: 0.45 | BB96: 0.15 | BC96: 0 | BD96: 0 | BE96: 0 | BF96: 0 | BG96: 0 | BH96: 0 | BI96: 142 | BJ96: 12 | BK96: 240 | BL96: =INDEX('Avionics ID'!A:E,MATCH(B96,'Avionics ID'!E:E,0),3) -> FMS
A97: =INDEX('Avionics ID'!A:E,MATCH(B97,'Avionics ID'!E:E,0),1) -> 873 | B97: GPS antenna | C97: 0.05 | D97: 0.1 | G97: 20 | H97: Obsolescence | I97: =SUBSTITUTE(ADDRESS(1,MATCH(A97,'Pt1-AvionicsComponentCosts'!$A$6:$NC$6,0)+1),"$1","") -> $JH | J97: =_xlfn.TEXTJOIN(", ",TRUE,_xlfn.UNIQUE(_xlfn._xlws.SORT(_xlfn._xlws.FILTER('Pt1-AvionicsComponentCosts'!$NF$12:$NF$384,ISNUMBER(INDIRECT("'Pt1-AvionicsComponentCosts'!"&I97&"$12:"&I97&"$384")))))) -> UAV | L97: 0.1 | M97: =IF($A$2,INDEX([1]Sheet1!$A$12:$AO$193,MATCH($A97,[1]Sheet1!$A$12:$A$193,0),8),2*$L97) -> 0.2 | N97: =INDEX([1]Sheet1!$A$12:$AO$193,MATCH($A97,[1]Sheet1!$A$12:$A$193,0),9)*(1+$A$4) -> 0.3894 | O97: =INDEX([1]Sheet1!$A$12:$AO$193,MATCH($A97,[1]Sheet1!$A$12:$A$193,0),10)*(1+$A$4) -> 2.0119 | P97: =COUNTIF($P$5:P$5,"Year")*$I$4 -> 5 | Q97: =0% -> 0 | R97: 0 | S97: =COUNTIF($P$5:S$5,"Year")*$I$4 -> 10 | T97: =0% -> 0 | U97: 0.1 | V97: =COUNTIF($P$5:V$5,"Year")*$I$4 -> 15 | W97: =0% -> 0 | X97: 0 | Y97: =COUNTIF($P$5:Y$5,"Year")*$I$4 -> 20 | Z97: =0% -> 0 | AA97: 0.1 | AB97: =COUNTIF($P$5:AB$5,"Year")*$I$4 -> 25 | AC97: =0% -> 0 | AD97: 0 | AE97: =COUNTIF($P$5:AE$5,"Year")*$I$4 -> 30 | AF97: =0% -> 0 | AG97: 0.1 | AH97: =COUNTIF($P$5:AH$5,"Year")*$I$4 -> 35 | AI97: =0% -> 0 | AJ97: 0 | AK97: =COUNTIF($P$5:AK$5,"Year")*$I$4 -> 40 | AL97: =0% -> 0 | AM97: 0.1 | AV97: 0 | AW97: 0 | AX97: 0 | AY97: 0 | AZ97: 0 | BA97: 0 | BB97: 0 | BC97: 0 | BD97: 0 | BE97: 0 | BF97: 0 | BG97: 0 | BH97: 0 | BI97: 60 | BJ97: 20 | BK97: 400 | BL97: =INDEX('Avionics ID'!A:E,MATCH(B97,'Avionics ID'!E:E,0),3) -> Navigation
A98: =INDEX('Avionics ID'!A:E,MATCH(B98,'Avionics ID'!E:E,0),1) -> 748 | B98: Ground Proximity Warning System (GPWS/EGPWS) | C98: 0.1 | D98: 0.06 | G98: 10 | H98: Obsolescence | I98: =SUBSTITUTE(ADDRESS(1,MATCH(A98,'Pt1-AvionicsComponentCosts'!$A$6:$NC$6,0)+1),"$1","") -> $ML | J98: =_xlfn.TEXTJOIN(", ",TRUE,_xlfn.UNIQUE(_xlfn._xlws.SORT(_xlfn._xlws.FILTER('Pt1-AvionicsComponentCosts'!$NF$12:$NF$384,ISNUMBER(INDIRECT("'Pt1-AvionicsComponentCosts'!"&I98&"$12:"&I98&"$384")))))) -> A220, A300, A320, A321, A330, A340, A350, A380, ARJ, ATR, B717, B737, B747, B757, B767, B777, B787, C919, CRJ, EMB Regional, Helo, MC-21, MD-11, Mil Fighter, Mil Transport, Military Jet, NSA, Reg TP, Superjet 100, TP Trainer, Turbine GA | L98: 0.06 | M98: =IF($A$2,INDEX([1]Sheet1!$A$12:$AO$193,MATCH($A98,[1]Sheet1!$A$12:$A$193,0),8),2*$L98) -> 0.12 | N98: =INDEX([1]Sheet1!$A$12:$AO$193,MATCH($A98,[1]Sheet1!$A$12:$A$193,0),9)*(1+$A$4) -> 0.4928 | O98: =INDEX([1]Sheet1!$A$12:$AO$193,MATCH($A98,[1]Sheet1!$A$12:$A$193,0),10)*(1+$A$4) -> 1.4278 | P98: =COUNTIF($P$5:P$5,"Year")*$I$4 -> 5 | Q98: =0% -> 0 | R98: 0.06 | S98: =COUNTIF($P$5:S$5,"Year")*$I$4 -> 10 | T98: =0% -> 0 | U98: 0.06 | V98: =COUNTIF($P$5:V$5,"Year")*$I$4 -> 15 | W98: =0% -> 0 | X98: 0.06 | Y98: =COUNTIF($P$5:Y$5,"Year")*$I$4 -> 20 | Z98: =0% -> 0 | AA98: 0.06 | AB98: =COUNTIF($P$5:AB$5,"Year")*$I$4 -> 25 | AC98: =0% -> 0 | AD98: 0.06 | AE98: =COUNTIF($P$5:AE$5,"Year")*$I$4 -> 30 | AF98: =0% -> 0 | AG98: 0.06 | AH98: =COUNTIF($P$5:AH$5,"Year")*$I$4 -> 35 | AI98: =0% -> 0 | AJ98: 0.06 | AK98: =COUNTIF($P$5:AK$5,"Year")*$I$4 -> 40 | AL98: =0% -> 0 | AM98: 0.06 | AV98: 0 | AW98: 0 | AX98: 0 | AY98: 0 | AZ98: 0 | BA98: 0 | BB98: 0 | BC98: 0 | BD98: 0 | BE98: 0 | BF98: 0 | BG98: 0 | BH98: 0 | BI98: 60 | BJ98: 12 | BK98: 240 | BL98: =INDEX('Avionics ID'!A:E,MATCH(B98,'Avionics ID'!E:E,0),3) -> Surveillance
A99: =INDEX('Avionics ID'!A:E,MATCH(B99,'Avionics ID'!E:E,0),1) -> 768 | B99: HF Radio | C99: 0.03333333333 | D99: 0.03 | G99: 30 | H99: Obsolescence | I99: =SUBSTITUTE(ADDRESS(1,MATCH(A99,'Pt1-AvionicsComponentCosts'!$A$6:$NC$6,0)+1),"$1","") -> $AX | J99: =_xlfn.TEXTJOIN(", ",TRUE,_xlfn.UNIQUE(_xlfn._xlws.SORT(_xlfn._xlws.FILTER('Pt1-AvionicsComponentCosts'!$NF$12:$NF$384,ISNUMBER(INDIRECT("'Pt1-AvionicsComponentCosts'!"&I99&"$12:"&I99&"$384")))))) -> A300, A320, A330, A340, A350, A380, B747, B767, B777, B787, MD-11 | L99: 0.03 | M99: =IF($A$2,INDEX([1]Sheet1!$A$12:$AO$193,MATCH($A99,[1]Sheet1!$A$12:$A$193,0),8),2*$L99) -> 0.06 | N99: =INDEX([1]Sheet1!$A$12:$AO$193,MATCH($A99,[1]Sheet1!$A$12:$A$193,0),9)*(1+$A$4) -> 0.5511 | O99: =INDEX([1]Sheet1!$A$12:$AO$193,MATCH($A99,[1]Sheet1!$A$12:$A$193,0),10)*(1+$A$4) -> 1.4267 | P99: =COUNTIF($P$5:P$5,"Year")*$I$4 -> 5 | Q99: =0% -> 0 | R99: 0 | S99: =COUNTIF($P$5:S$5,"Year")*$I$4 -> 10 | T99: =0% -> 0 | U99: 0 | V99: =COUNTIF($P$5:V$5,"Year")*$I$4 -> 15 | W99: =0% -> 0 | X99: 0.03 | Y99: =COUNTIF($P$5:Y$5,"Year")*$I$4 -> 20 | Z99: =0% -> 0 | AA99: 0 | AB99: =COUNTIF($P$5:AB$5,"Year")*$I$4 -> 25 | AC99: =0% -> 0 | AD99: 0 | AE99: =COUNTIF($P$5:AE$5,"Year")*$I$4 -> 30 | AF99: =0% -> 0 | AG99: 0.03 | AH99: =COUNTIF($P$5:AH$5,"Year")*$I$4 -> 35 | AI99: =0% -> 0 | AJ99: 0 | AK99: =COUNTIF($P$5:AK$5,"Year")*$I$4 -> 40 | AL99: =0% -> 0 | AM99: 0 | AV99: 0 | AW99: 0 | AX99: 0 | AY99: 0 | AZ99: 0 | BA99: 0 | BB99: 0 | BC99: 0 | BD99: 0 | BE99: 0 | BF99: 0 | BG99: 0 | BH99: 0 | BI99: 12 | BJ99: 6 | BK99: 120 | BL99: =INDEX('Avionics ID'!A:E,MATCH(B99,'Avionics ID'!E:E,0),3) -> Communications
A100: =INDEX('Avionics ID'!A:E,MATCH(B100,'Avionics ID'!E:E,0),1) -> 840 | B100: HF-9500 High Frequency Communications System | C100: 0.03333333333 | D100: 0.03 | G100: 30 | H100: Obsolescence | I100: =SUBSTITUTE(ADDRESS(1,MATCH(A100,'Pt1-AvionicsComponentCosts'!$A$6:$NC$6,0)+1),"$1","") -> $AZ | J100: =_xlfn.TEXTJOIN(", ",TRUE,_xlfn.UNIQUE(_xlfn._xlws.SORT(_xlfn._xlws.FILTER('Pt1-AvionicsComponentCosts'!$NF$12:$NF$384,ISNUMBER(INDIRECT("'Pt1-AvionicsComponentCosts'!"&I100&"$12:"&I100&"$384")))))) -> A330 LMXT, A330 MRTT, Mil Transport, Military Jet, Military TP | L100: 0.03 | M100: =IF($A$2,INDEX([1]Sheet1!$A$12:$AO$193,MATCH($A100,[1]Sheet1!$A$12:$A$193,0),8),2*$L100) -> 0.06 | N100: =INDEX([1]Sheet1!$A$12:$AO$193,MATCH($A100,[1]Sheet1!$A$12:$A$193,0),9)*(1+$A$4) -> 0.5511 | O100: =INDEX([1]Sheet1!$A$12:$AO$193,MATCH($A100,[1]Sheet1!$A$12:$A$193,0),10)*(1+$A$4) -> 1.4267 | P100: =COUNTIF($P$5:P$5,"Year")*$I$4 -> 5 | Q100: =0% -> 0 | R100: 0 | S100: =COUNTIF($P$5:S$5,"Year")*$I$4 -> 10 | T100: =0% -> 0 | U100: 0 | V100: =COUNTIF($P$5:V$5,"Year")*$I$4 -> 15 | W100: =0% -> 0 | X100: 0.03 | Y100: =COUNTIF($P$5:Y$5,"Year")*$I$4 -> 20 | Z100: =0% -> 0 | AA100: 0 | AB100: =COUNTIF($P$5:AB$5,"Year")*$I$4 -> 25 | AC100: =0% -> 0 | AD100: 0 | AE100: =COUNTIF($P$5:AE$5,"Year")*$I$4 -> 30 | AF100: =0% -> 0 | AG100: 0.03 | AH100: =COUNTIF($P$5:AH$5,"Year")*$I$4 -> 35 | AI100: =0% -> 0 | AJ100: 0 | AK100: =COUNTIF($P$5:AK$5,"Year")*$I$4 -> 40 | AL100: =0% -> 0 | AM100: 0 | AV100: 0 | AW100: 0 | AX100: 0 | AY100: 0 | AZ100: 0 | BA100: 0 | BB100: 0 | BC100: 0 | BD100: 0 | BE100: 0 | BF100: 0 | BG100: 0 | BH100: 0 | BI100: 12 | BJ100: 6 | BK100: 120 | BL100: =INDEX('Avionics ID'!A:E,MATCH(B100,'Avionics ID'!E:E,0),3) -> Communications
A101: =INDEX('Avionics ID'!A:E,MATCH(B101,'Avionics ID'!E:E,0),1) -> 800 | B101: High speed and fibre optics data/signalling network databuses | C101: 0.05 | D101: 0.03 | G101: 20 | H101: Obsolescence | I101: =SUBSTITUTE(ADDRESS(1,MATCH(A101,'Pt1-AvionicsComponentCosts'!$A$6:$NC$6,0)+1),"$1","") -> $DD | J101: =_xlfn.TEXTJOIN(", ",TRUE,_xlfn.UNIQUE(_xlfn._xlws.SORT(_xlfn._xlws.FILTER('Pt1-AvionicsComponentCosts'!$NF$12:$NF$384,ISNUMBER(INDIRECT("'Pt1-AvionicsComponentCosts'!"&I101&"$12:"&I101&"$384")))))) -> Attack, Stealth | L101: 0.03 | M101: =IF($A$2,INDEX([1]Sheet1!$A$12:$AO$193,MATCH($A101,[1]Sheet1!$A$12:$A$193,0),8),2*$L101) -> 0.06 | N101: =INDEX([1]Sheet1!$A$12:$AO$193,MATCH($A101,[1]Sheet1!$A$12:$A$193,0),9)*(1+$A$4) -> 0.7513 | O101: =INDEX([1]Sheet1!$A$12:$AO$193,MATCH($A101,[1]Sheet1!$A$12:$A$193,0),10)*(1+$A$4) -> 2.1241 | P101: =COUNTIF($P$5:P$5,"Year")*$I$4 -> 5 | Q101: =0% -> 0 | R101: 0 | S101: =COUNTIF($P$5:S$5,"Year")*$I$4 -> 10 | T101: =0% -> 0 | U101: 0.03 | V101: =COUNTIF($P$5:V$5,"Year")*$I$4 -> 15 | W101: =0% -> 0 | X101: 0 | Y101: =COUNTIF($P$5:Y$5,"Year")*$I$4 -> 20 | Z101: =0% -> 0 | AA101: 0.03 | AB101: =COUNTIF($P$5:AB$5,"Year")*$I$4 -> 25 | AC101: =0% -> 0 | AD101: 0 | AE101: =COUNTIF($P$5:AE$5,"Year")*$I$4 -> 30 | AF101: =0% -> 0 | AG101: 0.03 | AH101: =COUNTIF($P$5:AH$5,"Year")*$I$4 -> 35 | AI101: =0% -> 0 | AJ101: 0 | AK101: =COUNTIF($P$5:AK$5,"Year")*$I$4 -> 40 | AL101: =0% -> 0 | AM101: 0.03 | AV101: 0 | AW101: 0 | AX101: 0 | AY101: 0 | AZ101: 0 | BA101: 0 | BB101: 0 | BC101: 0 | BD101: 0 | BE101: 0 | BF101: 0 | BG101: 0 | BH101: 0 | BI101: 18 | BJ101: 6 | BK101: 120 | BL101: =INDEX('Avionics ID'!A:E,MATCH(B101,'Avionics ID'!E:E,0),3) -> Data
A102: =INDEX('Avionics ID'!A:E,MATCH(B102,'Avionics ID'!E:E,0),1) -> 781 | B102: HST 2100 | C102: 0.1 | D102: 0.08 | G102: 10 | H102: Obsolescence | I102: =SUBSTITUTE(ADDRESS(1,MATCH(A102,'Pt1-AvionicsComponentCosts'!$A$6:$NC$6,0)+1),"$1","") -> $BB | J102: =_xlfn.TEXTJOIN(", ",TRUE,_xlfn.UNIQUE(_xlfn._xlws.SORT(_xlfn._xlws.FILTER('Pt1-AvionicsComponentCosts'!$NF$12:$NF$384,ISNUMBER(INDIRECT("'Pt1-AvionicsComponentCosts'!"&I102&"$12:"&I102&"$384")))))) -> A350, B747, B777, B787 | L102: 0.08 | M102: =IF($A$2,INDEX([1]Sheet1!$A$12:$AO$193,MATCH($A102,[1]Sheet1!$A$12:$A$193,0),8),2*$L102) -> 0.16 | N102: =INDEX([1]Sheet1!$A$12:$AO$193,MATCH($A102,[1]Sheet1!$A$12:$A$193,0),9)*(1+$A$4) -> 0.5511 | O102: =INDEX([1]Sheet1!$A$12:$AO$193,MATCH($A102,[1]Sheet1!$A$12:$A$193,0),10)*(1+$A$4) -> 1.4267 | P102: =COUNTIF($P$5:P$5,"Year")*$I$4 -> 5 | Q102: =0% -> 0 | R102: 0.08 | S102: =COUNTIF($P$5:S$5,"Year")*$I$4 -> 10 | T102: =0% -> 0 | U102: 0.08 | V102: =COUNTIF($P$5:V$5,"Year")*$I$4 -> 15 | W102: =0% -> 0 | X102: 0.08 | Y102: =COUNTIF($P$5:Y$5,"Year")*$I$4 -> 20 | Z102: =0% -> 0 | AA102: 0.08 | AB102: =COUNTIF($P$5:AB$5,"Year")*$I$4 -> 25 | AC102: =0% -> 0 | AD102: 0.08 | AE102: =COUNTIF($P$5:AE$5,"Year")*$I$4 -> 30 | AF102: =0% -> 0 | AG102: 0.08 | AH102: =COUNTIF($P$5:AH$5,"Year")*$I$4 -> 35 | AI102: =0% -> 0 | AJ102: 0.08 | AK102: =COUNTIF($P$5:AK$5,"Year")*$I$4 -> 40 | AL102: =0% -> 0 | AM102: 0.08 | AV102: 0 | AW102: 0 | AX102: 0 | AY102: 0 | AZ102: 0 | BA102: 0 | BB102: 0 | BC102: 0 | BD102: 0 | BE102: 0 | BF102: 0 | BG102: 0 | BH102: 0 | BI102: 80 | BJ102: 16 | BK102: 320 | BL102: =INDEX('Avionics ID'!A:E,MATCH(B102,'Avionics ID'!E:E,0),3) -> Communications
A103: =INDEX('Avionics ID'!A:E,MATCH(B103,'Avionics ID'!E:E,0),1) -> 730 | B103: HUD display system | C103: 0.06666666667 | D103: 0.06 | E103: PBN | F103: 2030 | G103: 15 | H103: Technology / regulatory | I103: =SUBSTITUTE(ADDRESS(1,MATCH(A103,'Pt1-AvionicsComponentCosts'!$A$6:$NC$6,0)+1),"$1","") -> $FB | J103: =_xlfn.TEXTJOIN(", ",TRUE,_xlfn.UNIQUE(_xlfn._xlws.SORT(_xlfn._xlws.FILTER('Pt1-AvionicsComponentCosts'!$NF$12:$NF$384,ISNUMBER(INDIRECT("'Pt1-AvionicsComponentCosts'!"&I103&"$12:"&I103&"$384")))))) -> A220, A320, A321, A330 LMXT, A330 MRTT, A350, ARJ, ATR, B717, B737, B747, B757, B777, B787, C919, CRJ, EMB Regional, MC-21, Mil Fighter, Mil Transport, Military Jet, Military TP, NSA, Reg TP, Superjet 100, Turbine GA | L103: 0.06 | M103: =IF($A$2,INDEX([1]Sheet1!$A$12:$AO$193,MATCH($A103,[1]Sheet1!$A$12:$A$193,0),8),2*$L103) -> 0.12 | N103: =INDEX([1]Sheet1!$A$12:$AO$193,MATCH($A103,[1]Sheet1!$A$12:$A$193,0),9)*(1+$A$4) -> 0.3883 | O103: =INDEX([1]Sheet1!$A$12:$AO$193,MATCH($A103,[1]Sheet1!$A$12:$A$193,0),10)*(1+$A$4) -> 2.0306 | P103: =COUNTIF($P$5:P$5,"Year")*$I$4 -> 5 | Q103: =0% -> 0 | R103: 0 | S103: =COUNTIF($P$5:S$5,"Year")*$I$4 -> 10 | T103: =0% -> 0 | U103: 0.06 | V103: =COUNTIF($P$5:V$5,"Year")*$I$4 -> 15 | W103: =0% -> 0 | X103: 0.06 | Y103: =COUNTIF($P$5:Y$5,"Year")*$I$4 -> 20 | Z103: =0% -> 0 | AA103: 0.06 | AB103: =COUNTIF($P$5:AB$5,"Year")*$I$4 -> 25 | AC103: =0% -> 0 | AD103: 0 | AE103: =COUNTIF($P$5:AE$5,"Year")*$I$4 -> 30 | AF103: =0% -> 0 | AG103: 0.06 | AH103: =COUNTIF($P$5:AH$5,"Year")*$I$4 -> 35 | AI103: =0% -> 0 | AJ103: 0 | AK103: =COUNTIF($P$5:AK$5,"Year")*$I$4 -> 40 | AL103: =0% -> 0 | AM103: 0.06 | AU103: PBN | AV103: 2.0306 | AW103: 0 | AX103: 0 | AY103: 0 | AZ103: 0 | BA103: 0.15 | BB103: 0.25 | BC103: 0.45 | BD103: 0.15 | BE103: 0 | BF103: 0 | BG103: 0 | BH103: 0 | BI103: 142 | BJ103: 12 | BK103: 240 | BL103: =INDEX('Avionics ID'!A:E,MATCH(B103,'Avionics ID'!E:E,0),3) -> Display
A104: =INDEX('Avionics ID'!A:E,MATCH(B104,'Avionics ID'!E:E,0),1) -> 833 | B104: IMA | C104: 0.06666666667 | D104: 0.03 | G104: 15 | H104: Obsolescence | I104: =SUBSTITUTE(ADDRESS(1,MATCH(A104,'Pt1-AvionicsComponentCosts'!$A$6:$NC$6,0)+1),"$1","") -> $HL | J104: =_xlfn.TEXTJOIN(", ",TRUE,_xlfn.UNIQUE(_xlfn._xlws.SORT(_xlfn._xlws.FILTER('Pt1-AvionicsComponentCosts'!$NF$12:$NF$384,ISNUMBER(INDIRECT("'Pt1-AvionicsComponentCosts'!"&I104&"$12:"&I104&"$384")))))) -> A330 LMXT, A330 MRTT, Attack Helo, Helo, Mil Transport, Military Jet, Military TP | L104: 0.03 | M104: =IF($A$2,INDEX([1]Sheet1!$A$12:$AO$193,MATCH($A104,[1]Sheet1!$A$12:$A$193,0),8),2*$L104) -> 0.06 | N104: =INDEX([1]Sheet1!$A$12:$AO$193,MATCH($A104,[1]Sheet1!$A$12:$A$193,0),9)*(1+$A$4) -> 0.3905 | O104: =INDEX([1]Sheet1!$A$12:$AO$193,MATCH($A104,[1]Sheet1!$A$12:$A$193,0),10)*(1+$A$4) -> 1.1561 | P104: =COUNTIF($P$5:P$5,"Year")*$I$4 -> 5 | Q104: =0% -> 0 | R104: 0 | S104: =COUNTIF($P$5:S$5,"Year")*$I$4 -> 10 | T104: =0% -> 0 | U104: 0.03 | V104: =COUNTIF($P$5:V$5,"Year")*$I$4 -> 15 | W104: =0% -> 0 | X104: 0.03 | Y104: =COUNTIF($P$5:Y$5,"Year")*$I$4 -> 20 | Z104: =0% -> 0 | AA104: 0.03 | AB104: =COUNTIF($P$5:AB$5,"Year")*$I$4 -> 25 | AC104: =0% -> 0 | AD104: 0 | AE104: =COUNTIF($P$5:AE$5,"Year")*$I$4 -> 30 | AF104: =0% -> 0 | AG104: 0.03 | AH104: =COUNTIF($P$5:AH$5,"Year")*$I$4 -> 35 | AI104: =0% -> 0 | AJ104: 0 | AK104: =COUNTIF($P$5:AK$5,"Year")*$I$4 -> 40 | AL104: =0% -> 0 | AM104: 0.03 | AV104: 0 | AW104: 0 | AX104: 0 | AY104: 0 | AZ104: 0 | BA104: 0 | BB104: 0 | BC104: 0 | BD104: 0 | BE104: 0 | BF104: 0 | BG104: 0 | BH104: 0 | BI104: 21 | BJ104: 6 | BK104: 120 | BL104: =INDEX('Avionics ID'!A:E,MATCH(B104,'Avionics ID'!E:E,0),3) -> IMA
A105: =INDEX('Avionics ID'!A:E,MATCH(B105,'Avionics ID'!E:E,0),1) -> 813 | B105: IN/GPS system | C105: 0.05 | D105: 0.03 | G105: 20 | H105: Obsolescence | I105: =SUBSTITUTE(ADDRESS(1,MATCH(A105,'Pt1-AvionicsComponentCosts'!$A$6:$NC$6,0)+1),"$1","") -> $JJ | J105: =_xlfn.TEXTJOIN(", ",TRUE,_xlfn.UNIQUE(_xlfn._xlws.SORT(_xlfn._xlws.FILTER('Pt1-AvionicsComponentCosts'!$NF$12:$NF$384,ISNUMBER(INDIRECT("'Pt1-AvionicsComponentCosts'!"&I105&"$12:"&I105&"$384")))))) -> Mil Fighter | L105: 0.03 | M105: =IF($A$2,INDEX([1]Sheet1!$A$12:$AO$193,MATCH($A105,[1]Sheet1!$A$12:$A$193,0),8),2*$L105) -> 0.06 | N105: =INDEX([1]Sheet1!$A$12:$AO$193,MATCH($A105,[1]Sheet1!$A$12:$A$193,0),9)*(1+$A$4) -> 0.3894 | O105: =INDEX([1]Sheet1!$A$12:$AO$193,MATCH($A105,[1]Sheet1!$A$12:$A$193,0),10)*(1+$A$4) -> 2.0119 | P105: =COUNTIF($P$5:P$5,"Year")*$I$4 -> 5 | Q105: =0% -> 0 | R105: 0 | S105: =COUNTIF($P$5:S$5,"Year")*$I$4 -> 10 | T105: =0% -> 0 | U105: 0.03 | V105: =COUNTIF($P$5:V$5,"Year")*$I$4 -> 15 | W105: =0% -> 0 | X105: 0 | Y105: =COUNTIF($P$5:Y$5,"Year")*$I$4 -> 20 | Z105: =0% -> 0 | AA105: 0.03 | AB105: =COUNTIF($P$5:AB$5,"Year")*$I$4 -> 25 | AC105: =0% -> 0 | AD105: 0 | AE105: =COUNTIF($P$5:AE$5,"Year")*$I$4 -> 30 | AF105: =0% -> 0 | AG105: 0.03 | AH105: =COUNTIF($P$5:AH$5,"Year")*$I$4 -> 35 | AI105: =0% -> 0 | AJ105: 0 | AK105: =COUNTIF($P$5:AK$5,"Year")*$I$4 -> 40 | AL105: =0% -> 0 | AM105: 0.03 | AV105: 0 | AW105: 0 | AX105: 0 | AY105: 0 | AZ105: 0 | BA105: 0 | BB105: 0 | BC105: 0 | BD105: 0 | BE105: 0 | BF105: 0 | BG105: 0 | BH105: 0 | BI105: 18 | BJ105: 6 | BK105: 120 | BL105: =INDEX('Avionics ID'!A:E,MATCH(B105,'Avionics ID'!E:E,0),3) -> Navigation
A106: =INDEX('Avionics ID'!A:E,MATCH(B106,'Avionics ID'!E:E,0),1) -> 826 | B106: Inertial Ref Unit (IRU) | C106: 0.1 | D106: 0.03 | G106: 10 | H106: Obsolescence | I106: =SUBSTITUTE(ADDRESS(1,MATCH(A106,'Pt1-AvionicsComponentCosts'!$A$6:$NC$6,0)+1),"$1","") -> $JL | J106: =_xlfn.TEXTJOIN(", ",TRUE,_xlfn.UNIQUE(_xlfn._xlws.SORT(_xlfn._xlws.FILTER('Pt1-AvionicsComponentCosts'!$NF$12:$NF$384,ISNUMBER(INDIRECT("'Pt1-AvionicsComponentCosts'!"&I106&"$12:"&I106&"$384")))))) -> Challenger, Citation, E550, EMB Bizjet, Falcon, Global, Gulfstream, Hawker, Hondajet, Learjet, Nextant 400XT, PC-24, Phenom, Praetor, SF50 | L106: 0.03 | M106: =IF($A$2,INDEX([1]Sheet1!$A$12:$AO$193,MATCH($A106,[1]Sheet1!$A$12:$A$193,0),8),2*$L106) -> 0.06 | N106: =INDEX([1]Sheet1!$A$12:$AO$193,MATCH($A106,[1]Sheet1!$A$12:$A$193,0),9)*(1+$A$4) -> 0.3894 | O106: =INDEX([1]Sheet1!$A$12:$AO$193,MATCH($A106,[1]Sheet1!$A$12:$A$193,0),10)*(1+$A$4) -> 2.0119 | P106: =COUNTIF($P$5:P$5,"Year")*$I$4 -> 5 | Q106: =0% -> 0 | R106: 0.03 | S106: =COUNTIF($P$5:S$5,"Year")*$I$4 -> 10 | T106: =0% -> 0 | U106: 0.03 | V106: =COUNTIF($P$5:V$5,"Year")*$I$4 -> 15 | W106: =0% -> 0 | X106: 0.03 | Y106: =COUNTIF($P$5:Y$5,"Year")*$I$4 -> 20 | Z106: =0% -> 0 | AA106: 0.03 | AB106: =COUNTIF($P$5:AB$5,"Year")*$I$4 -> 25 | AC106: =0% -> 0 | AD106: 0.03 | AE106: =COUNTIF($P$5:AE$5,"Year")*$I$4 -> 30 | AF106: =0% -> 0 | AG106: 0.03 | AH106: =COUNTIF($P$5:AH$5,"Year")*$I$4 -> 35 | AI106: =0% -> 0 | AJ106: 0.03 | AK106: =COUNTIF($P$5:AK$5,"Year")*$I$4 -> 40 | AL106: =0% -> 0 | AM106: 0.03 | AV106: 0 | AW106: =IF($H106="Technology / regulatory",IF(AW$5=$F106-2,$AW$1,IF(AW$5=$F106-1,$AX$1,IF(AW$5=$F106,$AY$1,IF(AW$5=$F106+1,$AZ$1,0)))),0) -> 0 | AX106: 0 | AY106: 0 | AZ106: 0 | BA106: 0 | BB106: 0 | BC106: 0 | BD106: 0 | BE106: 0 | BF106: 0 | BG106: 0 | BH106: 0 | BI106: 30 | BJ106: 6 | BK106: 120 | BL106: =INDEX('Avionics ID'!A:E,MATCH(B106,'Avionics ID'!E:E,0),3) -> Navigation
A107: =INDEX('Avionics ID'!A:E,MATCH(B107,'Avionics ID'!E:E,0),1) -> 834 | B107: Inertial Reference System | C107: 0.1 | D107: 0.03 | G107: 10 | H107: Obsolescence | I107: =SUBSTITUTE(ADDRESS(1,MATCH(A107,'Pt1-AvionicsComponentCosts'!$A$6:$NC$6,0)+1),"$1","") -> $JN | J107: =_xlfn.TEXTJOIN(", ",TRUE,_xlfn.UNIQUE(_xlfn._xlws.SORT(_xlfn._xlws.FILTER('Pt1-AvionicsComponentCosts'!$NF$12:$NF$384,ISNUMBER(INDIRECT("'Pt1-AvionicsComponentCosts'!"&I107&"$12:"&I107&"$384")))))) -> A330 LMXT, A330 MRTT, Mil Transport, Military Jet, Military TP | L107: 0.03 | M107: =IF($A$2,INDEX([1]Sheet1!$A$12:$AO$193,MATCH($A107,[1]Sheet1!$A$12:$A$193,0),8),2*$L107) -> 0.06 | N107: =INDEX([1]Sheet1!$A$12:$AO$193,MATCH($A107,[1]Sheet1!$A$12:$A$193,0),9)*(1+$A$4) -> 0.3894 | O107: =INDEX([1]Sheet1!$A$12:$AO$193,MATCH($A107,[1]Sheet1!$A$12:$A$193,0),10)*(1+$A$4) -> 2.0119 | P107: =COUNTIF($P$5:P$5,"Year")*$I$4 -> 5 | Q107: =0% -> 0 | R107: 0.03 | S107: =COUNTIF($P$5:S$5,"Year")*$I$4 -> 10 | T107: =0% -> 0 | U107: 0.03 | V107: =COUNTIF($P$5:V$5,"Year")*$I$4 -> 15 | W107: =0% -> 0 | X107: 0.03 | Y107: =COUNTIF($P$5:Y$5,"Year")*$I$4 -> 20 | Z107: =0% -> 0 | AA107: 0.03 | AB107: =COUNTIF($P$5:AB$5,"Year")*$I$4 -> 25 | AC107: =0% -> 0 | AD107: 0.03 | AE107: =COUNTIF($P$5:AE$5,"Year")*$I$4 -> 30 | AF107: =0% -> 0 | AG107: 0.03 | AH107: =COUNTIF($P$5:AH$5,"Year")*$I$4 -> 35 | AI107: =0% -> 0 | AJ107: 0.03 | AK107: =COUNTIF($P$5:AK$5,"Year")*$I$4 -> 40 | AL107: =0% -> 0 | AM107: 0.03 | AV107: 0 | AW107: 0 | AX107: 0 | AY107: 0 | AZ107: 0 | BA107: 0 | BB107: 0 | BC107: 0 | BD107: 0 | BE107: 0 | BF107: 0 | BG107: 0 | BH107: 0 | BI107: 30 | BJ107: 6 | BK107: 120 | BL107: =INDEX('Avionics ID'!A:E,MATCH(B107,'Avionics ID'!E:E,0),3) -> Navigation
A108: =INDEX('Avionics ID'!A:E,MATCH(B108,'Avionics ID'!E:E,0),1) -> 857 | B108: Infra-red countermeasure | C108: 0.05 | D108: 0.06 | G108: 20 | H108: Obsolescence | I108: =SUBSTITUTE(ADDRESS(1,MATCH(A108,'Pt1-AvionicsComponentCosts'!$A$6:$NC$6,0)+1),"$1","") -> $IF | J108: =_xlfn.TEXTJOIN(", ",TRUE,_xlfn.UNIQUE(_xlfn._xlws.SORT(_xlfn._xlws.FILTER('Pt1-AvionicsComponentCosts'!$NF$12:$NF$384,ISNUMBER(INDIRECT("'Pt1-AvionicsComponentCosts'!"&I108&"$12:"&I108&"$384")))))) -> Attack Helo, Helo | L108: 0.06 | M108: =IF($A$2,INDEX([1]Sheet1!$A$12:$AO$193,MATCH($A108,[1]Sheet1!$A$12:$A$193,0),8),2*$L108) -> 0.12 | N108: =INDEX([1]Sheet1!$A$12:$AO$193,MATCH($A108,[1]Sheet1!$A$12:$A$193,0),9)*(1+$A$4) -> 0.396 | O108: =INDEX([1]Sheet1!$A$12:$AO$193,MATCH($A108,[1]Sheet1!$A$12:$A$193,0),10)*(1+$A$4) -> 2.057 | P108: =COUNTIF($P$5:P$5,"Year")*$I$4 -> 5 | Q108: =0% -> 0 | R108: 0 | S108: =COUNTIF($P$5:S$5,"Year")*$I$4 -> 10 | T108: =0% -> 0 | U108: 0.06 | V108: =COUNTIF($P$5:V$5,"Year")*$I$4 -> 15 | W108: =0% -> 0 | X108: 0 | Y108: =COUNTIF($P$5:Y$5,"Year")*$I$4 -> 20 | Z108: =0% -> 0 | AA108: 0.06 | AB108: =COUNTIF($P$5:AB$5,"Year")*$I$4 -> 25 | AC108: =0% -> 0 | AD108: 0 | AE108: =COUNTIF($P$5:AE$5,"Year")*$I$4 -> 30 | AF108: =0% -> 0 | AG108: 0.06 | AH108: =COUNTIF($P$5:AH$5,"Year")*$I$4 -> 35 | AI108: =0% -> 0 | AJ108: 0 | AK108: =COUNTIF($P$5:AK$5,"Year")*$I$4 -> 40 | AL108: =0% -> 0 | AM108: 0.06 | AV108: 0 | AW108: 0 | AX108: 0 | AY108: 0 | AZ108: 0 | BA108: 0 | BB108: 0 | BC108: 0 | BD108: 0 | BE108: 0 | BF108: 0 | BG108: 0 | BH108: 0 | BI108: 36 | BJ108: 12 | BK108: 240 | BL108: =INDEX('Avionics ID'!A:E,MATCH(B108,'Avionics ID'!E:E,0),3) -> Mission
A109: =INDEX('Avionics ID'!A:E,MATCH(B109,'Avionics ID'!E:E,0),1) -> 822 | B109: Integrated Avionics computers (IACs) | C109: 0.06666666667 | D109: 0.03 | G109: 15 | H109: Obsolescence | I109: =SUBSTITUTE(ADDRESS(1,MATCH(A109,'Pt1-AvionicsComponentCosts'!$A$6:$NC$6,0)+1),"$1","") -> $HN | J109: =_xlfn.TEXTJOIN(", ",TRUE,_xlfn.UNIQUE(_xlfn._xlws.SORT(_xlfn._xlws.FILTER('Pt1-AvionicsComponentCosts'!$NF$12:$NF$384,ISNUMBER(INDIRECT("'Pt1-AvionicsComponentCosts'!"&I109&"$12:"&I109&"$384")))))) -> Challenger, Citation, E550, EMB Bizjet, Falcon, Global, Gulfstream, Hawker, Hondajet, Learjet, Nextant 400XT, PC-24, Phenom, Praetor, SF50 | L109: 0.03 | M109: =IF($A$2,INDEX([1]Sheet1!$A$12:$AO$193,MATCH($A109,[1]Sheet1!$A$12:$A$193,0),8),2*$L109) -> 0.06 | N109: =INDEX([1]Sheet1!$A$12:$AO$193,MATCH($A109,[1]Sheet1!$A$12:$A$193,0),9)*(1+$A$4) -> 0.3905 | O109: =INDEX([1]Sheet1!$A$12:$AO$193,MATCH($A109,[1]Sheet1!$A$12:$A$193,0),10)*(1+$A$4) -> 1.1561 | P109: =COUNTIF($P$5:P$5,"Year")*$I$4 -> 5 | Q109: =0% -> 0 | R109: 0 | S109: =COUNTIF($P$5:S$5,"Year")*$I$4 -> 10 | T109: =0% -> 0 | U109: 0.03 | V109: =COUNTIF($P$5:V$5,"Year")*$I$4 -> 15 | W109: =0% -> 0 | X109: 0.03 | Y109: =COUNTIF($P$5:Y$5,"Year")*$I$4 -> 20 | Z109: =0% -> 0 | AA109: 0.03 | AB109: =COUNTIF($P$5:AB$5,"Year")*$I$4 -> 25 | AC109: =0% -> 0 | AD109: 0 | AE109: =COUNTIF($P$5:AE$5,"Year")*$I$4 -> 30 | AF109: =0% -> 0 | AG109: 0.03 | AH109: =COUNTIF($P$5:AH$5,"Year")*$I$4 -> 35 | AI109: =0% -> 0 | AJ109: 0 | AK109: =COUNTIF($P$5:AK$5,"Year")*$I$4 -> 40 | AL109: =0% -> 0 | AM109: 0.03 | AV109: 0 | AW109: 0 | AX109: 0 | AY109: 0 | AZ109: 0 | BA109: 0 | BB109: 0 | BC109: 0 | BD109: 0 | BE109: 0 | BF109: 0 | BG109: 0 | BH109: 0 | BI109: 21 | BJ109: 6 | BK109: 120 | BL109: =INDEX('Avionics ID'!A:E,MATCH(B109,'Avionics ID'!E:E,0),3) -> IMA
A110: =INDEX('Avionics ID'!A:E,MATCH(B110,'Avionics ID'!E:E,0),1) -> 785 | B110: Integrated Core Processor (ICP) | C110: 0.05 | D110: 0.06 | G110: 20 | H110: Obsolescence | I110: =SUBSTITUTE(ADDRESS(1,MATCH(A110,'Pt1-AvionicsComponentCosts'!$A$6:$NC$6,0)+1),"$1","") -> $HP | J110: =_xlfn.TEXTJOIN(", ",TRUE,_xlfn.UNIQUE(_xlfn._xlws.SORT(_xlfn._xlws.FILTER('Pt1-AvionicsComponentCosts'!$NF$12:$NF$384,ISNUMBER(INDIRECT("'Pt1-AvionicsComponentCosts'!"&I110&"$12:"&I110&"$384")))))) -> Attack, Stealth | L110: 0.06 | M110: =IF($A$2,INDEX([1]Sheet1!$A$12:$AO$193,MATCH($A110,[1]Sheet1!$A$12:$A$193,0),8),2*$L110) -> 0.12 | N110: =INDEX([1]Sheet1!$A$12:$AO$193,MATCH($A110,[1]Sheet1!$A$12:$A$193,0),9)*(1+$A$4) -> 0.3905 | O110: =INDEX([1]Sheet1!$A$12:$AO$193,MATCH($A110,[1]Sheet1!$A$12:$A$193,0),10)*(1+$A$4) -> 1.1561 | P110: =COUNTIF($P$5:P$5,"Year")*$I$4 -> 5 | Q110: =0% -> 0 | R110: 0 | S110: =COUNTIF($P$5:S$5,"Year")*$I$4 -> 10 | T110: =0% -> 0 | U110: 0.06 | V110: =COUNTIF($P$5:V$5,"Year")*$I$4 -> 15 | W110: =0% -> 0 | X110: 0 | Y110: =COUNTIF($P$5:Y$5,"Year")*$I$4 -> 20 | Z110: =0% -> 0 | AA110: 0.06 | AB110: =COUNTIF($P$5:AB$5,"Year")*$I$4 -> 25 | AC110: =0% -> 0 | AD110: 0 | AE110: =COUNTIF($P$5:AE$5,"Year")*$I$4 -> 30 | AF110: =0% -> 0 | AG110: 0.06 | AH110: =COUNTIF($P$5:AH$5,"Year")*$I$4 -> 35 | AI110: =0% -> 0 | AJ110: 0 | AK110: =COUNTIF($P$5:AK$5,"Year")*$I$4 -> 40 | AL110: =0% -> 0 | AM110: 0.06 | AV110: 0 | AW110: 0 | AX110: 0 | AY110: 0 | AZ110: 0 | BA110: 0 | BB110: 0 | BC110: 0 | BD110: 0 | BE110: 0 | BF110: 0 | BG110: 0 | BH110: 0 | BI110: 36 | BJ110: 12 | BK110: 240 | BL110: =INDEX('Avionics ID'!A:E,MATCH(B110,'Avionics ID'!E:E,0),3) -> IMA
A111: =INDEX('Avionics ID'!A:E,MATCH(B111,'Avionics ID'!E:E,0),1) -> 860 | B111: Integrated data modem | C111: 0.05 | D111: 0.06 | G111: 20 | H111: Obsolescence | I111: =SUBSTITUTE(ADDRESS(1,MATCH(A111,'Pt1-AvionicsComponentCosts'!$A$6:$NC$6,0)+1),"$1","") -> $DF | J111: =_xlfn.TEXTJOIN(", ",TRUE,_xlfn.UNIQUE(_xlfn._xlws.SORT(_xlfn._xlws.FILTER('Pt1-AvionicsComponentCosts'!$NF$12:$NF$384,ISNUMBER(INDIRECT("'Pt1-AvionicsComponentCosts'!"&I111&"$12:"&I111&"$384")))))) -> Attack Helo, Helo | L111: 0.06 | M111: =IF($A$2,INDEX([1]Sheet1!$A$12:$AO$193,MATCH($A111,[1]Sheet1!$A$12:$A$193,0),8),2*$L111) -> 0.12 | N111: =INDEX([1]Sheet1!$A$12:$AO$193,MATCH($A111,[1]Sheet1!$A$12:$A$193,0),9)*(1+$A$4) -> 0.7513 | O111: =INDEX([1]Sheet1!$A$12:$AO$193,MATCH($A111,[1]Sheet1!$A$12:$A$193,0),10)*(1+$A$4) -> 2.1241 | P111: =COUNTIF($P$5:P$5,"Year")*$I$4 -> 5 | Q111: =0% -> 0 | R111: 0 | S111: =COUNTIF($P$5:S$5,"Year")*$I$4 -> 10 | T111: =0% -> 0 | U111: 0.06 | V111: =COUNTIF($P$5:V$5,"Year")*$I$4 -> 15 | W111: =0% -> 0 | X111: 0 | Y111: =COUNTIF($P$5:Y$5,"Year")*$I$4 -> 20 | Z111: =0% -> 0 | AA111: 0.06 | AB111: =COUNTIF($P$5:AB$5,"Year")*$I$4 -> 25 | AC111: =0% -> 0 | AD111: 0 | AE111: =COUNTIF($P$5:AE$5,"Year")*$I$4 -> 30 | AF111: =0% -> 0 | AG111: 0.06 | AH111: =COUNTIF($P$5:AH$5,"Year")*$I$4 -> 35 | AI111: =0% -> 0 | AJ111: 0 | AK111: =COUNTIF($P$5:AK$5,"Year")*$I$4 -> 40 | AL111: =0% -> 0 | AM111: 0.06 | AV111: 0 | AW111: 0 | AX111: 0 | AY111: 0 | AZ111: 0 | BA111: 0 | BB111: 0 | BC111: 0 | BD111: 0 | BE111: 0 | BF111: 0 | BG111: 0 | BH111: 0 | BI111: 36 | BJ111: 12 | BK111: 240 | BL111: =INDEX('Avionics ID'!A:E,MATCH(B111,'Avionics ID'!E:E,0),3) -> Data
A112: =INDEX('Avionics ID'!A:E,MATCH(B112,'Avionics ID'!E:E,0),1) -> 810 | B112: Integrated Electronic Standby System | C112: 0.1 | D112: 0.06 | G112: 10 | H112: Obsolescence | I112: =SUBSTITUTE(ADDRESS(1,MATCH(A112,'Pt1-AvionicsComponentCosts'!$A$6:$NC$6,0)+1),"$1","") -> $FD | J112: =_xlfn.TEXTJOIN(", ",TRUE,_xlfn.UNIQUE(_xlfn._xlws.SORT(_xlfn._xlws.FILTER('Pt1-AvionicsComponentCosts'!$NF$12:$NF$384,ISNUMBER(INDIRECT("'Pt1-AvionicsComponentCosts'!"&I112&"$12:"&I112&"$384")))))) -> ARJ, CRJ, EMB Regional, Reg TP, Superjet 100, Turbine GA | L112: 0.06 | M112: =IF($A$2,INDEX([1]Sheet1!$A$12:$AO$193,MATCH($A112,[1]Sheet1!$A$12:$A$193,0),8),2*$L112) -> 0.12 | N112: =INDEX([1]Sheet1!$A$12:$AO$193,MATCH($A112,[1]Sheet1!$A$12:$A$193,0),9)*(1+$A$4) -> 0.3883 | O112: =INDEX([1]Sheet1!$A$12:$AO$193,MATCH($A112,[1]Sheet1!$A$12:$A$193,0),10)*(1+$A$4) -> 2.0306 | P112: =COUNTIF($P$5:P$5,"Year")*$I$4 -> 5 | Q112: =0% -> 0 | R112: 0.06 | S112: =COUNTIF($P$5:S$5,"Year")*$I$4 -> 10 | T112: =0% -> 0 | U112: 0.06 | V112: =COUNTIF($P$5:V$5,"Year")*$I$4 -> 15 | W112: =0% -> 0 | X112: 0.06 | Y112: =COUNTIF($P$5:Y$5,"Year")*$I$4 -> 20 | Z112: =0% -> 0 | AA112: 0.06 | AB112: =COUNTIF($P$5:AB$5,"Year")*$I$4 -> 25 | AC112: =0% -> 0 | AD112: 0.06 | AE112: =COUNTIF($P$5:AE$5,"Year")*$I$4 -> 30 | AF112: =0% -> 0 | AG112: 0.06 | AH112: =COUNTIF($P$5:AH$5,"Year")*$I$4 -> 35 | AI112: =0% -> 0 | AJ112: 0.06 | AK112: =COUNTIF($P$5:AK$5,"Year")*$I$4 -> 40 | AL112: =0% -> 0 | AM112: 0.06 | AV112: 0 | AW112: 0 | AX112: 0 | AY112: 0 | AZ112: 0 | BA112: 0 | BB112: 0 | BC112: 0 | BD112: 0 | BE112: 0 | BF112: 0 | BG112: 0 | BH112: 0 | BI112: 60 | BJ112: 12 | BK112: 240 | BL112: =INDEX('Avionics ID'!A:E,MATCH(B112,'Avionics ID'!E:E,0),3) -> Display
A113: =INDEX('Avionics ID'!A:E,MATCH(B113,'Avionics ID'!E:E,0),1) -> 735 | B113: Integrated Standby Instrument System | C113: 0.1 | D113: 0.06 | G113: 10 | H113: Obsolescence | I113: =SUBSTITUTE(ADDRESS(1,MATCH(A113,'Pt1-AvionicsComponentCosts'!$A$6:$NC$6,0)+1),"$1","") -> $FF | J113: =_xlfn.TEXTJOIN(", ",TRUE,_xlfn.UNIQUE(_xlfn._xlws.SORT(_xlfn._xlws.FILTER('Pt1-AvionicsComponentCosts'!$NF$12:$NF$384,ISNUMBER(INDIRECT("'Pt1-AvionicsComponentCosts'!"&I113&"$12:"&I113&"$384")))))) -> A220, A300, A320, A321, A330, A340, A350, A380, ATR, Attack Helo, B717, B737, B747, B757, B767, B777, B787, C919, EMB Regional, Helo, MC-21, MD-11, Mil Transport, Military Jet, NSA | L113: 0.06 | M113: =IF($A$2,INDEX([1]Sheet1!$A$12:$AO$193,MATCH($A113,[1]Sheet1!$A$12:$A$193,0),8),2*$L113) -> 0.12 | N113: =INDEX([1]Sheet1!$A$12:$AO$193,MATCH($A113,[1]Sheet1!$A$12:$A$193,0),9)*(1+$A$4) -> 0.3883 | O113: =INDEX([1]Sheet1!$A$12:$AO$193,MATCH($A113,[1]Sheet1!$A$12:$A$193,0),10)*(1+$A$4) -> 2.0306 | P113: =COUNTIF($P$5:P$5,"Year")*$I$4 -> 5 | Q113: =0% -> 0 | R113: 0.06 | S113: =COUNTIF($P$5:S$5,"Year")*$I$4 -> 10 | T113: =0% -> 0 | U113: 0.06 | V113: =COUNTIF($P$5:V$5,"Year")*$I$4 -> 15 | W113: =0% -> 0 | X113: 0.06 | Y113: =COUNTIF($P$5:Y$5,"Year")*$I$4 -> 20 | Z113: =0% -> 0 | AA113: 0.06 | AB113: =COUNTIF($P$5:AB$5,"Year")*$I$4 -> 25 | AC113: =0% -> 0 | AD113: 0.06 | AE113: =COUNTIF($P$5:AE$5,"Year")*$I$4 -> 30 | AF113: =0% -> 0 | AG113: 0.06 | AH113: =COUNTIF($P$5:AH$5,"Year")*$I$4 -> 35 | AI113: =0% -> 0 | AJ113: 0.06 | AK113: =COUNTIF($P$5:AK$5,"Year")*$I$4 -> 40 | AL113: =0% -> 0 | AM113: 0.06 | AV113: 0 | AW113: 0 | AX113: 0 | AY113: 0 | AZ113: 0 | BA113: 0 | BB113: 0 | BC113: 0 | BD113: 0 | BE113: 0 | BF113: 0 | BG113: 0 | BH113: 0 | BI113: 60 | BJ113: 12 | BK113: 240 | BL113: =INDEX('Avionics ID'!A:E,MATCH(B113,'Avionics ID'!E:E,0),3) -> Display
A114: =INDEX('Avionics ID'!A:E,MATCH(B114,'Avionics ID'!E:E,0),1) -> 853 | B114: Interface maintenance data recorders | C114: 0.1 | D114: 0.03 | G114: 10 | H114: Obsolescence | I114: =SUBSTITUTE(ADDRESS(1,MATCH(A114,'Pt1-AvionicsComponentCosts'!$A$6:$NC$6,0)+1),"$1","") -> $DH | J114: =_xlfn.TEXTJOIN(", ",TRUE,_xlfn.UNIQUE(_xlfn._xlws.SORT(_xlfn._xlws.FILTER('Pt1-AvionicsComponentCosts'!$NF$12:$NF$384,ISNUMBER(INDIRECT("'Pt1-AvionicsComponentCosts'!"&I114&"$12:"&I114&"$384")))))) -> Attack Helo, Helo | L114: 0.03 | M114: =IF($A$2,INDEX([1]Sheet1!$A$12:$AO$193,MATCH($A114,[1]Sheet1!$A$12:$A$193,0),8),2*$L114) -> 0.06 | N114: =INDEX([1]Sheet1!$A$12:$AO$193,MATCH($A114,[1]Sheet1!$A$12:$A$193,0),9)*(1+$A$4) -> 0.7513 | O114: =INDEX([1]Sheet1!$A$12:$AO$193,MATCH($A114,[1]Sheet1!$A$12:$A$193,0),10)*(1+$A$4) -> 2.1241 | P114: =COUNTIF($P$5:P$5,"Year")*$I$4 -> 5 | Q114: =0% -> 0 | R114: 0.03 | S114: =COUNTIF($P$5:S$5,"Year")*$I$4 -> 10 | T114: =0% -> 0 | U114: 0.03 | V114: =COUNTIF($P$5:V$5,"Year")*$I$4 -> 15 | W114: =0% -> 0 | X114: 0.03 | Y114: =COUNTIF($P$5:Y$5,"Year")*$I$4 -> 20 | Z114: =0% -> 0 | AA114: 0.03 | AB114: =COUNTIF($P$5:AB$5,"Year")*$I$4 -> 25 | AC114: =0% -> 0 | AD114: 0.03 | AE114: =COUNTIF($P$5:AE$5,"Year")*$I$4 -> 30 | AF114: =0% -> 0 | AG114: 0.03 | AH114: =COUNTIF($P$5:AH$5,"Year")*$I$4 -> 35 | AI114: =0% -> 0 | AJ114: 0.03 | AK114: =COUNTIF($P$5:AK$5,"Year")*$I$4 -> 40 | AL114: =0% -> 0 | AM114: 0.03 | AV114: 0 | AW114: 0 | AX114: 0 | AY114: 0 | AZ114: 0 | BA114: 0 | BB114: 0 | BC114: 0 | BD114: 0 | BE114: 0 | BF114: 0 | BG114: 0 | BH114: 0 | BI114: 30 | BJ114: 6 | BK114: 120 | BL114: =INDEX('Avionics ID'!A:E,MATCH(B114,'Avionics ID'!E:E,0),3) -> Data
A115: =INDEX('Avionics ID'!A:E,MATCH(B115,'Avionics ID'!E:E,0),1) -> 778 | B115: Intergated Nav Receivers (INRs) | C115: 0.1 | D115: 0.03 | G115: 10 | H115: Obsolescence | I115: =SUBSTITUTE(ADDRESS(1,MATCH(A115,'Pt1-AvionicsComponentCosts'!$A$6:$NC$6,0)+1),"$1","") -> $JP | J115: =_xlfn.TEXTJOIN(", ",TRUE,_xlfn.UNIQUE(_xlfn._xlws.SORT(_xlfn._xlws.FILTER('Pt1-AvionicsComponentCosts'!$NF$12:$NF$384,ISNUMBER(INDIRECT("'Pt1-AvionicsComponentCosts'!"&I115&"$12:"&I115&"$384")))))) -> A350, B747, B777, B787 | L115: 0.03 | M115: =IF($A$2,INDEX([1]Sheet1!$A$12:$AO$193,MATCH($A115,[1]Sheet1!$A$12:$A$193,0),8),2*$L115) -> 0.06 | N115: =INDEX([1]Sheet1!$A$12:$AO$193,MATCH($A115,[1]Sheet1!$A$12:$A$193,0),9)*(1+$A$4) -> 0.3894 | O115: =INDEX([1]Sheet1!$A$12:$AO$193,MATCH($A115,[1]Sheet1!$A$12:$A$193,0),10)*(1+$A$4) -> 2.0119 | P115: =COUNTIF($P$5:P$5,"Year")*$I$4 -> 5 | Q115: =0% -> 0 | R115: 0.03 | S115: =COUNTIF($P$5:S$5,"Year")*$I$4 -> 10 | T115: =0% -> 0 | U115: 0.03 | V115: =COUNTIF($P$5:V$5,"Year")*$I$4 -> 15 | W115: =0% -> 0 | X115: 0.03 | Y115: =COUNTIF($P$5:Y$5,"Year")*$I$4 -> 20 | Z115: =0% -> 0 | AA115: 0.03 | AB115: =COUNTIF($P$5:AB$5,"Year")*$I$4 -> 25 | AC115: =0% -> 0 | AD115: 0.03 | AE115: =COUNTIF($P$5:AE$5,"Year")*$I$4 -> 30 | AF115: =0% -> 0 | AG115: 0.03 | AH115: =COUNTIF($P$5:AH$5,"Year")*$I$4 -> 35 | AI115: =0% -> 0 | AJ115: 0.03 | AK115: =COUNTIF($P$5:AK$5,"Year")*$I$4 -> 40 | AL115: =0% -> 0 | AM115: 0.03 | AV115: 0 | AW115: 0 | AX115: 0 | AY115: 0 | AZ115: 0 | BA115: 0 | BB115: 0 | BC115: 0 | BD115: 0 | BE115: 0 | BF115: 0 | BG115: 0 | BH115: 0 | BI115: 30 | BJ115: 6 | BK115: 120 | BL115: =INDEX('Avionics ID'!A:E,MATCH(B115,'Avionics ID'!E:E,0),3) -> Navigation
A116: =INDEX('Avionics ID'!A:E,MATCH(B116,'Avionics ID'!E:E,0),1) -> 803 | B116: IRS Gyroscope System | C116: 0.1 | D116: 0.06 | G116: 10 | H116: Obsolescence | I116: =SUBSTITUTE(ADDRESS(1,MATCH(A116,'Pt1-AvionicsComponentCosts'!$A$6:$NC$6,0)+1),"$1","") -> $JR | J116: =_xlfn.TEXTJOIN(", ",TRUE,_xlfn.UNIQUE(_xlfn._xlws.SORT(_xlfn._xlws.FILTER('Pt1-AvionicsComponentCosts'!$NF$12:$NF$384,ISNUMBER(INDIRECT("'Pt1-AvionicsComponentCosts'!"&I116&"$12:"&I116&"$384")))))) -> ARJ, CRJ, EMB Regional, Reg TP, Superjet 100, Turbine GA | L116: 0.06 | M116: =IF($A$2,INDEX([1]Sheet1!$A$12:$AO$193,MATCH($A116,[1]Sheet1!$A$12:$A$193,0),8),2*$L116) -> 0.12 | N116: =INDEX([1]Sheet1!$A$12:$AO$193,MATCH($A116,[1]Sheet1!$A$12:$A$193,0),9)*(1+$A$4) -> 0.3894 | O116: =INDEX([1]Sheet1!$A$12:$AO$193,MATCH($A116,[1]Sheet1!$A$12:$A$193,0),10)*(1+$A$4) -> 2.0119 | P116: =COUNTIF($P$5:P$5,"Year")*$I$4 -> 5 | Q116: =0% -> 0 | R116: 0.06 | S116: =COUNTIF($P$5:S$5,"Year")*$I$4 -> 10 | T116: =0% -> 0 | U116: 0.06 | V116: =COUNTIF($P$5:V$5,"Year")*$I$4 -> 15 | W116: =0% -> 0 | X116: 0.06 | Y116: =COUNTIF($P$5:Y$5,"Year")*$I$4 -> 20 | Z116: =0% -> 0 | AA116: 0.06 | AB116: =COUNTIF($P$5:AB$5,"Year")*$I$4 -> 25 | AC116: =0% -> 0 | AD116: 0.06 | AE116: =COUNTIF($P$5:AE$5,"Year")*$I$4 -> 30 | AF116: =0% -> 0 | AG116: 0.06 | AH116: =COUNTIF($P$5:AH$5,"Year")*$I$4 -> 35 | AI116: =0% -> 0 | AJ116: 0.06 | AK116: =COUNTIF($P$5:AK$5,"Year")*$I$4 -> 40 | AL116: =0% -> 0 | AM116: 0.06 | AV116: 0 | AW116: =IF($H116="Technology / regulatory",IF(AW$5=$F116-2,$AW$1,IF(AW$5=$F116-1,$AX$1,IF(AW$5=$F116,$AY$1,IF(AW$5=$F116+1,$AZ$1,0)))),0) -> 0 | AX116: 0 | AY116: 0 | AZ116: 0 | BA116: 0 | BB116: 0 | BC116: 0 | BD116: 0 | BE116: 0 | BF116: 0 | BG116: 0 | BH116: 0 | BI116: 60 | BJ116: 12 | BK116: 240 | BL116: =INDEX('Avionics ID'!A:E,MATCH(B116,'Avionics ID'!E:E,0),3) -> Navigation
A117: =INDEX('Avionics ID'!A:E,MATCH(B117,'Avionics ID'!E:E,0),1) -> 776 | B117: IRU package | C117: 0.1 | D117: 0.03 | G117: 10 | H117: Obsolescence | I117: =SUBSTITUTE(ADDRESS(1,MATCH(A117,'Pt1-AvionicsComponentCosts'!$A$6:$NC$6,0)+1),"$1","") -> $JT | J117: =_xlfn.TEXTJOIN(", ",TRUE,_xlfn.UNIQUE(_xlfn._xlws.SORT(_xlfn._xlws.FILTER('Pt1-AvionicsComponentCosts'!$NF$12:$NF$384,ISNUMBER(INDIRECT("'Pt1-AvionicsComponentCosts'!"&I117&"$12:"&I117&"$384")))))) -> A350, B747, B777, B787 | L117: 0.03 | M117: =IF($A$2,INDEX([1]Sheet1!$A$12:$AO$193,MATCH($A117,[1]Sheet1!$A$12:$A$193,0),8),2*$L117) -> 0.06 | N117: =INDEX([1]Sheet1!$A$12:$AO$193,MATCH($A117,[1]Sheet1!$A$12:$A$193,0),9)*(1+$A$4) -> 0.3894 | O117: =INDEX([1]Sheet1!$A$12:$AO$193,MATCH($A117,[1]Sheet1!$A$12:$A$193,0),10)*(1+$A$4) -> 2.0119 | P117: =COUNTIF($P$5:P$5,"Year")*$I$4 -> 5 | Q117: =0% -> 0 | R117: 0.03 | S117: =COUNTIF($P$5:S$5,"Year")*$I$4 -> 10 | T117: =0% -> 0 | U117: 0.03 | V117: =COUNTIF($P$5:V$5,"Year")*$I$4 -> 15 | W117: =0% -> 0 | X117: 0.03 | Y117: =COUNTIF($P$5:Y$5,"Year")*$I$4 -> 20 | Z117: =0% -> 0 | AA117: 0.03 | AB117: =COUNTIF($P$5:AB$5,"Year")*$I$4 -> 25 | AC117: =0% -> 0 | AD117: 0.03 | AE117: =COUNTIF($P$5:AE$5,"Year")*$I$4 -> 30 | AF117: =0% -> 0 | AG117: 0.03 | AH117: =COUNTIF($P$5:AH$5,"Year")*$I$4 -> 35 | AI117: =0% -> 0 | AJ117: 0.03 | AK117: =COUNTIF($P$5:AK$5,"Year")*$I$4 -> 40 | AL117: =0% -> 0 | AM117: 0.03 | AV117: 0 | AW117: 0 | AX117: 0 | AY117: 0 | AZ117: 0 | BA117: 0 | BB117: 0 | BC117: 0 | BD117: 0 | BE117: 0 | BF117: 0 | BG117: 0 | BH117: 0 | BI117: 30 | BJ117: 6 | BK117: 120 | BL117: =INDEX('Avionics ID'!A:E,MATCH(B117,'Avionics ID'!E:E,0),3) -> Navigation
A118: =INDEX('Avionics ID'!A:E,MATCH(B118,'Avionics ID'!E:E,0),1) -> 849 | B118: Joint tactical radio system (JTRS), | C118: 0.05 | D118: 0.06 | G118: 20 | H118: Obsolescence | I118: =SUBSTITUTE(ADDRESS(1,MATCH(A118,'Pt1-AvionicsComponentCosts'!$A$6:$NC$6,0)+1),"$1","") -> $BD | J118: =_xlfn.TEXTJOIN(", ",TRUE,_xlfn.UNIQUE(_xlfn._xlws.SORT(_xlfn._xlws.FILTER('Pt1-AvionicsComponentCosts'!$NF$12:$NF$384,ISNUMBER(INDIRECT("'Pt1-AvionicsComponentCosts'!"&I118&"$12:"&I118&"$384")))))) -> Attack Helo, Helo | L118: 0.06 | M118: =IF($A$2,INDEX([1]Sheet1!$A$12:$AO$193,MATCH($A118,[1]Sheet1!$A$12:$A$193,0),8),2*$L118) -> 0.12 | N118: =INDEX([1]Sheet1!$A$12:$AO$193,MATCH($A118,[1]Sheet1!$A$12:$A$193,0),9)*(1+$A$4) -> 0.5511 | O118: =INDEX([1]Sheet1!$A$12:$AO$193,MATCH($A118,[1]Sheet1!$A$12:$A$193,0),10)*(1+$A$4) -> 1.4267 | P118: =COUNTIF($P$5:P$5,"Year")*$I$4 -> 5 | Q118: =0% -> 0 | R118: 0 | S118: =COUNTIF($P$5:S$5,"Year")*$I$4 -> 10 | T118: =0% -> 0 | U118: 0.06 | V118: =COUNTIF($P$5:V$5,"Year")*$I$4 -> 15 | W118: =0% -> 0 | X118: 0 | Y118: =COUNTIF($P$5:Y$5,"Year")*$I$4 -> 20 | Z118: =0% -> 0 | AA118: 0.06 | AB118: =COUNTIF($P$5:AB$5,"Year")*$I$4 -> 25 | AC118: =0% -> 0 | AD118: 0 | AE118: =COUNTIF($P$5:AE$5,"Year")*$I$4 -> 30 | AF118: =0% -> 0 | AG118: 0.06 | AH118: =COUNTIF($P$5:AH$5,"Year")*$I$4 -> 35 | AI118: =0% -> 0 | AJ118: 0 | AK118: =COUNTIF($P$5:AK$5,"Year")*$I$4 -> 40 | AL118: =0% -> 0 | AM118: 0.06 | AV118: 0 | AW118: 0 | AX118: 0 | AY118: 0 | AZ118: 0 | BA118: 0 | BB118: 0 | BC118: 0 | BD118: 0 | BE118: 0 | BF118: 0 | BG118: 0 | BH118: 0 | BI118: 36 | BJ118: 12 | BK118: 240 | BL118: =INDEX('Avionics ID'!A:E,MATCH(B118,'Avionics ID'!E:E,0),3) -> Communications
A119: =INDEX('Avionics ID'!A:E,MATCH(B119,'Avionics ID'!E:E,0),1) -> 836 | B119: Keyboard cursor Control Units (KCCU) | C119: 0.05 | D119: 0.08 | G119: 20 | H119: Obsolescence | I119: =SUBSTITUTE(ADDRESS(1,MATCH(A119,'Pt1-AvionicsComponentCosts'!$A$6:$NC$6,0)+1),"$1","") -> $FH | J119: =_xlfn.TEXTJOIN(", ",TRUE,_xlfn.UNIQUE(_xlfn._xlws.SORT(_xlfn._xlws.FILTER('Pt1-AvionicsComponentCosts'!$NF$12:$NF$384,ISNUMBER(INDIRECT("'Pt1-AvionicsComponentCosts'!"&I119&"$12:"&I119&"$384")))))) -> A330 LMXT, A330 MRTT, Mil Transport, Military Jet, Military TP | L119: 0.08 | M119: =IF($A$2,INDEX([1]Sheet1!$A$12:$AO$193,MATCH($A119,[1]Sheet1!$A$12:$A$193,0),8),2*$L119) -> 0.16 | N119: =INDEX([1]Sheet1!$A$12:$AO$193,MATCH($A119,[1]Sheet1!$A$12:$A$193,0),9)*(1+$A$4) -> 0.3883 | O119: =INDEX([1]Sheet1!$A$12:$AO$193,MATCH($A119,[1]Sheet1!$A$12:$A$193,0),10)*(1+$A$4) -> 2.0306 | P119: =COUNTIF($P$5:P$5,"Year")*$I$4 -> 5 | Q119: =0% -> 0 | R119: 0 | S119: =COUNTIF($P$5:S$5,"Year")*$I$4 -> 10 | T119: =0% -> 0 | U119: 0.08 | V119: =COUNTIF($P$5:V$5,"Year")*$I$4 -> 15 | W119: =0% -> 0 | X119: 0 | Y119: =COUNTIF($P$5:Y$5,"Year")*$I$4 -> 20 | Z119: =0% -> 0 | AA119: 0.08 | AB119: =COUNTIF($P$5:AB$5,"Year")*$I$4 -> 25 | AC119: =0% -> 0 | AD119: 0 | AE119: =COUNTIF($P$5:AE$5,"Year")*$I$4 -> 30 | AF119: =0% -> 0 | AG119: 0.08 | AH119: =COUNTIF($P$5:AH$5,"Year")*$I$4 -> 35 | AI119: =0% -> 0 | AJ119: 0 | AK119: =COUNTIF($P$5:AK$5,"Year")*$I$4 -> 40 | AL119: =0% -> 0 | AM119: 0.08 | AV119: 0 | AW119: 0 | AX119: 0 | AY119: 0 | AZ119: 0 | BA119: 0 | BB119: 0 | BC119: 0 | BD119: 0 | BE119: 0 | BF119: 0 | BG119: 0 | BH119: 0 | BI119: 48 | BJ119: 16 | BK119: 320 | BL119: =INDEX('Avionics ID'!A:E,MATCH(B119,'Avionics ID'!E:E,0),3) -> Display
A120: =INDEX('Avionics ID'!A:E,MATCH(B120,'Avionics ID'!E:E,0),1) -> 858 | B120: Laser warning receiver | C120: 0.05 | D120: 0.06 | G120: 20 | H120: Obsolescence | I120: =SUBSTITUTE(ADDRESS(1,MATCH(A120,'Pt1-AvionicsComponentCosts'!$A$6:$NC$6,0)+1),"$1","") -> $LD | J120: =_xlfn.TEXTJOIN(", ",TRUE,_xlfn.UNIQUE(_xlfn._xlws.SORT(_xlfn._xlws.FILTER('Pt1-AvionicsComponentCosts'!$NF$12:$NF$384,ISNUMBER(INDIRECT("'Pt1-AvionicsComponentCosts'!"&I120&"$12:"&I120&"$384")))))) -> Attack Helo, Helo | L120: 0.06 | M120: =IF($A$2,INDEX([1]Sheet1!$A$12:$AO$193,MATCH($A120,[1]Sheet1!$A$12:$A$193,0),8),2*$L120) -> 0.12 | N120: =INDEX([1]Sheet1!$A$12:$AO$193,MATCH($A120,[1]Sheet1!$A$12:$A$193,0),9)*(1+$A$4) -> 0.3685 | O120: =INDEX([1]Sheet1!$A$12:$AO$193,MATCH($A120,[1]Sheet1!$A$12:$A$193,0),10)*(1+$A$4) -> 1.8513 | P120: =COUNTIF($P$5:P$5,"Year")*$I$4 -> 5 | Q120: =0% -> 0 | R120: 0 | S120: =COUNTIF($P$5:S$5,"Year")*$I$4 -> 10 | T120: =0% -> 0 | U120: 0.06 | V120: =COUNTIF($P$5:V$5,"Year")*$I$4 -> 15 | W120: =0% -> 0 | X120: 0 | Y120: =COUNTIF($P$5:Y$5,"Year")*$I$4 -> 20 | Z120: =0% -> 0 | AA120: 0.06 | AB120: =COUNTIF($P$5:AB$5,"Year")*$I$4 -> 25 | AC120: =0% -> 0 | AD120: 0 | AE120: =COUNTIF($P$5:AE$5,"Year")*$I$4 -> 30 | AF120: =0% -> 0 | AG120: 0.06 | AH120: =COUNTIF($P$5:AH$5,"Year")*$I$4 -> 35 | AI120: =0% -> 0 | AJ120: 0 | AK120: =COUNTIF($P$5:AK$5,"Year")*$I$4 -> 40 | AL120: =0% -> 0 | AM120: 0.06 | AV120: 0 | AW120: 0 | AX120: 0 | AY120: 0 | AZ120: 0 | BA120: 0 | BB120: 0 | BC120: 0 | BD120: 0 | BE120: 0 | BF120: 0 | BG120: 0 | BH120: 0 | BI120: 36 | BJ120: 12 | BK120: 240 | BL120: =INDEX('Avionics ID'!A:E,MATCH(B120,'Avionics ID'!E:E,0),3) -> Sensors
A121: =INDEX('Avionics ID'!A:E,MATCH(B121,'Avionics ID'!E:E,0),1) -> 811 | B121: Main displays | C121: 0.06666666667 | D121: 0.06 | E121: PBN | F121: 2030 | G121: 15 | H121: Technology / regulatory | I121: =SUBSTITUTE(ADDRESS(1,MATCH(A121,'Pt1-AvionicsComponentCosts'!$A$6:$NC$6,0)+1),"$1","") -> $FJ | J121: =_xlfn.TEXTJOIN(", ",TRUE,_xlfn.UNIQUE(_xlfn._xlws.SORT(_xlfn._xlws.FILTER('Pt1-AvionicsComponentCosts'!$NF$12:$NF$384,ISNUMBER(INDIRECT("'Pt1-AvionicsComponentCosts'!"&I121&"$12:"&I121&"$384")))))) -> Challenger, Citation, E550, EMB Bizjet, Falcon, Global, Gulfstream, Hawker, Hondajet, Learjet, Mil Fighter, Nextant 400XT, PC-24, Phenom, Praetor, SF50 | L121: 0.06 | M121: =IF($A$2,INDEX([1]Sheet1!$A$12:$AO$193,MATCH($A121,[1]Sheet1!$A$12:$A$193,0),8),2*$L121) -> 0.12 | N121: =INDEX([1]Sheet1!$A$12:$AO$193,MATCH($A121,[1]Sheet1!$A$12:$A$193,0),9)*(1+$A$4) -> 0.3883 | O121: =INDEX([1]Sheet1!$A$12:$AO$193,MATCH($A121,[1]Sheet1!$A$12:$A$193,0),10)*(1+$A$4) -> 2.0306 | P121: =COUNTIF($P$5:P$5,"Year")*$I$4 -> 5 | Q121: =0% -> 0 | R121: 0 | S121: =COUNTIF($P$5:S$5,"Year")*$I$4 -> 10 | T121: =0% -> 0 | U121: 0.06 | V121: =COUNTIF($P$5:V$5,"Year")*$I$4 -> 15 | W121: =0% -> 0 | X121: 0.06 | Y121: =COUNTIF($P$5:Y$5,"Year")*$I$4 -> 20 | Z121: =0% -> 0 | AA121: 0.06 | AB121: =COUNTIF($P$5:AB$5,"Year")*$I$4 -> 25 | AC121: =0% -> 0 | AD121: 0 | AE121: =COUNTIF($P$5:AE$5,"Year")*$I$4 -> 30 | AF121: =0% -> 0 | AG121: 0.06 | AH121: =COUNTIF($P$5:AH$5,"Year")*$I$4 -> 35 | AI121: =0% -> 0 | AJ121: 0 | AK121: =COUNTIF($P$5:AK$5,"Year")*$I$4 -> 40 | AL121: =0% -> 0 | AM121: 0.06 | AU121: PBN | AV121: 2.0306 | AW121: 0 | AX121: 0 | AY121: 0 | AZ121: 0 | BA121: 0.15 | BB121: 0.25 | BC121: 0.45 | BD121: 0.15 | BE121: 0 | BF121: 0 | BG121: 0 | BH121: 0 | BI121: 142 | BJ121: 12 | BK121: 240 | BL121: =INDEX('Avionics ID'!A:E,MATCH(B121,'Avionics ID'!E:E,0),3) -> Display
A122: =INDEX('Avionics ID'!A:E,MATCH(B122,'Avionics ID'!E:E,0),1) -> 710 | B122: MCDU | C122: 0.1 | D122: 0.08 | G122: 10 | H122: Obsolescence | I122: =SUBSTITUTE(ADDRESS(1,MATCH(A122,'Pt1-AvionicsComponentCosts'!$A$6:$NC$6,0)+1),"$1","") -> $GT | J122: =_xlfn.TEXTJOIN(", ",TRUE,_xlfn.UNIQUE(_xlfn._xlws.SORT(_xlfn._xlws.FILTER('Pt1-AvionicsComponentCosts'!$NF$12:$NF$384,ISNUMBER(INDIRECT("'Pt1-AvionicsComponentCosts'!"&I122&"$12:"&I122&"$384")))))) -> A220, A300, A320, A321, A330, A330 LMXT, A330 MRTT, A340, A350, A380, ARJ, ATR, B717, B737, B747, B757, B767, B777, B787, C919, Challenger, Citation, CRJ, E550, EMB Bizjet, EMB Regional, Falcon, Global, Gulfstream, Hawker, Hondajet, Learjet, MC-21, MD-11, Mil Transport, Military Jet, Military TP, Nextant 400XT, NSA, PC-24, Phenom, Praetor, Reg TP, SF50, Superjet 100, Turbine GA | L122: 0.08 | M122: =IF($A$2,INDEX([1]Sheet1!$A$12:$AO$193,MATCH($A122,[1]Sheet1!$A$12:$A$193,0),8),2*$L122) -> 0.16 | N122: =INDEX([1]Sheet1!$A$12:$AO$193,MATCH($A122,[1]Sheet1!$A$12:$A$193,0),9)*(1+$A$4) -> 0.4081 | O122: =INDEX([1]Sheet1!$A$12:$AO$193,MATCH($A122,[1]Sheet1!$A$12:$A$193,0),10)*(1+$A$4) -> 1.3541 | P122: =COUNTIF($P$5:P$5,"Year")*$I$4 -> 5 | Q122: =0% -> 0 | R122: 0.08 | S122: =COUNTIF($P$5:S$5,"Year")*$I$4 -> 10 | T122: =0% -> 0 | U122: 0.08 | V122: =COUNTIF($P$5:V$5,"Year")*$I$4 -> 15 | W122: =0% -> 0 | X122: 0.08 | Y122: =COUNTIF($P$5:Y$5,"Year")*$I$4 -> 20 | Z122: =0% -> 0 | AA122: 0.08 | AB122: =COUNTIF($P$5:AB$5,"Year")*$I$4 -> 25 | AC122: =0% -> 0 | AD122: 0.08 | AE122: =COUNTIF($P$5:AE$5,"Year")*$I$4 -> 30 | AF122: =0% -> 0 | AG122: 0.08 | AH122: =COUNTIF($P$5:AH$5,"Year")*$I$4 -> 35 | AI122: =0% -> 0 | AJ122: 0.08 | AK122: =COUNTIF($P$5:AK$5,"Year")*$I$4 -> 40 | AL122: =0% -> 0 | AM122: 0.08 | AV122: 0 | AW122: 0 | AX122: 0 | AY122: 0 | AZ122: 0 | BA122: 0 | BB122: 0 | BC122: 0 | BD122: 0 | BE122: 0 | BF122: 0 | BG122: 0 | BH122: 0 | BI122: 80 | BJ122: 16 | BK122: 320 | BL122: =INDEX('Avionics ID'!A:E,MATCH(B122,'Avionics ID'!E:E,0),3) -> FMS
A123: =INDEX('Avionics ID'!A:E,MATCH(B123,'Avionics ID'!E:E,0),1) -> 837 | B123: Military Mission Management System | C123: 0.1 | D123: 0.06 | G123: 10 | H123: Obsolescence | I123: =SUBSTITUTE(ADDRESS(1,MATCH(A123,'Pt1-AvionicsComponentCosts'!$A$6:$NC$6,0)+1),"$1","") -> $IH | J123: =_xlfn.TEXTJOIN(", ",TRUE,_xlfn.UNIQUE(_xlfn._xlws.SORT(_xlfn._xlws.FILTER('Pt1-AvionicsComponentCosts'!$NF$12:$NF$384,ISNUMBER(INDIRECT("'Pt1-AvionicsComponentCosts'!"&I123&"$12:"&I123&"$384")))))) -> A330 LMXT, A330 MRTT, Mil Transport, Military Jet, Military TP | L123: 0.06 | M123: =IF($A$2,INDEX([1]Sheet1!$A$12:$AO$193,MATCH($A123,[1]Sheet1!$A$12:$A$193,0),8),2*$L123) -> 0.12 | N123: =INDEX([1]Sheet1!$A$12:$AO$193,MATCH($A123,[1]Sheet1!$A$12:$A$193,0),9)*(1+$A$4) -> 0.396 | O123: =INDEX([1]Sheet1!$A$12:$AO$193,MATCH($A123,[1]Sheet1!$A$12:$A$193,0),10)*(1+$A$4) -> 2.057 | P123: =COUNTIF($P$5:P$5,"Year")*$I$4 -> 5 | Q123: =0% -> 0 | R123: 0.06 | S123: =COUNTIF($P$5:S$5,"Year")*$I$4 -> 10 | T123: =0% -> 0 | U123: 0.06 | V123: =COUNTIF($P$5:V$5,"Year")*$I$4 -> 15 | W123: =0% -> 0 | X123: 0.06 | Y123: =COUNTIF($P$5:Y$5,"Year")*$I$4 -> 20 | Z123: =0% -> 0 | AA123: 0.06 | AB123: =COUNTIF($P$5:AB$5,"Year")*$I$4 -> 25 | AC123: =0% -> 0 | AD123: 0.06 | AE123: =COUNTIF($P$5:AE$5,"Year")*$I$4 -> 30 | AF123: =0% -> 0 | AG123: 0.06 | AH123: =COUNTIF($P$5:AH$5,"Year")*$I$4 -> 35 | AI123: =0% -> 0 | AJ123: 0.06 | AK123: =COUNTIF($P$5:AK$5,"Year")*$I$4 -> 40 | AL123: =0% -> 0 | AM123: 0.06 | AV123: 0 | AW123: 0 | AX123: 0 | AY123: 0 | AZ123: 0 | BA123: 0 | BB123: 0 | BC123: 0 | BD123: 0 | BE123: 0 | BF123: 0 | BG123: 0 | BH123: 0 | BI123: 60 | BJ123: 12 | BK123: 240 | BL123: =INDEX('Avionics ID'!A:E,MATCH(B123,'Avionics ID'!E:E,0),3) -> Mission
A124: =INDEX('Avionics ID'!A:E,MATCH(B124,'Avionics ID'!E:E,0),1) -> 851 | B124: Millimeter wave fire-control radar, frequency interferometer, fire-and-forget radar | C124: 0.05 | D124: 0.06 | G124: 20 | H124: Obsolescence | I124: =SUBSTITUTE(ADDRESS(1,MATCH(A124,'Pt1-AvionicsComponentCosts'!$A$6:$NC$6,0)+1),"$1","") -> $LF | J124: =_xlfn.TEXTJOIN(", ",TRUE,_xlfn.UNIQUE(_xlfn._xlws.SORT(_xlfn._xlws.FILTER('Pt1-AvionicsComponentCosts'!$NF$12:$NF$384,ISNUMBER(INDIRECT("'Pt1-AvionicsComponentCosts'!"&I124&"$12:"&I124&"$384")))))) -> Attack Helo, Helo | L124: 0.06 | M124: =IF($A$2,INDEX([1]Sheet1!$A$12:$AO$193,MATCH($A124,[1]Sheet1!$A$12:$A$193,0),8),2*$L124) -> 0.12 | N124: =INDEX([1]Sheet1!$A$12:$AO$193,MATCH($A124,[1]Sheet1!$A$12:$A$193,0),9)*(1+$A$4) -> 0.3685 | O124: =INDEX([1]Sheet1!$A$12:$AO$193,MATCH($A124,[1]Sheet1!$A$12:$A$193,0),10)*(1+$A$4) -> 1.8513 | P124: =COUNTIF($P$5:P$5,"Year")*$I$4 -> 5 | Q124: =0% -> 0 | R124: 0 | S124: =COUNTIF($P$5:S$5,"Year")*$I$4 -> 10 | T124: =0% -> 0 | U124: 0.06 | V124: =COUNTIF($P$5:V$5,"Year")*$I$4 -> 15 | W124: =0% -> 0 | X124: 0 | Y124: =COUNTIF($P$5:Y$5,"Year")*$I$4 -> 20 | Z124: =0% -> 0 | AA124: 0.06 | AB124: =COUNTIF($P$5:AB$5,"Year")*$I$4 -> 25 | AC124: =0% -> 0 | AD124: 0 | AE124: =COUNTIF($P$5:AE$5,"Year")*$I$4 -> 30 | AF124: =0% -> 0 | AG124: 0.06 | AH124: =COUNTIF($P$5:AH$5,"Year")*$I$4 -> 35 | AI124: =0% -> 0 | AJ124: 0 | AK124: =COUNTIF($P$5:AK$5,"Year")*$I$4 -> 40 | AL124: =0% -> 0 | AM124: 0.06 | AV124: 0 | AW124: 0 | AX124: 0 | AY124: 0 | AZ124: 0 | BA124: 0 | BB124: 0 | BC124: 0 | BD124: 0 | BE124: 0 | BF124: 0 | BG124: 0 | BH124: 0 | BI124: 36 | BJ124: 12 | BK124: 240 | BL124: =INDEX('Avionics ID'!A:E,MATCH(B124,'Avionics ID'!E:E,0),3) -> Sensors
A125: =INDEX('Avionics ID'!A:E,MATCH(B125,'Avionics ID'!E:E,0),1) -> 795 | B125: Mission computers | C125: 0.05 | D125: 0.06 | G125: 20 | H125: Obsolescence | I125: =SUBSTITUTE(ADDRESS(1,MATCH(A125,'Pt1-AvionicsComponentCosts'!$A$6:$NC$6,0)+1),"$1","") -> $IJ | J125: =_xlfn.TEXTJOIN(", ",TRUE,_xlfn.UNIQUE(_xlfn._xlws.SORT(_xlfn._xlws.FILTER('Pt1-AvionicsComponentCosts'!$NF$12:$NF$384,ISNUMBER(INDIRECT("'Pt1-AvionicsComponentCosts'!"&I125&"$12:"&I125&"$384")))))) -> Attack, Attack Helo, Helo, Mil Fighter, Stealth, TP Trainer, UAV | L125: 0.06 | M125: =IF($A$2,INDEX([1]Sheet1!$A$12:$AO$193,MATCH($A125,[1]Sheet1!$A$12:$A$193,0),8),2*$L125) -> 0.12 | N125: =INDEX([1]Sheet1!$A$12:$AO$193,MATCH($A125,[1]Sheet1!$A$12:$A$193,0),9)*(1+$A$4) -> 0.396 | O125: =INDEX([1]Sheet1!$A$12:$AO$193,MATCH($A125,[1]Sheet1!$A$12:$A$193,0),10)*(1+$A$4) -> 2.057 | P125: =COUNTIF($P$5:P$5,"Year")*$I$4 -> 5 | Q125: =0% -> 0 | R125: 0 | S125: =COUNTIF($P$5:S$5,"Year")*$I$4 -> 10 | T125: =0% -> 0 | U125: 0.06 | V125: =COUNTIF($P$5:V$5,"Year")*$I$4 -> 15 | W125: =0% -> 0 | X125: 0 | Y125: =COUNTIF($P$5:Y$5,"Year")*$I$4 -> 20 | Z125: =0% -> 0 | AA125: 0.06 | AB125: =COUNTIF($P$5:AB$5,"Year")*$I$4 -> 25 | AC125: =0% -> 0 | AD125: 0 | AE125: =COUNTIF($P$5:AE$5,"Year")*$I$4 -> 30 | AF125: =0% -> 0 | AG125: 0.06 | AH125: =COUNTIF($P$5:AH$5,"Year")*$I$4 -> 35 | AI125: =0% -> 0 | AJ125: 0 | AK125: =COUNTIF($P$5:AK$5,"Year")*$I$4 -> 40 | AL125: =0% -> 0 | AM125: 0.06 | AV125: 0 | AW125: 0 | AX125: 0 | AY125: 0 | AZ125: 0 | BA125: 0 | BB125: 0 | BC125: 0 | BD125: 0 | BE125: 0 | BF125: 0 | BG125: 0 | BH125: 0 | BI125: 36 | BJ125: 12 | BK125: 240 | BL125: =INDEX('Avionics ID'!A:E,MATCH(B125,'Avionics ID'!E:E,0),3) -> Mission
A126: =INDEX('Avionics ID'!A:E,MATCH(B126,'Avionics ID'!E:E,0),1) -> 760 | B126: Mode control Panel (Auto/Pilot control) | C126: 0.03333333333 | D126: 0.08 | G126: 30 | H126: Obsolescence | I126: =SUBSTITUTE(ADDRESS(1,MATCH(A126,'Pt1-AvionicsComponentCosts'!$A$6:$NC$6,0)+1),"$1","") -> $GV | J126: =_xlfn.TEXTJOIN(", ",TRUE,_xlfn.UNIQUE(_xlfn._xlws.SORT(_xlfn._xlws.FILTER('Pt1-AvionicsComponentCosts'!$NF$12:$NF$384,ISNUMBER(INDIRECT("'Pt1-AvionicsComponentCosts'!"&I126&"$12:"&I126&"$384")))))) -> A300, A320, A330, A340, A350, A380, B747, B767, B777, B787, MD-11 | L126: 0.08 | M126: =IF($A$2,INDEX([1]Sheet1!$A$12:$AO$193,MATCH($A126,[1]Sheet1!$A$12:$A$193,0),8),2*$L126) -> 0.16 | N126: =INDEX([1]Sheet1!$A$12:$AO$193,MATCH($A126,[1]Sheet1!$A$12:$A$193,0),9)*(1+$A$4) -> 0.4081 | O126: =INDEX([1]Sheet1!$A$12:$AO$193,MATCH($A126,[1]Sheet1!$A$12:$A$193,0),10)*(1+$A$4) -> 1.3541 | P126: =COUNTIF($P$5:P$5,"Year")*$I$4 -> 5 | Q126: =0% -> 0 | R126: 0 | S126: =COUNTIF($P$5:S$5,"Year")*$I$4 -> 10 | T126: =0% -> 0 | U126: 0 | V126: =COUNTIF($P$5:V$5,"Year")*$I$4 -> 15 | W126: =0% -> 0 | X126: 0.08 | Y126: =COUNTIF($P$5:Y$5,"Year")*$I$4 -> 20 | Z126: =0% -> 0 | AA126: 0 | AB126: =COUNTIF($P$5:AB$5,"Year")*$I$4 -> 25 | AC126: =0% -> 0 | AD126: 0 | AE126: =COUNTIF($P$5:AE$5,"Year")*$I$4 -> 30 | AF126: =0% -> 0 | AG126: 0.08 | AH126: =COUNTIF($P$5:AH$5,"Year")*$I$4 -> 35 | AI126: =0% -> 0 | AJ126: 0 | AK126: =COUNTIF($P$5:AK$5,"Year")*$I$4 -> 40 | AL126: =0% -> 0 | AM126: 0 | AV126: 0 | AW126: =IF($H126="Technology / regulatory",IF(AW$5=$F126-2,$AW$1,IF(AW$5=$F126-1,$AX$1,IF(AW$5=$F126,$AY$1,IF(AW$5=$F126+1,$AZ$1,0)))),0) -> 0 | AX126: 0 | AY126: 0 | AZ126: 0 | BA126: 0 | BB126: 0 | BC126: 0 | BD126: 0 | BE126: 0 | BF126: 0 | BG126: 0 | BH126: 0 | BI126: 32 | BJ126: 16 | BK126: 320 | BL126: =INDEX('Avionics ID'!A:E,MATCH(B126,'Avionics ID'!E:E,0),3) -> FMS
A127: =INDEX('Avionics ID'!A:E,MATCH(B127,'Avionics ID'!E:E,0),1) -> 852 | B127: Modernized Target Acquisition Designation Sight (M-TADS) | C127: 0.05 | D127: 0.06 | G127: 20 | H127: Obsolescence | I127: =SUBSTITUTE(ADDRESS(1,MATCH(A127,'Pt1-AvionicsComponentCosts'!$A$6:$NC$6,0)+1),"$1","") -> $IL | J127: =_xlfn.TEXTJOIN(", ",TRUE,_xlfn.UNIQUE(_xlfn._xlws.SORT(_xlfn._xlws.FILTER('Pt1-AvionicsComponentCosts'!$NF$12:$NF$384,ISNUMBER(INDIRECT("'Pt1-AvionicsComponentCosts'!"&I127&"$12:"&I127&"$384")))))) -> Attack Helo, Helo | L127: 0.06 | M127: =IF($A$2,INDEX([1]Sheet1!$A$12:$AO$193,MATCH($A127,[1]Sheet1!$A$12:$A$193,0),8),2*$L127) -> 0.12 | N127: =INDEX([1]Sheet1!$A$12:$AO$193,MATCH($A127,[1]Sheet1!$A$12:$A$193,0),9)*(1+$A$4) -> 0.396 | O127: =INDEX([1]Sheet1!$A$12:$AO$193,MATCH($A127,[1]Sheet1!$A$12:$A$193,0),10)*(1+$A$4) -> 2.057 | P127: =COUNTIF($P$5:P$5,"Year")*$I$4 -> 5 | Q127: =0% -> 0 | R127: 0 | S127: =COUNTIF($P$5:S$5,"Year")*$I$4 -> 10 | T127: =0% -> 0 | U127: 0.06 | V127: =COUNTIF($P$5:V$5,"Year")*$I$4 -> 15 | W127: =0% -> 0 | X127: 0 | Y127: =COUNTIF($P$5:Y$5,"Year")*$I$4 -> 20 | Z127: =0% -> 0 | AA127: 0.06 | AB127: =COUNTIF($P$5:AB$5,"Year")*$I$4 -> 25 | AC127: =0% -> 0 | AD127: 0 | AE127: =COUNTIF($P$5:AE$5,"Year")*$I$4 -> 30 | AF127: =0% -> 0 | AG127: 0.06 | AH127: =COUNTIF($P$5:AH$5,"Year")*$I$4 -> 35 | AI127: =0% -> 0 | AJ127: 0 | AK127: =COUNTIF($P$5:AK$5,"Year")*$I$4 -> 40 | AL127: =0% -> 0 | AM127: 0.06 | AV127: 0 | AW127: 0 | AX127: 0 | AY127: 0 | AZ127: 0 | BA127: 0 | BB127: 0 | BC127: 0 | BD127: 0 | BE127: 0 | BF127: 0 | BG127: 0 | BH127: 0 | BI127: 36 | BJ127: 12 | BK127: 240 | BL127: =INDEX('Avionics ID'!A:E,MATCH(B127,'Avionics ID'!E:E,0),3) -> Mission
A128: =INDEX('Avionics ID'!A:E,MATCH(B128,'Avionics ID'!E:E,0),1) -> 805 | B128: Modular Avionic Unit, 1,2 and 3 | C128: 0.1 | D128: 0.03 | G128: 10 | H128: Obsolescence | I128: =SUBSTITUTE(ADDRESS(1,MATCH(A128,'Pt1-AvionicsComponentCosts'!$A$6:$NC$6,0)+1),"$1","") -> $HR | J128: =_xlfn.TEXTJOIN(", ",TRUE,_xlfn.UNIQUE(_xlfn._xlws.SORT(_xlfn._xlws.FILTER('Pt1-AvionicsComponentCosts'!$NF$12:$NF$384,ISNUMBER(INDIRECT("'Pt1-AvionicsComponentCosts'!"&I128&"$12:"&I128&"$384")))))) -> ARJ, CRJ, EMB Regional, Reg TP, Superjet 100, Turbine GA | L128: 0.03 | M128: =IF($A$2,INDEX([1]Sheet1!$A$12:$AO$193,MATCH($A128,[1]Sheet1!$A$12:$A$193,0),8),2*$L128) -> 0.06 | N128: =INDEX([1]Sheet1!$A$12:$AO$193,MATCH($A128,[1]Sheet1!$A$12:$A$193,0),9)*(1+$A$4) -> 0.3905 | O128: =INDEX([1]Sheet1!$A$12:$AO$193,MATCH($A128,[1]Sheet1!$A$12:$A$193,0),10)*(1+$A$4) -> 1.1561 | P128: =COUNTIF($P$5:P$5,"Year")*$I$4 -> 5 | Q128: =0% -> 0 | R128: 0.03 | S128: =COUNTIF($P$5:S$5,"Year")*$I$4 -> 10 | T128: =0% -> 0 | U128: 0.03 | V128: =COUNTIF($P$5:V$5,"Year")*$I$4 -> 15 | W128: =0% -> 0 | X128: 0.03 | Y128: =COUNTIF($P$5:Y$5,"Year")*$I$4 -> 20 | Z128: =0% -> 0 | AA128: 0.03 | AB128: =COUNTIF($P$5:AB$5,"Year")*$I$4 -> 25 | AC128: =0% -> 0 | AD128: 0.03 | AE128: =COUNTIF($P$5:AE$5,"Year")*$I$4 -> 30 | AF128: =0% -> 0 | AG128: 0.03 | AH128: =COUNTIF($P$5:AH$5,"Year")*$I$4 -> 35 | AI128: =0% -> 0 | AJ128: 0.03 | AK128: =COUNTIF($P$5:AK$5,"Year")*$I$4 -> 40 | AL128: =0% -> 0 | AM128: 0.03 | AV128: 0 | AW128: 0 | AX128: 0 | AY128: 0 | AZ128: 0 | BA128: 0 | BB128: 0 | BC128: 0 | BD128: 0 | BE128: 0 | BF128: 0 | BG128: 0 | BH128: 0 | BI128: 30 | BJ128: 6 | BK128: 120 | BL128: =INDEX('Avionics ID'!A:E,MATCH(B128,'Avionics ID'!E:E,0),3) -> IMA
A129: =INDEX('Avionics ID'!A:E,MATCH(B129,'Avionics ID'!E:E,0),1) -> 844 | B129: Mulit InfraRed alerting System (MIRAS) Sensors | C129: 0.1 | D129: 0.1 | G129: 10 | H129: Obsolescence | I129: =SUBSTITUTE(ADDRESS(1,MATCH(A129,'Pt1-AvionicsComponentCosts'!$A$6:$NC$6,0)+1),"$1","") -> $LH | J129: =_xlfn.TEXTJOIN(", ",TRUE,_xlfn.UNIQUE(_xlfn._xlws.SORT(_xlfn._xlws.FILTER('Pt1-AvionicsComponentCosts'!$NF$12:$NF$384,ISNUMBER(INDIRECT("'Pt1-AvionicsComponentCosts'!"&I129&"$12:"&I129&"$384")))))) -> A330 LMXT, A330 MRTT, Mil Transport, Military Jet, Military TP | L129: 0.1 | M129: =IF($A$2,INDEX([1]Sheet1!$A$12:$AO$193,MATCH($A129,[1]Sheet1!$A$12:$A$193,0),8),2*$L129) -> 0.2 | N129: =INDEX([1]Sheet1!$A$12:$AO$193,MATCH($A129,[1]Sheet1!$A$12:$A$193,0),9)*(1+$A$4) -> 0.3685 | O129: =INDEX([1]Sheet1!$A$12:$AO$193,MATCH($A129,[1]Sheet1!$A$12:$A$193,0),10)*(1+$A$4) -> 1.8513 | P129: =COUNTIF($P$5:P$5,"Year")*$I$4 -> 5 | Q129: =0% -> 0 | R129: 0.1 | S129: =COUNTIF($P$5:S$5,"Year")*$I$4 -> 10 | T129: =0% -> 0 | U129: 0.1 | V129: =COUNTIF($P$5:V$5,"Year")*$I$4 -> 15 | W129: =0% -> 0 | X129: 0.1 | Y129: =COUNTIF($P$5:Y$5,"Year")*$I$4 -> 20 | Z129: =0% -> 0 | AA129: 0.1 | AB129: =COUNTIF($P$5:AB$5,"Year")*$I$4 -> 25 | AC129: =0% -> 0 | AD129: 0.1 | AE129: =COUNTIF($P$5:AE$5,"Year")*$I$4 -> 30 | AF129: =0% -> 0 | AG129: 0.1 | AH129: =COUNTIF($P$5:AH$5,"Year")*$I$4 -> 35 | AI129: =0% -> 0 | AJ129: 0.1 | AK129: =COUNTIF($P$5:AK$5,"Year")*$I$4 -> 40 | AL129: =0% -> 0 | AM129: 0.1 | AV129: 0 | AW129: 0 | AX129: 0 | AY129: 0 | AZ129: 0 | BA129: 0 | BB129: 0 | BC129: 0 | BD129: 0 | BE129: 0 | BF129: 0 | BG129: 0 | BH129: 0 | BI129: 100 | BJ129: 20 | BK129: 400 | BL129: =INDEX('Avionics ID'!A:E,MATCH(B129,'Avionics ID'!E:E,0),3) -> Sensors
A130: =INDEX('Avionics ID'!A:E,MATCH(B130,'Avionics ID'!E:E,0),1) -> 794 | B130: Multi function Advanced Data link AAA Array | C130: 0.05 | D130: 0.06 | G130: 20 | H130: Obsolescence | I130: =SUBSTITUTE(ADDRESS(1,MATCH(A130,'Pt1-AvionicsComponentCosts'!$A$6:$NC$6,0)+1),"$1","") -> $DJ | J130: =_xlfn.TEXTJOIN(", ",TRUE,_xlfn.UNIQUE(_xlfn._xlws.SORT(_xlfn._xlws.FILTER('Pt1-AvionicsComponentCosts'!$NF$12:$NF$384,ISNUMBER(INDIRECT("'Pt1-AvionicsComponentCosts'!"&I130&"$12:"&I130&"$384")))))) -> Attack, Stealth | L130: 0.06 | M130: =IF($A$2,INDEX([1]Sheet1!$A$12:$AO$193,MATCH($A130,[1]Sheet1!$A$12:$A$193,0),8),2*$L130) -> 0.12 | N130: =INDEX([1]Sheet1!$A$12:$AO$193,MATCH($A130,[1]Sheet1!$A$12:$A$193,0),9)*(1+$A$4) -> 0.7513 | O130: =INDEX([1]Sheet1!$A$12:$AO$193,MATCH($A130,[1]Sheet1!$A$12:$A$193,0),10)*(1+$A$4) -> 2.1241 | P130: =COUNTIF($P$5:P$5,"Year")*$I$4 -> 5 | Q130: =0% -> 0 | R130: 0 | S130: =COUNTIF($P$5:S$5,"Year")*$I$4 -> 10 | T130: =0% -> 0 | U130: 0.06 | V130: =COUNTIF($P$5:V$5,"Year")*$I$4 -> 15 | W130: =0% -> 0 | X130: 0 | Y130: =COUNTIF($P$5:Y$5,"Year")*$I$4 -> 20 | Z130: =0% -> 0 | AA130: 0.06 | AB130: =COUNTIF($P$5:AB$5,"Year")*$I$4 -> 25 | AC130: =0% -> 0 | AD130: 0 | AE130: =COUNTIF($P$5:AE$5,"Year")*$I$4 -> 30 | AF130: =0% -> 0 | AG130: 0.06 | AH130: =COUNTIF($P$5:AH$5,"Year")*$I$4 -> 35 | AI130: =0% -> 0 | AJ130: 0 | AK130: =COUNTIF($P$5:AK$5,"Year")*$I$4 -> 40 | AL130: =0% -> 0 | AM130: 0.06 | AV130: 0 | AW130: 0 | AX130: 0 | AY130: 0 | AZ130: 0 | BA130: 0 | BB130: 0 | BC130: 0 | BD130: 0 | BE130: 0 | BF130: 0 | BG130: 0 | BH130: 0 | BI130: 36 | BJ130: 12 | BK130: 240 | BL130: =INDEX('Avionics ID'!A:E,MATCH(B130,'Avionics ID'!E:E,0),3) -> Data
A131: =INDEX('Avionics ID'!A:E,MATCH(B131,'Avionics ID'!E:E,0),1) -> 765 | B131: Multi Function Display | C131: 0.06666666667 | D131: 0.06 | E131: CPDLC | F131: 2028 | G131: 15 | H131: Technology / regulatory | I131: =SUBSTITUTE(ADDRESS(1,MATCH(A131,'Pt1-AvionicsComponentCosts'!$A$6:$NC$6,0)+1),"$1","") -> $FL | J131: =_xlfn.TEXTJOIN(", ",TRUE,_xlfn.UNIQUE(_xlfn._xlws.SORT(_xlfn._xlws.FILTER('Pt1-AvionicsComponentCosts'!$NF$12:$NF$384,ISNUMBER(INDIRECT("'Pt1-AvionicsComponentCosts'!"&I131&"$12:"&I131&"$384")))))) -> A300, A320, A330, A340, A350, A380, Attack Helo, B747, B767, B777, B787, Challenger, Citation, E550, EMB Bizjet, Falcon, Global, Gulfstream, Hawker, Helo, Hondajet, Learjet, MD-11, Nextant 400XT, PC-24, Phenom, Praetor, SF50, TP Trainer, Turbine GA | L131: 0.06 | M131: =IF($A$2,INDEX([1]Sheet1!$A$12:$AO$193,MATCH($A131,[1]Sheet1!$A$12:$A$193,0),8),2*$L131) -> 0.12 | N131: =INDEX([1]Sheet1!$A$12:$AO$193,MATCH($A131,[1]Sheet1!$A$12:$A$193,0),9)*(1+$A$4) -> 0.3883 | O131: =INDEX([1]Sheet1!$A$12:$AO$193,MATCH($A131,[1]Sheet1!$A$12:$A$193,0),10)*(1+$A$4) -> 2.0306 | P131: =COUNTIF($P$5:P$5,"Year")*$I$4 -> 5 | Q131: =0% -> 0 | R131: 0 | S131: =COUNTIF($P$5:S$5,"Year")*$I$4 -> 10 | T131: =0% -> 0 | U131: 0.06 | V131: =COUNTIF($P$5:V$5,"Year")*$I$4 -> 15 | W131: =0% -> 0 | X131: 0.06 | Y131: =COUNTIF($P$5:Y$5,"Year")*$I$4 -> 20 | Z131: =0% -> 0 | AA131: 0.06 | AB131: =COUNTIF($P$5:AB$5,"Year")*$I$4 -> 25 | AC131: =0% -> 0 | AD131: 0 | AE131: =COUNTIF($P$5:AE$5,"Year")*$I$4 -> 30 | AF131: =0% -> 0 | AG131: 0.06 | AH131: =COUNTIF($P$5:AH$5,"Year")*$I$4 -> 35 | AI131: =0% -> 0 | AJ131: 0 | AK131: =COUNTIF($P$5:AK$5,"Year")*$I$4 -> 40 | AL131: =0% -> 0 | AM131: 0.06 | AU131: CPDLC | AV131: 2.0306 | AW131: 0 | AX131: 0 | AY131: 0.15 | AZ131: 0.25 | BA131: 0.45 | BB131: 0.15 | BC131: 0 | BD131: 0 | BE131: 0 | BF131: 0 | BG131: 0 | BH131: 0 | BI131: 142 | BJ131: 12 | BK131: 240 | BL131: =INDEX('Avionics ID'!A:E,MATCH(B131,'Avionics ID'!E:E,0),3) -> Display
A132: =INDEX('Avionics ID'!A:E,MATCH(B132,'Avionics ID'!E:E,0),1) -> 814 | B132: Multi mode radar | C132: 0.05 | D132: 0.08 | G132: 20 | H132: Obsolescence | I132: =SUBSTITUTE(ADDRESS(1,MATCH(A132,'Pt1-AvionicsComponentCosts'!$A$6:$NC$6,0)+1),"$1","") -> $MN | J132: =_xlfn.TEXTJOIN(", ",TRUE,_xlfn.UNIQUE(_xlfn._xlws.SORT(_xlfn._xlws.FILTER('Pt1-AvionicsComponentCosts'!$NF$12:$NF$384,ISNUMBER(INDIRECT("'Pt1-AvionicsComponentCosts'!"&I132&"$12:"&I132&"$384")))))) -> A330 LMXT, A330 MRTT, Mil Fighter, Mil Transport, Military Jet, Military TP | L132: 0.08 | M132: =IF($A$2,INDEX([1]Sheet1!$A$12:$AO$193,MATCH($A132,[1]Sheet1!$A$12:$A$193,0),8),2*$L132) -> 0.16 | N132: =INDEX([1]Sheet1!$A$12:$AO$193,MATCH($A132,[1]Sheet1!$A$12:$A$193,0),9)*(1+$A$4) -> 0.4928 | O132: =INDEX([1]Sheet1!$A$12:$AO$193,MATCH($A132,[1]Sheet1!$A$12:$A$193,0),10)*(1+$A$4) -> 1.4278 | P132: =COUNTIF($P$5:P$5,"Year")*$I$4 -> 5 | Q132: =0% -> 0 | R132: 0 | S132: =COUNTIF($P$5:S$5,"Year")*$I$4 -> 10 | T132: =0% -> 0 | U132: 0.08 | V132: =COUNTIF($P$5:V$5,"Year")*$I$4 -> 15 | W132: =0% -> 0 | X132: 0 | Y132: =COUNTIF($P$5:Y$5,"Year")*$I$4 -> 20 | Z132: =0% -> 0 | AA132: 0.08 | AB132: =COUNTIF($P$5:AB$5,"Year")*$I$4 -> 25 | AC132: =0% -> 0 | AD132: 0 | AE132: =COUNTIF($P$5:AE$5,"Year")*$I$4 -> 30 | AF132: =0% -> 0 | AG132: 0.08 | AH132: =COUNTIF($P$5:AH$5,"Year")*$I$4 -> 35 | AI132: =0% -> 0 | AJ132: 0 | AK132: =COUNTIF($P$5:AK$5,"Year")*$I$4 -> 40 | AL132: =0% -> 0 | AM132: 0.08 | AV132: 0 | AW132: 0 | AX132: 0 | AY132: 0 | AZ132: 0 | BA132: 0 | BB132: 0 | BC132: 0 | BD132: 0 | BE132: 0 | BF132: 0 | BG132: 0 | BH132: 0 | BI132: 48 | BJ132: 16 | BK132: 320 | BL132: =INDEX('Avionics ID'!A:E,MATCH(B132,'Avionics ID'!E:E,0),3) -> Surveillance
A133: =INDEX('Avionics ID'!A:E,MATCH(B133,'Avionics ID'!E:E,0),1) -> 723 | B133: Multi Mode Receiver (MMR) | C133: 0.1 | D133: 0.06 | G133: 10 | H133: Obsolescence | I133: =SUBSTITUTE(ADDRESS(1,MATCH(A133,'Pt1-AvionicsComponentCosts'!$A$6:$NC$6,0)+1),"$1","") -> $JV | J133: =_xlfn.TEXTJOIN(", ",TRUE,_xlfn.UNIQUE(_xlfn._xlws.SORT(_xlfn._xlws.FILTER('Pt1-AvionicsComponentCosts'!$NF$12:$NF$384,ISNUMBER(INDIRECT("'Pt1-AvionicsComponentCosts'!"&I133&"$12:"&I133&"$384")))))) -> A220, A300, A320, A321, A330, A330 LMXT, A330 MRTT, A340, A350, A380, ATR, B717, B737, B747, B757, B767, B777, B787, C919, EMB Regional, MC-21, MD-11, Mil Transport, Military Jet, Military TP, NSA | L133: 0.06 | M133: =IF($A$2,INDEX([1]Sheet1!$A$12:$AO$193,MATCH($A133,[1]Sheet1!$A$12:$A$193,0),8),2*$L133) -> 0.12 | N133: =INDEX([1]Sheet1!$A$12:$AO$193,MATCH($A133,[1]Sheet1!$A$12:$A$193,0),9)*(1+$A$4) -> 0.3894 | O133: =INDEX([1]Sheet1!$A$12:$AO$193,MATCH($A133,[1]Sheet1!$A$12:$A$193,0),10)*(1+$A$4) -> 2.0119 | P133: =COUNTIF($P$5:P$5,"Year")*$I$4 -> 5 | Q133: =0% -> 0 | R133: 0.06 | S133: =COUNTIF($P$5:S$5,"Year")*$I$4 -> 10 | T133: =0% -> 0 | U133: 0.06 | V133: =COUNTIF($P$5:V$5,"Year")*$I$4 -> 15 | W133: =0% -> 0 | X133: 0.06 | Y133: =COUNTIF($P$5:Y$5,"Year")*$I$4 -> 20 | Z133: =0% -> 0 | AA133: 0.06 | AB133: =COUNTIF($P$5:AB$5,"Year")*$I$4 -> 25 | AC133: =0% -> 0 | AD133: 0.06 | AE133: =COUNTIF($P$5:AE$5,"Year")*$I$4 -> 30 | AF133: =0% -> 0 | AG133: 0.06 | AH133: =COUNTIF($P$5:AH$5,"Year")*$I$4 -> 35 | AI133: =0% -> 0 | AJ133: 0.06 | AK133: =COUNTIF($P$5:AK$5,"Year")*$I$4 -> 40 | AL133: =0% -> 0 | AM133: 0.06 | AV133: 0 | AW133: 0 | AX133: 0 | AY133: 0 | AZ133: 0 | BA133: 0 | BB133: 0 | BC133: 0 | BD133: 0 | BE133: 0 | BF133: 0 | BG133: 0 | BH133: 0 | BI133: 60 | BJ133: 12 | BK133: 240 | BL133: =INDEX('Avionics ID'!A:E,MATCH(B133,'Avionics ID'!E:E,0),3) -> Navigation
A134: =INDEX('Avionics ID'!A:E,MATCH(B134,'Avionics ID'!E:E,0),1) -> 783 | B134: Multi Scan Hazard Detection System | C134: 0.1 | D134: 0.06 | G134: 10 | H134: Obsolescence | I134: =SUBSTITUTE(ADDRESS(1,MATCH(A134,'Pt1-AvionicsComponentCosts'!$A$6:$NC$6,0)+1),"$1","") -> $MP | J134: =_xlfn.TEXTJOIN(", ",TRUE,_xlfn.UNIQUE(_xlfn._xlws.SORT(_xlfn._xlws.FILTER('Pt1-AvionicsComponentCosts'!$NF$12:$NF$384,ISNUMBER(INDIRECT("'Pt1-AvionicsComponentCosts'!"&I134&"$12:"&I134&"$384")))))) -> A350, B747, B777, B787 | L134: 0.06 | M134: =IF($A$2,INDEX([1]Sheet1!$A$12:$AO$193,MATCH($A134,[1]Sheet1!$A$12:$A$193,0),8),2*$L134) -> 0.12 | N134: =INDEX([1]Sheet1!$A$12:$AO$193,MATCH($A134,[1]Sheet1!$A$12:$A$193,0),9)*(1+$A$4) -> 0.4928 | O134: =INDEX([1]Sheet1!$A$12:$AO$193,MATCH($A134,[1]Sheet1!$A$12:$A$193,0),10)*(1+$A$4) -> 1.4278 | P134: =COUNTIF($P$5:P$5,"Year")*$I$4 -> 5 | Q134: =0% -> 0 | R134: 0.06 | S134: =COUNTIF($P$5:S$5,"Year")*$I$4 -> 10 | T134: =0% -> 0 | U134: 0.06 | V134: =COUNTIF($P$5:V$5,"Year")*$I$4 -> 15 | W134: =0% -> 0 | X134: 0.06 | Y134: =COUNTIF($P$5:Y$5,"Year")*$I$4 -> 20 | Z134: =0% -> 0 | AA134: 0.06 | AB134: =COUNTIF($P$5:AB$5,"Year")*$I$4 -> 25 | AC134: =0% -> 0 | AD134: 0.06 | AE134: =COUNTIF($P$5:AE$5,"Year")*$I$4 -> 30 | AF134: =0% -> 0 | AG134: 0.06 | AH134: =COUNTIF($P$5:AH$5,"Year")*$I$4 -> 35 | AI134: =0% -> 0 | AJ134: 0.06 | AK134: =COUNTIF($P$5:AK$5,"Year")*$I$4 -> 40 | AL134: =0% -> 0 | AM134: 0.06 | AV134: 0 | AW134: 0 | AX134: 0 | AY134: 0 | AZ134: 0 | BA134: 0 | BB134: 0 | BC134: 0 | BD134: 0 | BE134: 0 | BF134: 0 | BG134: 0 | BH134: 0 | BI134: 60 | BJ134: =$M134*100 -> 12 | BK134: 240 | BL134: =INDEX('Avionics ID'!A:E,MATCH(B134,'Avionics ID'!E:E,0),3) -> Surveillance
A135: =INDEX('Avionics ID'!A:E,MATCH(B135,'Avionics ID'!E:E,0),1) -> 865 | B135: Multi spectral camera | C135: =IFERROR(100%/G135,0) -> 0.05 | D135: 0.06 | G135: 20 | H135: =IF(G135=0,"",IF(LEN(E135)>0,"Technology / regulatory","Obsolescence")) -> Obsolescence | I135: =SUBSTITUTE(ADDRESS(1,MATCH(A135,'Pt1-AvionicsComponentCosts'!$A$6:$NC$6,0)+1),"$1","") -> $MR | J135: =_xlfn.TEXTJOIN(", ",TRUE,_xlfn.UNIQUE(_xlfn._xlws.SORT(_xlfn._xlws.FILTER('Pt1-AvionicsComponentCosts'!$NF$12:$NF$384,ISNUMBER(INDIRECT("'Pt1-AvionicsComponentCosts'!"&I135&"$12:"&I135&"$384")))))) -> UAV | L135: =IF($A$1,D135,IF(C135=0,D135,D135)) -> 0.06 | M135: =IF($A$2,INDEX([1]Sheet1!$A$12:$AO$193,MATCH($A135,[1]Sheet1!$A$12:$A$193,0),8),2*$L135) -> 0.12 | N135: =INDEX([1]Sheet1!$A$12:$AO$193,MATCH($A135,[1]Sheet1!$A$12:$A$193,0),9)*(1+$A$4) -> 0.4928 | O135: =INDEX([1]Sheet1!$A$12:$AO$193,MATCH($A135,[1]Sheet1!$A$12:$A$193,0),10)*(1+$A$4) -> 1.4278 | P135: =COUNTIF($P$5:P$5,"Year")*$I$4 -> 5 | Q135: =0% -> 0 | R135: =IF(MOD(P135,$G135)=0,$M135/2,IF(MOD(P135,MROUND($G135/2,$I$4))=0,$M135/2,0)) -> 0 | S135: =COUNTIF($P$5:S$5,"Year")*$I$4 -> 10 | T135: =0% -> 0 | U135: =IF(MOD(S135,$G135)=0,$M135/2,IF(MOD(S135,MROUND($G135/2,$I$4))=0,$M135/2,0)) -> 0.06 | V135: =COUNTIF($P$5:V$5,"Year")*$I$4 -> 15 | W135: =0% -> 0 | X135: =IF(MOD(V135,$G135)=0,$M135/2,IF(MOD(V135,MROUND($G135/2,$I$4))=0,$M135/2,0)) -> 0 | Y135: =COUNTIF($P$5:Y$5,"Year")*$I$4 -> 20 | Z135: =0% -> 0 | AA135: =IF(MOD(Y135,$G135)=0,$M135/2,IF(MOD(Y135,MROUND($G135/2,$I$4))=0,$M135/2,0)) -> 0.06 | AB135: =COUNTIF($P$5:AB$5,"Year")*$I$4 -> 25 | AC135: =0% -> 0 | AD135: =IF(MOD(AB135,$G135)=0,$M135/2,IF(MOD(AB135,MROUND($G135/2,$I$4))=0,$M135/2,0)) -> 0 | AE135: =COUNTIF($P$5:AE$5,"Year")*$I$4 -> 30 | AF135: =0% -> 0 | AG135: =IF(MOD(AE135,$G135)=0,$M135/2,IF(MOD(AE135,MROUND($G135/2,$I$4))=0,$M135/2,0)) -> 0.06 | AH135: =COUNTIF($P$5:AH$5,"Year")*$I$4 -> 35 | AI135: =0% -> 0 | AJ135: =IF(MOD(AH135,$G135)=0,$M135/2,IF(MOD(AH135,MROUND($G135/2,$I$4))=0,$M135/2,0)) -> 0 | AK135: =COUNTIF($P$5:AK$5,"Year")*$I$4 -> 40 | AL135: =0% -> 0 | AM135: =IF(MOD(AK135,$G135)=0,$M135/2,IF(MOD(AK135,MROUND($G135/2,$I$4))=0,$M135/2,0)) -> 0.06 | AU135: =IF(LEN($E135)=0,"",$E135) ->  | AV135: =IF($H135="Technology / regulatory",$O135,0) -> 0 | AW135: 0 | AX135: 0 | AY135: 0 | AZ135: 0 | BA135: 0 | BB135: 0 | BC135: 0 | BD135: 0 | BE135: 0 | BF135: 0 | BG135: 0 | BH135: 0 | BI135: =(SUM(AW135:BH135)+SUMIFS(P135:AS135,P$5:AS$5,"Exchange %")+$M135)*100 -> 36 | BJ135: 12 | BK135: =40*$L135*100 -> 240 | BL135: =INDEX('Avionics ID'!A:E,MATCH(B135,'Avionics ID'!E:E,0),3) -> Surveillance
A136: =INDEX('Avionics ID'!A:E,MATCH(B136,'Avionics ID'!E:E,0),1) -> 727 | B136: Navigation display (EFIS) | C136: 0.06666666667 | D136: 0.06 | E136: PBN | F136: 2030 | G136: 15 | H136: Technology / regulatory | I136: =SUBSTITUTE(ADDRESS(1,MATCH(A136,'Pt1-AvionicsComponentCosts'!$A$6:$NC$6,0)+1),"$1","") -> $FN | J136: =_xlfn.TEXTJOIN(", ",TRUE,_xlfn.UNIQUE(_xlfn._xlws.SORT(_xlfn._xlws.FILTER('Pt1-AvionicsComponentCosts'!$NF$12:$NF$384,ISNUMBER(INDIRECT("'Pt1-AvionicsComponentCosts'!"&I136&"$12:"&I136&"$384")))))) -> A220, A320, A321, ATR, B717, B737, B757, C919, Challenger, Citation, E550, EMB Bizjet, EMB Regional, Falcon, Global, Gulfstream, Hawker, Hondajet, Learjet, MC-21, Mil Transport, Military Jet, Nextant 400XT, NSA, PC-24, Phenom, Praetor, SF50 | L136: 0.06 | M136: =IF($A$2,INDEX([1]Sheet1!$A$12:$AO$193,MATCH($A136,[1]Sheet1!$A$12:$A$193,0),8),2*$L136) -> 0.12 | N136: =INDEX([1]Sheet1!$A$12:$AO$193,MATCH($A136,[1]Sheet1!$A$12:$A$193,0),9)*(1+$A$4) -> 0.3883 | O136: =INDEX([1]Sheet1!$A$12:$AO$193,MATCH($A136,[1]Sheet1!$A$12:$A$193,0),10)*(1+$A$4) -> 2.0306 | P136: =COUNTIF($P$5:P$5,"Year")*$I$4 -> 5 | Q136: =0% -> 0 | R136: 0 | S136: =COUNTIF($P$5:S$5,"Year")*$I$4 -> 10 | T136: =0% -> 0 | U136: 0.06 | V136: =COUNTIF($P$5:V$5,"Year")*$I$4 -> 15 | W136: =0% -> 0 | X136: 0.06 | Y136: =COUNTIF($P$5:Y$5,"Year")*$I$4 -> 20 | Z136: =0% -> 0 | AA136: 0.06 | AB136: =COUNTIF($P$5:AB$5,"Year")*$I$4 -> 25 | AC136: =0% -> 0 | AD136: 0 | AE136: =COUNTIF($P$5:AE$5,"Year")*$I$4 -> 30 | AF136: =0% -> 0 | AG136: 0.06 | AH136: =COUNTIF($P$5:AH$5,"Year")*$I$4 -> 35 | AI136: =0% -> 0 | AJ136: 0 | AK136: =COUNTIF($P$5:AK$5,"Year")*$I$4 -> 40 | AL136: =0% -> 0 | AM136: 0.06 | AU136: PBN | AV136: 2.0306 | AW136: =IF($H136="Technology / regulatory",IF(AW$5=$F136-2,$AW$1,IF(AW$5=$F136-1,$AX$1,IF(AW$5=$F136,$AY$1,IF(AW$5=$F136+1,$AZ$1,0)))),0) -> 0 | AX136: 0 | AY136: 0 | AZ136: 0 | BA136: 0.15 | BB136: 0.25 | BC136: 0.45 | BD136: 0.15 | BE136: 0 | BF136: 0 | BG136: 0 | BH136: 0 | BI136: 142 | BJ136: 12 | BK136: 240 | BL136: =INDEX('Avionics ID'!A:E,MATCH(B136,'Avionics ID'!E:E,0),3) -> Display
A137: =INDEX('Avionics ID'!A:E,MATCH(B137,'Avionics ID'!E:E,0),1) -> 817 | B137: Navigation receiver | C137: 0.05 | D137: 0.06 | G137: 20 | H137: Obsolescence | I137: =SUBSTITUTE(ADDRESS(1,MATCH(A137,'Pt1-AvionicsComponentCosts'!$A$6:$NC$6,0)+1),"$1","") -> $JX | J137: =_xlfn.TEXTJOIN(", ",TRUE,_xlfn.UNIQUE(_xlfn._xlws.SORT(_xlfn._xlws.FILTER('Pt1-AvionicsComponentCosts'!$NF$12:$NF$384,ISNUMBER(INDIRECT("'Pt1-AvionicsComponentCosts'!"&I137&"$12:"&I137&"$384")))))) -> Mil Fighter | L137: 0.06 | M137: =IF($A$2,INDEX([1]Sheet1!$A$12:$AO$193,MATCH($A137,[1]Sheet1!$A$12:$A$193,0),8),2*$L137) -> 0.12 | N137: =INDEX([1]Sheet1!$A$12:$AO$193,MATCH($A137,[1]Sheet1!$A$12:$A$193,0),9)*(1+$A$4) -> 0.3894 | O137: =INDEX([1]Sheet1!$A$12:$AO$193,MATCH($A137,[1]Sheet1!$A$12:$A$193,0),10)*(1+$A$4) -> 2.0119 | P137: =COUNTIF($P$5:P$5,"Year")*$I$4 -> 5 | Q137: =0% -> 0 | R137: 0 | S137: =COUNTIF($P$5:S$5,"Year")*$I$4 -> 10 | T137: =0% -> 0 | U137: 0.06 | V137: =COUNTIF($P$5:V$5,"Year")*$I$4 -> 15 | W137: =0% -> 0 | X137: 0 | Y137: =COUNTIF($P$5:Y$5,"Year")*$I$4 -> 20 | Z137: =0% -> 0 | AA137: 0.06 | AB137: =COUNTIF($P$5:AB$5,"Year")*$I$4 -> 25 | AC137: =0% -> 0 | AD137: 0 | AE137: =COUNTIF($P$5:AE$5,"Year")*$I$4 -> 30 | AF137: =0% -> 0 | AG137: 0.06 | AH137: =COUNTIF($P$5:AH$5,"Year")*$I$4 -> 35 | AI137: =0% -> 0 | AJ137: 0 | AK137: =COUNTIF($P$5:AK$5,"Year")*$I$4 -> 40 | AL137: =0% -> 0 | AM137: 0.06 | AV137: 0 | AW137: 0 | AX137: 0 | AY137: 0 | AZ137: 0 | BA137: 0 | BB137: 0 | BC137: 0 | BD137: 0 | BE137: 0 | BF137: 0 | BG137: 0 | BH137: 0 | BI137: 36 | BJ137: 12 | BK137: 240 | BL137: =INDEX('Avionics ID'!A:E,MATCH(B137,'Avionics ID'!E:E,0),3) -> Navigation
A138: =INDEX('Avionics ID'!A:E,MATCH(B138,'Avionics ID'!E:E,0),1) -> 789 | B138: Panoramic Display Cockpit Electronic Unit | C138: 0.05 | D138: 0.06 | G138: 20 | H138: Obsolescence | I138: =SUBSTITUTE(ADDRESS(1,MATCH(A138,'Pt1-AvionicsComponentCosts'!$A$6:$NC$6,0)+1),"$1","") -> $FP | J138: =_xlfn.TEXTJOIN(", ",TRUE,_xlfn.UNIQUE(_xlfn._xlws.SORT(_xlfn._xlws.FILTER('Pt1-AvionicsComponentCosts'!$NF$12:$NF$384,ISNUMBER(INDIRECT("'Pt1-AvionicsComponentCosts'!"&I138&"$12:"&I138&"$384")))))) -> Attack, Stealth | L138: 0.06 | M138: =IF($A$2,INDEX([1]Sheet1!$A$12:$AO$193,MATCH($A138,[1]Sheet1!$A$12:$A$193,0),8),2*$L138) -> 0.12 | N138: =INDEX([1]Sheet1!$A$12:$AO$193,MATCH($A138,[1]Sheet1!$A$12:$A$193,0),9)*(1+$A$4) -> 0.3883 | O138: =INDEX([1]Sheet1!$A$12:$AO$193,MATCH($A138,[1]Sheet1!$A$12:$A$193,0),10)*(1+$A$4) -> 2.0306 | P138: =COUNTIF($P$5:P$5,"Year")*$I$4 -> 5 | Q138: =0% -> 0 | R138: 0 | S138: =COUNTIF($P$5:S$5,"Year")*$I$4 -> 10 | T138: =0% -> 0 | U138: 0.06 | V138: =COUNTIF($P$5:V$5,"Year")*$I$4 -> 15 | W138: =0% -> 0 | X138: 0 | Y138: =COUNTIF($P$5:Y$5,"Year")*$I$4 -> 20 | Z138: =0% -> 0 | AA138: 0.06 | AB138: =COUNTIF($P$5:AB$5,"Year")*$I$4 -> 25 | AC138: =0% -> 0 | AD138: 0 | AE138: =COUNTIF($P$5:AE$5,"Year")*$I$4 -> 30 | AF138: =0% -> 0 | AG138: 0.06 | AH138: =COUNTIF($P$5:AH$5,"Year")*$I$4 -> 35 | AI138: =0% -> 0 | AJ138: 0 | AK138: =COUNTIF($P$5:AK$5,"Year")*$I$4 -> 40 | AL138: =0% -> 0 | AM138: 0.06 | AV138: 0 | AW138: 0 | AX138: 0 | AY138: 0 | AZ138: 0 | BA138: 0 | BB138: 0 | BC138: 0 | BD138: 0 | BE138: 0 | BF138: 0 | BG138: 0 | BH138: 0 | BI138: 36 | BJ138: 12 | BK138: 240 | BL138: =INDEX('Avionics ID'!A:E,MATCH(B138,'Avionics ID'!E:E,0),3) -> Display
A139: =INDEX('Avionics ID'!A:E,MATCH(B139,'Avionics ID'!E:E,0),1) -> 790 | B139: Panormic Cockpit Display | C139: 0.05 | D139: 0.06 | G139: 20 | H139: Obsolescence | I139: =SUBSTITUTE(ADDRESS(1,MATCH(A139,'Pt1-AvionicsComponentCosts'!$A$6:$NC$6,0)+1),"$1","") -> $FR | J139: =_xlfn.TEXTJOIN(", ",TRUE,_xlfn.UNIQUE(_xlfn._xlws.SORT(_xlfn._xlws.FILTER('Pt1-AvionicsComponentCosts'!$NF$12:$NF$384,ISNUMBER(INDIRECT("'Pt1-AvionicsComponentCosts'!"&I139&"$12:"&I139&"$384")))))) -> Attack, Stealth | L139: 0.06 | M139: =IF($A$2,INDEX([1]Sheet1!$A$12:$AO$193,MATCH($A139,[1]Sheet1!$A$12:$A$193,0),8),2*$L139) -> 0.12 | N139: =INDEX([1]Sheet1!$A$12:$AO$193,MATCH($A139,[1]Sheet1!$A$12:$A$193,0),9)*(1+$A$4) -> 0.3883 | O139: =INDEX([1]Sheet1!$A$12:$AO$193,MATCH($A139,[1]Sheet1!$A$12:$A$193,0),10)*(1+$A$4) -> 2.0306 | P139: =COUNTIF($P$5:P$5,"Year")*$I$4 -> 5 | Q139: =0% -> 0 | R139: 0 | S139: =COUNTIF($P$5:S$5,"Year")*$I$4 -> 10 | T139: =0% -> 0 | U139: 0.06 | V139: =COUNTIF($P$5:V$5,"Year")*$I$4 -> 15 | W139: =0% -> 0 | X139: 0 | Y139: =COUNTIF($P$5:Y$5,"Year")*$I$4 -> 20 | Z139: =0% -> 0 | AA139: 0.06 | AB139: =COUNTIF($P$5:AB$5,"Year")*$I$4 -> 25 | AC139: =0% -> 0 | AD139: 0 | AE139: =COUNTIF($P$5:AE$5,"Year")*$I$4 -> 30 | AF139: =0% -> 0 | AG139: 0.06 | AH139: =COUNTIF($P$5:AH$5,"Year")*$I$4 -> 35 | AI139: =0% -> 0 | AJ139: 0 | AK139: =COUNTIF($P$5:AK$5,"Year")*$I$4 -> 40 | AL139: =0% -> 0 | AM139: 0.06 | AV139: 0 | AW139: 0 | AX139: 0 | AY139: 0 | AZ139: 0 | BA139: 0 | BB139: 0 | BC139: 0 | BD139: 0 | BE139: 0 | BF139: 0 | BG139: 0 | BH139: 0 | BI139: 36 | BJ139: 12 | BK139: 240 | BL139: =INDEX('Avionics ID'!A:E,MATCH(B139,'Avionics ID'!E:E,0),3) -> Display
A140: =INDEX('Avionics ID'!A:E,MATCH(B140,'Avionics ID'!E:E,0),1) -> 824 | B140: PFD Control panels | C140: 0.1 | D140: 0.06 | G140: 10 | H140: Obsolescence | I140: =SUBSTITUTE(ADDRESS(1,MATCH(A140,'Pt1-AvionicsComponentCosts'!$A$6:$NC$6,0)+1),"$1","") -> $FT | J140: =_xlfn.TEXTJOIN(", ",TRUE,_xlfn.UNIQUE(_xlfn._xlws.SORT(_xlfn._xlws.FILTER('Pt1-AvionicsComponentCosts'!$NF$12:$NF$384,ISNUMBER(INDIRECT("'Pt1-AvionicsComponentCosts'!"&I140&"$12:"&I140&"$384")))))) -> Challenger, Citation, E550, EMB Bizjet, Falcon, Global, Gulfstream, Hawker, Hondajet, Learjet, Nextant 400XT, PC-24, Phenom, Praetor, SF50 | L140: 0.06 | M140: =IF($A$2,INDEX([1]Sheet1!$A$12:$AO$193,MATCH($A140,[1]Sheet1!$A$12:$A$193,0),8),2*$L140) -> 0.12 | N140: =INDEX([1]Sheet1!$A$12:$AO$193,MATCH($A140,[1]Sheet1!$A$12:$A$193,0),9)*(1+$A$4) -> 0.3883 | O140: =INDEX([1]Sheet1!$A$12:$AO$193,MATCH($A140,[1]Sheet1!$A$12:$A$193,0),10)*(1+$A$4) -> 2.0306 | P140: =COUNTIF($P$5:P$5,"Year")*$I$4 -> 5 | Q140: =0% -> 0 | R140: 0.06 | S140: =COUNTIF($P$5:S$5,"Year")*$I$4 -> 10 | T140: =0% -> 0 | U140: 0.06 | V140: =COUNTIF($P$5:V$5,"Year")*$I$4 -> 15 | W140: =0% -> 0 | X140: 0.06 | Y140: =COUNTIF($P$5:Y$5,"Year")*$I$4 -> 20 | Z140: =0% -> 0 | AA140: 0.06 | AB140: =COUNTIF($P$5:AB$5,"Year")*$I$4 -> 25 | AC140: =0% -> 0 | AD140: 0.06 | AE140: =COUNTIF($P$5:AE$5,"Year")*$I$4 -> 30 | AF140: =0% -> 0 | AG140: 0.06 | AH140: =COUNTIF($P$5:AH$5,"Year")*$I$4 -> 35 | AI140: =0% -> 0 | AJ140: 0.06 | AK140: =COUNTIF($P$5:AK$5,"Year")*$I$4 -> 40 | AL140: =0% -> 0 | AM140: 0.06 | AV140: 0 | AW140: 0 | AX140: 0 | AY140: 0 | AZ140: 0 | BA140: 0 | BB140: 0 | BC140: 0 | BD140: 0 | BE140: 0 | BF140: 0 | BG140: 0 | BH140: 0 | BI140: 60 | BJ140: 12 | BK140: 240 | BL140: =INDEX('Avionics ID'!A:E,MATCH(B140,'Avionics ID'!E:E,0),3) -> Display
A141: =INDEX('Avionics ID'!A:E,MATCH(B141,'Avionics ID'!E:E,0),1) -> 793 | B141: Pilot Helmet Mounted Display System | C141: 0.05 | D141: 0.06 | G141: 20 | H141: Obsolescence | I141: =SUBSTITUTE(ADDRESS(1,MATCH(A141,'Pt1-AvionicsComponentCosts'!$A$6:$NC$6,0)+1),"$1","") -> $FV | J141: =_xlfn.TEXTJOIN(", ",TRUE,_xlfn.UNIQUE(_xlfn._xlws.SORT(_xlfn._xlws.FILTER('Pt1-AvionicsComponentCosts'!$NF$12:$NF$384,ISNUMBER(INDIRECT("'Pt1-AvionicsComponentCosts'!"&I141&"$12:"&I141&"$384")))))) -> Attack, Attack Helo, Helo, Stealth | L141: 0.06 | M141: =IF($A$2,INDEX([1]Sheet1!$A$12:$AO$193,MATCH($A141,[1]Sheet1!$A$12:$A$193,0),8),2*$L141) -> 0.12 | N141: =INDEX([1]Sheet1!$A$12:$AO$193,MATCH($A141,[1]Sheet1!$A$12:$A$193,0),9)*(1+$A$4) -> 0.3883 | O141: =INDEX([1]Sheet1!$A$12:$AO$193,MATCH($A141,[1]Sheet1!$A$12:$A$193,0),10)*(1+$A$4) -> 2.0306 | P141: =COUNTIF($P$5:P$5,"Year")*$I$4 -> 5 | Q141: =0% -> 0 | R141: 0 | S141: =COUNTIF($P$5:S$5,"Year")*$I$4 -> 10 | T141: =0% -> 0 | U141: 0.06 | V141: =COUNTIF($P$5:V$5,"Year")*$I$4 -> 15 | W141: =0% -> 0 | X141: 0 | Y141: =COUNTIF($P$5:Y$5,"Year")*$I$4 -> 20 | Z141: =0% -> 0 | AA141: 0.06 | AB141: =COUNTIF($P$5:AB$5,"Year")*$I$4 -> 25 | AC141: =0% -> 0 | AD141: 0 | AE141: =COUNTIF($P$5:AE$5,"Year")*$I$4 -> 30 | AF141: =0% -> 0 | AG141: 0.06 | AH141: =COUNTIF($P$5:AH$5,"Year")*$I$4 -> 35 | AI141: =0% -> 0 | AJ141: 0 | AK141: =COUNTIF($P$5:AK$5,"Year")*$I$4 -> 40 | AL141: =0% -> 0 | AM141: 0.06 | AV141: 0 | AW141: 0 | AX141: 0 | AY141: 0 | AZ141: 0 | BA141: 0 | BB141: 0 | BC141: 0 | BD141: 0 | BE141: 0 | BF141: 0 | BG141: 0 | BH141: 0 | BI141: 36 | BJ141: 12 | BK141: 240 | BL141: =INDEX('Avionics ID'!A:E,MATCH(B141,'Avionics ID'!E:E,0),3) -> Display
A142: =INDEX('Avionics ID'!A:E,MATCH(B142,'Avionics ID'!E:E,0),1) -> 850 | B142: Pilot Night Vision Sensors (PNVS) systems | C142: 0.05 | D142: 0.06 | G142: 20 | H142: Obsolescence | I142: =SUBSTITUTE(ADDRESS(1,MATCH(A142,'Pt1-AvionicsComponentCosts'!$A$6:$NC$6,0)+1),"$1","") -> $FX | J142: =_xlfn.TEXTJOIN(", ",TRUE,_xlfn.UNIQUE(_xlfn._xlws.SORT(_xlfn._xlws.FILTER('Pt1-AvionicsComponentCosts'!$NF$12:$NF$384,ISNUMBER(INDIRECT("'Pt1-AvionicsComponentCosts'!"&I142&"$12:"&I142&"$384")))))) -> Attack Helo, Helo | L142: 0.06 | M142: =IF($A$2,INDEX([1]Sheet1!$A$12:$AO$193,MATCH($A142,[1]Sheet1!$A$12:$A$193,0),8),2*$L142) -> 0.12 | N142: =INDEX([1]Sheet1!$A$12:$AO$193,MATCH($A142,[1]Sheet1!$A$12:$A$193,0),9)*(1+$A$4) -> 0.3883 | O142: =INDEX([1]Sheet1!$A$12:$AO$193,MATCH($A142,[1]Sheet1!$A$12:$A$193,0),10)*(1+$A$4) -> 2.0306 | P142: =COUNTIF($P$5:P$5,"Year")*$I$4 -> 5 | Q142: =0% -> 0 | R142: 0 | S142: =COUNTIF($P$5:S$5,"Year")*$I$4 -> 10 | T142: =0% -> 0 | U142: 0.06 | V142: =COUNTIF($P$5:V$5,"Year")*$I$4 -> 15 | W142: =0% -> 0 | X142: 0 | Y142: =COUNTIF($P$5:Y$5,"Year")*$I$4 -> 20 | Z142: =0% -> 0 | AA142: 0.06 | AB142: =COUNTIF($P$5:AB$5,"Year")*$I$4 -> 25 | AC142: =0% -> 0 | AD142: 0 | AE142: =COUNTIF($P$5:AE$5,"Year")*$I$4 -> 30 | AF142: =0% -> 0 | AG142: 0.06 | AH142: =COUNTIF($P$5:AH$5,"Year")*$I$4 -> 35 | AI142: =0% -> 0 | AJ142: 0 | AK142: =COUNTIF($P$5:AK$5,"Year")*$I$4 -> 40 | AL142: =0% -> 0 | AM142: 0.06 | AV142: 0 | AW142: 0 | AX142: 0 | AY142: 0 | AZ142: 0 | BA142: 0 | BB142: 0 | BC142: 0 | BD142: 0 | BE142: 0 | BF142: 0 | BG142: 0 | BH142: 0 | BI142: 36 | BJ142: 12 | BK142: 240 | BL142: =INDEX('Avionics ID'!A:E,MATCH(B142,'Avionics ID'!E:E,0),3) -> Display
A143: =INDEX('Avionics ID'!A:E,MATCH(B143,'Avionics ID'!E:E,0),1) -> 807 | B143: Pitot Static sensors | C143: 0.1 | D143: 0.1 | G143: 10 | H143: Obsolescence | I143: =SUBSTITUTE(ADDRESS(1,MATCH(A143,'Pt1-AvionicsComponentCosts'!$A$6:$NC$6,0)+1),"$1","") -> $LJ | J143: =_xlfn.TEXTJOIN(", ",TRUE,_xlfn.UNIQUE(_xlfn._xlws.SORT(_xlfn._xlws.FILTER('Pt1-AvionicsComponentCosts'!$NF$12:$NF$384,ISNUMBER(INDIRECT("'Pt1-AvionicsComponentCosts'!"&I143&"$12:"&I143&"$384")))))) -> ARJ, CRJ, EMB Regional, Reg TP, Superjet 100, Turbine GA | L143: 0.1 | M143: =IF($A$2,INDEX([1]Sheet1!$A$12:$AO$193,MATCH($A143,[1]Sheet1!$A$12:$A$193,0),8),2*$L143) -> 0.2 | N143: =INDEX([1]Sheet1!$A$12:$AO$193,MATCH($A143,[1]Sheet1!$A$12:$A$193,0),9)*(1+$A$4) -> 0.3685 | O143: =INDEX([1]Sheet1!$A$12:$AO$193,MATCH($A143,[1]Sheet1!$A$12:$A$193,0),10)*(1+$A$4) -> 1.8513 | P143: =COUNTIF($P$5:P$5,"Year")*$I$4 -> 5 | Q143: =0% -> 0 | R143: 0.1 | S143: =COUNTIF($P$5:S$5,"Year")*$I$4 -> 10 | T143: =0% -> 0 | U143: 0.1 | V143: =COUNTIF($P$5:V$5,"Year")*$I$4 -> 15 | W143: =0% -> 0 | X143: 0.1 | Y143: =COUNTIF($P$5:Y$5,"Year")*$I$4 -> 20 | Z143: =0% -> 0 | AA143: 0.1 | AB143: =COUNTIF($P$5:AB$5,"Year")*$I$4 -> 25 | AC143: =0% -> 0 | AD143: 0.1 | AE143: =COUNTIF($P$5:AE$5,"Year")*$I$4 -> 30 | AF143: =0% -> 0 | AG143: 0.1 | AH143: =COUNTIF($P$5:AH$5,"Year")*$I$4 -> 35 | AI143: =0% -> 0 | AJ143: 0.1 | AK143: =COUNTIF($P$5:AK$5,"Year")*$I$4 -> 40 | AL143: =0% -> 0 | AM143: 0.1 | AV143: 0 | AW143: 0 | AX143: 0 | AY143: 0 | AZ143: 0 | BA143: 0 | BB143: 0 | BC143: 0 | BD143: 0 | BE143: 0 | BF143: 0 | BG143: 0 | BH143: 0 | BI143: 100 | BJ143: 20 | BK143: 400 | BL143: =INDEX('Avionics ID'!A:E,MATCH(B143,'Avionics ID'!E:E,0),3) -> Sensors
A144: =INDEX('Avionics ID'!A:E,MATCH(B144,'Avionics ID'!E:E,0),1) -> 726 | B144: Primary Flight Display (EFIS) | C144: 0.06666666667 | D144: 0.06 | E144: PBN | F144: 2030 | G144: 15 | H144: Technology / regulatory | I144: =SUBSTITUTE(ADDRESS(1,MATCH(A144,'Pt1-AvionicsComponentCosts'!$A$6:$NC$6,0)+1),"$1","") -> $FZ | J144: =_xlfn.TEXTJOIN(", ",TRUE,_xlfn.UNIQUE(_xlfn._xlws.SORT(_xlfn._xlws.FILTER('Pt1-AvionicsComponentCosts'!$NF$12:$NF$384,ISNUMBER(INDIRECT("'Pt1-AvionicsComponentCosts'!"&I144&"$12:"&I144&"$384")))))) -> A220, A320, A321, A330 LMXT, A330 MRTT, ARJ, ATR, B717, B737, B757, C919, CRJ, EMB Regional, MC-21, Mil Transport, Military Jet, Military TP, NSA, Reg TP, Superjet 100, Turbine GA | L144: 0.06 | M144: =IF($A$2,INDEX([1]Sheet1!$A$12:$AO$193,MATCH($A144,[1]Sheet1!$A$12:$A$193,0),8),2*$L144) -> 0.12 | N144: =INDEX([1]Sheet1!$A$12:$AO$193,MATCH($A144,[1]Sheet1!$A$12:$A$193,0),9)*(1+$A$4) -> 0.3883 | O144: =INDEX([1]Sheet1!$A$12:$AO$193,MATCH($A144,[1]Sheet1!$A$12:$A$193,0),10)*(1+$A$4) -> 2.0306 | P144: =COUNTIF($P$5:P$5,"Year")*$I$4 -> 5 | Q144: =0% -> 0 | R144: 0 | S144: =COUNTIF($P$5:S$5,"Year")*$I$4 -> 10 | T144: =0% -> 0 | U144: 0.06 | V144: =COUNTIF($P$5:V$5,"Year")*$I$4 -> 15 | W144: =0% -> 0 | X144: 0.06 | Y144: =COUNTIF($P$5:Y$5,"Year")*$I$4 -> 20 | Z144: =0% -> 0 | AA144: 0.06 | AB144: =COUNTIF($P$5:AB$5,"Year")*$I$4 -> 25 | AC144: =0% -> 0 | AD144: 0 | AE144: =COUNTIF($P$5:AE$5,"Year")*$I$4 -> 30 | AF144: =0% -> 0 | AG144: 0.06 | AH144: =COUNTIF($P$5:AH$5,"Year")*$I$4 -> 35 | AI144: =0% -> 0 | AJ144: 0 | AK144: =COUNTIF($P$5:AK$5,"Year")*$I$4 -> 40 | AL144: =0% -> 0 | AM144: 0.06 | AU144: PBN | AV144: 2.0306 | AW144: 0 | AX144: 0 | AY144: 0 | AZ144: 0 | BA144: 0.15 | BB144: 0.25 | BC144: 0.45 | BD144: 0.15 | BE144: 0 | BF144: 0 | BG144: 0 | BH144: 0 | BI144: 142 | BJ144: 12 | BK144: 240 | BL144: =INDEX('Avionics ID'!A:E,MATCH(B144,'Avionics ID'!E:E,0),3) -> Display
A145: =INDEX('Avionics ID'!A:E,MATCH(B145,'Avionics ID'!E:E,0),1) -> 756 | B145: Quick Access Recorder (QAR) | C145: 0.1 | D145: 0.06 | G145: 10 | H145: Obsolescence | I145: =SUBSTITUTE(ADDRESS(1,MATCH(A145,'Pt1-AvionicsComponentCosts'!$A$6:$NC$6,0)+1),"$1","") -> $DL | J145: =_xlfn.TEXTJOIN(", ",TRUE,_xlfn.UNIQUE(_xlfn._xlws.SORT(_xlfn._xlws.FILTER('Pt1-AvionicsComponentCosts'!$NF$12:$NF$384,ISNUMBER(INDIRECT("'Pt1-AvionicsComponentCosts'!"&I145&"$12:"&I145&"$384")))))) -> A220, A300, A320, A321, A330, A340, A350, A380, ATR, B717, B737, B747, B757, B767, B777, B787, C919, EMB Regional, MC-21, MD-11, Mil Transport, Military Jet, NSA | L145: 0.06 | M145: =IF($A$2,INDEX([1]Sheet1!$A$12:$AO$193,MATCH($A145,[1]Sheet1!$A$12:$A$193,0),8),2*$L145) -> 0.12 | N145: =INDEX([1]Sheet1!$A$12:$AO$193,MATCH($A145,[1]Sheet1!$A$12:$A$193,0),9)*(1+$A$4) -> 0.7513 | O145: =INDEX([1]Sheet1!$A$12:$AO$193,MATCH($A145,[1]Sheet1!$A$12:$A$193,0),10)*(1+$A$4) -> 2.1241 | P145: =COUNTIF($P$5:P$5,"Year")*$I$4 -> 5 | Q145: =0% -> 0 | R145: 0.06 | S145: =COUNTIF($P$5:S$5,"Year")*$I$4 -> 10 | T145: =0% -> 0 | U145: 0.06 | V145: =COUNTIF($P$5:V$5,"Year")*$I$4 -> 15 | W145: =0% -> 0 | X145: 0.06 | Y145: =COUNTIF($P$5:Y$5,"Year")*$I$4 -> 20 | Z145: =0% -> 0 | AA145: 0.06 | AB145: =COUNTIF($P$5:AB$5,"Year")*$I$4 -> 25 | AC145: =0% -> 0 | AD145: 0.06 | AE145: =COUNTIF($P$5:AE$5,"Year")*$I$4 -> 30 | AF145: =0% -> 0 | AG145: 0.06 | AH145: =COUNTIF($P$5:AH$5,"Year")*$I$4 -> 35 | AI145: =0% -> 0 | AJ145: 0.06 | AK145: =COUNTIF($P$5:AK$5,"Year")*$I$4 -> 40 | AL145: =0% -> 0 | AM145: 0.06 | AV145: 0 | AW145: 0 | AX145: 0 | AY145: 0 | AZ145: 0 | BA145: 0 | BB145: 0 | BC145: 0 | BD145: 0 | BE145: 0 | BF145: 0 | BG145: 0 | BH145: 0 | BI145: 60 | BJ145: 12 | BK145: 240 | BL145: =INDEX('Avionics ID'!A:E,MATCH(B145,'Avionics ID'!E:E,0),3) -> Data
A146: =INDEX('Avionics ID'!A:E,MATCH(B146,'Avionics ID'!E:E,0),1) -> 801 | B146: Radar altimeter | C146: 0.05 | D146: 0.03 | G146: 20 | H146: Obsolescence | I146: =SUBSTITUTE(ADDRESS(1,MATCH(A146,'Pt1-AvionicsComponentCosts'!$A$6:$NC$6,0)+1),"$1","") -> $DN | J146: =_xlfn.TEXTJOIN(", ",TRUE,_xlfn.UNIQUE(_xlfn._xlws.SORT(_xlfn._xlws.FILTER('Pt1-AvionicsComponentCosts'!$NF$12:$NF$384,ISNUMBER(INDIRECT("'Pt1-AvionicsComponentCosts'!"&I146&"$12:"&I146&"$384")))))) -> Attack, Stealth | L146: 0.03 | M146: =IF($A$2,INDEX([1]Sheet1!$A$12:$AO$193,MATCH($A146,[1]Sheet1!$A$12:$A$193,0),8),2*$L146) -> 0.06 | N146: =INDEX([1]Sheet1!$A$12:$AO$193,MATCH($A146,[1]Sheet1!$A$12:$A$193,0),9)*(1+$A$4) -> 0.7513 | O146: =INDEX([1]Sheet1!$A$12:$AO$193,MATCH($A146,[1]Sheet1!$A$12:$A$193,0),10)*(1+$A$4) -> 2.1241 | P146: =COUNTIF($P$5:P$5,"Year")*$I$4 -> 5 | Q146: =0% -> 0 | R146: 0 | S146: =COUNTIF($P$5:S$5,"Year")*$I$4 -> 10 | T146: =0% -> 0 | U146: 0.03 | V146: =COUNTIF($P$5:V$5,"Year")*$I$4 -> 15 | W146: =0% -> 0 | X146: 0 | Y146: =COUNTIF($P$5:Y$5,"Year")*$I$4 -> 20 | Z146: =0% -> 0 | AA146: 0.03 | AB146: =COUNTIF($P$5:AB$5,"Year")*$I$4 -> 25 | AC146: =0% -> 0 | AD146: 0 | AE146: =COUNTIF($P$5:AE$5,"Year")*$I$4 -> 30 | AF146: =0% -> 0 | AG146: 0.03 | AH146: =COUNTIF($P$5:AH$5,"Year")*$I$4 -> 35 | AI146: =0% -> 0 | AJ146: 0 | AK146: =COUNTIF($P$5:AK$5,"Year")*$I$4 -> 40 | AL146: =0% -> 0 | AM146: 0.03 | AV146: 0 | AW146: =IF($H146="Technology / regulatory",IF(AW$5=$F146-2,$AW$1,IF(AW$5=$F146-1,$AX$1,IF(AW$5=$F146,$AY$1,IF(AW$5=$F146+1,$AZ$1,0)))),0) -> 0 | AX146: 0 | AY146: 0 | AZ146: 0 | BA146: 0 | BB146: 0 | BC146: 0 | BD146: 0 | BE146: 0 | BF146: 0 | BG146: 0 | BH146: 0 | BI146: 18 | BJ146: 6 | BK146: 120 | BL146: =INDEX('Avionics ID'!A:E,MATCH(B146,'Avionics ID'!E:E,0),3) -> Data
A147: =INDEX('Avionics ID'!A:E,MATCH(B147,'Avionics ID'!E:E,0),1) -> 764 | B147: Radar altimeters | C147: 0.1 | D147: 0.03 | G147: 10 | H147: Obsolescence | I147: =SUBSTITUTE(ADDRESS(1,MATCH(A147,'Pt1-AvionicsComponentCosts'!$A$6:$NC$6,0)+1),"$1","") -> $KB | J147: =_xlfn.TEXTJOIN(", ",TRUE,_xlfn.UNIQUE(_xlfn._xlws.SORT(_xlfn._xlws.FILTER('Pt1-AvionicsComponentCosts'!$NF$12:$NF$384,ISNUMBER(INDIRECT("'Pt1-AvionicsComponentCosts'!"&I147&"$12:"&I147&"$384")))))) -> A300, A320, A330, A330 LMXT, A330 MRTT, A340, A350, A380, ARJ, B747, B767, B777, B787, Challenger, Citation, CRJ, E550, EMB Bizjet, EMB Regional, Falcon, Global, Gulfstream, Hawker, Hondajet, Learjet, MD-11, Mil Fighter, Mil Transport, Military Jet, Military TP, Nextant 400XT, PC-24, Phenom, Praetor, Reg TP, SF50, Superjet 100, Turbine GA | L147: 0.03 | M147: =IF($A$2,INDEX([1]Sheet1!$A$12:$AO$193,MATCH($A147,[1]Sheet1!$A$12:$A$193,0),8),2*$L147) -> 0.06 | N147: =INDEX([1]Sheet1!$A$12:$AO$193,MATCH($A147,[1]Sheet1!$A$12:$A$193,0),9)*(1+$A$4) -> 0.3894 | O147: =INDEX([1]Sheet1!$A$12:$AO$193,MATCH($A147,[1]Sheet1!$A$12:$A$193,0),10)*(1+$A$4) -> 2.0119 | P147: =COUNTIF($P$5:P$5,"Year")*$I$4 -> 5 | Q147: =0% -> 0 | R147: 0.03 | S147: =COUNTIF($P$5:S$5,"Year")*$I$4 -> 10 | T147: =0% -> 0 | U147: 0.03 | V147: =COUNTIF($P$5:V$5,"Year")*$I$4 -> 15 | W147: =0% -> 0 | X147: 0.03 | Y147: =COUNTIF($P$5:Y$5,"Year")*$I$4 -> 20 | Z147: =0% -> 0 | AA147: 0.03 | AB147: =COUNTIF($P$5:AB$5,"Year")*$I$4 -> 25 | AC147: =0% -> 0 | AD147: 0.03 | AE147: =COUNTIF($P$5:AE$5,"Year")*$I$4 -> 30 | AF147: =0% -> 0 | AG147: 0.03 | AH147: =COUNTIF($P$5:AH$5,"Year")*$I$4 -> 35 | AI147: =0% -> 0 | AJ147: 0.03 | AK147: =COUNTIF($P$5:AK$5,"Year")*$I$4 -> 40 | AL147: =0% -> 0 | AM147: 0.03 | AV147: 0 | AW147: 0 | AX147: 0 | AY147: 0 | AZ147: 0 | BA147: 0 | BB147: 0 | BC147: 0 | BD147: 0 | BE147: 0 | BF147: 0 | BG147: 0 | BH147: 0 | BI147: 30 | BJ147: 6 | BK147: 120 | BL147: =INDEX('Avionics ID'!A:E,MATCH(B147,'Avionics ID'!E:E,0),3) -> Navigation
A148: =INDEX('Avionics ID'!A:E,MATCH(B148,'Avionics ID'!E:E,0),1) -> 829 | B148: Radar Antenna (nose nounted) | C148: 0.05 | D148: 0.1 | G148: 20 | H148: Obsolescence | I148: =SUBSTITUTE(ADDRESS(1,MATCH(A148,'Pt1-AvionicsComponentCosts'!$A$6:$NC$6,0)+1),"$1","") -> $MT | J148: =_xlfn.TEXTJOIN(", ",TRUE,_xlfn.UNIQUE(_xlfn._xlws.SORT(_xlfn._xlws.FILTER('Pt1-AvionicsComponentCosts'!$NF$12:$NF$384,ISNUMBER(INDIRECT("'Pt1-AvionicsComponentCosts'!"&I148&"$12:"&I148&"$384")))))) -> Attack Helo, Challenger, Citation, E550, EMB Bizjet, Falcon, Global, Gulfstream, Hawker, Helo, Hondajet, Learjet, Nextant 400XT, PC-24, Phenom, Praetor, SF50 | L148: 0.1 | M148: =IF($A$2,INDEX([1]Sheet1!$A$12:$AO$193,MATCH($A148,[1]Sheet1!$A$12:$A$193,0),8),2*$L148) -> 0.2 | N148: =INDEX([1]Sheet1!$A$12:$AO$193,MATCH($A148,[1]Sheet1!$A$12:$A$193,0),9)*(1+$A$4) -> 0.4928 | O148: =INDEX([1]Sheet1!$A$12:$AO$193,MATCH($A148,[1]Sheet1!$A$12:$A$193,0),10)*(1+$A$4) -> 1.4278 | P148: =COUNTIF($P$5:P$5,"Year")*$I$4 -> 5 | Q148: =0% -> 0 | R148: 0 | S148: =COUNTIF($P$5:S$5,"Year")*$I$4 -> 10 | T148: =0% -> 0 | U148: 0.1 | V148: =COUNTIF($P$5:V$5,"Year")*$I$4 -> 15 | W148: =0% -> 0 | X148: 0 | Y148: =COUNTIF($P$5:Y$5,"Year")*$I$4 -> 20 | Z148: =0% -> 0 | AA148: 0.1 | AB148: =COUNTIF($P$5:AB$5,"Year")*$I$4 -> 25 | AC148: =0% -> 0 | AD148: 0 | AE148: =COUNTIF($P$5:AE$5,"Year")*$I$4 -> 30 | AF148: =0% -> 0 | AG148: 0.1 | AH148: =COUNTIF($P$5:AH$5,"Year")*$I$4 -> 35 | AI148: =0% -> 0 | AJ148: 0 | AK148: =COUNTIF($P$5:AK$5,"Year")*$I$4 -> 40 | AL148: =0% -> 0 | AM148: 0.1 | AV148: 0 | AW148: 0 | AX148: 0 | AY148: 0 | AZ148: 0 | BA148: 0 | BB148: 0 | BC148: 0 | BD148: 0 | BE148: 0 | BF148: 0 | BG148: 0 | BH148: 0 | BI148: 60 | BJ148: 20 | BK148: 400 | BL148: =INDEX('Avionics ID'!A:E,MATCH(B148,'Avionics ID'!E:E,0),3) -> Surveillance
A149: =INDEX('Avionics ID'!A:E,MATCH(B149,'Avionics ID'!E:E,0),1) -> 859 | B149: Radar jammer | C149: 0.05 | D149: 0.03 | G149: 20 | H149: Obsolescence | I149: =SUBSTITUTE(ADDRESS(1,MATCH(A149,'Pt1-AvionicsComponentCosts'!$A$6:$NC$6,0)+1),"$1","") -> $LL | J149: =_xlfn.TEXTJOIN(", ",TRUE,_xlfn.UNIQUE(_xlfn._xlws.SORT(_xlfn._xlws.FILTER('Pt1-AvionicsComponentCosts'!$NF$12:$NF$384,ISNUMBER(INDIRECT("'Pt1-AvionicsComponentCosts'!"&I149&"$12:"&I149&"$384")))))) -> Attack Helo, Helo | L149: 0.03 | M149: =IF($A$2,INDEX([1]Sheet1!$A$12:$AO$193,MATCH($A149,[1]Sheet1!$A$12:$A$193,0),8),2*$L149) -> 0.06 | N149: =INDEX([1]Sheet1!$A$12:$AO$193,MATCH($A149,[1]Sheet1!$A$12:$A$193,0),9)*(1+$A$4) -> 0.3685 | O149: =INDEX([1]Sheet1!$A$12:$AO$193,MATCH($A149,[1]Sheet1!$A$12:$A$193,0),10)*(1+$A$4) -> 1.8513 | P149: =COUNTIF($P$5:P$5,"Year")*$I$4 -> 5 | Q149: =0% -> 0 | R149: 0 | S149: =COUNTIF($P$5:S$5,"Year")*$I$4 -> 10 | T149: =0% -> 0 | U149: 0.03 | V149: =COUNTIF($P$5:V$5,"Year")*$I$4 -> 15 | W149: =0% -> 0 | X149: 0 | Y149: =COUNTIF($P$5:Y$5,"Year")*$I$4 -> 20 | Z149: =0% -> 0 | AA149: 0.03 | AB149: =COUNTIF($P$5:AB$5,"Year")*$I$4 -> 25 | AC149: =0% -> 0 | AD149: 0 | AE149: =COUNTIF($P$5:AE$5,"Year")*$I$4 -> 30 | AF149: =0% -> 0 | AG149: 0.03 | AH149: =COUNTIF($P$5:AH$5,"Year")*$I$4 -> 35 | AI149: =0% -> 0 | AJ149: 0 | AK149: =COUNTIF($P$5:AK$5,"Year")*$I$4 -> 40 | AL149: =0% -> 0 | AM149: 0.03 | AV149: 0 | AW149: 0 | AX149: 0 | AY149: 0 | AZ149: 0 | BA149: 0 | BB149: 0 | BC149: 0 | BD149: 0 | BE149: 0 | BF149: 0 | BG149: 0 | BH149: 0 | BI149: 18 | BJ149: 6 | BK149: 120 | BL149: =INDEX('Avionics ID'!A:E,MATCH(B149,'Avionics ID'!E:E,0),3) -> Sensors
A150: =INDEX('Avionics ID'!A:E,MATCH(B150,'Avionics ID'!E:E,0),1) -> 855 | B150: Radar warning receivers | C150: 0.05 | D150: 0.03 | G150: 20 | H150: Obsolescence | I150: =SUBSTITUTE(ADDRESS(1,MATCH(A150,'Pt1-AvionicsComponentCosts'!$A$6:$NC$6,0)+1),"$1","") -> $LN | J150: =_xlfn.TEXTJOIN(", ",TRUE,_xlfn.UNIQUE(_xlfn._xlws.SORT(_xlfn._xlws.FILTER('Pt1-AvionicsComponentCosts'!$NF$12:$NF$384,ISNUMBER(INDIRECT("'Pt1-AvionicsComponentCosts'!"&I150&"$12:"&I150&"$384")))))) -> Attack Helo, Helo | L150: 0.03 | M150: =IF($A$2,INDEX([1]Sheet1!$A$12:$AO$193,MATCH($A150,[1]Sheet1!$A$12:$A$193,0),8),2*$L150) -> 0.06 | N150: =INDEX([1]Sheet1!$A$12:$AO$193,MATCH($A150,[1]Sheet1!$A$12:$A$193,0),9)*(1+$A$4) -> 0.3685 | O150: =INDEX([1]Sheet1!$A$12:$AO$193,MATCH($A150,[1]Sheet1!$A$12:$A$193,0),10)*(1+$A$4) -> 1.8513 | P150: =COUNTIF($P$5:P$5,"Year")*$I$4 -> 5 | Q150: =0% -> 0 | R150: 0 | S150: =COUNTIF($P$5:S$5,"Year")*$I$4 -> 10 | T150: =0% -> 0 | U150: 0.03 | V150: =COUNTIF($P$5:V$5,"Year")*$I$4 -> 15 | W150: =0% -> 0 | X150: 0 | Y150: =COUNTIF($P$5:Y$5,"Year")*$I$4 -> 20 | Z150: =0% -> 0 | AA150: 0.03 | AB150: =COUNTIF($P$5:AB$5,"Year")*$I$4 -> 25 | AC150: =0% -> 0 | AD150: 0 | AE150: =COUNTIF($P$5:AE$5,"Year")*$I$4 -> 30 | AF150: =0% -> 0 | AG150: 0.03 | AH150: =COUNTIF($P$5:AH$5,"Year")*$I$4 -> 35 | AI150: =0% -> 0 | AJ150: 0 | AK150: =COUNTIF($P$5:AK$5,"Year")*$I$4 -> 40 | AL150: =0% -> 0 | AM150: 0.03 | AV150: 0 | AW150: 0 | AX150: 0 | AY150: 0 | AZ150: 0 | BA150: 0 | BB150: 0 | BC150: 0 | BD150: 0 | BE150: 0 | BF150: 0 | BG150: 0 | BH150: 0 | BI150: 18 | BJ150: 6 | BK150: 120 | BL150: =INDEX('Avionics ID'!A:E,MATCH(B150,'Avionics ID'!E:E,0),3) -> Sensors
A151: =INDEX('Avionics ID'!A:E,MATCH(B151,'Avionics ID'!E:E,0),1) -> 870 | B151: Radio Altimeters | C151: 0.05 | D151: 0.03 | G151: 20 | H151: Obsolescence | I151: =SUBSTITUTE(ADDRESS(1,MATCH(A151,'Pt1-AvionicsComponentCosts'!$A$6:$NC$6,0)+1),"$1","") -> $BF | J151: =_xlfn.TEXTJOIN(", ",TRUE,_xlfn.UNIQUE(_xlfn._xlws.SORT(_xlfn._xlws.FILTER('Pt1-AvionicsComponentCosts'!$NF$12:$NF$384,ISNUMBER(INDIRECT("'Pt1-AvionicsComponentCosts'!"&I151&"$12:"&I151&"$384")))))) -> UAV | L151: 0.03 | M151: =IF($A$2,INDEX([1]Sheet1!$A$12:$AO$193,MATCH($A151,[1]Sheet1!$A$12:$A$193,0),8),2*$L151) -> 0.06 | N151: =INDEX([1]Sheet1!$A$12:$AO$193,MATCH($A151,[1]Sheet1!$A$12:$A$193,0),9)*(1+$A$4) -> 0.5511 | O151: =INDEX([1]Sheet1!$A$12:$AO$193,MATCH($A151,[1]Sheet1!$A$12:$A$193,0),10)*(1+$A$4) -> 1.4267 | P151: =COUNTIF($P$5:P$5,"Year")*$I$4 -> 5 | Q151: =0% -> 0 | R151: 0 | S151: =COUNTIF($P$5:S$5,"Year")*$I$4 -> 10 | T151: =0% -> 0 | U151: 0.03 | V151: =COUNTIF($P$5:V$5,"Year")*$I$4 -> 15 | W151: =0% -> 0 | X151: 0 | Y151: =COUNTIF($P$5:Y$5,"Year")*$I$4 -> 20 | Z151: =0% -> 0 | AA151: 0.03 | AB151: =COUNTIF($P$5:AB$5,"Year")*$I$4 -> 25 | AC151: =0% -> 0 | AD151: 0 | AE151: =COUNTIF($P$5:AE$5,"Year")*$I$4 -> 30 | AF151: =0% -> 0 | AG151: 0.03 | AH151: =COUNTIF($P$5:AH$5,"Year")*$I$4 -> 35 | AI151: =0% -> 0 | AJ151: 0 | AK151: =COUNTIF($P$5:AK$5,"Year")*$I$4 -> 40 | AL151: =0% -> 0 | AM151: 0.03 | AV151: 0 | AW151: 0 | AX151: 0 | AY151: 0 | AZ151: 0 | BA151: 0 | BB151: 0 | BC151: 0 | BD151: 0 | BE151: 0 | BF151: 0 | BG151: 0 | BH151: 0 | BI151: 18 | BJ151: 6 | BK151: 120 | BL151: =INDEX('Avionics ID'!A:E,MATCH(B151,'Avionics ID'!E:E,0),3) -> Communications
A152: =INDEX('Avionics ID'!A:E,MATCH(B152,'Avionics ID'!E:E,0),1) -> 876 | B152: Radio antenna receivers/transmitters | C152: 0.05 | D152: 0.06 | G152: 20 | H152: Obsolescence | I152: =SUBSTITUTE(ADDRESS(1,MATCH(A152,'Pt1-AvionicsComponentCosts'!$A$6:$NC$6,0)+1),"$1","") -> $BH | J152: =_xlfn.TEXTJOIN(", ",TRUE,_xlfn.UNIQUE(_xlfn._xlws.SORT(_xlfn._xlws.FILTER('Pt1-AvionicsComponentCosts'!$NF$12:$NF$384,ISNUMBER(INDIRECT("'Pt1-AvionicsComponentCosts'!"&I152&"$12:"&I152&"$384")))))) -> Helo, UAV | L152: 0.06 | M152: =IF($A$2,INDEX([1]Sheet1!$A$12:$AO$193,MATCH($A152,[1]Sheet1!$A$12:$A$193,0),8),2*$L152) -> 0.12 | N152: =INDEX([1]Sheet1!$A$12:$AO$193,MATCH($A152,[1]Sheet1!$A$12:$A$193,0),9)*(1+$A$4) -> 0.5511 | O152: =INDEX([1]Sheet1!$A$12:$AO$193,MATCH($A152,[1]Sheet1!$A$12:$A$193,0),10)*(1+$A$4) -> 1.4267 | P152: =COUNTIF($P$5:P$5,"Year")*$I$4 -> 5 | Q152: =0% -> 0 | R152: 0 | S152: =COUNTIF($P$5:S$5,"Year")*$I$4 -> 10 | T152: =0% -> 0 | U152: 0.06 | V152: =COUNTIF($P$5:V$5,"Year")*$I$4 -> 15 | W152: =0% -> 0 | X152: 0 | Y152: =COUNTIF($P$5:Y$5,"Year")*$I$4 -> 20 | Z152: =0% -> 0 | AA152: 0.06 | AB152: =COUNTIF($P$5:AB$5,"Year")*$I$4 -> 25 | AC152: =0% -> 0 | AD152: 0 | AE152: =COUNTIF($P$5:AE$5,"Year")*$I$4 -> 30 | AF152: =0% -> 0 | AG152: 0.06 | AH152: =COUNTIF($P$5:AH$5,"Year")*$I$4 -> 35 | AI152: =0% -> 0 | AJ152: 0 | AK152: =COUNTIF($P$5:AK$5,"Year")*$I$4 -> 40 | AL152: =0% -> 0 | AM152: 0.06 | AV152: 0 | AW152: 0 | AX152: 0 | AY152: 0 | AZ152: 0 | BA152: 0 | BB152: 0 | BC152: 0 | BD152: 0 | BE152: 0 | BF152: 0 | BG152: 0 | BH152: 0 | BI152: 36 | BJ152: 12 | BK152: 240 | BL152: =INDEX('Avionics ID'!A:E,MATCH(B152,'Avionics ID'!E:E,0),3) -> Communications
A153: =INDEX('Avionics ID'!A:E,MATCH(B153,'Avionics ID'!E:E,0),1) -> 830 | B153: Radio antenna, amplifier, sat data | C153: 0.1 | D153: 0.08 | G153: 10 | H153: Obsolescence | I153: =SUBSTITUTE(ADDRESS(1,MATCH(A153,'Pt1-AvionicsComponentCosts'!$A$6:$NC$6,0)+1),"$1","") -> $BJ | J153: =_xlfn.TEXTJOIN(", ",TRUE,_xlfn.UNIQUE(_xlfn._xlws.SORT(_xlfn._xlws.FILTER('Pt1-AvionicsComponentCosts'!$NF$12:$NF$384,ISNUMBER(INDIRECT("'Pt1-AvionicsComponentCosts'!"&I153&"$12:"&I153&"$384")))))) -> Challenger, Citation, E550, EMB Bizjet, Falcon, Global, Gulfstream, Hawker, Hondajet, Learjet, Nextant 400XT, PC-24, Phenom, Praetor, SF50 | L153: 0.08 | M153: =IF($A$2,INDEX([1]Sheet1!$A$12:$AO$193,MATCH($A153,[1]Sheet1!$A$12:$A$193,0),8),2*$L153) -> 0.16 | N153: =INDEX([1]Sheet1!$A$12:$AO$193,MATCH($A153,[1]Sheet1!$A$12:$A$193,0),9)*(1+$A$4) -> 0.5511 | O153: =INDEX([1]Sheet1!$A$12:$AO$193,MATCH($A153,[1]Sheet1!$A$12:$A$193,0),10)*(1+$A$4) -> 1.4267 | P153: =COUNTIF($P$5:P$5,"Year")*$I$4 -> 5 | Q153: =0% -> 0 | R153: 0.08 | S153: =COUNTIF($P$5:S$5,"Year")*$I$4 -> 10 | T153: =0% -> 0 | U153: 0.08 | V153: =COUNTIF($P$5:V$5,"Year")*$I$4 -> 15 | W153: =0% -> 0 | X153: 0.08 | Y153: =COUNTIF($P$5:Y$5,"Year")*$I$4 -> 20 | Z153: =0% -> 0 | AA153: 0.08 | AB153: =COUNTIF($P$5:AB$5,"Year")*$I$4 -> 25 | AC153: =0% -> 0 | AD153: 0.08 | AE153: =COUNTIF($P$5:AE$5,"Year")*$I$4 -> 30 | AF153: =0% -> 0 | AG153: 0.08 | AH153: =COUNTIF($P$5:AH$5,"Year")*$I$4 -> 35 | AI153: =0% -> 0 | AJ153: 0.08 | AK153: =COUNTIF($P$5:AK$5,"Year")*$I$4 -> 40 | AL153: =0% -> 0 | AM153: 0.08 | AV153: 0 | AW153: 0 | AX153: 0 | AY153: 0 | AZ153: 0 | BA153: 0 | BB153: 0 | BC153: 0 | BD153: 0 | BE153: 0 | BF153: 0 | BG153: 0 | BH153: 0 | BI153: 80 | BJ153: 16 | BK153: 320 | BL153: =INDEX('Avionics ID'!A:E,MATCH(B153,'Avionics ID'!E:E,0),3) -> Communications
A154: =INDEX('Avionics ID'!A:E,MATCH(B154,'Avionics ID'!E:E,0),1) -> 806 | B154: Radio Antennas | C154: 0.1 | D154: 0.1 | G154: 10 | H154: Obsolescence | I154: =SUBSTITUTE(ADDRESS(1,MATCH(A154,'Pt1-AvionicsComponentCosts'!$A$6:$NC$6,0)+1),"$1","") -> $BL | J154: =_xlfn.TEXTJOIN(", ",TRUE,_xlfn.UNIQUE(_xlfn._xlws.SORT(_xlfn._xlws.FILTER('Pt1-AvionicsComponentCosts'!$NF$12:$NF$384,ISNUMBER(INDIRECT("'Pt1-AvionicsComponentCosts'!"&I154&"$12:"&I154&"$384")))))) -> ARJ, Challenger, Citation, CRJ, E550, EMB Bizjet, EMB Regional, Falcon, Global, Gulfstream, Hawker, Hondajet, Learjet, Nextant 400XT, PC-24, Phenom, Praetor, Reg TP, SF50, Superjet 100, Turbine GA | L154: 0.1 | M154: =IF($A$2,INDEX([1]Sheet1!$A$12:$AO$193,MATCH($A154,[1]Sheet1!$A$12:$A$193,0),8),2*$L154) -> 0.2 | N154: =INDEX([1]Sheet1!$A$12:$AO$193,MATCH($A154,[1]Sheet1!$A$12:$A$193,0),9)*(1+$A$4) -> 0.5511 | O154: =INDEX([1]Sheet1!$A$12:$AO$193,MATCH($A154,[1]Sheet1!$A$12:$A$193,0),10)*(1+$A$4) -> 1.4267 | P154: =COUNTIF($P$5:P$5,"Year")*$I$4 -> 5 | Q154: =0% -> 0 | R154: 0.1 | S154: =COUNTIF($P$5:S$5,"Year")*$I$4 -> 10 | T154: =0% -> 0 | U154: 0.1 | V154: =COUNTIF($P$5:V$5,"Year")*$I$4 -> 15 | W154: =0% -> 0 | X154: 0.1 | Y154: =COUNTIF($P$5:Y$5,"Year")*$I$4 -> 20 | Z154: =0% -> 0 | AA154: 0.1 | AB154: =COUNTIF($P$5:AB$5,"Year")*$I$4 -> 25 | AC154: =0% -> 0 | AD154: 0.1 | AE154: =COUNTIF($P$5:AE$5,"Year")*$I$4 -> 30 | AF154: =0% -> 0 | AG154: 0.1 | AH154: =COUNTIF($P$5:AH$5,"Year")*$I$4 -> 35 | AI154: =0% -> 0 | AJ154: 0.1 | AK154: =COUNTIF($P$5:AK$5,"Year")*$I$4 -> 40 | AL154: =0% -> 0 | AM154: 0.1 | AV154: 0 | AW154: 0 | AX154: 0 | AY154: 0 | AZ154: 0 | BA154: 0 | BB154: 0 | BC154: 0 | BD154: 0 | BE154: 0 | BF154: 0 | BG154: 0 | BH154: 0 | BI154: 100 | BJ154: 20 | BK154: 400 | BL154: =INDEX('Avionics ID'!A:E,MATCH(B154,'Avionics ID'!E:E,0),3) -> Communications
A155: =INDEX('Avionics ID'!A:E,MATCH(B155,'Avionics ID'!E:E,0),1) -> 743 | B155: Radio Management Panel | C155: 0.06666666667 | D155: 0.08 | E155: CPDLC | F155: 2028 | G155: 15 | H155: Technology / regulatory | I155: =SUBSTITUTE(ADDRESS(1,MATCH(A155,'Pt1-AvionicsComponentCosts'!$A$6:$NC$6,0)+1),"$1","") -> $BN | J155: =_xlfn.TEXTJOIN(", ",TRUE,_xlfn.UNIQUE(_xlfn._xlws.SORT(_xlfn._xlws.FILTER('Pt1-AvionicsComponentCosts'!$NF$12:$NF$384,ISNUMBER(INDIRECT("'Pt1-AvionicsComponentCosts'!"&I155&"$12:"&I155&"$384")))))) -> A220, A300, A320, A321, A330, A340, A350, A380, ATR, B717, B737, B747, B757, B767, B777, B787, C919, EMB Regional, MC-21, MD-11, Mil Transport, Military Jet, NSA | L155: 0.08 | M155: =IF($A$2,INDEX([1]Sheet1!$A$12:$AO$193,MATCH($A155,[1]Sheet1!$A$12:$A$193,0),8),2*$L155) -> 0.16 | N155: =INDEX([1]Sheet1!$A$12:$AO$193,MATCH($A155,[1]Sheet1!$A$12:$A$193,0),9)*(1+$A$4) -> 0.5511 | O155: =INDEX([1]Sheet1!$A$12:$AO$193,MATCH($A155,[1]Sheet1!$A$12:$A$193,0),10)*(1+$A$4) -> 1.4267 | P155: =COUNTIF($P$5:P$5,"Year")*$I$4 -> 5 | Q155: =0% -> 0 | R155: 0 | S155: =COUNTIF($P$5:S$5,"Year")*$I$4 -> 10 | T155: =0% -> 0 | U155: 0.08 | V155: =COUNTIF($P$5:V$5,"Year")*$I$4 -> 15 | W155: =0% -> 0 | X155: 0.08 | Y155: =COUNTIF($P$5:Y$5,"Year")*$I$4 -> 20 | Z155: =0% -> 0 | AA155: 0.08 | AB155: =COUNTIF($P$5:AB$5,"Year")*$I$4 -> 25 | AC155: =0% -> 0 | AD155: 0 | AE155: =COUNTIF($P$5:AE$5,"Year")*$I$4 -> 30 | AF155: =0% -> 0 | AG155: 0.08 | AH155: =COUNTIF($P$5:AH$5,"Year")*$I$4 -> 35 | AI155: =0% -> 0 | AJ155: 0 | AK155: =COUNTIF($P$5:AK$5,"Year")*$I$4 -> 40 | AL155: =0% -> 0 | AM155: 0.08 | AU155: CPDLC | AV155: 1.4267 | AW155: 0 | AX155: 0 | AY155: 0.15 | AZ155: 0.25 | BA155: 0.45 | BB155: 0.15 | BC155: 0 | BD155: 0 | BE155: 0 | BF155: 0 | BG155: 0 | BH155: 0 | BI155: 156 | BJ155: 16 | BK155: 320 | BL155: =INDEX('Avionics ID'!A:E,MATCH(B155,'Avionics ID'!E:E,0),3) -> Communications
A156: =INDEX('Avionics ID'!A:E,MATCH(B156,'Avionics ID'!E:E,0),1) -> 741 | B156: Radio management system | C156: 0.06666666667 | D156: 0.06 | E156: CPDLC | F156: 2028 | G156: 15 | H156: Technology / regulatory | I156: =SUBSTITUTE(ADDRESS(1,MATCH(A156,'Pt1-AvionicsComponentCosts'!$A$6:$NC$6,0)+1),"$1","") -> $BP | J156: =_xlfn.TEXTJOIN(", ",TRUE,_xlfn.UNIQUE(_xlfn._xlws.SORT(_xlfn._xlws.FILTER('Pt1-AvionicsComponentCosts'!$NF$12:$NF$384,ISNUMBER(INDIRECT("'Pt1-AvionicsComponentCosts'!"&I156&"$12:"&I156&"$384")))))) -> A220, A300, A320, A321, A330, A340, A350, A380, ARJ, ATR, B717, B737, B747, B757, B767, B777, C919, CRJ, EMB Regional, MC-21, MD-11, Mil Transport, Military Jet, NSA, Reg TP, Superjet 100, Turbine GA | L156: 0.06 | M156: =IF($A$2,INDEX([1]Sheet1!$A$12:$AO$193,MATCH($A156,[1]Sheet1!$A$12:$A$193,0),8),2*$L156) -> 0.12 | N156: =INDEX([1]Sheet1!$A$12:$AO$193,MATCH($A156,[1]Sheet1!$A$12:$A$193,0),9)*(1+$A$4) -> 0.5511 | O156: =INDEX([1]Sheet1!$A$12:$AO$193,MATCH($A156,[1]Sheet1!$A$12:$A$193,0),10)*(1+$A$4) -> 1.4267 | P156: =COUNTIF($P$5:P$5,"Year")*$I$4 -> 5 | Q156: =0% -> 0 | R156: 0 | S156: =COUNTIF($P$5:S$5,"Year")*$I$4 -> 10 | T156: =0% -> 0 | U156: 0.06 | V156: =COUNTIF($P$5:V$5,"Year")*$I$4 -> 15 | W156: =0% -> 0 | X156: 0.06 | Y156: =COUNTIF($P$5:Y$5,"Year")*$I$4 -> 20 | Z156: =0% -> 0 | AA156: 0.06 | AB156: =COUNTIF($P$5:AB$5,"Year")*$I$4 -> 25 | AC156: =0% -> 0 | AD156: 0 | AE156: =COUNTIF($P$5:AE$5,"Year")*$I$4 -> 30 | AF156: =0% -> 0 | AG156: 0.06 | AH156: =COUNTIF($P$5:AH$5,"Year")*$I$4 -> 35 | AI156: =0% -> 0 | AJ156: 0 | AK156: =COUNTIF($P$5:AK$5,"Year")*$I$4 -> 40 | AL156: =0% -> 0 | AM156: 0.06 | AU156: CPDLC | AV156: 1.4267 | AW156: =IF($H156="Technology / regulatory",IF(AW$5=$F156-2,$AW$1,IF(AW$5=$F156-1,$AX$1,IF(AW$5=$F156,$AY$1,IF(AW$5=$F156+1,$AZ$1,0)))),0) -> 0 | AX156: 0 | AY156: 0.15 | AZ156: 0.25 | BA156: 0.45 | BB156: 0.15 | BC156: 0 | BD156: 0 | BE156: 0 | BF156: 0 | BG156: 0 | BH156: 0 | BI156: 142 | BJ156: 12 | BK156: 240 | BL156: =INDEX('Avionics ID'!A:E,MATCH(B156,'Avionics ID'!E:E,0),3) -> Communications
A157: =INDEX('Avionics ID'!A:E,MATCH(B157,'Avionics ID'!E:E,0),1) -> 818 | B157: Radio receivers | C157: 0.05 | D157: 0.03 | G157: 20 | H157: Obsolescence | I157: =SUBSTITUTE(ADDRESS(1,MATCH(A157,'Pt1-AvionicsComponentCosts'!$A$6:$NC$6,0)+1),"$1","") -> $BR | J157: =_xlfn.TEXTJOIN(", ",TRUE,_xlfn.UNIQUE(_xlfn._xlws.SORT(_xlfn._xlws.FILTER('Pt1-AvionicsComponentCosts'!$NF$12:$NF$384,ISNUMBER(INDIRECT("'Pt1-AvionicsComponentCosts'!"&I157&"$12:"&I157&"$384")))))) -> Mil Fighter, TP Trainer | L157: 0.03 | M157: =IF($A$2,INDEX([1]Sheet1!$A$12:$AO$193,MATCH($A157,[1]Sheet1!$A$12:$A$193,0),8),2*$L157) -> 0.06 | N157: =INDEX([1]Sheet1!$A$12:$AO$193,MATCH($A157,[1]Sheet1!$A$12:$A$193,0),9)*(1+$A$4) -> 0.5511 | O157: =INDEX([1]Sheet1!$A$12:$AO$193,MATCH($A157,[1]Sheet1!$A$12:$A$193,0),10)*(1+$A$4) -> 1.4267 | P157: =COUNTIF($P$5:P$5,"Year")*$I$4 -> 5 | Q157: =0% -> 0 | R157: 0 | S157: =COUNTIF($P$5:S$5,"Year")*$I$4 -> 10 | T157: =0% -> 0 | U157: 0.03 | V157: =COUNTIF($P$5:V$5,"Year")*$I$4 -> 15 | W157: =0% -> 0 | X157: 0 | Y157: =COUNTIF($P$5:Y$5,"Year")*$I$4 -> 20 | Z157: =0% -> 0 | AA157: 0.03 | AB157: =COUNTIF($P$5:AB$5,"Year")*$I$4 -> 25 | AC157: =0% -> 0 | AD157: 0 | AE157: =COUNTIF($P$5:AE$5,"Year")*$I$4 -> 30 | AF157: =0% -> 0 | AG157: 0.03 | AH157: =COUNTIF($P$5:AH$5,"Year")*$I$4 -> 35 | AI157: =0% -> 0 | AJ157: 0 | AK157: =COUNTIF($P$5:AK$5,"Year")*$I$4 -> 40 | AL157: =0% -> 0 | AM157: 0.03 | AV157: 0 | AW157: 0 | AX157: 0 | AY157: 0 | AZ157: 0 | BA157: 0 | BB157: 0 | BC157: 0 | BD157: 0 | BE157: 0 | BF157: 0 | BG157: 0 | BH157: 0 | BI157: 18 | BJ157: 6 | BK157: 120 | BL157: =INDEX('Avionics ID'!A:E,MATCH(B157,'Avionics ID'!E:E,0),3) -> Communications
A158: =INDEX('Avionics ID'!A:E,MATCH(B158,'Avionics ID'!E:E,0),1) -> 780 | B158: Radio Tuning control Panels | C158: 0.1 | D158: 0.08 | G158: 10 | H158: Obsolescence | I158: =SUBSTITUTE(ADDRESS(1,MATCH(A158,'Pt1-AvionicsComponentCosts'!$A$6:$NC$6,0)+1),"$1","") -> $BT | J158: =_xlfn.TEXTJOIN(", ",TRUE,_xlfn.UNIQUE(_xlfn._xlws.SORT(_xlfn._xlws.FILTER('Pt1-AvionicsComponentCosts'!$NF$12:$NF$384,ISNUMBER(INDIRECT("'Pt1-AvionicsComponentCosts'!"&I158&"$12:"&I158&"$384")))))) -> A350, B747, B777, B787 | L158: 0.08 | M158: =IF($A$2,INDEX([1]Sheet1!$A$12:$AO$193,MATCH($A158,[1]Sheet1!$A$12:$A$193,0),8),2*$L158) -> 0.16 | N158: =INDEX([1]Sheet1!$A$12:$AO$193,MATCH($A158,[1]Sheet1!$A$12:$A$193,0),9)*(1+$A$4) -> 0.5511 | O158: =INDEX([1]Sheet1!$A$12:$AO$193,MATCH($A158,[1]Sheet1!$A$12:$A$193,0),10)*(1+$A$4) -> 1.4267 | P158: =COUNTIF($P$5:P$5,"Year")*$I$4 -> 5 | Q158: =0% -> 0 | R158: 0.08 | S158: =COUNTIF($P$5:S$5,"Year")*$I$4 -> 10 | T158: =0% -> 0 | U158: 0.08 | V158: =COUNTIF($P$5:V$5,"Year")*$I$4 -> 15 | W158: =0% -> 0 | X158: 0.08 | Y158: =COUNTIF($P$5:Y$5,"Year")*$I$4 -> 20 | Z158: =0% -> 0 | AA158: 0.08 | AB158: =COUNTIF($P$5:AB$5,"Year")*$I$4 -> 25 | AC158: =0% -> 0 | AD158: 0.08 | AE158: =COUNTIF($P$5:AE$5,"Year")*$I$4 -> 30 | AF158: =0% -> 0 | AG158: 0.08 | AH158: =COUNTIF($P$5:AH$5,"Year")*$I$4 -> 35 | AI158: =0% -> 0 | AJ158: 0.08 | AK158: =COUNTIF($P$5:AK$5,"Year")*$I$4 -> 40 | AL158: =0% -> 0 | AM158: 0.08 | AV158: 0 | AW158: 0 | AX158: 0 | AY158: 0 | AZ158: 0 | BA158: 0 | BB158: 0 | BC158: 0 | BD158: 0 | BE158: 0 | BF158: 0 | BG158: 0 | BH158: 0 | BI158: 80 | BJ158: 16 | BK158: 320 | BL158: =INDEX('Avionics ID'!A:E,MATCH(B158,'Avionics ID'!E:E,0),3) -> Communications
A159: =INDEX('Avionics ID'!A:E,MATCH(B159,'Avionics ID'!E:E,0),1) -> 774 | B159: Remote Data Concentrators | C159: 0.05 | D159: 0.06 | G159: 20 | H159: Obsolescence | I159: =SUBSTITUTE(ADDRESS(1,MATCH(A159,'Pt1-AvionicsComponentCosts'!$A$6:$NC$6,0)+1),"$1","") -> $HV | J159: =_xlfn.TEXTJOIN(", ",TRUE,_xlfn.UNIQUE(_xlfn._xlws.SORT(_xlfn._xlws.FILTER('Pt1-AvionicsComponentCosts'!$NF$12:$NF$384,ISNUMBER(INDIRECT("'Pt1-AvionicsComponentCosts'!"&I159&"$12:"&I159&"$384")))))) ->  | L159: 0.06 | M159: =IF($A$2,INDEX([1]Sheet1!$A$12:$AO$193,MATCH($A159,[1]Sheet1!$A$12:$A$193,0),8),2*$L159) -> 0.12 | N159: =INDEX([1]Sheet1!$A$12:$AO$193,MATCH($A159,[1]Sheet1!$A$12:$A$193,0),9)*(1+$A$4) -> 0.3905 | O159: =INDEX([1]Sheet1!$A$12:$AO$193,MATCH($A159,[1]Sheet1!$A$12:$A$193,0),10)*(1+$A$4) -> 1.1561 | P159: =COUNTIF($P$5:P$5,"Year")*$I$4 -> 5 | Q159: =0% -> 0 | R159: 0 | S159: =COUNTIF($P$5:S$5,"Year")*$I$4 -> 10 | T159: =0% -> 0 | U159: 0.06 | V159: =COUNTIF($P$5:V$5,"Year")*$I$4 -> 15 | W159: =0% -> 0 | X159: 0 | Y159: =COUNTIF($P$5:Y$5,"Year")*$I$4 -> 20 | Z159: =0% -> 0 | AA159: 0.06 | AB159: =COUNTIF($P$5:AB$5,"Year")*$I$4 -> 25 | AC159: =0% -> 0 | AD159: 0 | AE159: =COUNTIF($P$5:AE$5,"Year")*$I$4 -> 30 | AF159: =0% -> 0 | AG159: 0.06 | AH159: =COUNTIF($P$5:AH$5,"Year")*$I$4 -> 35 | AI159: =0% -> 0 | AJ159: 0 | AK159: =COUNTIF($P$5:AK$5,"Year")*$I$4 -> 40 | AL159: =0% -> 0 | AM159: 0.06 | AV159: 0 | AW159: 0 | AX159: 0 | AY159: 0 | AZ159: 0 | BA159: 0 | BB159: 0 | BC159: 0 | BD159: 0 | BE159: 0 | BF159: 0 | BG159: 0 | BH159: 0 | BI159: 36 | BJ159: 12 | BK159: 240 | BL159: =INDEX('Avionics ID'!A:E,MATCH(B159,'Avionics ID'!E:E,0),3) -> IMA
A160: 784 | B160: Remote Data concentrators | C160: 0.05 | D160: 0.06 | G160: 20 | H160: Obsolescence | I160: =SUBSTITUTE(ADDRESS(1,MATCH(A160,'Pt1-AvionicsComponentCosts'!$A$6:$NC$6,0)+1),"$1","") -> $HT | J160: =_xlfn.TEXTJOIN(", ",TRUE,_xlfn.UNIQUE(_xlfn._xlws.SORT(_xlfn._xlws.FILTER('Pt1-AvionicsComponentCosts'!$NF$12:$NF$384,ISNUMBER(INDIRECT("'Pt1-AvionicsComponentCosts'!"&I160&"$12:"&I160&"$384")))))) -> A350, Attack, B747, B777, B787, Stealth | L160: 0.06 | M160: =IF($A$2,INDEX([1]Sheet1!$A$12:$AO$193,MATCH($A160,[1]Sheet1!$A$12:$A$193,0),8),2*$L160) -> 0.12 | N160: =INDEX([1]Sheet1!$A$12:$AO$193,MATCH($A160,[1]Sheet1!$A$12:$A$193,0),9)*(1+$A$4) -> 0.3905 | O160: =INDEX([1]Sheet1!$A$12:$AO$193,MATCH($A160,[1]Sheet1!$A$12:$A$193,0),10)*(1+$A$4) -> 1.1561 | P160: =COUNTIF($P$5:P$5,"Year")*$I$4 -> 5 | Q160: =0% -> 0 | R160: 0 | S160: =COUNTIF($P$5:S$5,"Year")*$I$4 -> 10 | T160: =0% -> 0 | U160: 0.06 | V160: =COUNTIF($P$5:V$5,"Year")*$I$4 -> 15 | W160: =0% -> 0 | X160: 0 | Y160: =COUNTIF($P$5:Y$5,"Year")*$I$4 -> 20 | Z160: =0% -> 0 | AA160: 0.06 | AB160: =COUNTIF($P$5:AB$5,"Year")*$I$4 -> 25 | AC160: =0% -> 0 | AD160: 0 | AE160: =COUNTIF($P$5:AE$5,"Year")*$I$4 -> 30 | AF160: =0% -> 0 | AG160: 0.06 | AH160: =COUNTIF($P$5:AH$5,"Year")*$I$4 -> 35 | AI160: =0% -> 0 | AJ160: 0 | AK160: =COUNTIF($P$5:AK$5,"Year")*$I$4 -> 40 | AL160: =0% -> 0 | AM160: 0.06 | AV160: 0 | AW160: 0 | AX160: 0 | AY160: 0 | AZ160: 0 | BA160: 0 | BB160: 0 | BC160: 0 | BD160: 0 | BE160: 0 | BF160: 0 | BG160: 0 | BH160: 0 | BI160: 36 | BJ160: 12 | BK160: 240 | BL160: =INDEX('Avionics ID'!A:E,MATCH(B160,'Avionics ID'!E:E,0),3) -> IMA
A161: =INDEX('Avionics ID'!A:E,MATCH(B161,'Avionics ID'!E:E,0),1) -> 769 | B161: SATCOM | C161: 0.1 | D161: 0.08 | G161: 10 | H161: Obsolescence | I161: =SUBSTITUTE(ADDRESS(1,MATCH(A161,'Pt1-AvionicsComponentCosts'!$A$6:$NC$6,0)+1),"$1","") -> $BV | J161: =_xlfn.TEXTJOIN(", ",TRUE,_xlfn.UNIQUE(_xlfn._xlws.SORT(_xlfn._xlws.FILTER('Pt1-AvionicsComponentCosts'!$NF$12:$NF$384,ISNUMBER(INDIRECT("'Pt1-AvionicsComponentCosts'!"&I161&"$12:"&I161&"$384")))))) -> A300, A320, A330, A340, A350, A380, B747, B767, B777, B787, MD-11, UAV | L161: 0.08 | M161: =IF($A$2,INDEX([1]Sheet1!$A$12:$AO$193,MATCH($A161,[1]Sheet1!$A$12:$A$193,0),8),2*$L161) -> 0.16 | N161: =INDEX([1]Sheet1!$A$12:$AO$193,MATCH($A161,[1]Sheet1!$A$12:$A$193,0),9)*(1+$A$4) -> 0.5511 | O161: =INDEX([1]Sheet1!$A$12:$AO$193,MATCH($A161,[1]Sheet1!$A$12:$A$193,0),10)*(1+$A$4) -> 1.4267 | P161: =COUNTIF($P$5:P$5,"Year")*$I$4 -> 5 | Q161: =0% -> 0 | R161: 0.08 | S161: =COUNTIF($P$5:S$5,"Year")*$I$4 -> 10 | T161: =0% -> 0 | U161: 0.08 | V161: =COUNTIF($P$5:V$5,"Year")*$I$4 -> 15 | W161: =0% -> 0 | X161: 0.08 | Y161: =COUNTIF($P$5:Y$5,"Year")*$I$4 -> 20 | Z161: =0% -> 0 | AA161: 0.08 | AB161: =COUNTIF($P$5:AB$5,"Year")*$I$4 -> 25 | AC161: =0% -> 0 | AD161: 0.08 | AE161: =COUNTIF($P$5:AE$5,"Year")*$I$4 -> 30 | AF161: =0% -> 0 | AG161: 0.08 | AH161: =COUNTIF($P$5:AH$5,"Year")*$I$4 -> 35 | AI161: =0% -> 0 | AJ161: 0.08 | AK161: =COUNTIF($P$5:AK$5,"Year")*$I$4 -> 40 | AL161: =0% -> 0 | AM161: 0.08 | AV161: 0 | AW161: 0 | AX161: 0 | AY161: 0 | AZ161: 0 | BA161: 0 | BB161: 0 | BC161: 0 | BD161: 0 | BE161: 0 | BF161: 0 | BG161: 0 | BH161: 0 | BI161: 80 | BJ161: 16 | BK161: 320 | BL161: =INDEX('Avionics ID'!A:E,MATCH(B161,'Avionics ID'!E:E,0),3) -> Communications
A162: =INDEX('Avionics ID'!A:E,MATCH(B162,'Avionics ID'!E:E,0),1) -> 884 | B162: Sensor suite WX radar etc | C162: 0.1 | D162: 0.08 | G162: 10 | H162: Obsolescence | I162: =SUBSTITUTE(ADDRESS(1,MATCH(A162,'Pt1-AvionicsComponentCosts'!$A$6:$NC$6,0)+1),"$1","") -> $MV | J162: =_xlfn.TEXTJOIN(", ",TRUE,_xlfn.UNIQUE(_xlfn._xlws.SORT(_xlfn._xlws.FILTER('Pt1-AvionicsComponentCosts'!$NF$12:$NF$384,ISNUMBER(INDIRECT("'Pt1-AvionicsComponentCosts'!"&I162&"$12:"&I162&"$384")))))) -> Challenger, Citation, E550, EMB Bizjet, Falcon, Global, Gulfstream, Hawker, Hondajet, Learjet, Nextant 400XT, PC-24, Phenom, Praetor, SF50 | L162: 0.08 | M162: =IF($A$2,INDEX([1]Sheet1!$A$12:$AO$193,MATCH($A162,[1]Sheet1!$A$12:$A$193,0),8),2*$L162) -> 0.16 | N162: =INDEX([1]Sheet1!$A$12:$AO$193,MATCH($A162,[1]Sheet1!$A$12:$A$193,0),9)*(1+$A$4) -> 0.4928 | O162: =INDEX([1]Sheet1!$A$12:$AO$193,MATCH($A162,[1]Sheet1!$A$12:$A$193,0),10)*(1+$A$4) -> 1.4278 | P162: =COUNTIF($P$5:P$5,"Year")*$I$4 -> 5 | Q162: =0% -> 0 | R162: 0.08 | S162: =COUNTIF($P$5:S$5,"Year")*$I$4 -> 10 | T162: =0% -> 0 | U162: 0.08 | V162: =COUNTIF($P$5:V$5,"Year")*$I$4 -> 15 | W162: =0% -> 0 | X162: 0.08 | Y162: =COUNTIF($P$5:Y$5,"Year")*$I$4 -> 20 | Z162: =0% -> 0 | AA162: 0.08 | AB162: =COUNTIF($P$5:AB$5,"Year")*$I$4 -> 25 | AC162: =0% -> 0 | AD162: 0.08 | AE162: =COUNTIF($P$5:AE$5,"Year")*$I$4 -> 30 | AF162: =0% -> 0 | AG162: 0.08 | AH162: =COUNTIF($P$5:AH$5,"Year")*$I$4 -> 35 | AI162: =0% -> 0 | AJ162: 0.08 | AK162: =COUNTIF($P$5:AK$5,"Year")*$I$4 -> 40 | AL162: =0% -> 0 | AM162: 0.08 | AV162: 0 | AW162: 0 | AX162: 0 | AY162: 0 | AZ162: 0 | BA162: 0 | BB162: 0 | BC162: 0 | BD162: 0 | BE162: 0 | BF162: 0 | BG162: 0 | BH162: 0 | BI162: 80 | BJ162: 16 | BK162: 320 | BL162: =INDEX('Avionics ID'!A:E,MATCH(B162,'Avionics ID'!E:E,0),3) -> Surveillance
A163: =INDEX('Avionics ID'!A:E,MATCH(B163,'Avionics ID'!E:E,0),1) -> 878 | B163: Sensors IFF, other | C163: 0.1 | D163: 0.06 | G163: 10 | H163: Obsolescence | I163: =SUBSTITUTE(ADDRESS(1,MATCH(A163,'Pt1-AvionicsComponentCosts'!$A$6:$NC$6,0)+1),"$1","") -> $LP | J163: =_xlfn.TEXTJOIN(", ",TRUE,_xlfn.UNIQUE(_xlfn._xlws.SORT(_xlfn._xlws.FILTER('Pt1-AvionicsComponentCosts'!$NF$12:$NF$384,ISNUMBER(INDIRECT("'Pt1-AvionicsComponentCosts'!"&I163&"$12:"&I163&"$384")))))) -> A300, A320, A330, A330 LMXT, A330 MRTT, A340, A350, A380, B747, B767, B777, B787, Challenger, Citation, EMB Bizjet, Falcon, Global, Gulfstream, Hawker, Helo, Learjet, MD-11, Mil Fighter, Mil Transport, Military Jet, Military TP, Phenom, Praetor | L163: 0.06 | M163: =IF($A$2,INDEX([1]Sheet1!$A$12:$AO$193,MATCH($A163,[1]Sheet1!$A$12:$A$193,0),8),2*$L163) -> 0.12 | N163: =INDEX([1]Sheet1!$A$12:$AO$193,MATCH($A163,[1]Sheet1!$A$12:$A$193,0),9)*(1+$A$4) -> 0.3685 | O163: =INDEX([1]Sheet1!$A$12:$AO$193,MATCH($A163,[1]Sheet1!$A$12:$A$193,0),10)*(1+$A$4) -> 1.8513 | P163: =COUNTIF($P$5:P$5,"Year")*$I$4 -> 5 | Q163: =0% -> 0 | R163: 0.06 | S163: =COUNTIF($P$5:S$5,"Year")*$I$4 -> 10 | T163: =0% -> 0 | U163: 0.06 | V163: =COUNTIF($P$5:V$5,"Year")*$I$4 -> 15 | W163: =0% -> 0 | X163: 0.06 | Y163: =COUNTIF($P$5:Y$5,"Year")*$I$4 -> 20 | Z163: =0% -> 0 | AA163: 0.06 | AB163: =COUNTIF($P$5:AB$5,"Year")*$I$4 -> 25 | AC163: =0% -> 0 | AD163: 0.06 | AE163: =COUNTIF($P$5:AE$5,"Year")*$I$4 -> 30 | AF163: =0% -> 0 | AG163: 0.06 | AH163: =COUNTIF($P$5:AH$5,"Year")*$I$4 -> 35 | AI163: =0% -> 0 | AJ163: 0.06 | AK163: =COUNTIF($P$5:AK$5,"Year")*$I$4 -> 40 | AL163: =0% -> 0 | AM163: 0.06 | AV163: 0 | AW163: 0 | AX163: 0 | AY163: 0 | AZ163: 0 | BA163: 0 | BB163: 0 | BC163: 0 | BD163: 0 | BE163: 0 | BF163: 0 | BG163: 0 | BH163: 0 | BI163: 60 | BJ163: 12 | BK163: 240 | BL163: =INDEX('Avionics ID'!A:E,MATCH(B163,'Avionics ID'!E:E,0),3) -> Sensors
A164: =INDEX('Avionics ID'!A:E,MATCH(B164,'Avionics ID'!E:E,0),1) -> 879 | B164: Software | C164: 0.2 | D164: 0.06 | G164: 5 | H164: Obsolescence | I164: =SUBSTITUTE(ADDRESS(1,MATCH(A164,'Pt1-AvionicsComponentCosts'!$A$6:$NC$6,0)+1),"$1","") -> $LX | J164: =_xlfn.TEXTJOIN(", ",TRUE,_xlfn.UNIQUE(_xlfn._xlws.SORT(_xlfn._xlws.FILTER('Pt1-AvionicsComponentCosts'!$NF$12:$NF$384,ISNUMBER(INDIRECT("'Pt1-AvionicsComponentCosts'!"&I164&"$12:"&I164&"$384")))))) -> A220, A300, A320, A321, A330, A330 LMXT, A330 MRTT, A340, A350, A380, ARJ, ATR, Attack, Attack Helo, B717, B737, B747, B757, B767, B777, B787, C919, Challenger, Citation, CRJ, E550, EMB Bizjet, EMB Regional, Falcon, Global, Gulfstream, Hawker, Helo, Hondajet, Learjet, MC-21, MD-11, Mil Fighter, Mil Transport, Military Jet, Military TP, Nextant 400XT, NSA, PC-24, Phenom, Praetor, Reg TP, SF50, Stealth, Superjet 100, TP Trainer, Turbine GA, UAV | L164: 0.06 | M164: =IF($A$2,INDEX([1]Sheet1!$A$12:$AO$193,MATCH($A164,[1]Sheet1!$A$12:$A$193,0),8),2*$L164) -> 0.12 | N164: =INDEX([1]Sheet1!$A$12:$AO$193,MATCH($A164,[1]Sheet1!$A$12:$A$193,0),9)*(1+$A$4) -> 0.5786 | O164: =INDEX([1]Sheet1!$A$12:$AO$193,MATCH($A164,[1]Sheet1!$A$12:$A$193,0),10)*(1+$A$4) -> 0.5731 | P164: =COUNTIF($P$5:P$5,"Year")*$I$4 -> 5 | Q164: =0% -> 0 | R164: 0.06 | S164: =COUNTIF($P$5:S$5,"Year")*$I$4 -> 10 | T164: =0% -> 0 | U164: 0.06 | V164: =COUNTIF($P$5:V$5,"Year")*$I$4 -> 15 | W164: =0% -> 0 | X164: 0.06 | Y164: =COUNTIF($P$5:Y$5,"Year")*$I$4 -> 20 | Z164: =0% -> 0 | AA164: 0.06 | AB164: =COUNTIF($P$5:AB$5,"Year")*$I$4 -> 25 | AC164: =0% -> 0 | AD164: 0.06 | AE164: =COUNTIF($P$5:AE$5,"Year")*$I$4 -> 30 | AF164: =0% -> 0 | AG164: 0.06 | AH164: =COUNTIF($P$5:AH$5,"Year")*$I$4 -> 35 | AI164: =0% -> 0 | AJ164: 0.06 | AK164: =COUNTIF($P$5:AK$5,"Year")*$I$4 -> 40 | AL164: =0% -> 0 | AM164: 0.06 | AV164: 0 | AW164: 0 | AX164: 0 | AY164: 0 | AZ164: 0 | BA164: 0 | BB164: 0 | BC164: 0 | BD164: 0 | BE164: 0 | BF164: 0 | BG164: 0 | BH164: 0 | BI164: 60 | BJ164: 12 | BK164: 240 | BL164: =INDEX('Avionics ID'!A:E,MATCH(B164,'Avionics ID'!E:E,0),3) -> Software
A165: =INDEX('Avionics ID'!A:E,MATCH(B165,'Avionics ID'!E:E,0),1) -> 791 | B165: Standby display | C165: 0.05 | D165: 0.06 | G165: 20 | H165: Obsolescence | I165: =SUBSTITUTE(ADDRESS(1,MATCH(A165,'Pt1-AvionicsComponentCosts'!$A$6:$NC$6,0)+1),"$1","") -> $GB | J165: =_xlfn.TEXTJOIN(", ",TRUE,_xlfn.UNIQUE(_xlfn._xlws.SORT(_xlfn._xlws.FILTER('Pt1-AvionicsComponentCosts'!$NF$12:$NF$384,ISNUMBER(INDIRECT("'Pt1-AvionicsComponentCosts'!"&I165&"$12:"&I165&"$384")))))) -> Attack, Helo, Stealth, TP Trainer, Turbine GA | L165: 0.06 | M165: =IF($A$2,INDEX([1]Sheet1!$A$12:$AO$193,MATCH($A165,[1]Sheet1!$A$12:$A$193,0),8),2*$L165) -> 0.12 | N165: =INDEX([1]Sheet1!$A$12:$AO$193,MATCH($A165,[1]Sheet1!$A$12:$A$193,0),9)*(1+$A$4) -> 0.3883 | O165: =INDEX([1]Sheet1!$A$12:$AO$193,MATCH($A165,[1]Sheet1!$A$12:$A$193,0),10)*(1+$A$4) -> 2.0306 | P165: =COUNTIF($P$5:P$5,"Year")*$I$4 -> 5 | Q165: =0% -> 0 | R165: 0 | S165: =COUNTIF($P$5:S$5,"Year")*$I$4 -> 10 | T165: =0% -> 0 | U165: 0.06 | V165: =COUNTIF($P$5:V$5,"Year")*$I$4 -> 15 | W165: =0% -> 0 | X165: 0 | Y165: =COUNTIF($P$5:Y$5,"Year")*$I$4 -> 20 | Z165: =0% -> 0 | AA165: 0.06 | AB165: =COUNTIF($P$5:AB$5,"Year")*$I$4 -> 25 | AC165: =0% -> 0 | AD165: 0 | AE165: =COUNTIF($P$5:AE$5,"Year")*$I$4 -> 30 | AF165: =0% -> 0 | AG165: 0.06 | AH165: =COUNTIF($P$5:AH$5,"Year")*$I$4 -> 35 | AI165: =0% -> 0 | AJ165: 0 | AK165: =COUNTIF($P$5:AK$5,"Year")*$I$4 -> 40 | AL165: =0% -> 0 | AM165: 0.06 | AV165: 0 | AW165: 0 | AX165: 0 | AY165: 0 | AZ165: 0 | BA165: 0 | BB165: 0 | BC165: 0 | BD165: 0 | BE165: 0 | BF165: 0 | BG165: 0 | BH165: 0 | BI165: 36 | BJ165: 12 | BK165: 240 | BL165: =INDEX('Avionics ID'!A:E,MATCH(B165,'Avionics ID'!E:E,0),3) -> Display
A166: =INDEX('Avionics ID'!A:E,MATCH(B166,'Avionics ID'!E:E,0),1) -> 823 | B166: Standby display unit | C166: 0.1 | D166: 0.06 | G166: 10 | H166: Obsolescence | I166: =SUBSTITUTE(ADDRESS(1,MATCH(A166,'Pt1-AvionicsComponentCosts'!$A$6:$NC$6,0)+1),"$1","") -> $GD | J166: =_xlfn.TEXTJOIN(", ",TRUE,_xlfn.UNIQUE(_xlfn._xlws.SORT(_xlfn._xlws.FILTER('Pt1-AvionicsComponentCosts'!$NF$12:$NF$384,ISNUMBER(INDIRECT("'Pt1-AvionicsComponentCosts'!"&I166&"$12:"&I166&"$384")))))) -> Challenger, Citation, E550, EMB Bizjet, Falcon, Global, Gulfstream, Hawker, Hondajet, Learjet, Nextant 400XT, PC-24, Phenom, Praetor, SF50 | L166: 0.06 | M166: =IF($A$2,INDEX([1]Sheet1!$A$12:$AO$193,MATCH($A166,[1]Sheet1!$A$12:$A$193,0),8),2*$L166) -> 0.12 | N166: =INDEX([1]Sheet1!$A$12:$AO$193,MATCH($A166,[1]Sheet1!$A$12:$A$193,0),9)*(1+$A$4) -> 0.3883 | O166: =INDEX([1]Sheet1!$A$12:$AO$193,MATCH($A166,[1]Sheet1!$A$12:$A$193,0),10)*(1+$A$4) -> 2.0306 | P166: =COUNTIF($P$5:P$5,"Year")*$I$4 -> 5 | Q166: =0% -> 0 | R166: 0.06 | S166: =COUNTIF($P$5:S$5,"Year")*$I$4 -> 10 | T166: =0% -> 0 | U166: 0.06 | V166: =COUNTIF($P$5:V$5,"Year")*$I$4 -> 15 | W166: =0% -> 0 | X166: 0.06 | Y166: =COUNTIF($P$5:Y$5,"Year")*$I$4 -> 20 | Z166: =0% -> 0 | AA166: 0.06 | AB166: =COUNTIF($P$5:AB$5,"Year")*$I$4 -> 25 | AC166: =0% -> 0 | AD166: 0.06 | AE166: =COUNTIF($P$5:AE$5,"Year")*$I$4 -> 30 | AF166: =0% -> 0 | AG166: 0.06 | AH166: =COUNTIF($P$5:AH$5,"Year")*$I$4 -> 35 | AI166: =0% -> 0 | AJ166: 0.06 | AK166: =COUNTIF($P$5:AK$5,"Year")*$I$4 -> 40 | AL166: =0% -> 0 | AM166: 0.06 | AV166: 0 | AW166: =IF($H166="Technology / regulatory",IF(AW$5=$F166-2,$AW$1,IF(AW$5=$F166-1,$AX$1,IF(AW$5=$F166,$AY$1,IF(AW$5=$F166+1,$AZ$1,0)))),0) -> 0 | AX166: 0 | AY166: 0 | AZ166: 0 | BA166: 0 | BB166: 0 | BC166: 0 | BD166: 0 | BE166: 0 | BF166: 0 | BG166: 0 | BH166: 0 | BI166: 60 | BJ166: 12 | BK166: 240 | BL166: =INDEX('Avionics ID'!A:E,MATCH(B166,'Avionics ID'!E:E,0),3) -> Display
A167: =INDEX('Avionics ID'!A:E,MATCH(B167,'Avionics ID'!E:E,0),1) -> 761 | B167: Static/standby sensors | C167: 0.05 | D167: 0.1 | G167: 20 | H167: Obsolescence | I167: =SUBSTITUTE(ADDRESS(1,MATCH(A167,'Pt1-AvionicsComponentCosts'!$A$6:$NC$6,0)+1),"$1","") -> $LR | J167: =_xlfn.TEXTJOIN(", ",TRUE,_xlfn.UNIQUE(_xlfn._xlws.SORT(_xlfn._xlws.FILTER('Pt1-AvionicsComponentCosts'!$NF$12:$NF$384,ISNUMBER(INDIRECT("'Pt1-AvionicsComponentCosts'!"&I167&"$12:"&I167&"$384")))))) -> A300, A320, A330, A340, A350, A380, B747, B767, B777, MD-11 | L167: 0.1 | M167: =IF($A$2,INDEX([1]Sheet1!$A$12:$AO$193,MATCH($A167,[1]Sheet1!$A$12:$A$193,0),8),2*$L167) -> 0.2 | N167: =INDEX([1]Sheet1!$A$12:$AO$193,MATCH($A167,[1]Sheet1!$A$12:$A$193,0),9)*(1+$A$4) -> 0.3685 | O167: =INDEX([1]Sheet1!$A$12:$AO$193,MATCH($A167,[1]Sheet1!$A$12:$A$193,0),10)*(1+$A$4) -> 1.8513 | P167: =COUNTIF($P$5:P$5,"Year")*$I$4 -> 5 | Q167: =0% -> 0 | R167: 0 | S167: =COUNTIF($P$5:S$5,"Year")*$I$4 -> 10 | T167: =0% -> 0 | U167: 0.1 | V167: =COUNTIF($P$5:V$5,"Year")*$I$4 -> 15 | W167: =0% -> 0 | X167: 0 | Y167: =COUNTIF($P$5:Y$5,"Year")*$I$4 -> 20 | Z167: =0% -> 0 | AA167: 0.1 | AB167: =COUNTIF($P$5:AB$5,"Year")*$I$4 -> 25 | AC167: =0% -> 0 | AD167: 0 | AE167: =COUNTIF($P$5:AE$5,"Year")*$I$4 -> 30 | AF167: =0% -> 0 | AG167: 0.1 | AH167: =COUNTIF($P$5:AH$5,"Year")*$I$4 -> 35 | AI167: =0% -> 0 | AJ167: 0 | AK167: =COUNTIF($P$5:AK$5,"Year")*$I$4 -> 40 | AL167: =0% -> 0 | AM167: 0.1 | AV167: 0 | AW167: 0 | AX167: 0 | AY167: 0 | AZ167: 0 | BA167: 0 | BB167: 0 | BC167: 0 | BD167: 0 | BE167: 0 | BF167: 0 | BG167: 0 | BH167: 0 | BI167: 60 | BJ167: 20 | BK167: 400 | BL167: =INDEX('Avionics ID'!A:E,MATCH(B167,'Avionics ID'!E:E,0),3) -> Sensors
A168: =INDEX('Avionics ID'!A:E,MATCH(B168,'Avionics ID'!E:E,0),1) -> 881 | B168: Stores management computer | C168: 0.05 | D168: 0.06 | G168: 20 | H168: Obsolescence | I168: =SUBSTITUTE(ADDRESS(1,MATCH(A168,'Pt1-AvionicsComponentCosts'!$A$6:$NC$6,0)+1),"$1","") -> $IN | J168: =_xlfn.TEXTJOIN(", ",TRUE,_xlfn.UNIQUE(_xlfn._xlws.SORT(_xlfn._xlws.FILTER('Pt1-AvionicsComponentCosts'!$NF$12:$NF$384,ISNUMBER(INDIRECT("'Pt1-AvionicsComponentCosts'!"&I168&"$12:"&I168&"$384")))))) -> Attack, Stealth | L168: 0.06 | M168: =IF($A$2,INDEX([1]Sheet1!$A$12:$AO$193,MATCH($A168,[1]Sheet1!$A$12:$A$193,0),8),2*$L168) -> 0.12 | N168: =INDEX([1]Sheet1!$A$12:$AO$193,MATCH($A168,[1]Sheet1!$A$12:$A$193,0),9)*(1+$A$4) -> 0.396 | O168: =INDEX([1]Sheet1!$A$12:$AO$193,MATCH($A168,[1]Sheet1!$A$12:$A$193,0),10)*(1+$A$4) -> 2.057 | P168: =COUNTIF($P$5:P$5,"Year")*$I$4 -> 5 | Q168: =0% -> 0 | R168: 0 | S168: =COUNTIF($P$5:S$5,"Year")*$I$4 -> 10 | T168: =0% -> 0 | U168: 0.06 | V168: =COUNTIF($P$5:V$5,"Year")*$I$4 -> 15 | W168: =0% -> 0 | X168: 0 | Y168: =COUNTIF($P$5:Y$5,"Year")*$I$4 -> 20 | Z168: =0% -> 0 | AA168: 0.06 | AB168: =COUNTIF($P$5:AB$5,"Year")*$I$4 -> 25 | AC168: =0% -> 0 | AD168: 0 | AE168: =COUNTIF($P$5:AE$5,"Year")*$I$4 -> 30 | AF168: =0% -> 0 | AG168: 0.06 | AH168: =COUNTIF($P$5:AH$5,"Year")*$I$4 -> 35 | AI168: =0% -> 0 | AJ168: 0 | AK168: =COUNTIF($P$5:AK$5,"Year")*$I$4 -> 40 | AL168: =0% -> 0 | AM168: 0.06 | AV168: 0 | AW168: 0 | AX168: 0 | AY168: 0 | AZ168: 0 | BA168: 0 | BB168: 0 | BC168: 0 | BD168: 0 | BE168: 0 | BF168: 0 | BG168: 0 | BH168: 0 | BI168: 36 | BJ168: 12 | BK168: 240 | BL168: =INDEX('Avionics ID'!A:E,MATCH(B168,'Avionics ID'!E:E,0),3) -> Mission
A169: =INDEX('Avionics ID'!A:E,MATCH(B169,'Avionics ID'!E:E,0),1) -> 819 | B169: Stores Management System | C169: 0.05 | D169: 0.06 | G169: 20 | H169: Obsolescence | I169: =SUBSTITUTE(ADDRESS(1,MATCH(A169,'Pt1-AvionicsComponentCosts'!$A$6:$NC$6,0)+1),"$1","") -> $IP | J169: =_xlfn.TEXTJOIN(", ",TRUE,_xlfn.UNIQUE(_xlfn._xlws.SORT(_xlfn._xlws.FILTER('Pt1-AvionicsComponentCosts'!$NF$12:$NF$384,ISNUMBER(INDIRECT("'Pt1-AvionicsComponentCosts'!"&I169&"$12:"&I169&"$384")))))) -> Mil Fighter, TP Trainer | L169: 0.06 | M169: =IF($A$2,INDEX([1]Sheet1!$A$12:$AO$193,MATCH($A169,[1]Sheet1!$A$12:$A$193,0),8),2*$L169) -> 0.12 | N169: =INDEX([1]Sheet1!$A$12:$AO$193,MATCH($A169,[1]Sheet1!$A$12:$A$193,0),9)*(1+$A$4) -> 0.396 | O169: =INDEX([1]Sheet1!$A$12:$AO$193,MATCH($A169,[1]Sheet1!$A$12:$A$193,0),10)*(1+$A$4) -> 2.057 | P169: =COUNTIF($P$5:P$5,"Year")*$I$4 -> 5 | Q169: =0% -> 0 | R169: 0 | S169: =COUNTIF($P$5:S$5,"Year")*$I$4 -> 10 | T169: =0% -> 0 | U169: 0.06 | V169: =COUNTIF($P$5:V$5,"Year")*$I$4 -> 15 | W169: =0% -> 0 | X169: 0 | Y169: =COUNTIF($P$5:Y$5,"Year")*$I$4 -> 20 | Z169: =0% -> 0 | AA169: 0.06 | AB169: =COUNTIF($P$5:AB$5,"Year")*$I$4 -> 25 | AC169: =0% -> 0 | AD169: 0 | AE169: =COUNTIF($P$5:AE$5,"Year")*$I$4 -> 30 | AF169: =0% -> 0 | AG169: 0.06 | AH169: =COUNTIF($P$5:AH$5,"Year")*$I$4 -> 35 | AI169: =0% -> 0 | AJ169: 0 | AK169: =COUNTIF($P$5:AK$5,"Year")*$I$4 -> 40 | AL169: =0% -> 0 | AM169: 0.06 | AV169: 0 | AW169: 0 | AX169: 0 | AY169: 0 | AZ169: 0 | BA169: 0 | BB169: 0 | BC169: 0 | BD169: 0 | BE169: 0 | BF169: 0 | BG169: 0 | BH169: 0 | BI169: 36 | BJ169: 12 | BK169: 240 | BL169: =INDEX('Avionics ID'!A:E,MATCH(B169,'Avionics ID'!E:E,0),3) -> Mission
A170: =INDEX('Avionics ID'!A:E,MATCH(B170,'Avionics ID'!E:E,0),1) -> 883 | B170: Surveillance Sensors | C170: 0.1 | D170: 0.08 | G170: 10 | H170: Obsolescence | I170: =SUBSTITUTE(ADDRESS(1,MATCH(A170,'Pt1-AvionicsComponentCosts'!$A$6:$NC$6,0)+1),"$1","") -> $LT | J170: =_xlfn.TEXTJOIN(", ",TRUE,_xlfn.UNIQUE(_xlfn._xlws.SORT(_xlfn._xlws.FILTER('Pt1-AvionicsComponentCosts'!$NF$12:$NF$384,ISNUMBER(INDIRECT("'Pt1-AvionicsComponentCosts'!"&I170&"$12:"&I170&"$384")))))) -> A220, A300, A320, A330, A330 LMXT, A330 MRTT, A340, A350, A380, B717, B737, B747, B757, B767, B777, B787, C919, MC-21, MD-11, Military Jet, NSA | L170: 0.08 | M170: =IF($A$2,INDEX([1]Sheet1!$A$12:$AO$193,MATCH($A170,[1]Sheet1!$A$12:$A$193,0),8),2*$L170) -> 0.16 | N170: =INDEX([1]Sheet1!$A$12:$AO$193,MATCH($A170,[1]Sheet1!$A$12:$A$193,0),9)*(1+$A$4) -> 0.3685 | O170: =INDEX([1]Sheet1!$A$12:$AO$193,MATCH($A170,[1]Sheet1!$A$12:$A$193,0),10)*(1+$A$4) -> 1.8513 | P170: =COUNTIF($P$5:P$5,"Year")*$I$4 -> 5 | Q170: =0% -> 0 | R170: 0.08 | S170: =COUNTIF($P$5:S$5,"Year")*$I$4 -> 10 | T170: =0% -> 0 | U170: 0.08 | V170: =COUNTIF($P$5:V$5,"Year")*$I$4 -> 15 | W170: =0% -> 0 | X170: 0.08 | Y170: =COUNTIF($P$5:Y$5,"Year")*$I$4 -> 20 | Z170: =0% -> 0 | AA170: 0.08 | AB170: =COUNTIF($P$5:AB$5,"Year")*$I$4 -> 25 | AC170: =0% -> 0 | AD170: 0.08 | AE170: =COUNTIF($P$5:AE$5,"Year")*$I$4 -> 30 | AF170: =0% -> 0 | AG170: 0.08 | AH170: =COUNTIF($P$5:AH$5,"Year")*$I$4 -> 35 | AI170: =0% -> 0 | AJ170: 0.08 | AK170: =COUNTIF($P$5:AK$5,"Year")*$I$4 -> 40 | AL170: =0% -> 0 | AM170: 0.08 | AV170: 0 | AW170: 0 | AX170: 0 | AY170: 0 | AZ170: 0 | BA170: 0 | BB170: 0 | BC170: 0 | BD170: 0 | BE170: 0 | BF170: 0 | BG170: 0 | BH170: 0 | BI170: 80 | BJ170: 16 | BK170: 320 | BL170: =INDEX('Avionics ID'!A:E,MATCH(B170,'Avionics ID'!E:E,0),3) -> Sensors
A171: =INDEX('Avionics ID'!A:E,MATCH(B171,'Avionics ID'!E:E,0),1) -> 732 | B171: System Data Acquisition Concentrator (SDAC) | C171: 0.03333333333 | D171: 0.06 | G171: 30 | H171: Obsolescence | I171: =SUBSTITUTE(ADDRESS(1,MATCH(A171,'Pt1-AvionicsComponentCosts'!$A$6:$NC$6,0)+1),"$1","") -> $GF | J171: =_xlfn.TEXTJOIN(", ",TRUE,_xlfn.UNIQUE(_xlfn._xlws.SORT(_xlfn._xlws.FILTER('Pt1-AvionicsComponentCosts'!$NF$12:$NF$384,ISNUMBER(INDIRECT("'Pt1-AvionicsComponentCosts'!"&I171&"$12:"&I171&"$384")))))) -> A220, A300, A320, A321, A330, A340, A350, A380, ATR, B717, B737, B747, B757, B767, B777, C919, EMB Regional, MC-21, MD-11, Mil Transport, Military Jet, NSA | L171: 0.06 | M171: =IF($A$2,INDEX([1]Sheet1!$A$12:$AO$193,MATCH($A171,[1]Sheet1!$A$12:$A$193,0),8),2*$L171) -> 0.12 | N171: =INDEX([1]Sheet1!$A$12:$AO$193,MATCH($A171,[1]Sheet1!$A$12:$A$193,0),9)*(1+$A$4) -> 0.3883 | O171: =INDEX([1]Sheet1!$A$12:$AO$193,MATCH($A171,[1]Sheet1!$A$12:$A$193,0),10)*(1+$A$4) -> 2.0306 | P171: =COUNTIF($P$5:P$5,"Year")*$I$4 -> 5 | Q171: =0% -> 0 | R171: 0 | S171: =COUNTIF($P$5:S$5,"Year")*$I$4 -> 10 | T171: =0% -> 0 | U171: 0 | V171: =COUNTIF($P$5:V$5,"Year")*$I$4 -> 15 | W171: =0% -> 0 | X171: 0.06 | Y171: =COUNTIF($P$5:Y$5,"Year")*$I$4 -> 20 | Z171: =0% -> 0 | AA171: 0 | AB171: =COUNTIF($P$5:AB$5,"Year")*$I$4 -> 25 | AC171: =0% -> 0 | AD171: 0 | AE171: =COUNTIF($P$5:AE$5,"Year")*$I$4 -> 30 | AF171: =0% -> 0 | AG171: 0.06 | AH171: =COUNTIF($P$5:AH$5,"Year")*$I$4 -> 35 | AI171: =0% -> 0 | AJ171: 0 | AK171: =COUNTIF($P$5:AK$5,"Year")*$I$4 -> 40 | AL171: =0% -> 0 | AM171: 0 | AV171: 0 | AW171: 0 | AX171: 0 | AY171: 0 | AZ171: 0 | BA171: 0 | BB171: 0 | BC171: 0 | BD171: 0 | BE171: 0 | BF171: 0 | BG171: 0 | BH171: 0 | BI171: 24 | BJ171: 12 | BK171: 240 | BL171: =INDEX('Avionics ID'!A:E,MATCH(B171,'Avionics ID'!E:E,0),3) -> Display
A172: =INDEX('Avionics ID'!A:E,MATCH(B172,'Avionics ID'!E:E,0),1) -> 838 | B172: TACAN | C172: 0.1 | D172: 0.06 | G172: 10 | H172: Obsolescence | I172: =SUBSTITUTE(ADDRESS(1,MATCH(A172,'Pt1-AvionicsComponentCosts'!$A$6:$NC$6,0)+1),"$1","") -> $KF | J172: =_xlfn.TEXTJOIN(", ",TRUE,_xlfn.UNIQUE(_xlfn._xlws.SORT(_xlfn._xlws.FILTER('Pt1-AvionicsComponentCosts'!$NF$12:$NF$384,ISNUMBER(INDIRECT("'Pt1-AvionicsComponentCosts'!"&I172&"$12:"&I172&"$384")))))) -> A330 LMXT, A330 MRTT, Mil Transport, Military Jet, Military TP | L172: 0.06 | M172: =IF($A$2,INDEX([1]Sheet1!$A$12:$AO$193,MATCH($A172,[1]Sheet1!$A$12:$A$193,0),8),2*$L172) -> 0.12 | N172: =INDEX([1]Sheet1!$A$12:$AO$193,MATCH($A172,[1]Sheet1!$A$12:$A$193,0),9)*(1+$A$4) -> 0.3894 | O172: =INDEX([1]Sheet1!$A$12:$AO$193,MATCH($A172,[1]Sheet1!$A$12:$A$193,0),10)*(1+$A$4) -> 2.0119 | P172: =COUNTIF($P$5:P$5,"Year")*$I$4 -> 5 | Q172: =0% -> 0 | R172: 0.06 | S172: =COUNTIF($P$5:S$5,"Year")*$I$4 -> 10 | T172: =0% -> 0 | U172: 0.06 | V172: =COUNTIF($P$5:V$5,"Year")*$I$4 -> 15 | W172: =0% -> 0 | X172: 0.06 | Y172: =COUNTIF($P$5:Y$5,"Year")*$I$4 -> 20 | Z172: =0% -> 0 | AA172: 0.06 | AB172: =COUNTIF($P$5:AB$5,"Year")*$I$4 -> 25 | AC172: =0% -> 0 | AD172: 0.06 | AE172: =COUNTIF($P$5:AE$5,"Year")*$I$4 -> 30 | AF172: =0% -> 0 | AG172: 0.06 | AH172: =COUNTIF($P$5:AH$5,"Year")*$I$4 -> 35 | AI172: =0% -> 0 | AJ172: 0.06 | AK172: =COUNTIF($P$5:AK$5,"Year")*$I$4 -> 40 | AL172: =0% -> 0 | AM172: 0.06 | AV172: 0 | AW172: 0 | AX172: 0 | AY172: 0 | AZ172: 0 | BA172: 0 | BB172: 0 | BC172: 0 | BD172: 0 | BE172: 0 | BF172: 0 | BG172: 0 | BH172: 0 | BI172: 60 | BJ172: 12 | BK172: 240 | BL172: =INDEX('Avionics ID'!A:E,MATCH(B172,'Avionics ID'!E:E,0),3) -> Navigation
A173: =INDEX('Avionics ID'!A:E,MATCH(B173,'Avionics ID'!E:E,0),1) -> 854 | B173: Target data acquisition | C173: 0.05 | D173: 0.06 | G173: 20 | H173: Obsolescence | I173: =SUBSTITUTE(ADDRESS(1,MATCH(A173,'Pt1-AvionicsComponentCosts'!$A$6:$NC$6,0)+1),"$1","") -> $BX | J173: =_xlfn.TEXTJOIN(", ",TRUE,_xlfn.UNIQUE(_xlfn._xlws.SORT(_xlfn._xlws.FILTER('Pt1-AvionicsComponentCosts'!$NF$12:$NF$384,ISNUMBER(INDIRECT("'Pt1-AvionicsComponentCosts'!"&I173&"$12:"&I173&"$384")))))) -> Attack Helo, Helo | L173: 0.06 | M173: =IF($A$2,INDEX([1]Sheet1!$A$12:$AO$193,MATCH($A173,[1]Sheet1!$A$12:$A$193,0),8),2*$L173) -> 0.12 | N173: =INDEX([1]Sheet1!$A$12:$AO$193,MATCH($A173,[1]Sheet1!$A$12:$A$193,0),9)*(1+$A$4) -> 0.5511 | O173: =INDEX([1]Sheet1!$A$12:$AO$193,MATCH($A173,[1]Sheet1!$A$12:$A$193,0),10)*(1+$A$4) -> 1.4267 | P173: =COUNTIF($P$5:P$5,"Year")*$I$4 -> 5 | Q173: =0% -> 0 | R173: 0 | S173: =COUNTIF($P$5:S$5,"Year")*$I$4 -> 10 | T173: =0% -> 0 | U173: 0.06 | V173: =COUNTIF($P$5:V$5,"Year")*$I$4 -> 15 | W173: =0% -> 0 | X173: 0 | Y173: =COUNTIF($P$5:Y$5,"Year")*$I$4 -> 20 | Z173: =0% -> 0 | AA173: 0.06 | AB173: =COUNTIF($P$5:AB$5,"Year")*$I$4 -> 25 | AC173: =0% -> 0 | AD173: 0 | AE173: =COUNTIF($P$5:AE$5,"Year")*$I$4 -> 30 | AF173: =0% -> 0 | AG173: 0.06 | AH173: =COUNTIF($P$5:AH$5,"Year")*$I$4 -> 35 | AI173: =0% -> 0 | AJ173: 0 | AK173: =COUNTIF($P$5:AK$5,"Year")*$I$4 -> 40 | AL173: =0% -> 0 | AM173: 0.06 | AV173: 0 | AW173: 0 | AX173: 0 | AY173: 0 | AZ173: 0 | BA173: 0 | BB173: 0 | BC173: 0 | BD173: 0 | BE173: 0 | BF173: 0 | BG173: 0 | BH173: 0 | BI173: 36 | BJ173: 12 | BK173: 240 | BL173: =INDEX('Avionics ID'!A:E,MATCH(B173,'Avionics ID'!E:E,0),3) -> Communications
